Workbook

Sheet Instructions
A1: Payment in Lieu of Taxes Financial Agreement Forecasting Model (PFAF)
A2: Guide to the Payment in Lieu of Taxes Financial Agreement Forecasting Model
A4: Introduction
A6: The PILOT Financial Agreement Forecasting Model (PFAF model) produces 30-year project cash flow, PILOT payment, and municipality net benefit projections based on user-entered assumptions, 2024 Census data, and 2025 tax and budget information.
A7: The Model allows municipalities to forecast and understand the net financial impact of PILOT payments relative to the projected impact of the proposed project on municipal spending.
A8: The Model populates from user inputs on the "Inputs/Assumptions" tab and 2025 property tax and municipal budgeted expenditure data on the Data tab.
A9: Cells that are highlighted in yellow or with blue font are meant for user entry. All other cells are formula cells that should not be changed.
A10: For the Model to perform correctly, it is essential that operating expenses and debt service be entered as negative values.
A12: Interpreting and Using the Output
A13: The Model enables users to run their own project Net Cash Flow and PILOT calculations using different PILOT assumptions than those proposed by developers. These can be used in negotiations with developers to demonstrate project feasibility at PILOT levels that hold the municipal budget harmless or limit the net subsidy required from the municipality. For example, the Net Cash Flow data column shows developers the net profits they would make each year using the municipality's PILOT assumptions, while the Internal Rate of Return (IRR) figure calculates the overall profitability of the project over the life of the investment under those assumptions. In addition, municipalities can use the Net Benefit/Loss and Change in Municipal Property Tax Revenues data columns to show developers the cost to municipal taxpayers of subsidizing the project with a reduced tax liability from the PILOT, which can inform negotiations in reaching a reasonable PILOT level.
A21: Inputs & Assumptions Tab
A22: Projection Options
A24: Users have the option to select one of three projection methods, selected from a drop down box at the top of the Inputs & Assumptions Tab
B26: A: % of Actual Gross Revenues
B27: This option calculates PILOT payments as a user-specified percentage of actual gross revenues.
B29: B: % of Taxes
B30: This option calculates PILOT payments as a user-specified percentage of the full tax liability.
B32: C: Manual Entry
B33: This option allows the user to manually enter PILOT payments for each year.
A35: The assumptions for these options are entered in the PILOT Methods Assumptions section.
A37: Users may also select the methodology for allocating the PILOT between the municipality, county, and school district from a drop down box at the top of the Inputs & Assumptions Tab
B38: A. Share of Total Levy
B39: The PILOT is allocated between the municipality, county, and school district based on their shares of the combined levy.
B40: B. User Entered Allocation (Default)
B41: The user enters in the percentage PILOT allocation shares for the municipality, county, and school district
A43: In addition, users can specify if the project is already subject to a PILOT agreement using the "Existing PILOT Currently in Place?" drop down box. The default answer is "No". If "Yes" is selected, the user should enter in the PILOT payments under the existing agreement for the life of the project in column J of the Project Budget and Valuation Assumptions section.
A45: Project Type
A47: Users select from one of three project types, residential, commercial/industrial, and mixed-use. Each type has an assumptions section which is activated when that type is selected. This section projects the number of persons occupying the development. This number is multiplied by municipal spending per capita (municipal spending divided by daytime population) to estimate the municipal spending stemming from the project. Users can also indicate whether the project has affordable housing or not, which is strictly for informational purposes.
B49: For Residential Projects, users enter in the number of studio, 1 bedroom, 2 bedroom, and 3 bedroom units. The number of persons occupying the units are calculated based on multipliers from "Who Lives in New Jersey Housing: A Quick Guide to New Jersey Residential Demographic Multipliers,” published by Center for Urban Policy Research at Rutgers University. This also produces a public school children estimate for informational purposes that can be used to separately calculate direct school district impacts.
B51: For Commercial/Industrial Projects, users enter in the projected number of occupants in a commercial or industrial building
B53: For Mixed-Use Projects, users enter in the projected number of housing units for the residential portion and the projected occupancy in the commercial or industrial portion.
A55: Project Assumptions
A57: In this section, users enter projected gross revenue, operating expenses, debt service, equity, and the full property tax liability for the property before and after improvements (i.e. new construction).
B59: Net Rents/Gross Revenue | C59: Projected project gross revenue from net rents (taking into account vacancies) and other forms of revenue.
B60: Operating Expenses | C60: All project operating expenses excluding PILOT payments. Must be entered as negative values.
B61: Existing PILOT Payments (Municipal Portion) | C61: The municipal portion of total PILOT payments for a property already subject to a PILOT agreement. This is only applicable if the project is currently subject to a PILOT agreement.
B62: Property Assessed Value Pre-Improvement | C62: Projected full tax assessment for the development before improvements (i.e. assessed value of vacant land)
B63: Property Assessed Value Post-Improvement | C63: Estimated full tax assessment for the development after improvements (i.e. new construction)
B64: Debt Service | C64: Anticipated annual debt service on debt issued for the project
B65: Equity (In)/Out | C65: Total funds invested in the property (enter as negative values) and projected proceeds from sale of the property (enter as positive values)
A67: Municipal Spending Assumptions
A69: In this section, users enter projected annual growth rates for the municipal budget. These are used to grow the additional municipal spending impact from the project. Users also enter the percentage of spending in ten key budget areas that would be affected by new residents or jobs. These entries flow to the municipal spending per capita calculation. Municipal spending per capita is used to project the additional cost to the municipality from the project. Users can also add the value of additional benefits and costs not captured by the model in the "Additional Net Benefit/Loss to Municipality" section. This may include the value of affordable housing, community facilities, parks and green space, and other public benefits contributed by the project. In addition, users can enter other project-associated costs not accounted for in the core budget areas in the "Additional Municipal Costs Outside Core Budget" section.
A73: Projection Tab
A75: The projection tab calculates the PILOT payments, the municipal, county and school district split, the project net cash flows, the internal rate of return, and the net cost or benefit to the municipality. It is populated by data in the "Data" tab and entries on the "Inputs & Assumptions" tab. Outputs are as follows:
B77: Year | C77: The year of the payment.
B78: Year Number | C78: The sequential year of the payment.
B79: Net Rents/Gross Revenue | C79: Projected gross revenue from net rents (taking into account vacancies) and other forms of project revenue.
B80: Operating Expenses | C80: All project operating expenses excluding PILOT payments.
B81: Property Assessed Value Pre-Improvement | C81: Projected full tax assessment for the development after improvements (i.e. new construction).
B82: Municipal Property Tax Revenue Pre-Improvement | C82: Property tax bill for property before improvements (i.e. vacant land).
B83: Property Assessed Value Post-Improvement | C83: Projected full tax assessment for the development before improvements (i.e. assessed value of vacant land).
B84: Total Property Taxes without PILOT | C84: Total property taxes (county, municipal, school) due on property post-improvement with no abatement or exemption.
B85: Municipal Property Taxes without PILOT | C85: Total municipal property taxes due on property post-improvement with no abatement or exemption.
B86: PILOT Payments | C86: Calculated PILOT payment based on selected projection option.
B87: Municipal PILOT | C87: Calculated municipal portion of PILOT payment, based on the municipal percentage of the total levy.
B88: County PILOT | C88: Calculated county portion of PILOT payment, based on the county percentage of the total levy.
B89: School PILOT | C89: Calculated school district portion of PILOT payment, based on the school district percentage of the total levy.
B90: Project Net Operating Income before Debt Service | C90: Total project net operating income before debt service. Calculated as the net rents/revenue minus operating expenses and the PILOT payment.
B91: Debt Service | C91: Anticipated annual debt service on debt issued for the project.
B92: Project Cash Flow | C92: Project Net Operating Income minus debt service.
B93: Equity (In)/Out | C93: Total funds invested in the property (enter as negative values) and proceeds from sale of the property (enter as positive values).
B94: Net Cash Flow | C94: The sum of Project Cash Flow and Equity In/Out. Used to compute the Internal Rate of Return (IRR).
B95: PILOT % of Annual Gross Revenue | C95: Total PILOT payments divided by total annual gross revenue.
B96: PILOT % of Conventional Taxes | C96: Total PILOT payments divided by total property tax liability without abatements or exemptions.
B97: Additional Municipal Costs | C97: Calculated additional municipal spending due to the project.
B98: Net Benefit (Loss) to Municipality | C98: Calculated net financial benefit or loss to the municipality. Calculated as the municipal PILOT payment less pre-improvement property taxes and additional municipal costs.
B99: Change in Municipal Property Tax Revenue due to Project | C99: Calculated change in municipal property tax revenue from the PILOT.
B100: Adjust PILOT to IRR Target Button | C100: Adjusts PILOT payments to produce the IRR entered in cell AB6.
B101: Adjust PILOT to Hold Municipality Harmless (Net Benefit/Loss) Button | C101: Adjusts PILOT payments to produce no net financial impact to the municipality over the life of the project.
B102: Adjust PILOT to Hold Municipality Harmless (Chg. in Prop Tax) Button | C102: Adjusts PILOT payments to produce no net change in municipal property tax revenues
B103: Remove PILOT Adjustment Button | C103: Removes PILOT adjustments and reverts back to original calculation.
A106: Data Tab
A108: This tab contains the raw source data used to calculate property tax liabilities and municipal spending. The data are based on the US Census Bureau's 2020-24 American Community Survey 5-Year Estimates (daytime population), DCA's 2025 Property Tax Information release, and the 2025 municipal User Friendly Budget submissions. Users have the option to enter in more recent tax and spending data on this tab, if desired
A111: The following 14 municipalities do not have 2025 User Friendly Budget data available to perform the Net Benefit/Loss calculation:
B112: Bloomsbury borough, Hunterdon County
B113: Hillside township, Union County
B114: Jamesburg borough, Middlesex County
B115: Mantoloking borough, Ocean County
B116: Newark city, Essex County
B117: Oxford township, Warren County
B118: Paterson city, Passaic County
B119: Penns Grove borough, Salem County
B120: Rahway city, Union County
B121: Ridgewood village, Bergen County
B122: Salem city, Salem County
B123: South Brunswick township, Middlesex County
B124: Spotswood borough, Middlesex County
B125: West Orange township, Essex County

Sheet FAQ
A1: =Instructions!A1 -> Payment in Lieu of Taxes Financial Agreement Forecasting Model (PFAF)
A2: Frequently Asked Questions
A4: Can I clear out existing data in the model?
A5: You may clear out or replace any data in blue font or in a yellow-highlighted cell. The data in the Inputs and Assumptions tab are examples and should be replaced with actual project data and user assumptions.
A7: Can I print the model outputs?
A8: Yes, all of the model's tabs have been formatted to print.
A10: I have received a pro forma from the developer. However would I integrate that into the model?
A11: You would find the data corresponding to total operating expenses, debt service, total revenue or net rents, and enter them in the Project Budget & Valuation Assumptions section of the Inputs and Assumptions tab. The model will then calculate the IRR and municipality net benefit based on this data and the user-entered municipal spending, tax assessment, and PILOT method assumptions.
A13: I have received a proposed PILOT schedule from the developer. How do I use the model to determine if this is a net benefit to my town?
A14: You can enter in the PILOT numbers in the Manual Entry column of the PILOT Method Assumptions section on the Inputs and Assumptions tab. Select "Manual Entry" in the PILOT Method drop down menu to activate the scenario. The model will show the projected net benefit/loss on the Model tab.
A16: I would like to add additional costs to my municipality from the project beyond the core budget areas included in the model. How do I do that?
A17: Additional costs can be entered in the "Additional Municipal Costs Outside Core Budget" column in the Municipal Spending Assumptions section of the Inputs and Assumptions tab. These costs are added to the core budget costs projected by the model.
A19: The project provides additional benefits to my municipality beyond the PILOT payment. How do I account for this in the net benefit calculation?
A20: The estimated monetary value of additional benefits (such as affordable housing, parks and green space, or other developer contributions) or losses (i.e. noise pollution, environmental contamination) from the project can be entered in the "Additional Benefit/Loss to Municipality" column in the Municipal Spending Assumptions section of the Inputs and Assumptions tab. These benefits/losses will be added to the existing net benefit calculation.
A22: My projection shows a net loss to my municipality during the latter half of the project. Can I remedy that through the PILOT assumptions? | AN22: `
A23: Yes. You can adjust the % of Taxes, % of Gross Revenues, or Manual Entries on the Inputs & Assumptions tab in those net loss years to produce a net benefit.
A25: I have more recent tax and municipal budget information than is included in the model. How can I incorporate that into the calculation?
A26: You may enter more recent data for your municipality on the Data tab, replacing the data that is already there. Any data in blue font or yellow highlighting may be changed.
A28: I do not want to do a 30 year abatement, I would prefer a shorter timeframe. Does the model accommodate that?
A29: Yes. You may enter in data for any period of time less than 30 years, clearing out any data for years the PILOT would not be in effect on the Inputs and Assumptions tab.
A31: I want to calculate the fiscal impact of the project on the school district. Can I do that through this model? | AJ31: `
A32: The model produces two outputs that are relevant to that calculation, the projected number of new children from new developments (on the Inputs & Assumptions tab) and the School PILOT on the Model tab. However the calculation itself must be done outside the model based on school district data.
A35: I have entered in an IRR Target and clicked "Adjust PILOT to IRR Target" but the Current IRR is not matching. Why does this happen? | AJ35: `
A36: The model produces the IRR closest to the IRR Target that can be achieved through a PILOT. Because the PILOT is only one component of many that determine an IRR, In some cases, the target can only be approximated rather than exactly achieved.
A39: My projection shows nothing in the municipalilty net benefit/loss column despite entering in all the assumptions. How do I fix that?
A40: The lack of a net benefit/loss projection is due to the fact that the Division of Local Government Services does not have 2021 UFB information on file for your municipality. Simply enter in the requisite budget information on the Data tab if this is case and be sure to submit your UFB to the Division.

Sheet Inputs & Assumptions
A1: ="Payment in Lieu of Taxes Financial Agreement Forecasting Model "&"- "&VLOOKUP(Muni,$AL$4:$AM$568,2,FALSE)&IF(B11="",""," - ")&B11 -> Payment in Lieu of Taxes Financial Agreement Forecasting Model - Trenton City, Mercer County
A2: Inputs/Assumptions
H3: Existing PILOT Currently in Place?
B4: Select Municipality | H4: 2 | L4: Year 1 Municipal PILOT | M4: =-Model!K4 -> 87723.95 | P4: Municipal Tax Rate (per $100 valuation) | Q4: =VLOOKUP(Muni,Data!E4:H568,4,FALSE) -> 3.761843644 | AL4: =AL3+1 -> 1 | AM4: Aberdeen Township, Monmouth County | AU4: % of Actual Gross Revenue
B5: 496 | F5: First Year | G5: 2026 | H5: PILOT Allocation Methodology | L5: Average Municipal PILOT | M5: =-AVERAGE(Model!K4:K33) -> 139116.7796 | P5: Total Tax Rate (per $100 valuation) | Q5: =VLOOKUP(Muni,Data!E4:K568,7,FALSE) -> 5.889334502 | AL5: 2 | AM5: Absecon City, Atlantic County | AU5: % of Taxes
H6: 2 | L6: IRR (Internal Rate of Return) | M6: =Model!AB4 -> 0.04993331928 | P6: Mun. Spending/Daytime Pop. Ratio | Q6: =VLOOKUP(Muni,Data!$E$4:$S$568,15,FALSE) -> 599.7660055 | AL6: 3 | AM6: Alexandria Township, Hunterdon County | AU6: Manual Entry
B7: PILOT Method | F7: Project Type | H7: Includes Affordable Housing? | L7: Avg. Municipal Net Benefit (Loss) | M7: =IFERROR(AVERAGE(Model!Y4:Y33),"No Data") -> -377082.9045 | AL7: 4 | AM7: Allamuchy Township, Warren County
B8: 3 | F8: 1 | I8: 1 | AL8: 5 | AM8: Allendale Borough, Bergen County | AU8: Residential
AL9: =AL8+1 -> 6 | AM9: Allenhurst Borough, Monmouth County
B10: Name of Project | AL10: 7 | AM10: Allentown Borough, Monmouth County
AL11: 8 | AM11: Alloway Township, Salem County
AL12: =AL11+1 -> 9 | AM12: Alpha Borough, Warren County | AU12: Commercial/Industrial
B13: Residential Projects | I13: PILOT Allocation | AL13: 10 | AM13: Alpine Borough, Bergen County | AU13: Mixed Use
B14: Num. of Units | C14: Num. of Units | D14: Persons Multiplier | E14: Total New Persons | F14: Public School Multiplier | G14: Total New Public School Children | I14: Entity | J14: % | AL14: 11 | AM14: Andover Borough, Sussex County
B15: Studio | C15: 0 | D15: 1.644 | E15: =ROUND(D15*C15,0) -> 0 | F15: 0.051 | G15: =ROUND(F15*C15,0) -> 0 | I15: Municipal | J15: 0.95 | AL15: 12 | AM15: Andover Township, Sussex County | AU15: Yes
B16: 1 Bedroom | C16: 15 | D16: 1.644 | E16: =ROUND(D16*C16,0) -> 25 | F16: 0.051 | G16: =ROUND(F16*C16,0) -> 1 | I16: County | J16: 0.05 | AL16: 13 | AM16: Asbury Park City, Monmouth County | AU16: No
B17: 2 Bedroom | C17: 29 | D17: 2.107 | E17: =ROUND(D17*C17,0) -> 61 | F17: 0.115 | G17: =ROUND(F17*C17,0) -> 3 | I17: School | J17: 0 | AL17: 14 | AM17: Atlantic City, Atlantic County
B18: 3 Bedroom | C18: 12 | D18: 3.422 | E18: =ROUND(D18*C18,0) -> 41 | F18: 0.56 | G18: =ROUND(F18*C18,0) -> 7 | I18: TOTAL | J18: =SUM(J15:J17) -> 1 | AL18: 15 | AM18: Atlantic Highlands Borough, Monmouth County | AU18: Share of Total Levy
B19: TOTAL | C19: =SUM(C15:C18) -> 56 | E19: =SUM(E15:E18) -> 127 | G19: =SUM(G15:G18) -> 11 | AL19: 16 | AM19: Audubon Borough, Camden County | AU19: User Entered Allocation
AL20: 17 | AM20: Audubon Park Borough, Camden County
B21: Commercial/Industrial Projects | AL21: =AL20+1 -> 18 | AM21: Avalon Borough, Cape May County | AU21: Yes
C22: Num. of Persons | AL22: 19 | AM22: Avon-by-the-Sea Borough, Monmouth County | AU22: No
B23: Estimated Occupancy | C23: 0 | AL23: 20 | AM23: Barnegat Light Borough, Ocean County
AL24: 21 | AM24: Barnegat Township, Ocean County
B25: Mixed-Use Projects | AL25: 22 | AM25: Barrington Borough, Camden County
B26: Num. of Units | C26: Num. of Units | D26: Persons Multiplier | E26: Total New Persons | F26: Public School Multiplier | G26: Total New Public School Children | AL26: 23 | AM26: Bass River Township, Burlington County
B27: Residential Component | AL27: 24 | AM27: Bay Head Borough, Ocean County
B28: Studio | C28: 0 | D28: 1.644 | E28: =ROUND(D28*C28,0) -> 0 | F28: 0.051 | G28: =ROUND(F28*C28,0) -> 0 | AL28: 25 | AM28: Bayonne City, Hudson County
B29: 1 Bedroom | C29: 0 | D29: 1.644 | E29: =ROUND(D29*C29,0) -> 0 | F29: 0.051 | G29: =ROUND(F29*C29,0) -> 0 | AL29: 26 | AM29: Beach Haven Borough, Ocean County
B30: 2 Bedroom | C30: 0 | D30: 2.107 | E30: =ROUND(D30*C30,0) -> 0 | F30: 0.115 | G30: =ROUND(F30*C30,0) -> 0 | AL30: 27 | AM30: Beachwood Borough, Ocean County
B31: 3 Bedroom | C31: 0 | D31: 3.422 | E31: =ROUND(D31*C31,0) -> 0 | F31: 0.56 | G31: =ROUND(F31*C31,0) -> 0 | AL31: 28 | AM31: Bedminster Township, Somerset County
B32: TOTAL | C32: =SUM(C28:C31) -> 0 | E32: =SUM(E28:E31) -> 0 | G32: =SUM(G28:G31) -> 0 | AL32: 29 | AM32: Belleville Township, Essex County
B33: Commercial/Industrial Component | AL33: 30 | AM33: Bellmawr Borough, Camden County
B34: Estimated Occupancy | C34: 0 | AL34: 31 | AM34: Belmar Borough, Monmouth County
AL35: 32 | AM35: Belvidere Town, Warren County
B36: TOTAL NEW PERSONS | C36: =C34+SUM(E28:E31) -> 0 | AL36: =AL35+1 -> 33 | AM36: Bergenfield Borough, Bergen County
AL37: 34 | AM37: Berkeley Heights Township, Union County
C38: PILOT Method Assumptions | F38: Project Budget & Valuation Assumptions | M38: Municipal Spending Assumptions | AL38: 35 | AM38: Berkeley Township, Ocean County
B39: Year | C39: % of Actual Gross Revenue | D39: % of Taxes | E39: Total PILOT Payments (Manual Entry) | F39: Net Rents/Gross Revenue | G39: Operating Expenses (not including PILOT) | H39: Debt Service | I39: Equity (In)/Out | J39: Existing PILOT Payments (Municipal Portion) | K39: Property Assessed Value Pre-Improvement | L39: Property Assessed Value Post-Improvement | M39: Additional Benefit/Loss to Municipality | N39: Additional Municipal Costs Outside Core Budget | O39: % Growth in Municipal Budget | P39: Spending Area | Q39: % of Spending Applied in Municipal Cost Calculation | AL39: 36 | AM39: Berlin Borough, Camden County
B40: 1 | C40: 0.0628 | D40: 0.9 | E40: 92341 | F40: 1470394 | G40: =-1066661+E40 -> -974320 | H40: -362569 | I40: -8630249 | J40: =168285*$J$15 -> 159870.75 | K40: 6926200 | L40: =K40+(1003240) -> 7929440 | M40: 0 | N40: 0 | O40: -- | P40: General Government | Q40: 0.1 | AL40: 37 | AM40: Berlin Township, Camden County
B41: 2 | C41: 0.0628 | D41: 0.9 | E41: 95111.23 | F41: 1514505.82 | G41: =G40*1.03 -> -1003549.6 | H41: -362569 | J41: =J40*1.03 -> 164666.8725 | K41: 7133986 | L41: =L40*1.03 -> 8167323.2 | M41: 0 | N41: 0 | O41: 0.02 | P41: Land-Use Administration | Q41: 0.1 | AL41: 38 | AM41: Bernards Township, Somerset County
B42: 3 | C42: 0.0628 | D42: 0.9 | E42: 97964.5669 | F42: 1559940.995 | G42: =G41*1.03 -> -1033656.088 | H42: -362569 | J42: =J41*1.03 -> 169606.8787 | K42: 7348005.58 | L42: 8412342.896 | M42: 0 | N42: 0 | O42: 0.02 | P42: Uniform Construction Code | Q42: 0.5 | AL42: 39 | AM42: Bernardsville Borough, Somerset County
B43: 4 | C43: 0.0628 | D43: 0.9 | E43: 100903.5039 | F43: 1606739.224 | G43: -1064665.771 | H43: -362569 | J43: 174695.085 | K43: 7568445.747 | L43: 8664713.183 | M43: 0 | N43: 0 | O43: 0.02 | P43: Public Safety | Q43: 0.5 | AL43: 40 | AM43: Bethlehem Township, Hunterdon County
B44: 5 | C44: 0.0628 | D44: 0.9 | E44: 103930.609 | F44: 1654941.401 | G44: -1096605.744 | H44: -362569 | J44: 179935.9376 | K44: 7795499.12 | L44: 8924654.578 | M44: 0 | N44: 0 | O44: 0.02 | P44: Public Works | Q44: 0.1 | AL44: 41 | AM44: Beverly City, Burlington County | AU44: 505756 | AV44: 519298 | AW44: 533225 | AX44: 547552 | AY44: 562291 | AZ44: 577453 | BA44: 593049 | BB44: 609097 | BC44: 625605 | BD44: 642589 | BE44: 660061 | BF44: 678035 | BG44: 696526 | BH44: 715550 | BI44: 735120 | BJ44: 755256 | BK44: 775972 | BL44: 797286 | BM44: 819215 | BN44: 841777 | BO44: 864991 | BP44: 888875 | BQ44: 913450 | BR44: 938735 | BS44: 964752 | BT44: 991520 | BU44: 1019063 | BV44: 1047403 | BW44: 1076563 | BX44: 1106568
B45: 6 | C45: 0.0628 | D45: 0.9 | E45: 107048.5273 | F45: 1704589.643 | G45: -1129503.916 | H45: -362569 | J45: 185334.0157 | K45: 8029364.093 | L45: 9192394.216 | M45: 0 | N45: 0 | O45: 0.02 | P45: Health and Human Services | Q45: 0.1 | AL45: 42 | AM45: Blairstown Township, Warren County | AU45: =-AU44 -> -505756 | AV45: =-AV44 -> -519298 | AW45: -533225 | AX45: -547552 | AY45: -562291 | AZ45: -577453 | BA45: -593049 | BB45: -609097 | BC45: -625605 | BD45: -642589 | BE45: -660061 | BF45: -678035 | BG45: -696526 | BH45: -715550 | BI45: -735120 | BJ45: -755256 | BK45: -775972 | BL45: -797286 | BM45: -819215 | BN45: -841777 | BO45: -864991 | BP45: -888875 | BQ45: -913450 | BR45: -938735 | BS45: -964752 | BT45: -991520 | BU45: -1019063 | BV45: -1047403 | BW45: -1076563 | BX45: -1106568
B46: 7 | C46: 0.0628 | D46: 0.9 | E46: 110259.9831 | F46: 1755727.333 | G46: -1163389.034 | H46: -362569 | J46: 190894.0362 | K46: 8270245.016 | L46: 9468166.042 | M46: 0 | N46: 0 | O46: 0.02 | P46: Education (including Library) | Q46: 0.1 | AL46: 43 | AM46: Bloomfield Township, Essex County
B47: 8 | C47: 0.0628 | D47: 0.9 | E47: 113567.7826 | F47: 1808399.152 | G47: -1198290.705 | H47: -362569 | J47: 196620.8573 | K47: 8518352.367 | L47: 9752211.023 | M47: 0 | N47: 0 | O47: 0.02 | P47: Landfill / Solid Waste Disposal | Q47: 0.5 | AL47: 44 | AM47: Bloomingdale Borough, Passaic County | AU47: $42,635 $43,488 $44,357 $45,244 $46,148 $47,070 $48,011 $48,971 $49,950 $50,949 $51,967 $53,006 $54,066 $55,147 $56,249 $57,373 $58,520 $59,690 $60,883 $62,100 $63,342 $64,608 $65,900 $67,218 $68,562 $69,933 $71,331 $72,757 $74,212 $75,696
B48: 9 | C48: 0.0628 | D48: 0.9 | E48: 116974.8161 | F48: 1862651.127 | G48: -1234239.426 | H48: -362569 | J48: 202519.483 | K48: 8773902.938 | L48: 10044777.35 | M48: 0 | N48: 0 | O48: 0.02 | P48: Statutory Expenditures | Q48: 0.5 | AL48: 45 | AM48: Bloomsbury Borough, Hunterdon County
B49: 10 | C49: 0.0628 | D49: 0.8 | E49: 120484.0606 | F49: 1918530.661 | G49: -1271266.608 | H49: -362569 | J49: 208595.0675 | K49: 9037120.026 | L49: 10346120.67 | M49: 0 | N49: 0 | O49: 0.02 | P49: Court and Public Defender | Q49: 0.5 | AL49: 46 | AM49: Bogota Borough, Bergen County | AU49: 42635 | AV49: 43488 | AW49: 44357 | AX49: 45244 | AY49: 46148 | AZ49: 47070 | BA49: 48011 | BB49: 48971 | BC49: 49950 | BD49: 50949 | BE49: 51967 | BF49: 53006 | BG49: 54066 | BH49: 55147 | BI49: 56249 | BJ49: 57373 | BK49: 58520 | BL49: 59690 | BM49: 60883 | BN49: 62100 | BO49: 63342 | BP49: 64608 | BQ49: 65900 | BR49: 67218 | BS49: 68562 | BT49: 69933 | BU49: 71331 | BV49: 72757 | BW49: 74212 | BX49: 75696
B50: 11 | C50: 0.0628 | D50: 0.8 | E50: 124098.5824 | F50: 1976086.581 | G50: -1309404.607 | H50: -362569 | J50: 214852.9195 | K50: 9308233.627 | L50: 10656504.3 | M50: 0 | N50: 0 | O50: 0.02 | AL50: 47 | AM50: Boonton Town, Morris County
B51: 12 | C51: 0.0628 | D51: 0.8 | E51: 127821.5399 | F51: 2035369.178 | G51: -1348686.745 | H51: -362569 | J51: 221298.5071 | K51: 9587480.635 | L51: 10976199.42 | M51: 0 | N51: 0 | O51: 0.02 | AL51: 48 | AM51: Boonton Township, Morris County
B52: =B51+1 -> 13 | C52: 0.0628 | D52: 0.8 | E52: 131656.1861 | F52: 2096430.253 | G52: -1389147.347 | H52: -362569 | J52: 227937.4623 | K52: 9875105.054 | L52: 11305485.41 | M52: 0 | N52: 0 | O52: 0.02 | AL52: 49 | AM52: Bordentown City, Burlington County
B53: 14 | C53: 0.0628 | D53: 0.8 | E53: 135605.8716 | F53: 2159323.161 | G53: -1430821.768 | H53: -362569 | J53: 234775.5862 | K53: 10171358.21 | L53: 11644649.97 | M53: 0 | N53: 0 | O53: 0.02 | AL53: =AL52+1 -> 50 | AM53: Bordentown Township, Burlington County
B54: 15 | C54: 0.0628 | D54: 0.8 | E54: 139674.0478 | F54: 2224102.856 | G54: -1473746.421 | H54: -362569 | J54: 241818.8538 | K54: 10476498.95 | L54: 11993989.47 | M54: 0 | N54: 0 | O54: 0.02 | AL54: 51 | AM54: Bound Brook Borough, Somerset County
B55: 16 | C55: 0.0628 | D55: 0.8 | E55: 143864.2692 | F55: 2290825.942 | G55: -1517958.813 | H55: -362569 | J55: 249073.4194 | K55: 10790793.92 | L55: 12353809.15 | M55: 0 | N55: 0 | O55: 0.02 | AL55: 52 | AM55: Bradley Beach Borough, Monmouth County
B56: 17 | C56: 0.0628 | D56: 0.8 | E56: 148180.1973 | F56: 2359550.72 | G56: -1563497.578 | H56: -362569 | J56: 256545.6219 | K56: 11114517.74 | L56: 12724423.43 | M56: 0 | N56: 0 | O56: 0.02 | AL56: 53 | AM56: Branchburg Township, Somerset County
B57: 18 | C57: 0.0628 | D57: 0.8 | E57: 152625.6032 | F57: 2430337.241 | G57: -1610402.505 | H57: -362569 | J57: 264241.9906 | K57: 11447953.27 | L57: 13106156.13 | M57: 0 | N57: 0 | O57: 0.02 | AL57: 54 | AM57: Branchville Borough, Sussex County
B58: 19 | C58: 0.0628 | D58: 0.8 | E58: 157204.3713 | F58: 2503247.359 | G58: -1658714.58 | H58: -362569 | J58: 272169.2503 | K58: 11791391.87 | L58: 13499340.81 | M58: 0 | N58: 0 | O58: 0.02 | AL58: 55 | AM58: Brick Township, Ocean County
B59: 20 | C59: 0.0628 | D59: 0.8 | E59: 161920.5024 | F59: 2578344.779 | G59: -1708476.018 | H59: -362569 | J59: 280334.3278 | K59: 12145133.62 | L59: 13904321.04 | M59: 0 | N59: 0 | O59: 0.02 | AL59: 56 | AM59: Bridgeton City, Cumberland County
B60: 21 | C60: 0.0628 | D60: 0.8 | E60: 166778.1175 | F60: 2655695.123 | G60: -1759730.298 | H60: -362569 | J60: 288744.3577 | K60: 12509487.63 | L60: 14321450.67 | M60: 0 | N60: 0 | O60: 0.02 | AL60: 57 | AM60: Bridgewater Township, Somerset County
B61: 22 | C61: 0.0628 | D61: 0.8 | E61: 171781.461 | F61: 2735365.976 | G61: -1812522.207 | H61: -362569 | J61: 297406.6884 | K61: 12884772.26 | L61: 14751094.19 | M61: 0 | N61: 0 | O61: 0.02 | AL61: 58 | AM61: Brielle Borough, Monmouth County
B62: 23 | C62: 0.0628 | D62: 0.8 | E62: 176934.9049 | F62: 2817426.956 | G62: -1866897.873 | H62: -362569 | J62: 306328.8891 | K62: 13271315.43 | L62: 15193627.01 | M62: 0 | N62: 0 | O62: 0.02 | AL62: 59 | AM62: Brigantine City, Atlantic County
B63: 24 | C63: 0.0628 | D63: 0.8 | E63: 182242.952 | F63: 2901949.764 | G63: -1922904.81 | H63: -362569 | J63: 315518.7557 | K63: 13669454.89 | L63: 15649435.82 | M63: 0 | N63: 0 | O63: 0.02 | AL63: 60 | AM63: Brooklawn Borough, Camden County
B64: 25 | C64: 0.0628 | D64: 0.8 | E64: 187710.2406 | F64: 2989008.257 | G64: -1980591.954 | H64: -362569 | J64: 324984.3184 | K64: 14079538.54 | L64: 16118918.9 | M64: 0 | N64: 0 | O64: 0.02 | AL64: 61 | AM64: Buena Borough, Atlantic County
B65: 26 | C65: 0.0628 | D65: 0.8 | E65: 193341.5478 | F65: 3078678.505 | G65: -2040009.712 | H65: -362569 | J65: 334733.8479 | K65: 14501924.7 | L65: 16602486.47 | M65: 0 | N65: 0 | O65: 0.02 | AL65: 62 | AM65: Buena Vista Township, Atlantic County
B66: 27 | C66: 0.0628 | D66: 0.8 | E66: 199141.7942 | F66: 3171038.86 | G66: -2101210.004 | H66: -362569 | J66: 344775.8634 | K66: 14936982.44 | L66: 17100561.06 | M66: 0 | N66: 0 | O66: 0.02 | AL66: 63 | AM66: Burlington City, Burlington County
B67: 28 | C67: 0.0628 | D67: 0.8 | E67: 205116.0481 | F67: 3266170.026 | G67: -2164246.304 | H67: -362569 | J67: 355119.1393 | K67: 15385091.91 | L67: 17613577.89 | M67: 0 | N67: 0 | O67: 0.02 | AL67: =AL66+1 -> 64 | AM67: Burlington Township, Burlington County
B68: 29 | C68: 0.0628 | D68: 0.8 | E68: 211269.5295 | F68: 3364155.127 | G68: -2229173.693 | H68: -362569 | J68: 365772.7135 | K68: 15846644.67 | L68: 18141985.23 | M68: 0 | N68: 0 | O68: 0.02 | AL68: 65 | AM68: Butler Borough, Morris County
B69: 30 | C69: 0.0628 | D69: 0.8 | E69: 217607.6154 | F69: 3465079.781 | G69: -2296048.904 | H69: 0 | I69: =FV(0.03,30,0,I40) -> 20947879.51 | J69: 376745.8949 | K69: 16322044.01 | L69: 18686244.79 | M69: 0 | N69: 0 | O69: 0.02 | AL69: 66 | AM69: Byram Township, Sussex County
AL70: 67 | AM70: Caldwell Borough, Essex County
AL71: 68 | AM71: Califon Borough, Hunterdon County
AL72: 69 | AM72: Camden City, Camden County
AL73: 70 | AM73: Cape May City, Cape May County
AL74: 71 | AM74: Cape May Point Borough, Cape May County
AL75: 72 | AM75: Carlstadt Borough, Bergen County
AL76: =AL75+1 -> 73 | AM76: Carneys Point Township, Salem County
AL77: 74 | AM77: Carteret Borough, Middlesex County
AL78: 75 | AM78: Cedar Grove Township, Essex County
AL79: 76 | AM79: Chatham Borough, Morris County
AL80: 77 | AM80: Chatham Township, Morris County
AL81: 78 | AM81: Cherry Hill Township, Camden County
AL82: 79 | AM82: Chesilhurst Borough, Camden County
AL83: 80 | AM83: Chester Borough, Morris County
AL84: 81 | AM84: Chester Township, Morris County
AL85: 82 | AM85: Chesterfield Township, Burlington County
AL86: 83 | AM86: Cinnaminson Township, Burlington County
AL87: 84 | AM87: City of Orange Township, Essex County
AL88: 85 | AM88: Clark Township, Union County
AL89: 86 | AM89: Clayton Borough, Gloucester County
AL90: 87 | AM90: Clementon Borough, Camden County
AL91: 88 | AM91: Cliffside Park Borough, Bergen County
AL92: 89 | AM92: Clifton City, Passaic County
AL93: 90 | AM93: Clinton Town, Hunterdon County
AL94: 91 | AM94: Clinton Township, Hunterdon County
AL95: 92 | AM95: Closter Borough, Bergen County
AL96: 93 | AM96: Collingswood Borough, Camden County
AL97: 94 | AM97: Colts Neck Township, Monmouth County
AL98: 95 | AM98: Commercial Township, Cumberland County
AL99: 96 | AM99: Corbin City, Atlantic County
AL100: 97 | AM100: Cranbury Township, Middlesex County
AL101: 98 | AM101: Cranford Township, Union County
AL102: 99 | AM102: Cresskill Borough, Bergen County
AL103: 100 | AM103: Deal Borough, Monmouth County
AL104: 101 | AM104: Deerfield Township, Cumberland County
AL105: 102 | AM105: Delanco Township, Burlington County
AL106: 103 | AM106: Delaware Township, Hunterdon County
AL107: 104 | AM107: Delran Township, Burlington County
AL108: 105 | AM108: Demarest Borough, Bergen County
AL109: 106 | AM109: Dennis Township, Cape May County
AL110: 107 | AM110: Denville Township, Morris County
AL111: 108 | AM111: Deptford Township, Gloucester County
AL112: 109 | AM112: Dover Town, Morris County
AL113: 110 | AM113: Downe Township, Cumberland County
AL114: 111 | AM114: Dumont Borough, Bergen County
AL115: 112 | AM115: Dunellen Borough, Middlesex County
AL116: 113 | AM116: Eagleswood Township, Ocean County
AL117: 114 | AM117: East Amwell Township, Hunterdon County
AL118: 115 | AM118: East Brunswick Township, Middlesex County
AL119: 116 | AM119: East Greenwich Township, Gloucester County
AL120: 117 | AM120: East Hanover Township, Morris County
AL121: 118 | AM121: East Newark Borough, Hudson County
AL122: 119 | AM122: East Orange City, Essex County
AL123: 120 | AM123: East Rutherford Borough, Bergen County
AL124: 121 | AM124: East Windsor Township, Mercer County
AL125: 122 | AM125: Eastampton Township, Burlington County
AL126: 123 | AM126: Eatontown Borough, Monmouth County
AL127: 124 | AM127: Edgewater Borough, Bergen County
AL128: 125 | AM128: Edgewater Park Township, Burlington County
AL129: 126 | AM129: Edison Township, Middlesex County
AL130: 127 | AM130: Egg Harbor City, Atlantic County
AL131: 128 | AM131: Egg Harbor Township, Atlantic County
AL132: 129 | AM132: Elizabeth City, Union County
AL133: 130 | AM133: Elk Township, Gloucester County
AL134: 131 | AM134: Elmer Borough, Salem County
AL135: 132 | AM135: Elmwood Park Borough, Bergen County
AL136: 133 | AM136: Elsinboro Township, Salem County
AL137: 134 | AM137: Emerson Borough, Bergen County
AL138: 135 | AM138: Englewood City, Bergen County
AL139: 136 | AM139: Englewood Cliffs Borough, Bergen County
AL140: =AL139+1 -> 137 | AM140: Englishtown Borough, Monmouth County
AL141: 138 | AM141: Essex Fells Borough, Essex County
AL142: 139 | AM142: Estell Manor City, Atlantic County
AL143: 140 | AM143: Evesham Township, Burlington County
AL144: 141 | AM144: Ewing Township, Mercer County
AL145: 142 | AM145: Fair Haven Borough, Monmouth County
AL146: 143 | AM146: Fair Lawn Borough, Bergen County
AL147: 144 | AM147: Fairfield Township, Cumberland County
AL148: 145 | AM148: Fairfield Township, Essex County
AL149: 146 | AM149: Fairview Borough, Bergen County
AL150: 147 | AM150: Fanwood Borough, Union County
AL151: 148 | AM151: Far Hills Borough, Somerset County
AL152: 149 | AM152: Farmingdale Borough, Monmouth County
AL153: 150 | AM153: Fieldsboro Borough, Burlington County
AL154: 151 | AM154: Flemington Borough, Hunterdon County
AL155: 152 | AM155: Florence Township, Burlington County
AL156: 153 | AM156: Florham Park Borough, Morris County
AL157: 154 | AM157: Folsom Borough, Atlantic County
AL158: 155 | AM158: Fort Lee Borough, Bergen County
AL159: 156 | AM159: Frankford Township, Sussex County
AL160: 157 | AM160: Franklin Borough, Sussex County
AL161: 158 | AM161: Franklin Lakes Borough, Bergen County
AL162: 159 | AM162: Franklin Township, Gloucester County
AL163: 160 | AM163: Franklin Township, Hunterdon County
AL164: 161 | AM164: Franklin Township, Somerset County
AL165: 162 | AM165: Franklin Township, Warren County
AL166: 163 | AM166: Fredon Township, Sussex County
AL167: 164 | AM167: Freehold Borough, Monmouth County
AL168: 165 | AM168: Freehold Township, Monmouth County
AL169: 166 | AM169: Frelinghuysen Township, Warren County
AL170: 167 | AM170: Frenchtown Borough, Hunterdon County
AL171: 168 | AM171: Galloway Township, Atlantic County
AL172: 169 | AM172: Garfield City, Bergen County
AL173: 170 | AM173: Garwood Borough, Union County
AL174: 171 | AM174: Gibbsboro Borough, Camden County
AL175: 172 | AM175: Glassboro Borough, Gloucester County
AL176: 173 | AM176: Glen Gardner Borough, Hunterdon County
AL177: 174 | AM177: Glen Ridge Borough, Essex County
AL178: 175 | AM178: Glen Rock Borough, Bergen County
AL179: 176 | AM179: Gloucester City, Camden County
AL180: 177 | AM180: Gloucester Township, Camden County
AL181: 178 | AM181: Green Brook Township, Somerset County
AL182: 179 | AM182: Green Township, Sussex County
AL183: 180 | AM183: Greenwich Township, Cumberland County
AL184: 181 | AM184: Greenwich Township, Gloucester County
AL185: 182 | AM185: Greenwich Township, Warren County
AL186: 183 | AM186: Guttenberg Town, Hudson County
AL187: 184 | AM187: Hackensack City, Bergen County
AL188: 185 | AM188: Hackettstown Town, Warren County
AL189: 186 | AM189: Haddon Heights Borough, Camden County
AL190: 187 | AM190: Haddon Township, Camden County
AL191: 188 | AM191: Haddonfield Borough, Camden County
AL192: 189 | AM192: Hainesport Township, Burlington County
AL193: 190 | AM193: Haledon Borough, Passaic County
AL194: 191 | AM194: Hamburg Borough, Sussex County
AL195: 192 | AM195: Hamilton Township, Atlantic County
AL196: 193 | AM196: Hamilton Township, Mercer County
AL197: 194 | AM197: Hammonton Town, Atlantic County
AL198: 195 | AM198: Hampton Borough, Hunterdon County
AL199: 196 | AM199: Hampton Township, Sussex County
AL200: 197 | AM200: Hanover Township, Morris County
... 368 more rows

Sheet Model
A1: ='Inputs & Assumptions'!A1 -> Payment in Lieu of Taxes Financial Agreement Forecasting Model - Trenton City, Mercer County
A2: Projections
A3: Year | B3: Year Number | C3: Net Rents/Gross Revenue | D3: Operating Expenses | E3: Property Assessed Value Pre-Improvement | F3: =IF(existpilot=2,"Municipal Property Tax Revenue Pre-Improvement", "Municipal PILOT Revenue Pre-Improvement") -> Municipal Property Tax Revenue Pre-Improvement | G3: Property Assessed Value Post-Improvement | H3: Total Property Taxes without PILOT | I3: Municipal Property Taxes without PILOT | J3: PILOT Payments | K3: Municipal PILOT | L3: County PILOT | M3: School PILOT | N3: Project Net Operating Income before Debt Service | O3: Debt Service | P3: Project Cash Flow | Q3: Equity (In)/Out | R3: Net Cash Flow | S3: PILOT % of Annual Gross Revenue | T3: PILOT % of Conventional Taxes | U3: Additional Municipal Costs Outside Core Budget | V3: Additional Municipal Costs (Core Budget) | W3: Total Additional Municipal Costs | X3: Additional Net Benefit (Loss to Municipality) | Y3: Net Benefit (Loss) to Municipality | Z3: =IF(existpilot=2,"Change in Municipal Property Tax Revenue due to Project", "Change in Municipal PILOT Revenue due to Project") -> Change in Municipal Property Tax Revenue due to Project
A4: ='Inputs & Assumptions'!G5 -> 2026 | B4: 1 | C4: ='Inputs & Assumptions'!F40 -> 1470394 | D4: ='Inputs & Assumptions'!G40 -> -974320 | E4: ='Inputs & Assumptions'!K40 -> 6926200 | F4: =IF(existpilot=2,'Inputs & Assumptions'!$Q$4*(E4/100),'Inputs & Assumptions'!J40) -> 260552.8145 | G4: ='Inputs & Assumptions'!L40 -> 7929440 | H4: =(G4/100)*'Inputs & Assumptions'!$Q$5 -> 466991.2457 | I4: =(G4/100)*'Inputs & Assumptions'!$Q$4 -> 298293.1347 | J4: =IF(IF('Inputs & Assumptions'!$B$8=1,-C4*'Inputs & Assumptions'!$C40,IF('Inputs & Assumptions'!$B$8=2,-H4*'Inputs & Assumptions'!$D40,IF('Inputs & Assumptions'!$B$8=3,-'Inputs & Assumptions'!E40,"")))*$AA$10>0,0,IF('Inputs & Assumptions'!$B$8=1,-C4*'Inputs & Assumptions'!$C40,IF('Inputs & Assumptions'!$B$8=2,-H4*'Inputs & Assumptions'!$D40,IF('Inputs & Assumptions'!$B$8=3,-'Inputs & Assumptions'!E40,"")))*$AA$10) -> -92341 | K4: =IF(pilotmeth=1,VLOOKUP(Muni,Data!$E$4:$Q$568,11,FALSE),'Inputs & Assumptions'!$J$15)*J4 -> -87723.95 | L4: =IF(pilotmeth=1,VLOOKUP(Muni,Data!$E$4:$Q$568,12,FALSE),'Inputs & Assumptions'!$J$16)*J4 -> -4617.05 | M4: =IF(pilotmeth=1,VLOOKUP(Muni,Data!$E$4:$Q$568,13,FALSE),'Inputs & Assumptions'!$J$17)*J4 -> 0 | N4: =J4+D4+C4 -> 403733 | O4: ='Inputs & Assumptions'!H40 -> -362569 | P4: =SUM(N4:O4) -> 41164 | Q4: ='Inputs & Assumptions'!I40 -> -8630249 | R4: =SUM(P4:Q4) -> -8589085 | S4: =IFERROR(-J4/C4,"--") -> 0.06280017465 | T4: =IFERROR(-J4/H4,"--") -> 0.1977360408 | U4: ='Inputs & Assumptions'!N40 -> 0 | V4: =IFERROR(IF(Type=1,'Inputs & Assumptions'!$Q$6*'Inputs & Assumptions'!E19,IF(Type=2,'Inputs & Assumptions'!$Q$6*'Inputs & Assumptions'!C23,IF(Type=3,'Inputs & Assumptions'!$Q$6*'Inputs & Assumptions'!C36,"--"))),"No Data") -> 76170.28269 | W4: =IFERROR(V4+U4,"--") -> 76170.28269 | X4: ='Inputs & Assumptions'!M40 -> 0 | Y4: =IFERROR(-K4-F4-W4+X4,"--") -> -248999.1472 | Z4: =-K4-F4 -> -172828.8645 | AA4: Current IRR | AB4: =IRR(R4:R33,0.1) -> 0.04993331928
A5: =A4+1 -> 2027 | B5: 2 | C5: ='Inputs & Assumptions'!F41 -> 1514505.82 | D5: ='Inputs & Assumptions'!G41 -> -1003549.6 | E5: ='Inputs & Assumptions'!K41 -> 7133986 | F5: =IF(existpilot=2,'Inputs & Assumptions'!$Q$4*(E5/100),'Inputs & Assumptions'!J41) -> 268369.3989 | G5: ='Inputs & Assumptions'!L41 -> 8167323.2 | H5: =(G5/100)*'Inputs & Assumptions'!$Q$5 -> 481000.9831 | I5: =(G5/100)*'Inputs & Assumptions'!$Q$4 -> 307241.9287 | J5: =IF(C5="","--",IF(IF('Inputs & Assumptions'!$B$8=1,-C5*'Inputs & Assumptions'!$C41,IF('Inputs & Assumptions'!$B$8=2,-H5*'Inputs & Assumptions'!$D41,IF('Inputs & Assumptions'!$B$8=3,-'Inputs & Assumptions'!E41,"")))*$AA$10>0,0,IF('Inputs & Assumptions'!$B$8=1,-C5*'Inputs & Assumptions'!$C41,IF('Inputs & Assumptions'!$B$8=2,-H5*'Inputs & Assumptions'!$D41,IF('Inputs & Assumptions'!$B$8=3,-'Inputs & Assumptions'!E41,"")))*$AA$10)) -> -95111.23 | K5: =IF(pilotmeth=1,VLOOKUP(Muni,Data!$E$4:$Q$568,11,FALSE),'Inputs & Assumptions'!$J$15)*J5 -> -90355.6685 | L5: =IF(pilotmeth=1,VLOOKUP(Muni,Data!$E$4:$Q$568,12,FALSE),'Inputs & Assumptions'!$J$16)*J5 -> -4755.5615 | M5: =IF(pilotmeth=1,VLOOKUP(Muni,Data!$E$4:$Q$568,13,FALSE),'Inputs & Assumptions'!$J$17)*J5 -> 0 | N5: =J5+D5+C5 -> 415844.99 | O5: ='Inputs & Assumptions'!H41 -> -362569 | P5: =SUM(N5:O5) -> 53275.99 | Q5: ='Inputs & Assumptions'!I41 -> 0 | R5: =SUM(P5:Q5) -> 53275.99 | S5: =IFERROR(-J5/C5,"--") -> 0.06280017465 | T5: =IFERROR(-J5/H5,"--") -> 0.1977360408 | U5: ='Inputs & Assumptions'!N41 -> 0 | V5: =IF(OR(C5>0),IFERROR(V4*((1+'Inputs & Assumptions'!O41)),"No Data"),"--") -> 77693.68835 | W5: =IFERROR(V5+U5,"--") -> 77693.68835 | X5: ='Inputs & Assumptions'!M41 -> 0 | Y5: =IFERROR(-K5-F5-W5+X5,"--") -> -255707.4188 | Z5: =-K5-F5 -> -178013.7304
A6: =A5+1 -> 2028 | B6: 3 | C6: ='Inputs & Assumptions'!F42 -> 1559940.995 | D6: ='Inputs & Assumptions'!G42 -> -1033656.088 | E6: ='Inputs & Assumptions'!K42 -> 7348005.58 | F6: =IF(existpilot=2,'Inputs & Assumptions'!$Q$4*(E6/100),'Inputs & Assumptions'!J42) -> 276420.4809 | G6: ='Inputs & Assumptions'!L42 -> 8412342.896 | H6: =(G6/100)*'Inputs & Assumptions'!$Q$5 -> 495431.0126 | I6: =(G6/100)*'Inputs & Assumptions'!$Q$4 -> 316459.1866 | J6: =IF(C6="","--",IF(IF('Inputs & Assumptions'!$B$8=1,-C6*'Inputs & Assumptions'!$C42,IF('Inputs & Assumptions'!$B$8=2,-H6*'Inputs & Assumptions'!$D42,IF('Inputs & Assumptions'!$B$8=3,-'Inputs & Assumptions'!E42,"")))*$AA$10>0,0,IF('Inputs & Assumptions'!$B$8=1,-C6*'Inputs & Assumptions'!$C42,IF('Inputs & Assumptions'!$B$8=2,-H6*'Inputs & Assumptions'!$D42,IF('Inputs & Assumptions'!$B$8=3,-'Inputs & Assumptions'!E42,"")))*$AA$10)) -> -97964.5669 | K6: =IF(pilotmeth=1,VLOOKUP(Muni,Data!$E$4:$Q$568,11,FALSE),'Inputs & Assumptions'!$J$15)*J6 -> -93066.33855 | L6: =IF(pilotmeth=1,VLOOKUP(Muni,Data!$E$4:$Q$568,12,FALSE),'Inputs & Assumptions'!$J$16)*J6 -> -4898.228345 | M6: =IF(pilotmeth=1,VLOOKUP(Muni,Data!$E$4:$Q$568,13,FALSE),'Inputs & Assumptions'!$J$17)*J6 -> 0 | N6: 428320.3397 | O6: ='Inputs & Assumptions'!H42 -> -362569 | P6: =SUM(N6:O6) -> 65751.3397 | Q6: ='Inputs & Assumptions'!I42 -> 0 | R6: =SUM(P6:Q6) -> 65751.3397 | S6: 0.06280017465 | T6: 0.1977360408 | U6: ='Inputs & Assumptions'!N42 -> 0 | V6: =IF(OR(C6>0),IFERROR(V5*((1+'Inputs & Assumptions'!O42)),"No Data"),"--") -> 79247.56211 | W6: 79247.56211 | X6: ='Inputs & Assumptions'!M42 -> 0 | Y6: =IFERROR(-K6-F6-W6+X6,"--") -> -262601.7045 | Z6: -183354.1423 | AA6: IRR Target | AB6: 0.045
A7: 2029 | B7: 4 | C7: ='Inputs & Assumptions'!F43 -> 1606739.224 | D7: ='Inputs & Assumptions'!G43 -> -1064665.771 | E7: ='Inputs & Assumptions'!K43 -> 7568445.747 | F7: =IF(existpilot=2,'Inputs & Assumptions'!$Q$4*(E7/100),'Inputs & Assumptions'!J43) -> 284713.0953 | G7: ='Inputs & Assumptions'!L43 -> 8664713.183 | H7: =(G7/100)*'Inputs & Assumptions'!$Q$5 -> 510293.943 | I7: =(G7/100)*'Inputs & Assumptions'!$Q$4 -> 325952.9622 | J7: =IF(C7="","--",IF(IF('Inputs & Assumptions'!$B$8=1,-C7*'Inputs & Assumptions'!$C43,IF('Inputs & Assumptions'!$B$8=2,-H7*'Inputs & Assumptions'!$D43,IF('Inputs & Assumptions'!$B$8=3,-'Inputs & Assumptions'!E43,"")))*$AA$10>0,0,IF('Inputs & Assumptions'!$B$8=1,-C7*'Inputs & Assumptions'!$C43,IF('Inputs & Assumptions'!$B$8=2,-H7*'Inputs & Assumptions'!$D43,IF('Inputs & Assumptions'!$B$8=3,-'Inputs & Assumptions'!E43,"")))*$AA$10)) -> -100903.5039 | K7: =IF(pilotmeth=1,VLOOKUP(Muni,Data!$E$4:$Q$568,11,FALSE),'Inputs & Assumptions'!$J$15)*J7 -> -95858.32871 | L7: =IF(pilotmeth=1,VLOOKUP(Muni,Data!$E$4:$Q$568,12,FALSE),'Inputs & Assumptions'!$J$16)*J7 -> -5045.175195 | M7: =IF(pilotmeth=1,VLOOKUP(Muni,Data!$E$4:$Q$568,13,FALSE),'Inputs & Assumptions'!$J$17)*J7 -> 0 | N7: 441169.9499 | O7: ='Inputs & Assumptions'!H43 -> -362569 | P7: =SUM(N7:O7) -> 78600.94989 | Q7: ='Inputs & Assumptions'!I43 -> 0 | R7: 78600.94989 | S7: 0.06280017465 | T7: 0.1977360408 | U7: ='Inputs & Assumptions'!N43 -> 0 | V7: =IF(OR(C7>0),IFERROR(V6*((1+'Inputs & Assumptions'!O43)),"No Data"),"--") -> 80832.51336 | W7: 80832.51336 | X7: ='Inputs & Assumptions'!M43 -> 0 | Y7: -269687.28 | Z7: -188854.7666
A8: 2030 | B8: 5 | C8: ='Inputs & Assumptions'!F44 -> 1654941.401 | D8: ='Inputs & Assumptions'!G44 -> -1096605.744 | E8: ='Inputs & Assumptions'!K44 -> 7795499.12 | F8: =IF(existpilot=2,'Inputs & Assumptions'!$Q$4*(E8/100),'Inputs & Assumptions'!J44) -> 293254.4882 | G8: ='Inputs & Assumptions'!L44 -> 8924654.578 | H8: =(G8/100)*'Inputs & Assumptions'!$Q$5 -> 525602.7613 | I8: =(G8/100)*'Inputs & Assumptions'!$Q$4 -> 335731.551 | J8: =IF(C8="","--",IF(IF('Inputs & Assumptions'!$B$8=1,-C8*'Inputs & Assumptions'!$C44,IF('Inputs & Assumptions'!$B$8=2,-H8*'Inputs & Assumptions'!$D44,IF('Inputs & Assumptions'!$B$8=3,-'Inputs & Assumptions'!E44,"")))*$AA$10>0,0,IF('Inputs & Assumptions'!$B$8=1,-C8*'Inputs & Assumptions'!$C44,IF('Inputs & Assumptions'!$B$8=2,-H8*'Inputs & Assumptions'!$D44,IF('Inputs & Assumptions'!$B$8=3,-'Inputs & Assumptions'!E44,"")))*$AA$10)) -> -103930.609 | K8: =IF(pilotmeth=1,VLOOKUP(Muni,Data!$E$4:$Q$568,11,FALSE),'Inputs & Assumptions'!$J$15)*J8 -> -98734.07857 | L8: =IF(pilotmeth=1,VLOOKUP(Muni,Data!$E$4:$Q$568,12,FALSE),'Inputs & Assumptions'!$J$16)*J8 -> -5196.530451 | M8: =IF(pilotmeth=1,VLOOKUP(Muni,Data!$E$4:$Q$568,13,FALSE),'Inputs & Assumptions'!$J$17)*J8 -> 0 | N8: 454405.0484 | O8: ='Inputs & Assumptions'!H44 -> -362569 | P8: 91836.04839 | Q8: ='Inputs & Assumptions'!I44 -> 0 | R8: =SUM(P8:Q8) -> 91836.04839 | S8: 0.06280017465 | T8: 0.1977360408 | U8: ='Inputs & Assumptions'!N44 -> 0 | V8: =IF(OR(C8>0),IFERROR(V7*((1+'Inputs & Assumptions'!O44)),"No Data"),"--") -> 82449.16362 | W8: 82449.16362 | X8: ='Inputs & Assumptions'!M44 -> 0 | Y8: -276969.5732 | Z8: -194520.4096
A9: 2031 | B9: 6 | C9: ='Inputs & Assumptions'!F45 -> 1704589.643 | D9: ='Inputs & Assumptions'!G45 -> -1129503.916 | E9: ='Inputs & Assumptions'!K45 -> 8029364.093 | F9: =IF(existpilot=2,'Inputs & Assumptions'!$Q$4*(E9/100),'Inputs & Assumptions'!J45) -> 302052.1228 | G9: ='Inputs & Assumptions'!L45 -> 9192394.216 | H9: =(G9/100)*'Inputs & Assumptions'!$Q$5 -> 541370.8441 | I9: =(G9/100)*'Inputs & Assumptions'!$Q$4 -> 345803.4976 | J9: =IF(C9="","--",IF(IF('Inputs & Assumptions'!$B$8=1,-C9*'Inputs & Assumptions'!$C45,IF('Inputs & Assumptions'!$B$8=2,-H9*'Inputs & Assumptions'!$D45,IF('Inputs & Assumptions'!$B$8=3,-'Inputs & Assumptions'!E45,"")))*$AA$10>0,0,IF('Inputs & Assumptions'!$B$8=1,-C9*'Inputs & Assumptions'!$C45,IF('Inputs & Assumptions'!$B$8=2,-H9*'Inputs & Assumptions'!$D45,IF('Inputs & Assumptions'!$B$8=3,-'Inputs & Assumptions'!E45,"")))*$AA$10)) -> -107048.5273 | K9: =IF(pilotmeth=1,VLOOKUP(Muni,Data!$E$4:$Q$568,11,FALSE),'Inputs & Assumptions'!$J$15)*J9 -> -101696.1009 | L9: =IF(pilotmeth=1,VLOOKUP(Muni,Data!$E$4:$Q$568,12,FALSE),'Inputs & Assumptions'!$J$16)*J9 -> -5352.426365 | M9: =IF(pilotmeth=1,VLOOKUP(Muni,Data!$E$4:$Q$568,13,FALSE),'Inputs & Assumptions'!$J$17)*J9 -> 0 | N9: 468037.1998 | O9: ='Inputs & Assumptions'!H45 -> -362569 | P9: 105468.1998 | Q9: ='Inputs & Assumptions'!I45 -> 0 | R9: 105468.1998 | S9: 0.06280017465 | T9: 0.1977360408 | U9: ='Inputs & Assumptions'!N45 -> 0 | V9: =IF(OR(C9>0),IFERROR(V8*((1+'Inputs & Assumptions'!O45)),"No Data"),"--") -> 84098.1469 | W9: 84098.1469 | X9: ='Inputs & Assumptions'!M45 -> 0 | Y9: -284454.1688 | Z9: -200356.0219 | AA9: PILOT Adjustment Factor
A10: 2032 | B10: 7 | C10: ='Inputs & Assumptions'!F46 -> 1755727.333 | D10: ='Inputs & Assumptions'!G46 -> -1163389.034 | E10: ='Inputs & Assumptions'!K46 -> 8270245.016 | F10: =IF(existpilot=2,'Inputs & Assumptions'!$Q$4*(E10/100),'Inputs & Assumptions'!J46) -> 311113.6865 | G10: ='Inputs & Assumptions'!L46 -> 9468166.042 | H10: =(G10/100)*'Inputs & Assumptions'!$Q$5 -> 557611.9694 | I10: =(G10/100)*'Inputs & Assumptions'!$Q$4 -> 356177.6025 | J10: =IF(C10="","--",IF(IF('Inputs & Assumptions'!$B$8=1,-C10*'Inputs & Assumptions'!$C46,IF('Inputs & Assumptions'!$B$8=2,-H10*'Inputs & Assumptions'!$D46,IF('Inputs & Assumptions'!$B$8=3,-'Inputs & Assumptions'!E46,"")))*$AA$10>0,0,IF('Inputs & Assumptions'!$B$8=1,-C10*'Inputs & Assumptions'!$C46,IF('Inputs & Assumptions'!$B$8=2,-H10*'Inputs & Assumptions'!$D46,IF('Inputs & Assumptions'!$B$8=3,-'Inputs & Assumptions'!E46,"")))*$AA$10)) -> -110259.9831 | K10: =IF(pilotmeth=1,VLOOKUP(Muni,Data!$E$4:$Q$568,11,FALSE),'Inputs & Assumptions'!$J$15)*J10 -> -104746.984 | L10: =IF(pilotmeth=1,VLOOKUP(Muni,Data!$E$4:$Q$568,12,FALSE),'Inputs & Assumptions'!$J$16)*J10 -> -5512.999156 | M10: =IF(pilotmeth=1,VLOOKUP(Muni,Data!$E$4:$Q$568,13,FALSE),'Inputs & Assumptions'!$J$17)*J10 -> 0 | N10: 482078.3158 | O10: ='Inputs & Assumptions'!H46 -> -362569 | P10: 119509.3158 | Q10: ='Inputs & Assumptions'!I46 -> 0 | R10: 119509.3158 | S10: 0.06280017465 | T10: 0.1977360408 | U10: ='Inputs & Assumptions'!N46 -> 0 | V10: =IF(OR(C10>0),IFERROR(V9*((1+'Inputs & Assumptions'!O46)),"No Data"),"--") -> 85780.10983 | W10: 85780.10983 | X10: ='Inputs & Assumptions'!M46 -> 0 | Y10: -292146.8124 | Z10: -206366.7025 | AA10: 1
A11: 2033 | B11: 8 | C11: ='Inputs & Assumptions'!F47 -> 1808399.152 | D11: ='Inputs & Assumptions'!G47 -> -1198290.705 | E11: ='Inputs & Assumptions'!K47 -> 8518352.367 | F11: =IF(existpilot=2,'Inputs & Assumptions'!$Q$4*(E11/100),'Inputs & Assumptions'!J47) -> 320447.0971 | G11: ='Inputs & Assumptions'!L47 -> 9752211.023 | H11: =(G11/100)*'Inputs & Assumptions'!$Q$5 -> 574340.3285 | I11: =(G11/100)*'Inputs & Assumptions'!$Q$4 -> 366862.9306 | J11: =IF(C11="","--",IF(IF('Inputs & Assumptions'!$B$8=1,-C11*'Inputs & Assumptions'!$C47,IF('Inputs & Assumptions'!$B$8=2,-H11*'Inputs & Assumptions'!$D47,IF('Inputs & Assumptions'!$B$8=3,-'Inputs & Assumptions'!E47,"")))*$AA$10>0,0,IF('Inputs & Assumptions'!$B$8=1,-C11*'Inputs & Assumptions'!$C47,IF('Inputs & Assumptions'!$B$8=2,-H11*'Inputs & Assumptions'!$D47,IF('Inputs & Assumptions'!$B$8=3,-'Inputs & Assumptions'!E47,"")))*$AA$10)) -> -113567.7826 | K11: =IF(pilotmeth=1,VLOOKUP(Muni,Data!$E$4:$Q$568,11,FALSE),'Inputs & Assumptions'!$J$15)*J11 -> -107889.3935 | L11: =IF(pilotmeth=1,VLOOKUP(Muni,Data!$E$4:$Q$568,12,FALSE),'Inputs & Assumptions'!$J$16)*J11 -> -5678.38913 | M11: =IF(pilotmeth=1,VLOOKUP(Muni,Data!$E$4:$Q$568,13,FALSE),'Inputs & Assumptions'!$J$17)*J11 -> 0 | N11: 496540.6653 | O11: ='Inputs & Assumptions'!H47 -> -362569 | P11: 133971.6653 | Q11: ='Inputs & Assumptions'!I47 -> 0 | R11: 133971.6653 | S11: 0.06280017465 | T11: 0.1977360408 | U11: ='Inputs & Assumptions'!N47 -> 0 | V11: =IF(OR(C11>0),IFERROR(V10*((1+'Inputs & Assumptions'!O47)),"No Data"),"--") -> 87495.71203 | W11: 87495.71203 | X11: ='Inputs & Assumptions'!M47 -> 0 | Y11: -300053.4157 | Z11: -212557.7036
A12: 2034 | B12: 9 | C12: ='Inputs & Assumptions'!F48 -> 1862651.127 | D12: ='Inputs & Assumptions'!G48 -> -1234239.426 | E12: ='Inputs & Assumptions'!K48 -> 8773902.938 | F12: =IF(existpilot=2,'Inputs & Assumptions'!$Q$4*(E12/100),'Inputs & Assumptions'!J48) -> 330060.51 | G12: ='Inputs & Assumptions'!L48 -> 10044777.35 | H12: =(G12/100)*'Inputs & Assumptions'!$Q$5 -> 591570.5383 | I12: =(G12/100)*'Inputs & Assumptions'!$Q$4 -> 377868.8185 | J12: =IF(C12="","--",IF(IF('Inputs & Assumptions'!$B$8=1,-C12*'Inputs & Assumptions'!$C48,IF('Inputs & Assumptions'!$B$8=2,-H12*'Inputs & Assumptions'!$D48,IF('Inputs & Assumptions'!$B$8=3,-'Inputs & Assumptions'!E48,"")))*$AA$10>0,0,IF('Inputs & Assumptions'!$B$8=1,-C12*'Inputs & Assumptions'!$C48,IF('Inputs & Assumptions'!$B$8=2,-H12*'Inputs & Assumptions'!$D48,IF('Inputs & Assumptions'!$B$8=3,-'Inputs & Assumptions'!E48,"")))*$AA$10)) -> -116974.8161 | K12: =IF(pilotmeth=1,VLOOKUP(Muni,Data!$E$4:$Q$568,11,FALSE),'Inputs & Assumptions'!$J$15)*J12 -> -111126.0753 | L12: =IF(pilotmeth=1,VLOOKUP(Muni,Data!$E$4:$Q$568,12,FALSE),'Inputs & Assumptions'!$J$16)*J12 -> -5848.740804 | M12: =IF(pilotmeth=1,VLOOKUP(Muni,Data!$E$4:$Q$568,13,FALSE),'Inputs & Assumptions'!$J$17)*J12 -> 0 | N12: =J12+D12+C12 -> 511436.8853 | O12: ='Inputs & Assumptions'!H48 -> -362569 | P12: 148867.8853 | Q12: ='Inputs & Assumptions'!I48 -> 0 | R12: 148867.8853 | S12: 0.06280017465 | T12: 0.1977360408 | U12: ='Inputs & Assumptions'!N48 -> 0 | V12: =IF(OR(C12>0),IFERROR(V11*((1+'Inputs & Assumptions'!O48)),"No Data"),"--") -> 89245.62627 | W12: 89245.62627 | X12: ='Inputs & Assumptions'!M48 -> 0 | Y12: -308180.061 | Z12: -218934.4347
A13: 2035 | B13: 10 | C13: ='Inputs & Assumptions'!F49 -> 1918530.661 | D13: ='Inputs & Assumptions'!G49 -> -1271266.608 | E13: ='Inputs & Assumptions'!K49 -> 9037120.026 | F13: =IF(existpilot=2,'Inputs & Assumptions'!$Q$4*(E13/100),'Inputs & Assumptions'!J49) -> 339962.3253 | G13: ='Inputs & Assumptions'!L49 -> 10346120.67 | H13: =(G13/100)*'Inputs & Assumptions'!$Q$5 -> 609317.6545 | I13: =(G13/100)*'Inputs & Assumptions'!$Q$4 -> 389204.883 | J13: =IF(C13="","--",IF(IF('Inputs & Assumptions'!$B$8=1,-C13*'Inputs & Assumptions'!$C49,IF('Inputs & Assumptions'!$B$8=2,-H13*'Inputs & Assumptions'!$D49,IF('Inputs & Assumptions'!$B$8=3,-'Inputs & Assumptions'!E49,"")))*$AA$10>0,0,IF('Inputs & Assumptions'!$B$8=1,-C13*'Inputs & Assumptions'!$C49,IF('Inputs & Assumptions'!$B$8=2,-H13*'Inputs & Assumptions'!$D49,IF('Inputs & Assumptions'!$B$8=3,-'Inputs & Assumptions'!E49,"")))*$AA$10)) -> -120484.0606 | K13: =IF(pilotmeth=1,VLOOKUP(Muni,Data!$E$4:$Q$568,11,FALSE),'Inputs & Assumptions'!$J$15)*J13 -> -114459.8575 | L13: =IF(pilotmeth=1,VLOOKUP(Muni,Data!$E$4:$Q$568,12,FALSE),'Inputs & Assumptions'!$J$16)*J13 -> -6024.203028 | M13: =IF(pilotmeth=1,VLOOKUP(Muni,Data!$E$4:$Q$568,13,FALSE),'Inputs & Assumptions'!$J$17)*J13 -> 0 | N13: 526779.9918 | O13: ='Inputs & Assumptions'!H49 -> -362569 | P13: 164210.9918 | Q13: ='Inputs & Assumptions'!I49 -> 0 | R13: 164210.9918 | S13: 0.06280017465 | T13: 0.1977360408 | U13: ='Inputs & Assumptions'!N49 -> 0 | V13: =IF(OR(C13>0),IFERROR(V12*((1+'Inputs & Assumptions'!O49)),"No Data"),"--") -> 91030.5388 | W13: 91030.5388 | X13: ='Inputs & Assumptions'!M49 -> 0 | Y13: -316533.0066 | Z13: -225502.4678
A14: 2036 | B14: 11 | C14: ='Inputs & Assumptions'!F50 -> 1976086.581 | D14: ='Inputs & Assumptions'!G50 -> -1309404.607 | E14: ='Inputs & Assumptions'!K50 -> 9308233.627 | F14: =IF(existpilot=2,'Inputs & Assumptions'!$Q$4*(E14/100),'Inputs & Assumptions'!J50) -> 350161.1951 | G14: ='Inputs & Assumptions'!L50 -> 10656504.3 | H14: =(G14/100)*'Inputs & Assumptions'!$Q$5 -> 627597.1841 | I14: =(G14/100)*'Inputs & Assumptions'!$Q$4 -> 400881.0295 | J14: =IF(C14="","--",IF(IF('Inputs & Assumptions'!$B$8=1,-C14*'Inputs & Assumptions'!$C50,IF('Inputs & Assumptions'!$B$8=2,-H14*'Inputs & Assumptions'!$D50,IF('Inputs & Assumptions'!$B$8=3,-'Inputs & Assumptions'!E50,"")))*$AA$10>0,0,IF('Inputs & Assumptions'!$B$8=1,-C14*'Inputs & Assumptions'!$C50,IF('Inputs & Assumptions'!$B$8=2,-H14*'Inputs & Assumptions'!$D50,IF('Inputs & Assumptions'!$B$8=3,-'Inputs & Assumptions'!E50,"")))*$AA$10)) -> -124098.5824 | K14: =IF(pilotmeth=1,VLOOKUP(Muni,Data!$E$4:$Q$568,11,FALSE),'Inputs & Assumptions'!$J$15)*J14 -> -117893.6533 | L14: =IF(pilotmeth=1,VLOOKUP(Muni,Data!$E$4:$Q$568,12,FALSE),'Inputs & Assumptions'!$J$16)*J14 -> -6204.929119 | M14: =IF(pilotmeth=1,VLOOKUP(Muni,Data!$E$4:$Q$568,13,FALSE),'Inputs & Assumptions'!$J$17)*J14 -> 0 | N14: =IFERROR(J14+D14+C14,"--") -> 542583.3916 | O14: ='Inputs & Assumptions'!H50 -> -362569 | P14: =IF(C14="","--",SUM(N14:O14)) -> 180014.3916 | Q14: ='Inputs & Assumptions'!I50 -> 0 | R14: =IF(C14="","--",SUM(P14:Q14)) -> 180014.3916 | S14: 0.06280017465 | T14: 0.1977360408 | U14: ='Inputs & Assumptions'!N50 -> 0 | V14: =IF(OR(C14>0),IFERROR(V13*((1+'Inputs & Assumptions'!O50)),"No Data"),"--") -> 92851.14957 | W14: 92851.14957 | X14: ='Inputs & Assumptions'!M50 -> 0 | Y14: -325118.6914 | Z14: -232267.5418
A15: 2037 | B15: 12 | C15: ='Inputs & Assumptions'!F51 -> 2035369.178 | D15: ='Inputs & Assumptions'!G51 -> -1348686.745 | E15: ='Inputs & Assumptions'!K51 -> 9587480.635 | F15: =IF(existpilot=2,'Inputs & Assumptions'!$Q$4*(E15/100),'Inputs & Assumptions'!J51) -> 360666.0309 | G15: ='Inputs & Assumptions'!L51 -> 10976199.42 | H15: =(G15/100)*'Inputs & Assumptions'!$Q$5 -> 646425.0997 | I15: =(G15/100)*'Inputs & Assumptions'!$Q$4 -> 412907.4604 | J15: =IF(C15="","--",IF(IF('Inputs & Assumptions'!$B$8=1,-C15*'Inputs & Assumptions'!$C51,IF('Inputs & Assumptions'!$B$8=2,-H15*'Inputs & Assumptions'!$D51,IF('Inputs & Assumptions'!$B$8=3,-'Inputs & Assumptions'!E51,"")))*$AA$10>0,0,IF('Inputs & Assumptions'!$B$8=1,-C15*'Inputs & Assumptions'!$C51,IF('Inputs & Assumptions'!$B$8=2,-H15*'Inputs & Assumptions'!$D51,IF('Inputs & Assumptions'!$B$8=3,-'Inputs & Assumptions'!E51,"")))*$AA$10)) -> -127821.5399 | K15: =IF(pilotmeth=1,VLOOKUP(Muni,Data!$E$4:$Q$568,11,FALSE),'Inputs & Assumptions'!$J$15)*J15 -> -121430.4629 | L15: =IF(pilotmeth=1,VLOOKUP(Muni,Data!$E$4:$Q$568,12,FALSE),'Inputs & Assumptions'!$J$16)*J15 -> -6391.076993 | M15: =IF(pilotmeth=1,VLOOKUP(Muni,Data!$E$4:$Q$568,13,FALSE),'Inputs & Assumptions'!$J$17)*J15 -> 0 | N15: =IFERROR(J15+D15+C15,"--") -> 558860.8933 | O15: ='Inputs & Assumptions'!H51 -> -362569 | P15: =IF(C15="","--",SUM(N15:O15)) -> 196291.8933 | Q15: ='Inputs & Assumptions'!I51 -> 0 | R15: =IF(C15="","--",SUM(P15:Q15)) -> 196291.8933 | S15: 0.06280017465 | T15: 0.1977360408 | U15: ='Inputs & Assumptions'!N51 -> 0 | V15: =IF(OR(C15>0),IFERROR(V14*((1+'Inputs & Assumptions'!O51)),"No Data"),"--") -> 94708.17256 | W15: 94708.17256 | X15: ='Inputs & Assumptions'!M51 -> 0 | Y15: -333943.7406 | Z15: -239235.5681
A16: 2038 | B16: =B15+1 -> 13 | C16: ='Inputs & Assumptions'!F52 -> 2096430.253 | D16: ='Inputs & Assumptions'!G52 -> -1389147.347 | E16: ='Inputs & Assumptions'!K52 -> 9875105.054 | F16: =IF(existpilot=2,'Inputs & Assumptions'!$Q$4*(E16/100),'Inputs & Assumptions'!J52) -> 371486.0119 | G16: ='Inputs & Assumptions'!L52 -> 11305485.41 | H16: =(G16/100)*'Inputs & Assumptions'!$Q$5 -> 665817.8526 | I16: =(G16/100)*'Inputs & Assumptions'!$Q$4 -> 425294.6842 | J16: =IF(C16="","--",IF(IF('Inputs & Assumptions'!$B$8=1,-C16*'Inputs & Assumptions'!$C52,IF('Inputs & Assumptions'!$B$8=2,-H16*'Inputs & Assumptions'!$D52,IF('Inputs & Assumptions'!$B$8=3,-'Inputs & Assumptions'!E52,"")))*$AA$10>0,0,IF('Inputs & Assumptions'!$B$8=1,-C16*'Inputs & Assumptions'!$C52,IF('Inputs & Assumptions'!$B$8=2,-H16*'Inputs & Assumptions'!$D52,IF('Inputs & Assumptions'!$B$8=3,-'Inputs & Assumptions'!E52,"")))*$AA$10)) -> -131656.1861 | K16: =IF(pilotmeth=1,VLOOKUP(Muni,Data!$E$4:$Q$568,11,FALSE),'Inputs & Assumptions'!$J$15)*J16 -> -125073.3767 | L16: =IF(pilotmeth=1,VLOOKUP(Muni,Data!$E$4:$Q$568,12,FALSE),'Inputs & Assumptions'!$J$16)*J16 -> -6582.809303 | M16: =IF(pilotmeth=1,VLOOKUP(Muni,Data!$E$4:$Q$568,13,FALSE),'Inputs & Assumptions'!$J$17)*J16 -> 0 | N16: 575626.7201 | O16: ='Inputs & Assumptions'!H52 -> -362569 | P16: 213057.7201 | Q16: ='Inputs & Assumptions'!I52 -> 0 | R16: 213057.7201 | S16: 0.06280017465 | T16: 0.1977360408 | U16: ='Inputs & Assumptions'!N52 -> 0 | V16: =IF(OR(C16>0),IFERROR(V15*((1+'Inputs & Assumptions'!O52)),"No Data"),"--") -> 96602.33602 | W16: 96602.33602 | X16: ='Inputs & Assumptions'!M52 -> 0 | Y16: -343014.9711 | Z16: -246412.6351
A17: 2039 | B17: =B16+1 -> 14 | C17: ='Inputs & Assumptions'!F53 -> 2159323.161 | D17: ='Inputs & Assumptions'!G53 -> -1430821.768 | E17: ='Inputs & Assumptions'!K53 -> 10171358.21 | F17: =IF(existpilot=2,'Inputs & Assumptions'!$Q$4*(E17/100),'Inputs & Assumptions'!J53) -> 382630.5922 | G17: ='Inputs & Assumptions'!L53 -> 11644649.97 | H17: =(G17/100)*'Inputs & Assumptions'!$Q$5 -> 685792.3882 | I17: =(G17/100)*'Inputs & Assumptions'!$Q$4 -> 438053.5247 | J17: =IF(C17="","--",IF(IF('Inputs & Assumptions'!$B$8=1,-C17*'Inputs & Assumptions'!$C53,IF('Inputs & Assumptions'!$B$8=2,-H17*'Inputs & Assumptions'!$D53,IF('Inputs & Assumptions'!$B$8=3,-'Inputs & Assumptions'!E53,"")))*$AA$10>0,0,IF('Inputs & Assumptions'!$B$8=1,-C17*'Inputs & Assumptions'!$C53,IF('Inputs & Assumptions'!$B$8=2,-H17*'Inputs & Assumptions'!$D53,IF('Inputs & Assumptions'!$B$8=3,-'Inputs & Assumptions'!E53,"")))*$AA$10)) -> -135605.8716 | K17: =IF(pilotmeth=1,VLOOKUP(Muni,Data!$E$4:$Q$568,11,FALSE),'Inputs & Assumptions'!$J$15)*J17 -> -128825.5781 | L17: =IF(pilotmeth=1,VLOOKUP(Muni,Data!$E$4:$Q$568,12,FALSE),'Inputs & Assumptions'!$J$16)*J17 -> -6780.293582 | M17: =IF(pilotmeth=1,VLOOKUP(Muni,Data!$E$4:$Q$568,13,FALSE),'Inputs & Assumptions'!$J$17)*J17 -> 0 | N17: 592895.5217 | O17: ='Inputs & Assumptions'!H53 -> -362569 | P17: 230326.5217 | Q17: ='Inputs & Assumptions'!I53 -> 0 | R17: 230326.5217 | S17: 0.06280017465 | T17: 0.1977360408 | U17: ='Inputs & Assumptions'!N53 -> 0 | V17: =IF(OR(C17>0),IFERROR(V16*((1+'Inputs & Assumptions'!O53)),"No Data"),"--") -> 98534.38274 | W17: 98534.38274 | X17: ='Inputs & Assumptions'!M53 -> 0 | Y17: -352339.3969 | Z17: -253805.0142
A18: 2040 | B18: 15 | C18: ='Inputs & Assumptions'!F54 -> 2224102.856 | D18: ='Inputs & Assumptions'!G54 -> -1473746.421 | E18: ='Inputs & Assumptions'!K54 -> 10476498.95 | F18: =IF(existpilot=2,'Inputs & Assumptions'!$Q$4*(E18/100),'Inputs & Assumptions'!J54) -> 394109.51 | G18: ='Inputs & Assumptions'!L54 -> 11993989.47 | H18: =(G18/100)*'Inputs & Assumptions'!$Q$5 -> 706366.1599 | I18: =(G18/100)*'Inputs & Assumptions'!$Q$4 -> 451195.1305 | J18: =IF(C18="","--",IF(IF('Inputs & Assumptions'!$B$8=1,-C18*'Inputs & Assumptions'!$C54,IF('Inputs & Assumptions'!$B$8=2,-H18*'Inputs & Assumptions'!$D54,IF('Inputs & Assumptions'!$B$8=3,-'Inputs & Assumptions'!E54,"")))*$AA$10>0,0,IF('Inputs & Assumptions'!$B$8=1,-C18*'Inputs & Assumptions'!$C54,IF('Inputs & Assumptions'!$B$8=2,-H18*'Inputs & Assumptions'!$D54,IF('Inputs & Assumptions'!$B$8=3,-'Inputs & Assumptions'!E54,"")))*$AA$10)) -> -139674.0478 | K18: =IF(pilotmeth=1,VLOOKUP(Muni,Data!$E$4:$Q$568,11,FALSE),'Inputs & Assumptions'!$J$15)*J18 -> -132690.3454 | L18: =IF(pilotmeth=1,VLOOKUP(Muni,Data!$E$4:$Q$568,12,FALSE),'Inputs & Assumptions'!$J$16)*J18 -> -6983.702389 | M18: =IF(pilotmeth=1,VLOOKUP(Muni,Data!$E$4:$Q$568,13,FALSE),'Inputs & Assumptions'!$J$17)*J18 -> 0 | N18: 610682.3874 | O18: ='Inputs & Assumptions'!H54 -> -362569 | P18: 248113.3874 | Q18: ='Inputs & Assumptions'!I54 -> 0 | R18: 248113.3874 | S18: 0.06280017465 | T18: 0.1977360408 | U18: ='Inputs & Assumptions'!N54 -> 0 | V18: =IF(OR(C18>0),IFERROR(V17*((1+'Inputs & Assumptions'!O54)),"No Data"),"--") -> 100505.0704 | W18: 100505.0704 | X18: ='Inputs & Assumptions'!M54 -> 0 | Y18: -361924.235 | Z18: -261419.1646
A19: 2041 | B19: 16 | C19: ='Inputs & Assumptions'!F55 -> 2290825.942 | D19: ='Inputs & Assumptions'!G55 -> -1517958.813 | E19: ='Inputs & Assumptions'!K55 -> 10790793.92 | F19: =IF(existpilot=2,'Inputs & Assumptions'!$Q$4*(E19/100),'Inputs & Assumptions'!J55) -> 405932.7953 | G19: ='Inputs & Assumptions'!L55 -> 12353809.15 | H19: =(G19/100)*'Inputs & Assumptions'!$Q$5 -> 727557.1447 | I19: =(G19/100)*'Inputs & Assumptions'!$Q$4 -> 464730.9844 | J19: =IF(C19="","--",IF(IF('Inputs & Assumptions'!$B$8=1,-C19*'Inputs & Assumptions'!$C55,IF('Inputs & Assumptions'!$B$8=2,-H19*'Inputs & Assumptions'!$D55,IF('Inputs & Assumptions'!$B$8=3,-'Inputs & Assumptions'!E55,"")))*$AA$10>0,0,IF('Inputs & Assumptions'!$B$8=1,-C19*'Inputs & Assumptions'!$C55,IF('Inputs & Assumptions'!$B$8=2,-H19*'Inputs & Assumptions'!$D55,IF('Inputs & Assumptions'!$B$8=3,-'Inputs & Assumptions'!E55,"")))*$AA$10)) -> -143864.2692 | K19: =IF(pilotmeth=1,VLOOKUP(Muni,Data!$E$4:$Q$568,11,FALSE),'Inputs & Assumptions'!$J$15)*J19 -> -136671.0558 | L19: =IF(pilotmeth=1,VLOOKUP(Muni,Data!$E$4:$Q$568,12,FALSE),'Inputs & Assumptions'!$J$16)*J19 -> -7193.213461 | M19: =IF(pilotmeth=1,VLOOKUP(Muni,Data!$E$4:$Q$568,13,FALSE),'Inputs & Assumptions'!$J$17)*J19 -> 0 | N19: 629002.859 | O19: ='Inputs & Assumptions'!H55 -> -362569 | P19: 266433.859 | Q19: ='Inputs & Assumptions'!I55 -> 0 | R19: 266433.859 | S19: 0.06280017465 | T19: 0.1977360408 | U19: ='Inputs & Assumptions'!N55 -> 0 | V19: =IF(OR(C19>0),IFERROR(V18*((1+'Inputs & Assumptions'!O55)),"No Data"),"--") -> 102515.1718 | W19: 102515.1718 | X19: ='Inputs & Assumptions'!M55 -> 0 | Y19: -371776.9113 | Z19: -269261.7395
A20: 2042 | B20: 17 | C20: ='Inputs & Assumptions'!F56 -> 2359550.72 | D20: ='Inputs & Assumptions'!G56 -> -1563497.578 | E20: ='Inputs & Assumptions'!K56 -> 11114517.74 | F20: =IF(existpilot=2,'Inputs & Assumptions'!$Q$4*(E20/100),'Inputs & Assumptions'!J56) -> 418110.7791 | G20: ='Inputs & Assumptions'!L56 -> 12724423.43 | H20: =(G20/100)*'Inputs & Assumptions'!$Q$5 -> 749383.859 | I20: =(G20/100)*'Inputs & Assumptions'!$Q$4 -> 478672.9139 | J20: =IF(C20="","--",IF(IF('Inputs & Assumptions'!$B$8=1,-C20*'Inputs & Assumptions'!$C56,IF('Inputs & Assumptions'!$B$8=2,-H20*'Inputs & Assumptions'!$D56,IF('Inputs & Assumptions'!$B$8=3,-'Inputs & Assumptions'!E56,"")))*$AA$10>0,0,IF('Inputs & Assumptions'!$B$8=1,-C20*'Inputs & Assumptions'!$C56,IF('Inputs & Assumptions'!$B$8=2,-H20*'Inputs & Assumptions'!$D56,IF('Inputs & Assumptions'!$B$8=3,-'Inputs & Assumptions'!E56,"")))*$AA$10)) -> -148180.1973 | K20: =IF(pilotmeth=1,VLOOKUP(Muni,Data!$E$4:$Q$568,11,FALSE),'Inputs & Assumptions'!$J$15)*J20 -> -140771.1874 | L20: =IF(pilotmeth=1,VLOOKUP(Muni,Data!$E$4:$Q$568,12,FALSE),'Inputs & Assumptions'!$J$16)*J20 -> -7409.009865 | M20: =IF(pilotmeth=1,VLOOKUP(Muni,Data!$E$4:$Q$568,13,FALSE),'Inputs & Assumptions'!$J$17)*J20 -> 0 | N20: 647872.9448 | O20: ='Inputs & Assumptions'!H56 -> -362569 | P20: 285303.9448 | Q20: ='Inputs & Assumptions'!I56 -> 0 | R20: 285303.9448 | S20: 0.06280017465 | T20: 0.1977360408 | U20: ='Inputs & Assumptions'!N56 -> 0 | V20: =IF(OR(C20>0),IFERROR(V19*((1+'Inputs & Assumptions'!O56)),"No Data"),"--") -> 104565.4752 | W20: 104565.4752 | X20: ='Inputs & Assumptions'!M56 -> 0 | Y20: -381905.0669 | Z20: -277339.5917
A21: 2043 | B21: 18 | C21: ='Inputs & Assumptions'!F57 -> 2430337.241 | D21: ='Inputs & Assumptions'!G57 -> -1610402.505 | E21: ='Inputs & Assumptions'!K57 -> 11447953.27 | F21: =IF(existpilot=2,'Inputs & Assumptions'!$Q$4*(E21/100),'Inputs & Assumptions'!J57) -> 430654.1025 | G21: ='Inputs & Assumptions'!L57 -> 13106156.13 | H21: =(G21/100)*'Inputs & Assumptions'!$Q$5 -> 771865.3748 | I21: =(G21/100)*'Inputs & Assumptions'!$Q$4 -> 493033.1014 | J21: =IF(C21="","--",IF(IF('Inputs & Assumptions'!$B$8=1,-C21*'Inputs & Assumptions'!$C57,IF('Inputs & Assumptions'!$B$8=2,-H21*'Inputs & Assumptions'!$D57,IF('Inputs & Assumptions'!$B$8=3,-'Inputs & Assumptions'!E57,"")))*$AA$10>0,0,IF('Inputs & Assumptions'!$B$8=1,-C21*'Inputs & Assumptions'!$C57,IF('Inputs & Assumptions'!$B$8=2,-H21*'Inputs & Assumptions'!$D57,IF('Inputs & Assumptions'!$B$8=3,-'Inputs & Assumptions'!E57,"")))*$AA$10)) -> -152625.6032 | K21: =IF(pilotmeth=1,VLOOKUP(Muni,Data!$E$4:$Q$568,11,FALSE),'Inputs & Assumptions'!$J$15)*J21 -> -144994.3231 | L21: =IF(pilotmeth=1,VLOOKUP(Muni,Data!$E$4:$Q$568,12,FALSE),'Inputs & Assumptions'!$J$16)*J21 -> -7631.280161 | M21: =IF(pilotmeth=1,VLOOKUP(Muni,Data!$E$4:$Q$568,13,FALSE),'Inputs & Assumptions'!$J$17)*J21 -> 0 | N21: 667309.1331 | O21: ='Inputs & Assumptions'!H57 -> -362569 | P21: 304740.1331 | Q21: ='Inputs & Assumptions'!I57 -> 0 | R21: 304740.1331 | S21: 0.06280017465 | T21: 0.1977360408 | U21: ='Inputs & Assumptions'!N57 -> 0 | V21: =IF(OR(C21>0),IFERROR(V20*((1+'Inputs & Assumptions'!O57)),"No Data"),"--") -> 106656.7847 | W21: 106656.7847 | X21: ='Inputs & Assumptions'!M57 -> 0 | Y21: -392316.5642 | Z21: -285659.7795
A22: 2044 | B22: 19 | C22: ='Inputs & Assumptions'!F58 -> 2503247.359 | D22: ='Inputs & Assumptions'!G58 -> -1658714.58 | E22: ='Inputs & Assumptions'!K58 -> 11791391.87 | F22: =IF(existpilot=2,'Inputs & Assumptions'!$Q$4*(E22/100),'Inputs & Assumptions'!J58) -> 443573.7256 | G22: ='Inputs & Assumptions'!L58 -> 13499340.81 | H22: =(G22/100)*'Inputs & Assumptions'!$Q$5 -> 795021.336 | I22: =(G22/100)*'Inputs & Assumptions'!$Q$4 -> 507824.0944 | J22: =IF(C22="","--",IF(IF('Inputs & Assumptions'!$B$8=1,-C22*'Inputs & Assumptions'!$C58,IF('Inputs & Assumptions'!$B$8=2,-H22*'Inputs & Assumptions'!$D58,IF('Inputs & Assumptions'!$B$8=3,-'Inputs & Assumptions'!E58,"")))*$AA$10>0,0,IF('Inputs & Assumptions'!$B$8=1,-C22*'Inputs & Assumptions'!$C58,IF('Inputs & Assumptions'!$B$8=2,-H22*'Inputs & Assumptions'!$D58,IF('Inputs & Assumptions'!$B$8=3,-'Inputs & Assumptions'!E58,"")))*$AA$10)) -> -157204.3713 | K22: =IF(pilotmeth=1,VLOOKUP(Muni,Data!$E$4:$Q$568,11,FALSE),'Inputs & Assumptions'!$J$15)*J22 -> -149344.1527 | L22: =IF(pilotmeth=1,VLOOKUP(Muni,Data!$E$4:$Q$568,12,FALSE),'Inputs & Assumptions'!$J$16)*J22 -> -7860.218565 | M22: =IF(pilotmeth=1,VLOOKUP(Muni,Data!$E$4:$Q$568,13,FALSE),'Inputs & Assumptions'!$J$17)*J22 -> 0 | N22: 687328.4071 | O22: ='Inputs & Assumptions'!H58 -> -362569 | P22: 324759.4071 | Q22: ='Inputs & Assumptions'!I58 -> 0 | R22: 324759.4071 | S22: 0.06280017465 | T22: 0.1977360408 | U22: ='Inputs & Assumptions'!N58 -> 0 | V22: =IF(OR(C22>0),IFERROR(V21*((1+'Inputs & Assumptions'!O58)),"No Data"),"--") -> 108789.9204 | W22: 108789.9204 | X22: ='Inputs & Assumptions'!M58 -> 0 | Y22: -403019.4933 | Z22: -294229.5728
A23: 2045 | B23: 20 | C23: ='Inputs & Assumptions'!F59 -> 2578344.779 | D23: ='Inputs & Assumptions'!G59 -> -1708476.018 | E23: ='Inputs & Assumptions'!K59 -> 12145133.62 | F23: =IF(existpilot=2,'Inputs & Assumptions'!$Q$4*(E23/100),'Inputs & Assumptions'!J59) -> 456880.9374 | G23: ='Inputs & Assumptions'!L59 -> 13904321.04 | H23: =(G23/100)*'Inputs & Assumptions'!$Q$5 -> 818871.9761 | I23: =(G23/100)*'Inputs & Assumptions'!$Q$4 -> 523058.8172 | J23: =IF(C23="","--",IF(IF('Inputs & Assumptions'!$B$8=1,-C23*'Inputs & Assumptions'!$C59,IF('Inputs & Assumptions'!$B$8=2,-H23*'Inputs & Assumptions'!$D59,IF('Inputs & Assumptions'!$B$8=3,-'Inputs & Assumptions'!E59,"")))*$AA$10>0,0,IF('Inputs & Assumptions'!$B$8=1,-C23*'Inputs & Assumptions'!$C59,IF('Inputs & Assumptions'!$B$8=2,-H23*'Inputs & Assumptions'!$D59,IF('Inputs & Assumptions'!$B$8=3,-'Inputs & Assumptions'!E59,"")))*$AA$10)) -> -161920.5024 | K23: =IF(pilotmeth=1,VLOOKUP(Muni,Data!$E$4:$Q$568,11,FALSE),'Inputs & Assumptions'!$J$15)*J23 -> -153824.4773 | L23: =IF(pilotmeth=1,VLOOKUP(Muni,Data!$E$4:$Q$568,12,FALSE),'Inputs & Assumptions'!$J$16)*J23 -> -8096.025122 | M23: =IF(pilotmeth=1,VLOOKUP(Muni,Data!$E$4:$Q$568,13,FALSE),'Inputs & Assumptions'!$J$17)*J23 -> 0 | N23: 707948.2593 | O23: ='Inputs & Assumptions'!H59 -> -362569 | P23: 345379.2593 | Q23: ='Inputs & Assumptions'!I59 -> 0 | R23: 345379.2593 | S23: 0.06280017465 | T23: 0.1977360408 | U23: ='Inputs & Assumptions'!N59 -> 0 | V23: =IF(OR(C23>0),IFERROR(V22*((1+'Inputs & Assumptions'!O59)),"No Data"),"--") -> 110965.7188 | W23: 110965.7188 | X23: ='Inputs & Assumptions'!M59 -> 0 | Y23: -414022.1789 | Z23: -303056.46
A24: 2046 | B24: 21 | C24: ='Inputs & Assumptions'!F60 -> 2655695.123 | D24: ='Inputs & Assumptions'!G60 -> -1759730.298 | E24: ='Inputs & Assumptions'!K60 -> 12509487.63 | F24: =IF(existpilot=2,'Inputs & Assumptions'!$Q$4*(E24/100),'Inputs & Assumptions'!J60) -> 470587.3655 | G24: ='Inputs & Assumptions'!L60 -> 14321450.67 | H24: =(G24/100)*'Inputs & Assumptions'!$Q$5 -> 843438.1354 | I24: =(G24/100)*'Inputs & Assumptions'!$Q$4 -> 538750.5817 | J24: =IF(C24="","--",IF(IF('Inputs & Assumptions'!$B$8=1,-C24*'Inputs & Assumptions'!$C60,IF('Inputs & Assumptions'!$B$8=2,-H24*'Inputs & Assumptions'!$D60,IF('Inputs & Assumptions'!$B$8=3,-'Inputs & Assumptions'!E60,"")))*$AA$10>0,0,IF('Inputs & Assumptions'!$B$8=1,-C24*'Inputs & Assumptions'!$C60,IF('Inputs & Assumptions'!$B$8=2,-H24*'Inputs & Assumptions'!$D60,IF('Inputs & Assumptions'!$B$8=3,-'Inputs & Assumptions'!E60,"")))*$AA$10)) -> -166778.1175 | K24: =IF(pilotmeth=1,VLOOKUP(Muni,Data!$E$4:$Q$568,11,FALSE),'Inputs & Assumptions'!$J$15)*J24 -> -158439.2116 | L24: =IF(pilotmeth=1,VLOOKUP(Muni,Data!$E$4:$Q$568,12,FALSE),'Inputs & Assumptions'!$J$16)*J24 -> -8338.905876 | M24: =IF(pilotmeth=1,VLOOKUP(Muni,Data!$E$4:$Q$568,13,FALSE),'Inputs & Assumptions'!$J$17)*J24 -> 0 | N24: 729186.7071 | O24: ='Inputs & Assumptions'!H60 -> -362569 | P24: 366617.7071 | Q24: ='Inputs & Assumptions'!I60 -> 0 | R24: 366617.7071 | S24: 0.06280017465 | T24: 0.1977360408 | U24: ='Inputs & Assumptions'!N60 -> 0 | V24: =IF(OR(C24>0),IFERROR(V23*((1+'Inputs & Assumptions'!O60)),"No Data"),"--") -> 113185.0332 | W24: 113185.0332 | X24: ='Inputs & Assumptions'!M60 -> 0 | Y24: -425333.187 | Z24: -312148.1538
A25: 2047 | B25: 22 | C25: ='Inputs & Assumptions'!F61 -> 2735365.976 | D25: ='Inputs & Assumptions'!G61 -> -1812522.207 | E25: ='Inputs & Assumptions'!K61 -> 12884772.26 | F25: =IF(existpilot=2,'Inputs & Assumptions'!$Q$4*(E25/100),'Inputs & Assumptions'!J61) -> 484704.9864 | G25: ='Inputs & Assumptions'!L61 -> 14751094.19 | H25: =(G25/100)*'Inputs & Assumptions'!$Q$5 -> 868741.2795 | I25: =(G25/100)*'Inputs & Assumptions'!$Q$4 -> 554913.0992 | J25: =IF(C25="","--",IF(IF('Inputs & Assumptions'!$B$8=1,-C25*'Inputs & Assumptions'!$C61,IF('Inputs & Assumptions'!$B$8=2,-H25*'Inputs & Assumptions'!$D61,IF('Inputs & Assumptions'!$B$8=3,-'Inputs & Assumptions'!E61,"")))*$AA$10>0,0,IF('Inputs & Assumptions'!$B$8=1,-C25*'Inputs & Assumptions'!$C61,IF('Inputs & Assumptions'!$B$8=2,-H25*'Inputs & Assumptions'!$D61,IF('Inputs & Assumptions'!$B$8=3,-'Inputs & Assumptions'!E61,"")))*$AA$10)) -> -171781.461 | K25: =IF(pilotmeth=1,VLOOKUP(Muni,Data!$E$4:$Q$568,11,FALSE),'Inputs & Assumptions'!$J$15)*J25 -> -163192.388 | L25: =IF(pilotmeth=1,VLOOKUP(Muni,Data!$E$4:$Q$568,12,FALSE),'Inputs & Assumptions'!$J$16)*J25 -> -8589.073052 | M25: =IF(pilotmeth=1,VLOOKUP(Muni,Data!$E$4:$Q$568,13,FALSE),'Inputs & Assumptions'!$J$17)*J25 -> 0 | N25: 751062.3083 | O25: ='Inputs & Assumptions'!H61 -> -362569 | P25: 388493.3083 | Q25: ='Inputs & Assumptions'!I61 -> 0 | R25: 388493.3083 | S25: 0.06280017465 | T25: 0.1977360408 | U25: ='Inputs & Assumptions'!N61 -> 0 | V25: =IF(OR(C25>0),IFERROR(V24*((1+'Inputs & Assumptions'!O61)),"No Data"),"--") -> 115448.7339 | W25: 115448.7339 | X25: ='Inputs & Assumptions'!M61 -> 0 | Y25: -436961.3323 | Z25: -321512.5984
A26: 2048 | B26: 23 | C26: ='Inputs & Assumptions'!F62 -> 2817426.956 | D26: ='Inputs & Assumptions'!G62 -> -1866897.873 | E26: ='Inputs & Assumptions'!K62 -> 13271315.43 | F26: =IF(existpilot=2,'Inputs & Assumptions'!$Q$4*(E26/100),'Inputs & Assumptions'!J62) -> 499246.136 | G26: ='Inputs & Assumptions'!L62 -> 15193627.01 | H26: =(G26/100)*'Inputs & Assumptions'!$Q$5 -> 894803.5178 | I26: =(G26/100)*'Inputs & Assumptions'!$Q$4 -> 571560.4922 | J26: =IF(C26="","--",IF(IF('Inputs & Assumptions'!$B$8=1,-C26*'Inputs & Assumptions'!$C62,IF('Inputs & Assumptions'!$B$8=2,-H26*'Inputs & Assumptions'!$D62,IF('Inputs & Assumptions'!$B$8=3,-'Inputs & Assumptions'!E62,"")))*$AA$10>0,0,IF('Inputs & Assumptions'!$B$8=1,-C26*'Inputs & Assumptions'!$C62,IF('Inputs & Assumptions'!$B$8=2,-H26*'Inputs & Assumptions'!$D62,IF('Inputs & Assumptions'!$B$8=3,-'Inputs & Assumptions'!E62,"")))*$AA$10)) -> -176934.9049 | K26: =IF(pilotmeth=1,VLOOKUP(Muni,Data!$E$4:$Q$568,11,FALSE),'Inputs & Assumptions'!$J$15)*J26 -> -168088.1596 | L26: =IF(pilotmeth=1,VLOOKUP(Muni,Data!$E$4:$Q$568,12,FALSE),'Inputs & Assumptions'!$J$16)*J26 -> -8846.745244 | M26: =IF(pilotmeth=1,VLOOKUP(Muni,Data!$E$4:$Q$568,13,FALSE),'Inputs & Assumptions'!$J$17)*J26 -> 0 | N26: 773594.1776 | O26: ='Inputs & Assumptions'!H62 -> -362569 | P26: 411025.1776 | Q26: ='Inputs & Assumptions'!I62 -> 0 | R26: 411025.1776 | S26: 0.06280017465 | T26: 0.1977360408 | U26: ='Inputs & Assumptions'!N62 -> 0 | V26: =IF(OR(C26>0),IFERROR(V25*((1+'Inputs & Assumptions'!O62)),"No Data"),"--") -> 117757.7086 | W26: 117757.7086 | X26: ='Inputs & Assumptions'!M62 -> 0 | Y26: -448915.685 | Z26: -331157.9764
A27: 2049 | B27: 24 | C27: ='Inputs & Assumptions'!F63 -> 2901949.764 | D27: ='Inputs & Assumptions'!G63 -> -1922904.81 | E27: ='Inputs & Assumptions'!K63 -> 13669454.89 | F27: =IF(existpilot=2,'Inputs & Assumptions'!$Q$4*(E27/100),'Inputs & Assumptions'!J63) -> 514223.5201 | G27: ='Inputs & Assumptions'!L63 -> 15649435.82 | H27: =(G27/100)*'Inputs & Assumptions'!$Q$5 -> 921647.6234 | I27: =(G27/100)*'Inputs & Assumptions'!$Q$4 -> 588707.3069 | J27: =IF(C27="","--",IF(IF('Inputs & Assumptions'!$B$8=1,-C27*'Inputs & Assumptions'!$C63,IF('Inputs & Assumptions'!$B$8=2,-H27*'Inputs & Assumptions'!$D63,IF('Inputs & Assumptions'!$B$8=3,-'Inputs & Assumptions'!E63,"")))*$AA$10>0,0,IF('Inputs & Assumptions'!$B$8=1,-C27*'Inputs & Assumptions'!$C63,IF('Inputs & Assumptions'!$B$8=2,-H27*'Inputs & Assumptions'!$D63,IF('Inputs & Assumptions'!$B$8=3,-'Inputs & Assumptions'!E63,"")))*$AA$10)) -> -182242.952 | K27: =IF(pilotmeth=1,VLOOKUP(Muni,Data!$E$4:$Q$568,11,FALSE),'Inputs & Assumptions'!$J$15)*J27 -> -173130.8044 | L27: =IF(pilotmeth=1,VLOOKUP(Muni,Data!$E$4:$Q$568,12,FALSE),'Inputs & Assumptions'!$J$16)*J27 -> -9112.147601 | M27: =IF(pilotmeth=1,VLOOKUP(Muni,Data!$E$4:$Q$568,13,FALSE),'Inputs & Assumptions'!$J$17)*J27 -> 0 | N27: 796802.0029 | O27: ='Inputs & Assumptions'!H63 -> -362569 | P27: 434233.0029 | Q27: ='Inputs & Assumptions'!I63 -> 0 | R27: 434233.0029 | S27: 0.06280017465 | T27: 0.1977360408 | U27: ='Inputs & Assumptions'!N63 -> 0 | V27: =IF(OR(C27>0),IFERROR(V26*((1+'Inputs & Assumptions'!O63)),"No Data"),"--") -> 120112.8627 | W27: 120112.8627 | X27: ='Inputs & Assumptions'!M63 -> 0 | Y27: -461205.5784 | Z27: -341092.7157
A28: 2050 | B28: 25 | C28: ='Inputs & Assumptions'!F64 -> 2989008.257 | D28: ='Inputs & Assumptions'!G64 -> -1980591.954 | E28: ='Inputs & Assumptions'!K64 -> 14079538.54 | F28: =IF(existpilot=2,'Inputs & Assumptions'!$Q$4*(E28/100),'Inputs & Assumptions'!J64) -> 529650.2257 | G28: ='Inputs & Assumptions'!L64 -> 16118918.9 | H28: =(G28/100)*'Inputs & Assumptions'!$Q$5 -> 949297.0521 | I28: =(G28/100)*'Inputs & Assumptions'!$Q$4 -> 606368.5261 | J28: =IF(C28="","--",IF(IF('Inputs & Assumptions'!$B$8=1,-C28*'Inputs & Assumptions'!$C64,IF('Inputs & Assumptions'!$B$8=2,-H28*'Inputs & Assumptions'!$D64,IF('Inputs & Assumptions'!$B$8=3,-'Inputs & Assumptions'!E64,"")))*$AA$10>0,0,IF('Inputs & Assumptions'!$B$8=1,-C28*'Inputs & Assumptions'!$C64,IF('Inputs & Assumptions'!$B$8=2,-H28*'Inputs & Assumptions'!$D64,IF('Inputs & Assumptions'!$B$8=3,-'Inputs & Assumptions'!E64,"")))*$AA$10)) -> -187710.2406 | K28: =IF(pilotmeth=1,VLOOKUP(Muni,Data!$E$4:$Q$568,11,FALSE),'Inputs & Assumptions'!$J$15)*J28 -> -178324.7286 | L28: =IF(pilotmeth=1,VLOOKUP(Muni,Data!$E$4:$Q$568,12,FALSE),'Inputs & Assumptions'!$J$16)*J28 -> -9385.512029 | M28: =IF(pilotmeth=1,VLOOKUP(Muni,Data!$E$4:$Q$568,13,FALSE),'Inputs & Assumptions'!$J$17)*J28 -> 0 | N28: 820706.063 | O28: ='Inputs & Assumptions'!H64 -> -362569 | P28: 458137.063 | Q28: ='Inputs & Assumptions'!I64 -> 0 | R28: 458137.063 | S28: 0.06280017465 | T28: 0.1977360408 | U28: ='Inputs & Assumptions'!N64 -> 0 | V28: =IF(OR(C28>0),IFERROR(V27*((1+'Inputs & Assumptions'!O64)),"No Data"),"--") -> 122515.12 | W28: 122515.12 | X28: ='Inputs & Assumptions'!M64 -> 0 | Y28: -473840.6171 | Z28: -351325.4972
A29: 2051 | B29: 26 | C29: ='Inputs & Assumptions'!F65 -> 3078678.505 | D29: ='Inputs & Assumptions'!G65 -> -2040009.712 | E29: ='Inputs & Assumptions'!K65 -> 14501924.7 | F29: =IF(existpilot=2,'Inputs & Assumptions'!$Q$4*(E29/100),'Inputs & Assumptions'!J65) -> 545539.7325 | G29: ='Inputs & Assumptions'!L65 -> 16602486.47 | H29: =(G29/100)*'Inputs & Assumptions'!$Q$5 -> 977775.9636 | I29: =(G29/100)*'Inputs & Assumptions'!$Q$4 -> 624559.5819 | J29: =IF(C29="","--",IF(IF('Inputs & Assumptions'!$B$8=1,-C29*'Inputs & Assumptions'!$C65,IF('Inputs & Assumptions'!$B$8=2,-H29*'Inputs & Assumptions'!$D65,IF('Inputs & Assumptions'!$B$8=3,-'Inputs & Assumptions'!E65,"")))*$AA$10>0,0,IF('Inputs & Assumptions'!$B$8=1,-C29*'Inputs & Assumptions'!$C65,IF('Inputs & Assumptions'!$B$8=2,-H29*'Inputs & Assumptions'!$D65,IF('Inputs & Assumptions'!$B$8=3,-'Inputs & Assumptions'!E65,"")))*$AA$10)) -> -193341.5478 | K29: =IF(pilotmeth=1,VLOOKUP(Muni,Data!$E$4:$Q$568,11,FALSE),'Inputs & Assumptions'!$J$15)*J29 -> -183674.4704 | L29: =IF(pilotmeth=1,VLOOKUP(Muni,Data!$E$4:$Q$568,12,FALSE),'Inputs & Assumptions'!$J$16)*J29 -> -9667.07739 | M29: =IF(pilotmeth=1,VLOOKUP(Muni,Data!$E$4:$Q$568,13,FALSE),'Inputs & Assumptions'!$J$17)*J29 -> 0 | N29: 845327.2449 | O29: ='Inputs & Assumptions'!H65 -> -362569 | P29: 482758.2449 | Q29: ='Inputs & Assumptions'!I65 -> 0 | R29: 482758.2449 | S29: 0.06280017465 | T29: 0.1977360408 | U29: ='Inputs & Assumptions'!N65 -> 0 | V29: =IF(OR(C29>0),IFERROR(V28*((1+'Inputs & Assumptions'!O65)),"No Data"),"--") -> 124965.4224 | W29: 124965.4224 | X29: ='Inputs & Assumptions'!M65 -> 0 | Y29: -486830.6845 | Z29: -361865.2621
A30: 2052 | B30: 27 | C30: ='Inputs & Assumptions'!F66 -> 3171038.86 | D30: ='Inputs & Assumptions'!G66 -> -2101210.004 | E30: ='Inputs & Assumptions'!K66 -> 14936982.44 | F30: =IF(existpilot=2,'Inputs & Assumptions'!$Q$4*(E30/100),'Inputs & Assumptions'!J66) -> 561905.9245 | G30: ='Inputs & Assumptions'!L66 -> 17100561.06 | H30: =(G30/100)*'Inputs & Assumptions'!$Q$5 -> 1007109.243 | I30: =(G30/100)*'Inputs & Assumptions'!$Q$4 -> 643296.3694 | J30: =IF(C30="","--",IF(IF('Inputs & Assumptions'!$B$8=1,-C30*'Inputs & Assumptions'!$C66,IF('Inputs & Assumptions'!$B$8=2,-H30*'Inputs & Assumptions'!$D66,IF('Inputs & Assumptions'!$B$8=3,-'Inputs & Assumptions'!E66,"")))*$AA$10>0,0,IF('Inputs & Assumptions'!$B$8=1,-C30*'Inputs & Assumptions'!$C66,IF('Inputs & Assumptions'!$B$8=2,-H30*'Inputs & Assumptions'!$D66,IF('Inputs & Assumptions'!$B$8=3,-'Inputs & Assumptions'!E66,"")))*$AA$10)) -> -199141.7942 | K30: =IF(pilotmeth=1,VLOOKUP(Muni,Data!$E$4:$Q$568,11,FALSE),'Inputs & Assumptions'!$J$15)*J30 -> -189184.7045 | L30: =IF(pilotmeth=1,VLOOKUP(Muni,Data!$E$4:$Q$568,12,FALSE),'Inputs & Assumptions'!$J$16)*J30 -> -9957.089712 | M30: =IF(pilotmeth=1,VLOOKUP(Muni,Data!$E$4:$Q$568,13,FALSE),'Inputs & Assumptions'!$J$17)*J30 -> 0 | N30: 870687.0622 | O30: ='Inputs & Assumptions'!H66 -> -362569 | P30: 508118.0622 | Q30: ='Inputs & Assumptions'!I66 -> 0 | R30: 508118.0622 | S30: 0.06280017465 | T30: 0.1977360408 | U30: ='Inputs & Assumptions'!N66 -> 0 | V30: =IF(OR(C30>0),IFERROR(V29*((1+'Inputs & Assumptions'!O66)),"No Data"),"--") -> 127464.7308 | W30: 127464.7308 | X30: ='Inputs & Assumptions'!M66 -> 0 | Y30: -500185.9508 | Z30: -372721.2199
A31: 2053 | B31: 28 | C31: ='Inputs & Assumptions'!F67 -> 3266170.026 | D31: ='Inputs & Assumptions'!G67 -> -2164246.304 | E31: ='Inputs & Assumptions'!K67 -> 15385091.91 | F31: =IF(existpilot=2,'Inputs & Assumptions'!$Q$4*(E31/100),'Inputs & Assumptions'!J67) -> 578763.1022 | G31: ='Inputs & Assumptions'!L67 -> 17613577.89 | H31: =(G31/100)*'Inputs & Assumptions'!$Q$5 -> 1037322.52 | I31: =(G31/100)*'Inputs & Assumptions'!$Q$4 -> 662595.2605 | J31: =IF(C31="","--",IF(IF('Inputs & Assumptions'!$B$8=1,-C31*'Inputs & Assumptions'!$C67,IF('Inputs & Assumptions'!$B$8=2,-H31*'Inputs & Assumptions'!$D67,IF('Inputs & Assumptions'!$B$8=3,-'Inputs & Assumptions'!E67,"")))*$AA$10>0,0,IF('Inputs & Assumptions'!$B$8=1,-C31*'Inputs & Assumptions'!$C67,IF('Inputs & Assumptions'!$B$8=2,-H31*'Inputs & Assumptions'!$D67,IF('Inputs & Assumptions'!$B$8=3,-'Inputs & Assumptions'!E67,"")))*$AA$10)) -> -205116.0481 | K31: =IF(pilotmeth=1,VLOOKUP(Muni,Data!$E$4:$Q$568,11,FALSE),'Inputs & Assumptions'!$J$15)*J31 -> -194860.2457 | L31: =IF(pilotmeth=1,VLOOKUP(Muni,Data!$E$4:$Q$568,12,FALSE),'Inputs & Assumptions'!$J$16)*J31 -> -10255.8024 | M31: =IF(pilotmeth=1,VLOOKUP(Muni,Data!$E$4:$Q$568,13,FALSE),'Inputs & Assumptions'!$J$17)*J31 -> 0 | N31: 896807.6741 | O31: ='Inputs & Assumptions'!H67 -> -362569 | P31: 534238.6741 | Q31: ='Inputs & Assumptions'!I67 -> 0 | R31: 534238.6741 | S31: 0.06280017465 | T31: 0.1977360408 | U31: ='Inputs & Assumptions'!N67 -> 0 | V31: =IF(OR(C31>0),IFERROR(V30*((1+'Inputs & Assumptions'!O67)),"No Data"),"--") -> 130014.0255 | W31: 130014.0255 | X31: ='Inputs & Assumptions'!M67 -> 0 | Y31: -513916.882 | Z31: -383902.8565
A32: 2054 | B32: 29 | C32: ='Inputs & Assumptions'!F68 -> 3364155.127 | D32: ='Inputs & Assumptions'!G68 -> -2229173.693 | E32: ='Inputs & Assumptions'!K68 -> 15846644.67 | F32: =IF(existpilot=2,'Inputs & Assumptions'!$Q$4*(E32/100),'Inputs & Assumptions'!J68) -> 596125.9953 | G32: ='Inputs & Assumptions'!L68 -> 18141985.23 | H32: =(G32/100)*'Inputs & Assumptions'!$Q$5 -> 1068442.195 | I32: =(G32/100)*'Inputs & Assumptions'!$Q$4 -> 682473.1183 | J32: =IF(C32="","--",IF(IF('Inputs & Assumptions'!$B$8=1,-C32*'Inputs & Assumptions'!$C68,IF('Inputs & Assumptions'!$B$8=2,-H32*'Inputs & Assumptions'!$D68,IF('Inputs & Assumptions'!$B$8=3,-'Inputs & Assumptions'!E68,"")))*$AA$10>0,0,IF('Inputs & Assumptions'!$B$8=1,-C32*'Inputs & Assumptions'!$C68,IF('Inputs & Assumptions'!$B$8=2,-H32*'Inputs & Assumptions'!$D68,IF('Inputs & Assumptions'!$B$8=3,-'Inputs & Assumptions'!E68,"")))*$AA$10)) -> -211269.5295 | K32: =IF(pilotmeth=1,VLOOKUP(Muni,Data!$E$4:$Q$568,11,FALSE),'Inputs & Assumptions'!$J$15)*J32 -> -200706.053 | L32: =IF(pilotmeth=1,VLOOKUP(Muni,Data!$E$4:$Q$568,12,FALSE),'Inputs & Assumptions'!$J$16)*J32 -> -10563.47648 | M32: =IF(pilotmeth=1,VLOOKUP(Muni,Data!$E$4:$Q$568,13,FALSE),'Inputs & Assumptions'!$J$17)*J32 -> 0 | N32: 923711.9043 | O32: ='Inputs & Assumptions'!H68 -> -362569 | P32: 561142.9043 | Q32: ='Inputs & Assumptions'!I68 -> 0 | R32: 561142.9043 | S32: 0.06280017465 | T32: 0.1977360408 | U32: ='Inputs & Assumptions'!N68 -> 0 | V32: =IF(OR(C32>0),IFERROR(V31*((1+'Inputs & Assumptions'!O68)),"No Data"),"--") -> 132614.306 | W32: 132614.306 | X32: ='Inputs & Assumptions'!M68 -> 0 | Y32: -528034.2482 | Z32: -395419.9422
A33: 2055 | B33: 30 | C33: ='Inputs & Assumptions'!F69 -> 3465079.781 | D33: ='Inputs & Assumptions'!G69 -> -2296048.904 | E33: ='Inputs & Assumptions'!K69 -> 16322044.01 | F33: =IF(existpilot=2,'Inputs & Assumptions'!$Q$4*(E33/100),'Inputs & Assumptions'!J69) -> 614009.7751 | G33: ='Inputs & Assumptions'!L69 -> 18686244.79 | H33: =(G33/100)*'Inputs & Assumptions'!$Q$5 -> 1100495.461 | I33: =(G33/100)*'Inputs & Assumptions'!$Q$4 -> 702947.3118 | J33: =IF(C33="","--",IF(IF('Inputs & Assumptions'!$B$8=1,-C33*'Inputs & Assumptions'!$C69,IF('Inputs & Assumptions'!$B$8=2,-H33*'Inputs & Assumptions'!$D69,IF('Inputs & Assumptions'!$B$8=3,-'Inputs & Assumptions'!E69,"")))*$AA$10>0,0,IF('Inputs & Assumptions'!$B$8=1,-C33*'Inputs & Assumptions'!$C69,IF('Inputs & Assumptions'!$B$8=2,-H33*'Inputs & Assumptions'!$D69,IF('Inputs & Assumptions'!$B$8=3,-'Inputs & Assumptions'!E69,"")))*$AA$10)) -> -217607.6154 | K33: =IF(pilotmeth=1,VLOOKUP(Muni,Data!$E$4:$Q$568,11,FALSE),'Inputs & Assumptions'!$J$15)*J33 -> -206727.2346 | L33: =IF(pilotmeth=1,VLOOKUP(Muni,Data!$E$4:$Q$568,12,FALSE),'Inputs & Assumptions'!$J$16)*J33 -> -10880.38077 | M33: =IF(pilotmeth=1,VLOOKUP(Muni,Data!$E$4:$Q$568,13,FALSE),'Inputs & Assumptions'!$J$17)*J33 -> 0 | N33: 951423.2614 | O33: ='Inputs & Assumptions'!H69 -> 0 | P33: 951423.2614 | Q33: ='Inputs & Assumptions'!I69 -> 20947879.51 | R33: 21899302.78 | S33: 0.06280017465 | T33: 0.1977360408 | U33: ='Inputs & Assumptions'!N69 -> 0 | V33: =IF(OR(C33>0),IFERROR(V32*((1+'Inputs & Assumptions'!O69)),"No Data"),"--") -> 135266.5921 | W33: 135266.5921 | X33: ='Inputs & Assumptions'!M69 -> 0 | Y33: -542549.1326 | Z33: -407282.5405
B35: TOTAL | C35: =SUM(C4:C33) -> 69954605.8 | D35: -46353679.03 | E35: 329516844.3 | F35: 12395908.46 | G35: 377246404.3 | H35: 22217302.65 | I35: 14191419.88 | J35: -4393161.462 | K35: -4173503.389 | L35: -219658.0731 | M35: 0 | N35: 19207765.31 | O35: -10514501 | P35: 8693264.309 | Q35: 12317630.51 | R35: 21010894.82 | V35: =SUM(V4:V33) -> 3090082.061 | W35: =SUM(W4:W33) -> 3090082.061 | X35: =SUM(X4:X33) -> 0 | Y35: -11312487.14 | Z35: =SUM(Z4:Z33) -> -8222405.074

Sheet Data
A1: ='Inputs & Assumptions'!A1 -> Payment in Lieu of Taxes Financial Agreement Forecasting Model - Trenton City, Mercer County
A2: Data
A3: Municode | B3: Municipality | C3: County | D3: Census FIPS | E3: ID | F3: 2025 Net Valuation Taxable | G3: 2025 Total Municipal Tax Levy | H3: 2025 Total Municipal Tax Rate | I3: 2025 Municipal Expenditures Applicable to Project | J3: 2020 Land Area (in Acres) | K3: 2025 CY Total Rate | L3: 2025 County Levy | M3: 2025 School Levy | N3: 2025 Total Levy | O3: 2025 Municipal Share of Levy | P3: 2025 County Share of Levy | Q3: 2025 School Share of Levy | R3: Daytime Pop. (2020-24 estimate) | S3: Municipal Spending/Daytime Pop. Ratio | T3: General Government Approp. | U3: Land-Use Administration Approp. | V3: Uniform Construction Code Approp. | W3: Public Safety Approp. | X3: Public Works Approp. | Y3: Health and Human Services Approp. | Z3: Education (including Library) Approp. | AA3: Landfill / Solid Waste Disposal Approp. | AB3: Statutory Expenditures Approp. | AC3: Court and Public Defender Approp. | AD3: General Government Appl. to Project | AE3: Land-Use Admin. Appl. to Project | AF3: Uniform Construction Code Appl. to Project | AG3: Public Safety Appl. to Project | AH3: Public Works Appl. to Project | AI3: Health and Human Services Appl. to Project | AJ3: Education (including Library) Appl. to Project | AK3: Landfill / Solid Waste Disposal Appl. to Project | AL3: Statutory Expenditures Appl. to Project | AM3: Court and Public Defender Appl. to Project
A4: 1330 | B4: Aberdeen Township | C4: Monmouth | D4: 3402500070 | E4: 1 | F4: =VLOOKUP(A4,'[1]Municipal Tax Summary'!$A$3:$AN$566,4,FALSE) -> 3716293900 | G4: =VLOOKUP(A4,'[1]Municipal Tax Summary'!$A$3:$AN$566,17,FALSE) -> 14421396.24 | H4: =G4/(F4/100) -> 0.3880585505 | I4: =IF(IFERROR(SUM(AD4:AM4),"--")=0,"--",IFERROR(SUM(AD4:AM4),"--")) -> 6989589.36 | J4: 3484.420434 | K4: =VLOOKUP(A4,'[1]Municipal Tax Summary'!$A$3:$AN$566,29,FALSE) -> 1.823049688 | L4: =VLOOKUP(A4,'[1]Municipal Tax Summary'!$A$3:$AN$566,9,FALSE) -> 7397596.1 | M4: =VLOOKUP(A4,'[1]Municipal Tax Summary'!$A$3:$AN$566,13,FALSE) -> 45930892 | N4: =VLOOKUP(A4,'[1]Municipal Tax Summary'!$A$3:$AN$566,18,FALSE) -> 67749884.34 | O4: =G4/N4 -> 0.2128623005 | P4: =L4/N4 -> 0.1091897967 | Q4: =M4/N4 -> 0.6779479028 | R4: 22130 | S4: =IFERROR(I4/R4,"--") -> 315.8422666 | T4: 14424319.39 | U4: 111648 | V4: 258550 | W4: 6933241.17 | X4: 1094250 | Y4: 72000 | Z4: 1178405.809 | AA4: 0 | AB4: 3204262.91 | AC4: 207000 | AD4: =IFERROR(T4*'Inputs & Assumptions'!$Q$40,"--") -> 1442431.939 | AE4: =IFERROR(U4*'Inputs & Assumptions'!$Q$41,"--") -> 11164.8 | AF4: =IFERROR(V4*'Inputs & Assumptions'!$Q$42,"--") -> 129275 | AG4: =IFERROR(W4*'Inputs & Assumptions'!$Q$43,"--") -> 3466620.585 | AH4: =IFERROR(X4*'Inputs & Assumptions'!$Q$44,"--") -> 109425 | AI4: =IFERROR(Y4*'Inputs & Assumptions'!$Q$45,"--") -> 7200 | AJ4: =IFERROR(Z4*'Inputs & Assumptions'!$Q$46,"--") -> 117840.5809 | AK4: =IFERROR(AA4*'Inputs & Assumptions'!$Q$47,"--") -> 0 | AL4: =IFERROR(AB4*'Inputs & Assumptions'!$Q$48,"--") -> 1602131.455 | AM4: =IFERROR(AC4*'Inputs & Assumptions'!$Q$49,"--") -> 103500
A5: 0101 | B5: Absecon City | C5: Atlantic | D5: 3400100100 | E5: =E4+1 -> 2 | F5: =VLOOKUP(A5,'[1]Municipal Tax Summary'!$A$3:$AN$566,4,FALSE) -> 728706800 | G5: =VLOOKUP(A5,'[1]Municipal Tax Summary'!$A$3:$AN$566,17,FALSE) -> 8516293.56 | H5: =G5/(F5/100) -> 1.168685891 | I5: =IF(IFERROR(SUM(AD5:AM5),"--")=0,"--",IFERROR(SUM(AD5:AM5),"--")) -> 3619785 | J5: 3499.667571 | K5: =VLOOKUP(A5,'[1]Municipal Tax Summary'!$A$3:$AN$566,29,FALSE) -> 3.516546025 | L5: =VLOOKUP(A5,'[1]Municipal Tax Summary'!$A$3:$AN$566,9,FALSE) -> 4450829.45 | M5: =VLOOKUP(A5,'[1]Municipal Tax Summary'!$A$3:$AN$566,13,FALSE) -> 12658187 | N5: =VLOOKUP(A5,'[1]Municipal Tax Summary'!$A$3:$AN$566,18,FALSE) -> 25625310.01 | O5: 0.3323391427 | P5: 0.1736888041 | Q5: 0.4939720532 | R5: 11310 | S5: 320.0517241 | T5: 2909500 | U5: 44800 | V5: 204000 | W5: 3797250 | X5: 497000 | Y5: 0 | Z5: 0 | AA5: 894000 | AB5: 1504360 | AC5: 149700 | AD5: =IFERROR(T5*'Inputs & Assumptions'!$Q$40,"--") -> 290950 | AE5: =IFERROR(U5*'Inputs & Assumptions'!$Q$41,"--") -> 4480 | AF5: =IFERROR(V5*'Inputs & Assumptions'!$Q$42,"--") -> 102000 | AG5: =IFERROR(W5*'Inputs & Assumptions'!$Q$43,"--") -> 1898625 | AH5: =IFERROR(X5*'Inputs & Assumptions'!$Q$44,"--") -> 49700 | AI5: =IFERROR(Y5*'Inputs & Assumptions'!$Q$45,"--") -> 0 | AJ5: =IFERROR(Z5*'Inputs & Assumptions'!$Q$46,"--") -> 0 | AK5: =IFERROR(AA5*'Inputs & Assumptions'!$Q$47,"--") -> 447000 | AL5: =IFERROR(AB5*'Inputs & Assumptions'!$Q$48,"--") -> 752180 | AM5: =IFERROR(AC5*'Inputs & Assumptions'!$Q$49,"--") -> 74850
A6: 1001 | B6: Alexandria Township | C6: Hunterdon | D6: 3401900550 | E6: 3 | F6: =VLOOKUP(A6,'[1]Municipal Tax Summary'!$A$3:$AN$566,4,FALSE) -> 736652580 | G6: =VLOOKUP(A6,'[1]Municipal Tax Summary'!$A$3:$AN$566,17,FALSE) -> 2459030.18 | H6: =G6/(F6/100) -> 0.333811385 | I6: 518428.9 | J6: 17621.43755 | K6: =VLOOKUP(A6,'[1]Municipal Tax Summary'!$A$3:$AN$566,29,FALSE) -> 3.080681319 | L6: =VLOOKUP(A6,'[1]Municipal Tax Summary'!$A$3:$AN$566,9,FALSE) -> 3794600.24 | M6: =VLOOKUP(A6,'[1]Municipal Tax Summary'!$A$3:$AN$566,13,FALSE) -> 16440288 | N6: =VLOOKUP(A6,'[1]Municipal Tax Summary'!$A$3:$AN$566,18,FALSE) -> 22693918.42 | O6: 0.1083563506 | P6: 0.167207803 | Q6: 0.7244358465 | R6: 5468 | S6: 94.81143014 | T6: 735618 | U6: 53588 | V6: 196558 | W6: 292357 | X6: 911453 | Y6: 34090 | Z6: 0 | AA6: 0 | AB6: 165993 | AC6: 35000 | AD6: =IFERROR(T6*'Inputs & Assumptions'!$Q$40,"--") -> 73561.8 | AE6: =IFERROR(U6*'Inputs & Assumptions'!$Q$41,"--") -> 5358.8 | AF6: =IFERROR(V6*'Inputs & Assumptions'!$Q$42,"--") -> 98279 | AG6: =IFERROR(W6*'Inputs & Assumptions'!$Q$43,"--") -> 146178.5 | AH6: =IFERROR(X6*'Inputs & Assumptions'!$Q$44,"--") -> 91145.3 | AI6: =IFERROR(Y6*'Inputs & Assumptions'!$Q$45,"--") -> 3409 | AJ6: =IFERROR(Z6*'Inputs & Assumptions'!$Q$46,"--") -> 0 | AK6: =IFERROR(AA6*'Inputs & Assumptions'!$Q$47,"--") -> 0 | AL6: =IFERROR(AB6*'Inputs & Assumptions'!$Q$48,"--") -> 82996.5 | AM6: =IFERROR(AC6*'Inputs & Assumptions'!$Q$49,"--") -> 17500
A7: 2101 | B7: Allamuchy Township | C7: Warren | D7: 3404100670 | E7: 4 | F7: =VLOOKUP(A7,'[1]Municipal Tax Summary'!$A$3:$AN$566,4,FALSE) -> 601132800 | G7: =VLOOKUP(A7,'[1]Municipal Tax Summary'!$A$3:$AN$566,17,FALSE) -> 2737317.25 | H7: 0.4553598223 | I7: 490509.1 | J7: 12794.996 | K7: =VLOOKUP(A7,'[1]Municipal Tax Summary'!$A$3:$AN$566,29,FALSE) -> 3.226532372 | L7: =VLOOKUP(A7,'[1]Municipal Tax Summary'!$A$3:$AN$566,9,FALSE) -> 5642615.14 | M7: =VLOOKUP(A7,'[1]Municipal Tax Summary'!$A$3:$AN$566,13,FALSE) -> 11015812 | N7: =VLOOKUP(A7,'[1]Municipal Tax Summary'!$A$3:$AN$566,18,FALSE) -> 19395744.39 | O7: 0.1411297857 | P7: 0.2909202672 | Q7: 0.5679499471 | R7: 5851 | S7: 83.83337891 | T7: 866108 | U7: 53600 | V7: 10000 | W7: 131100 | X7: 1899523 | Y7: 40100 | Z7: 0 | AA7: 0 | AB7: 202602 | AC7: 65450 | AD7: =IFERROR(T7*'Inputs & Assumptions'!$Q$40,"--") -> 86610.8 | AE7: =IFERROR(U7*'Inputs & Assumptions'!$Q$41,"--") -> 5360 | AF7: =IFERROR(V7*'Inputs & Assumptions'!$Q$42,"--") -> 5000 | AG7: =IFERROR(W7*'Inputs & Assumptions'!$Q$43,"--") -> 65550 | AH7: =IFERROR(X7*'Inputs & Assumptions'!$Q$44,"--") -> 189952.3 | AI7: =IFERROR(Y7*'Inputs & Assumptions'!$Q$45,"--") -> 4010 | AJ7: =IFERROR(Z7*'Inputs & Assumptions'!$Q$46,"--") -> 0 | AK7: =IFERROR(AA7*'Inputs & Assumptions'!$Q$47,"--") -> 0 | AL7: =IFERROR(AB7*'Inputs & Assumptions'!$Q$48,"--") -> 101301 | AM7: =IFERROR(AC7*'Inputs & Assumptions'!$Q$49,"--") -> 32725
A8: 0201 | B8: Allendale Borough | C8: Bergen | D8: 3400300700 | E8: 5 | F8: =VLOOKUP(A8,'[1]Municipal Tax Summary'!$A$3:$AN$566,4,FALSE) -> 2324565600 | G8: =VLOOKUP(A8,'[1]Municipal Tax Summary'!$A$3:$AN$566,17,FALSE) -> 12047234 | H8: 0.5182574327 | I8: 3241487.4 | J8: 1982.143142 | K8: =VLOOKUP(A8,'[1]Municipal Tax Summary'!$A$3:$AN$566,29,FALSE) -> 2.029563032 | L8: =VLOOKUP(A8,'[1]Municipal Tax Summary'!$A$3:$AN$566,9,FALSE) -> 5582133.07 | M8: =VLOOKUP(A8,'[1]Municipal Tax Summary'!$A$3:$AN$566,13,FALSE) -> 29549157 | N8: =VLOOKUP(A8,'[1]Municipal Tax Summary'!$A$3:$AN$566,18,FALSE) -> 47178524.07 | O8: 0.2553541943 | P8: 0.1183193663 | Q8: 0.6263264395 | R8: 9273 | S8: 349.5618894 | T8: 1378500 | U8: 113500 | V8: 286000 | W8: 3134374 | X8: 1410782 | Y8: 62000 | Z8: 816227 | AA8: 922000 | AB8: 1357299 | AC8: 27100 | AD8: =IFERROR(T8*'Inputs & Assumptions'!$Q$40,"--") -> 137850 | AE8: =IFERROR(U8*'Inputs & Assumptions'!$Q$41,"--") -> 11350 | AF8: =IFERROR(V8*'Inputs & Assumptions'!$Q$42,"--") -> 143000 | AG8: =IFERROR(W8*'Inputs & Assumptions'!$Q$43,"--") -> 1567187 | AH8: =IFERROR(X8*'Inputs & Assumptions'!$Q$44,"--") -> 141078.2 | AI8: =IFERROR(Y8*'Inputs & Assumptions'!$Q$45,"--") -> 6200 | AJ8: =IFERROR(Z8*'Inputs & Assumptions'!$Q$46,"--") -> 81622.7 | AK8: =IFERROR(AA8*'Inputs & Assumptions'!$Q$47,"--") -> 461000 | AL8: =IFERROR(AB8*'Inputs & Assumptions'!$Q$48,"--") -> 678649.5 | AM8: =IFERROR(AC8*'Inputs & Assumptions'!$Q$49,"--") -> 13550
A9: 1301 | B9: Allenhurst Borough | C9: Monmouth | D9: 3402500730 | E9: 6 | F9: =VLOOKUP(A9,'[1]Municipal Tax Summary'!$A$3:$AN$566,4,FALSE) -> 1242480000 | G9: =VLOOKUP(A9,'[1]Municipal Tax Summary'!$A$3:$AN$566,17,FALSE) -> 3233546.08 | H9: 0.2602493465 | I9: 1315462.41 | J9: 160.3075736 | K9: =VLOOKUP(A9,'[1]Municipal Tax Summary'!$A$3:$AN$566,29,FALSE) -> 0.4966518294 | L9: =VLOOKUP(A9,'[1]Municipal Tax Summary'!$A$3:$AN$566,9,FALSE) -> 2588353.57 | M9: =VLOOKUP(A9,'[1]Municipal Tax Summary'!$A$3:$AN$566,13,FALSE) -> 348900 | N9: =VLOOKUP(A9,'[1]Municipal Tax Summary'!$A$3:$AN$566,18,FALSE) -> 6170799.65 | O9: 0.5240076268 | P9: 0.419451889 | Q9: 0.05654048418 | R9: 551 | S9: 2387.409093 | T9: 820150 | U9: 55400 | V9: 6000 | W9: 1552276 | X9: 1206254.1 | Y9: 25200 | Z9: 0 | AA9: 0 | AB9: 568973 | AC9: 82275 | AD9: =IFERROR(T9*'Inputs & Assumptions'!$Q$40,"--") -> 82015 | AE9: =IFERROR(U9*'Inputs & Assumptions'!$Q$41,"--") -> 5540 | AF9: =IFERROR(V9*'Inputs & Assumptions'!$Q$42,"--") -> 3000 | AG9: =IFERROR(W9*'Inputs & Assumptions'!$Q$43,"--") -> 776138 | AH9: =IFERROR(X9*'Inputs & Assumptions'!$Q$44,"--") -> 120625.41 | AI9: =IFERROR(Y9*'Inputs & Assumptions'!$Q$45,"--") -> 2520 | AJ9: =IFERROR(Z9*'Inputs & Assumptions'!$Q$46,"--") -> 0 | AK9: =IFERROR(AA9*'Inputs & Assumptions'!$Q$47,"--") -> 0 | AL9: =IFERROR(AB9*'Inputs & Assumptions'!$Q$48,"--") -> 284486.5 | AM9: =IFERROR(AC9*'Inputs & Assumptions'!$Q$49,"--") -> 41137.5
A10: 1302 | B10: Allentown Borough | C10: Monmouth | D10: 3402500760 | E10: 7 | F10: =VLOOKUP(A10,'[1]Municipal Tax Summary'!$A$3:$AN$566,4,FALSE) -> 192613400 | G10: =VLOOKUP(A10,'[1]Municipal Tax Summary'!$A$3:$AN$566,17,FALSE) -> 1944987.85 | H10: 1.009788442 | I10: 879198.673 | J10: 381.5569926 | K10: =VLOOKUP(A10,'[1]Municipal Tax Summary'!$A$3:$AN$566,29,FALSE) -> 3.546728769 | L10: =VLOOKUP(A10,'[1]Municipal Tax Summary'!$A$3:$AN$566,9,FALSE) -> 650001.02 | M10: =VLOOKUP(A10,'[1]Municipal Tax Summary'!$A$3:$AN$566,13,FALSE) -> 4236486 | N10: =VLOOKUP(A10,'[1]Municipal Tax Summary'!$A$3:$AN$566,18,FALSE) -> 6831474.87 | O10: 0.2847098009 | P10: 0.09514797791 | Q10: 0.6201422212 | R10: 2393 | S10: 367.4043765 | T10: 2282751.73 | U10: 12600 | V10: 1100 | W10: 764600 | X10: 484925 | Y10: 1525 | Z10: 3000 | AA10: 0 | AB10: 359387 | AC10: 76350 | AD10: =IFERROR(T10*'Inputs & Assumptions'!$Q$40,"--") -> 228275.173 | AE10: =IFERROR(U10*'Inputs & Assumptions'!$Q$41,"--") -> 1260 | AF10: =IFERROR(V10*'Inputs & Assumptions'!$Q$42,"--") -> 550 | AG10: =IFERROR(W10*'Inputs & Assumptions'!$Q$43,"--") -> 382300 | AH10: =IFERROR(X10*'Inputs & Assumptions'!$Q$44,"--") -> 48492.5 | AI10: =IFERROR(Y10*'Inputs & Assumptions'!$Q$45,"--") -> 152.5 | AJ10: =IFERROR(Z10*'Inputs & Assumptions'!$Q$46,"--") -> 300 | AK10: =IFERROR(AA10*'Inputs & Assumptions'!$Q$47,"--") -> 0 | AL10: =IFERROR(AB10*'Inputs & Assumptions'!$Q$48,"--") -> 179693.5 | AM10: =IFERROR(AC10*'Inputs & Assumptions'!$Q$49,"--") -> 38175
A11: 1701 | B11: Alloway Township | C11: Salem | D11: 3403300880 | E11: 8 | F11: =VLOOKUP(A11,'[1]Municipal Tax Summary'!$A$3:$AN$566,4,FALSE) -> 288680492 | G11: =VLOOKUP(A11,'[1]Municipal Tax Summary'!$A$3:$AN$566,17,FALSE) -> 837730.61 | H11: 0.2901930103 | I11: 269644.809 | J11: 21425.34015 | K11: =VLOOKUP(A11,'[1]Municipal Tax Summary'!$A$3:$AN$566,29,FALSE) -> 3.62668087 | L11: =VLOOKUP(A11,'[1]Municipal Tax Summary'!$A$3:$AN$566,9,FALSE) -> 4303351.57 | M11: =VLOOKUP(A11,'[1]Municipal Tax Summary'!$A$3:$AN$566,13,FALSE) -> 5328438 | N11: =VLOOKUP(A11,'[1]Municipal Tax Summary'!$A$3:$AN$566,18,FALSE) -> 10469520.18 | O11: 0.08001614168 | P11: 0.4110361789 | Q11: 0.5089476794 | R11: 3589 | S11: 75.13090248 | T11: 357250 | U11: 5000 | V11: 56800 | W11: 44650 | X11: 718261 | Y11: 18087.09 | Z11: 0 | AA11: 119250 | AB11: 98870 | AC11: 0 | AD11: =IFERROR(T11*'Inputs & Assumptions'!$Q$40,"--") -> 35725 | AE11: =IFERROR(U11*'Inputs & Assumptions'!$Q$41,"--") -> 500 | AF11: =IFERROR(V11*'Inputs & Assumptions'!$Q$42,"--") -> 28400 | AG11: =IFERROR(W11*'Inputs & Assumptions'!$Q$43,"--") -> 22325 | AH11: =IFERROR(X11*'Inputs & Assumptions'!$Q$44,"--") -> 71826.1 | AI11: =IFERROR(Y11*'Inputs & Assumptions'!$Q$45,"--") -> 1808.709 | AJ11: =IFERROR(Z11*'Inputs & Assumptions'!$Q$46,"--") -> 0 | AK11: =IFERROR(AA11*'Inputs & Assumptions'!$Q$47,"--") -> 59625 | AL11: =IFERROR(AB11*'Inputs & Assumptions'!$Q$48,"--") -> 49435 | AM11: =IFERROR(AC11*'Inputs & Assumptions'!$Q$49,"--") -> 0
A12: 2102 | B12: Alpha Borough | C12: Warren | D12: 3404101030 | E12: 9 | F12: =VLOOKUP(A12,'[1]Municipal Tax Summary'!$A$3:$AN$566,4,FALSE) -> 246762182 | G12: =VLOOKUP(A12,'[1]Municipal Tax Summary'!$A$3:$AN$566,17,FALSE) -> 2399204.67 | H12: 0.9722740537 | I12: 273908.034 | J12: 1075.628527 | K12: =VLOOKUP(A12,'[1]Municipal Tax Summary'!$A$3:$AN$566,29,FALSE) -> 3.484287309 | L12: =VLOOKUP(A12,'[1]Municipal Tax Summary'!$A$3:$AN$566,9,FALSE) -> 1870718.72 | M12: =VLOOKUP(A12,'[1]Municipal Tax Summary'!$A$3:$AN$566,13,FALSE) -> 4327980 | N12: =VLOOKUP(A12,'[1]Municipal Tax Summary'!$A$3:$AN$566,18,FALSE) -> 8597903.39 | O12: 0.2790453162 | P12: 0.2175784764 | Q12: 0.5033762074 | R12: 3247 | S12: 84.35726332 | T12: 862601.7 | U12: 33525 | V12: 41550 | W12: 78070 | X12: 591269 | Y12: 8500 | Z12: 105084.64 | AA12: 0 | AB12: 108000 | AC12: 0 | AD12: =IFERROR(T12*'Inputs & Assumptions'!$Q$40,"--") -> 86260.17 | AE12: =IFERROR(U12*'Inputs & Assumptions'!$Q$41,"--") -> 3352.5 | AF12: =IFERROR(V12*'Inputs & Assumptions'!$Q$42,"--") -> 20775 | AG12: =IFERROR(W12*'Inputs & Assumptions'!$Q$43,"--") -> 39035 | AH12: =IFERROR(X12*'Inputs & Assumptions'!$Q$44,"--") -> 59126.9 | AI12: =IFERROR(Y12*'Inputs & Assumptions'!$Q$45,"--") -> 850 | AJ12: =IFERROR(Z12*'Inputs & Assumptions'!$Q$46,"--") -> 10508.464 | AK12: =IFERROR(AA12*'Inputs & Assumptions'!$Q$47,"--") -> 0 | AL12: =IFERROR(AB12*'Inputs & Assumptions'!$Q$48,"--") -> 54000 | AM12: =IFERROR(AC12*'Inputs & Assumptions'!$Q$49,"--") -> 0
A13: 0202 | B13: Alpine Borough | C13: Bergen | D13: 3400301090 | E13: 10 | F13: =VLOOKUP(A13,'[1]Municipal Tax Summary'!$A$3:$AN$566,4,FALSE) -> 2009236000 | G13: =VLOOKUP(A13,'[1]Municipal Tax Summary'!$A$3:$AN$566,17,FALSE) -> 4207088 | H13: 0.2093874488 | I13: 1927000.5 | J13: 4096.623518 | K13: =VLOOKUP(A13,'[1]Municipal Tax Summary'!$A$3:$AN$566,29,FALSE) -> 0.836981489 | L13: =VLOOKUP(A13,'[1]Municipal Tax Summary'!$A$3:$AN$566,9,FALSE) -> 4940268.39 | M13: =VLOOKUP(A13,'[1]Municipal Tax Summary'!$A$3:$AN$566,13,FALSE) -> 7669577 | N13: =VLOOKUP(A13,'[1]Municipal Tax Summary'!$A$3:$AN$566,18,FALSE) -> 16816933.39 | O13: 0.2501697487 | P13: 0.2937674947 | Q13: 0.4560627566 | R13: 2020 | S13: 953.9606436 | T13: 632200 | U13: 25750 | V13: 197500 | W13: 2475040 | X13: 550100 | Y13: 34850 | Z13: 1000 | AA13: 0 | AB13: 901481 | AC13: 31200 | AD13: =IFERROR(T13*'Inputs & Assumptions'!$Q$40,"--") -> 63220 | AE13: =IFERROR(U13*'Inputs & Assumptions'!$Q$41,"--") -> 2575 | AF13: =IFERROR(V13*'Inputs & Assumptions'!$Q$42,"--") -> 98750 | AG13: =IFERROR(W13*'Inputs & Assumptions'!$Q$43,"--") -> 1237520 | AH13: =IFERROR(X13*'Inputs & Assumptions'!$Q$44,"--") -> 55010 | AI13: =IFERROR(Y13*'Inputs & Assumptions'!$Q$45,"--") -> 3485 | AJ13: =IFERROR(Z13*'Inputs & Assumptions'!$Q$46,"--") -> 100 | AK13: =IFERROR(AA13*'Inputs & Assumptions'!$Q$47,"--") -> 0 | AL13: =IFERROR(AB13*'Inputs & Assumptions'!$Q$48,"--") -> 450740.5 | AM13: =IFERROR(AC13*'Inputs & Assumptions'!$Q$49,"--") -> 15600
A14: 1901 | B14: Andover Borough | C14: Sussex | D14: 3403701330 | E14: 11 | F14: =VLOOKUP(A14,'[1]Municipal Tax Summary'!$A$3:$AN$566,4,FALSE) -> 67936800 | G14: =VLOOKUP(A14,'[1]Municipal Tax Summary'!$A$3:$AN$566,17,FALSE) -> 404927.53 | H14: 0.5960356243 | I14: 97521.8 | J14: 862.6361309 | K14: =VLOOKUP(A14,'[1]Municipal Tax Summary'!$A$3:$AN$566,29,FALSE) -> 3.299566494 | L14: =VLOOKUP(A14,'[1]Municipal Tax Summary'!$A$3:$AN$566,9,FALSE) -> 409689.36 | M14: =VLOOKUP(A14,'[1]Municipal Tax Summary'!$A$3:$AN$566,13,FALSE) -> 1427003 | N14: =VLOOKUP(A14,'[1]Municipal Tax Summary'!$A$3:$AN$566,18,FALSE) -> 2241619.89 | O14: 0.1806405858 | P14: 0.1827648665 | Q14: 0.6365945477 | R14: 1271 | S14: 76.72840283 | T14: 246211 | U14: 18004 | V14: 25179 | W14: 35054 | X14: 86500 | Y14: 5368 | Z14: 500 | AA14: 29223 | AB14: 34271 | AC14: 0 | AD14: =IFERROR(T14*'Inputs & Assumptions'!$Q$40,"--") -> 24621.1 | AE14: =IFERROR(U14*'Inputs & Assumptions'!$Q$41,"--") -> 1800.4 | AF14: =IFERROR(V14*'Inputs & Assumptions'!$Q$42,"--") -> 12589.5 | AG14: =IFERROR(W14*'Inputs & Assumptions'!$Q$43,"--") -> 17527 | AH14: =IFERROR(X14*'Inputs & Assumptions'!$Q$44,"--") -> 8650 | AI14: =IFERROR(Y14*'Inputs & Assumptions'!$Q$45,"--") -> 536.8 | AJ14: =IFERROR(Z14*'Inputs & Assumptions'!$Q$46,"--") -> 50 | AK14: =IFERROR(AA14*'Inputs & Assumptions'!$Q$47,"--") -> 14611.5 | AL14: =IFERROR(AB14*'Inputs & Assumptions'!$Q$48,"--") -> 17135.5 | AM14: =IFERROR(AC14*'Inputs & Assumptions'!$Q$49,"--") -> 0
A15: 1902 | B15: Andover Township | C15: Sussex | D15: 3403701360 | E15: 12 | F15: =VLOOKUP(A15,'[1]Municipal Tax Summary'!$A$3:$AN$566,4,FALSE) -> 631121277 | G15: =VLOOKUP(A15,'[1]Municipal Tax Summary'!$A$3:$AN$566,17,FALSE) -> 7465214.75 | H15: 1.182849481 | I15: 2094119.919 | J15: 12828.47185 | K15: =VLOOKUP(A15,'[1]Municipal Tax Summary'!$A$3:$AN$566,29,FALSE) -> 4.359889736 | L15: =VLOOKUP(A15,'[1]Municipal Tax Summary'!$A$3:$AN$566,9,FALSE) -> 4442995.03 | M15: =VLOOKUP(A15,'[1]Municipal Tax Summary'!$A$3:$AN$566,13,FALSE) -> 15607982 | N15: =VLOOKUP(A15,'[1]Municipal Tax Summary'!$A$3:$AN$566,18,FALSE) -> 27516191.78 | O15: 0.2713026137 | P15: 0.1614683843 | Q15: 0.5672290019 | R15: 7273 | S15: 287.9306915 | T15: 888817 | U15: 65700 | V15: 0 | W15: 2452725.16 | X15: 1988459.39 | Y15: 38222 | Z15: 0 | AA15: 0 | AB15: 1043990 | AC15: 95285 | AD15: =IFERROR(T15*'Inputs & Assumptions'!$Q$40,"--") -> 88881.7 | AE15: =IFERROR(U15*'Inputs & Assumptions'!$Q$41,"--") -> 6570 | AF15: =IFERROR(V15*'Inputs & Assumptions'!$Q$42,"--") -> 0 | AG15: =IFERROR(W15*'Inputs & Assumptions'!$Q$43,"--") -> 1226362.58 | AH15: =IFERROR(X15*'Inputs & Assumptions'!$Q$44,"--") -> 198845.939 | AI15: =IFERROR(Y15*'Inputs & Assumptions'!$Q$45,"--") -> 3822.2 | AJ15: =IFERROR(Z15*'Inputs & Assumptions'!$Q$46,"--") -> 0 | AK15: =IFERROR(AA15*'Inputs & Assumptions'!$Q$47,"--") -> 0 | AL15: =IFERROR(AB15*'Inputs & Assumptions'!$Q$48,"--") -> 521995 | AM15: =IFERROR(AC15*'Inputs & Assumptions'!$Q$49,"--") -> 47642.5
A16: 1303 | B16: Asbury Park City | C16: Monmouth | D16: 3402501960 | E16: 13 | F16: =VLOOKUP(A16,'[1]Municipal Tax Summary'!$A$3:$AN$566,4,FALSE) -> 3323247300 | G16: =VLOOKUP(A16,'[1]Municipal Tax Summary'!$A$3:$AN$566,17,FALSE) -> 18619120.05 | H16: 0.5602688686 | I16: 18453973.31 | J16: 914.549985 | K16: =VLOOKUP(A16,'[1]Municipal Tax Summary'!$A$3:$AN$566,29,FALSE) -> 1.751709831 | L16: =VLOOKUP(A16,'[1]Municipal Tax Summary'!$A$3:$AN$566,9,FALSE) -> 7029807.61 | M16: =VLOOKUP(A16,'[1]Municipal Tax Summary'!$A$3:$AN$566,13,FALSE) -> 32564722 | N16: =VLOOKUP(A16,'[1]Municipal Tax Summary'!$A$3:$AN$566,18,FALSE) -> 58213649.66 | O16: 0.3198411396 | P16: 0.1207587508 | Q16: 0.5594001096 | R16: 19065 | S16: 967.9503441 | T16: 3891520 | U16: 1179078 | V16: 506980 | W16: 21124607.85 | X16: 11503043.69 | Y16: 694376 | Z16: 1070716.42 | AA16: 2271125 | AB16: 8867186.95 | AC16: 470300 | AD16: =IFERROR(T16*'Inputs & Assumptions'!$Q$40,"--") -> 389152 | AE16: =IFERROR(U16*'Inputs & Assumptions'!$Q$41,"--") -> 117907.8 | AF16: =IFERROR(V16*'Inputs & Assumptions'!$Q$42,"--") -> 253490 | AG16: =IFERROR(W16*'Inputs & Assumptions'!$Q$43,"--") -> 10562303.93 | AH16: =IFERROR(X16*'Inputs & Assumptions'!$Q$44,"--") -> 1150304.369 | AI16: =IFERROR(Y16*'Inputs & Assumptions'!$Q$45,"--") -> 69437.6 | AJ16: =IFERROR(Z16*'Inputs & Assumptions'!$Q$46,"--") -> 107071.642 | AK16: =IFERROR(AA16*'Inputs & Assumptions'!$Q$47,"--") -> 1135562.5 | AL16: =IFERROR(AB16*'Inputs & Assumptions'!$Q$48,"--") -> 4433593.475 | AM16: =IFERROR(AC16*'Inputs & Assumptions'!$Q$49,"--") -> 235150
A17: 0102 | B17: Atlantic City City | C17: Atlantic | D17: 3400102080 | E17: 14 | F17: =VLOOKUP(A17,'[1]Municipal Tax Summary'!$A$3:$AN$566,4,FALSE) -> 2402908563 | G17: =VLOOKUP(A17,'[1]Municipal Tax Summary'!$A$3:$AN$566,17,FALSE) -> 35238122.9 | H17: 1.466477894 | I17: 61500877.3 | J17: 6886.699118 | K17: =VLOOKUP(A17,'[1]Municipal Tax Summary'!$A$3:$AN$566,29,FALSE) -> 3.3796608 | L17: =VLOOKUP(A17,'[1]Municipal Tax Summary'!$A$3:$AN$566,9,FALSE) -> 13202785.87 | M17: =VLOOKUP(A17,'[1]Municipal Tax Summary'!$A$3:$AN$566,13,FALSE) -> 32769250 | N17: =VLOOKUP(A17,'[1]Municipal Tax Summary'!$A$3:$AN$566,18,FALSE) -> 81210158.77 | O17: 0.4339127448 | P17: 0.1625755456 | Q17: 0.4035117096 | R17: 61371 | S17: 1002.116265 | T17: 14316574 | U17: 2260121 | V17: 4399799 | W17: 80169760.59 | X17: 24588590 | Y17: 2823841 | Z17: 1653119 | AA17: 0 | AB17: 27400841 | AC17: 1902905 | AD17: =IFERROR(T17*'Inputs & Assumptions'!$Q$40,"--") -> 1431657.4 | AE17: =IFERROR(U17*'Inputs & Assumptions'!$Q$41,"--") -> 226012.1 | AF17: =IFERROR(V17*'Inputs & Assumptions'!$Q$42,"--") -> 2199899.5 | AG17: =IFERROR(W17*'Inputs & Assumptions'!$Q$43,"--") -> 40084880.3 | AH17: =IFERROR(X17*'Inputs & Assumptions'!$Q$44,"--") -> 2458859 | AI17: =IFERROR(Y17*'Inputs & Assumptions'!$Q$45,"--") -> 282384.1 | AJ17: =IFERROR(Z17*'Inputs & Assumptions'!$Q$46,"--") -> 165311.9 | AK17: =IFERROR(AA17*'Inputs & Assumptions'!$Q$47,"--") -> 0 | AL17: =IFERROR(AB17*'Inputs & Assumptions'!$Q$48,"--") -> 13700420.5 | AM17: =IFERROR(AC17*'Inputs & Assumptions'!$Q$49,"--") -> 951452.5
A18: 1304 | B18: Atlantic Highlands Borough | C18: Monmouth | D18: 3402502110 | E18: 15 | F18: =VLOOKUP(A18,'[1]Municipal Tax Summary'!$A$3:$AN$566,4,FALSE) -> 1283588000 | G18: =VLOOKUP(A18,'[1]Municipal Tax Summary'!$A$3:$AN$566,17,FALSE) -> 6599896.34 | H18: 0.5141756031 | I18: 2567783.061 | J18: 809.0014357 | K18: =VLOOKUP(A18,'[1]Municipal Tax Summary'!$A$3:$AN$566,29,FALSE) -> 1.529795021 | L18: =VLOOKUP(A18,'[1]Municipal Tax Summary'!$A$3:$AN$566,9,FALSE) -> 2867915.97 | M18: =VLOOKUP(A18,'[1]Municipal Tax Summary'!$A$3:$AN$566,13,FALSE) -> 10168453 | N18: =VLOOKUP(A18,'[1]Municipal Tax Summary'!$A$3:$AN$566,18,FALSE) -> 19636265.31 | O18: 0.3361075151 | P18: 0.1460520076 | Q18: 0.5178404773 | R18: 5608 | S18: 457.8785772 | T18: 5051970.61 | U18: 71000 | V18: 97000 | W18: 2053250 | X18: 1220000 | Y18: 10000 | Z18: 1500 | AA18: 240000 | AB18: 1342922 | AC18: 131500 | AD18: =IFERROR(T18*'Inputs & Assumptions'!$Q$40,"--") -> 505197.061 | AE18: =IFERROR(U18*'Inputs & Assumptions'!$Q$41,"--") -> 7100 | AF18: =IFERROR(V18*'Inputs & Assumptions'!$Q$42,"--") -> 48500 | AG18: =IFERROR(W18*'Inputs & Assumptions'!$Q$43,"--") -> 1026625 | AH18: =IFERROR(X18*'Inputs & Assumptions'!$Q$44,"--") -> 122000 | AI18: =IFERROR(Y18*'Inputs & Assumptions'!$Q$45,"--") -> 1000 | AJ18: =IFERROR(Z18*'Inputs & Assumptions'!$Q$46,"--") -> 150 | AK18: =IFERROR(AA18*'Inputs & Assumptions'!$Q$47,"--") -> 120000 | AL18: =IFERROR(AB18*'Inputs & Assumptions'!$Q$48,"--") -> 671461 | AM18: =IFERROR(AC18*'Inputs & Assumptions'!$Q$49,"--") -> 65750
A19: 0401 | B19: Audubon Borough | C19: Camden | D19: 3400702200 | E19: 16 | F19: =VLOOKUP(A19,'[1]Municipal Tax Summary'!$A$3:$AN$566,4,FALSE) -> 714919904 | G19: =VLOOKUP(A19,'[1]Municipal Tax Summary'!$A$3:$AN$566,17,FALSE) -> 7814000 | H19: 1.092989572 | I19: 2707614.025 | J19: 948.5830539 | K19: =VLOOKUP(A19,'[1]Municipal Tax Summary'!$A$3:$AN$566,29,FALSE) -> 4.199123719 | L19: =VLOOKUP(A19,'[1]Municipal Tax Summary'!$A$3:$AN$566,9,FALSE) -> 6007420.26 | M19: =VLOOKUP(A19,'[1]Municipal Tax Summary'!$A$3:$AN$566,13,FALSE) -> 16198951 | N19: =VLOOKUP(A19,'[1]Municipal Tax Summary'!$A$3:$AN$566,18,FALSE) -> 30020371.26 | O19: 0.2602899189 | P19: 0.2001114579 | Q19: 0.5395986232 | R19: 10521 | S19: 257.3532958 | T19: 790817 | U19: 52800 | V19: 79210 | W19: 2935647.79 | X19: 1863012 | Y19: 0 | Z19: 351942.3 | AA19: 414982 | AB19: 1209034 | AC19: 164640 | AD19: =IFERROR(T19*'Inputs & Assumptions'!$Q$40,"--") -> 79081.7 | AE19: =IFERROR(U19*'Inputs & Assumptions'!$Q$41,"--") -> 5280 | AF19: =IFERROR(V19*'Inputs & Assumptions'!$Q$42,"--") -> 39605 | AG19: =IFERROR(W19*'Inputs & Assumptions'!$Q$43,"--") -> 1467823.895 | AH19: =IFERROR(X19*'Inputs & Assumptions'!$Q$44,"--") -> 186301.2 | AI19: =IFERROR(Y19*'Inputs & Assumptions'!$Q$45,"--") -> 0 | AJ19: =IFERROR(Z19*'Inputs & Assumptions'!$Q$46,"--") -> 35194.23 | AK19: =IFERROR(AA19*'Inputs & Assumptions'!$Q$47,"--") -> 207491 | AL19: =IFERROR(AB19*'Inputs & Assumptions'!$Q$48,"--") -> 604517 | AM19: =IFERROR(AC19*'Inputs & Assumptions'!$Q$49,"--") -> 82320
A20: 0402 | B20: Audubon Park Borough | C20: Camden | D20: 3400702230 | E20: 17 | F20: =VLOOKUP(A20,'[1]Municipal Tax Summary'!$A$3:$AN$566,4,FALSE) -> 20700000 | G20: =VLOOKUP(A20,'[1]Municipal Tax Summary'!$A$3:$AN$566,17,FALSE) -> 974000 | H20: 4.70531401 | I20: 63851.599 | J20: 96.27369972 | K20: =VLOOKUP(A20,'[1]Municipal Tax Summary'!$A$3:$AN$566,29,FALSE) -> 6.917397198 | L20: =VLOOKUP(A20,'[1]Municipal Tax Summary'!$A$3:$AN$566,9,FALSE) -> 125176.22 | M20: =VLOOKUP(A20,'[1]Municipal Tax Summary'!$A$3:$AN$566,13,FALSE) -> 332725 | N20: =VLOOKUP(A20,'[1]Municipal Tax Summary'!$A$3:$AN$566,18,FALSE) -> 1431901.22 | O20: 0.6802145193 | P20: 0.0874195917 | Q20: 0.232365889 | R20: 1229 | S20: 51.95410822 | T20: 145166.94 | U20: 0 | V20: 1500 | W20: 34202.02 | X20: 97000 | Y20: 9030 | Z20: 16500 | AA20: 0 | AB20: 38461.79 | AC20: 0 | AD20: =IFERROR(T20*'Inputs & Assumptions'!$Q$40,"--") -> 14516.694 | AE20: =IFERROR(U20*'Inputs & Assumptions'!$Q$41,"--") -> 0 | AF20: =IFERROR(V20*'Inputs & Assumptions'!$Q$42,"--") -> 750 | AG20: =IFERROR(W20*'Inputs & Assumptions'!$Q$43,"--") -> 17101.01 | AH20: =IFERROR(X20*'Inputs & Assumptions'!$Q$44,"--") -> 9700 | AI20: =IFERROR(Y20*'Inputs & Assumptions'!$Q$45,"--") -> 903 | AJ20: =IFERROR(Z20*'Inputs & Assumptions'!$Q$46,"--") -> 1650 | AK20: =IFERROR(AA20*'Inputs & Assumptions'!$Q$47,"--") -> 0 | AL20: =IFERROR(AB20*'Inputs & Assumptions'!$Q$48,"--") -> 19230.895 | AM20: =IFERROR(AC20*'Inputs & Assumptions'!$Q$49,"--") -> 0
A21: 0501 | B21: Avalon Borough | C21: Cape May | D21: 3400902320 | E21: 18 | F21: =VLOOKUP(A21,'[1]Municipal Tax Summary'!$A$3:$AN$566,4,FALSE) -> 10055189466 | G21: =VLOOKUP(A21,'[1]Municipal Tax Summary'!$A$3:$AN$566,17,FALSE) -> 26434688 | H21: 0.2628959712 | I21: 5267172.8 | J21: 2732.755824 | K21: =VLOOKUP(A21,'[1]Municipal Tax Summary'!$A$3:$AN$566,29,FALSE) -> 0.6072147124 | L21: =VLOOKUP(A21,'[1]Municipal Tax Summary'!$A$3:$AN$566,9,FALSE) -> 31450230.8 | M21: =VLOOKUP(A21,'[1]Municipal Tax Summary'!$A$3:$AN$566,13,FALSE) -> 3171671 | N21: =VLOOKUP(A21,'[1]Municipal Tax Summary'!$A$3:$AN$566,18,FALSE) -> 61056589.8 | O21: 0.432953889 | P21: 0.5150996953 | Q21: 0.05194641578 | R21: 2869 | S21: 1835.89153 | T21: 2701103 | U21: 73423 | V21: 252435 | W21: 4701331 | X21: 5564163 | Y21: 56650 | Z21: 5774689 | AA21: 305000 | AB21: 2229999 | AC21: 211575 | AD21: =IFERROR(T21*'Inputs & Assumptions'!$Q$40,"--") -> 270110.3 | AE21: =IFERROR(U21*'Inputs & Assumptions'!$Q$41,"--") -> 7342.3 | AF21: =IFERROR(V21*'Inputs & Assumptions'!$Q$42,"--") -> 126217.5 | AG21: =IFERROR(W21*'Inputs & Assumptions'!$Q$43,"--") -> 2350665.5 | AH21: =IFERROR(X21*'Inputs & Assumptions'!$Q$44,"--") -> 556416.3 | AI21: =IFERROR(Y21*'Inputs & Assumptions'!$Q$45,"--") -> 5665 | AJ21: =IFERROR(Z21*'Inputs & Assumptions'!$Q$46,"--") -> 577468.9 | AK21: =IFERROR(AA21*'Inputs & Assumptions'!$Q$47,"--") -> 152500 | AL21: =IFERROR(AB21*'Inputs & Assumptions'!$Q$48,"--") -> 1114999.5 | AM21: =IFERROR(AC21*'Inputs & Assumptions'!$Q$49,"--") -> 105787.5
A22: 1305 | B22: Avon-by-the-Sea Borough | C22: Monmouth | D22: 3402502440 | E22: 19 | F22: =VLOOKUP(A22,'[1]Municipal Tax Summary'!$A$3:$AN$566,4,FALSE) -> 1401109500 | G22: =VLOOKUP(A22,'[1]Municipal Tax Summary'!$A$3:$AN$566,17,FALSE) -> 4398678.74 | H22: 0.3139425391 | I22: 1879584.734 | J22: 272.3530149 | K22: =VLOOKUP(A22,'[1]Municipal Tax Summary'!$A$3:$AN$566,29,FALSE) -> 0.9220682088 | L22: =VLOOKUP(A22,'[1]Municipal Tax Summary'!$A$3:$AN$566,9,FALSE) -> 3873170.53 | M22: =VLOOKUP(A22,'[1]Municipal Tax Summary'!$A$3:$AN$566,13,FALSE) -> 4647336 | N22: =VLOOKUP(A22,'[1]Municipal Tax Summary'!$A$3:$AN$566,18,FALSE) -> 12919185.27 | O22: 0.3404764811 | P22: 0.299799906 | Q22: 0.3597236128 | R22: 2392 | S22: 785.7795711 | T22: 1659100 | U22: 22500 | V22: 174645 | W22: 1886685.46 | X22: 1213542.95 | Y22: 7500 | Z22: 599992.74 | AA22: 135000 | AB22: 839311.87 | AC22: 23000 | AD22: =IFERROR(T22*'Inputs & Assumptions'!$Q$40,"--") -> 165910 | AE22: =IFERROR(U22*'Inputs & Assumptions'!$Q$41,"--") -> 2250 | AF22: =IFERROR(V22*'Inputs & Assumptions'!$Q$42,"--") -> 87322.5 | AG22: =IFERROR(W22*'Inputs & Assumptions'!$Q$43,"--") -> 943342.73 | AH22: =IFERROR(X22*'Inputs & Assumptions'!$Q$44,"--") -> 121354.295 | AI22: =IFERROR(Y22*'Inputs & Assumptions'!$Q$45,"--") -> 750 | AJ22: =IFERROR(Z22*'Inputs & Assumptions'!$Q$46,"--") -> 59999.274 | AK22: =IFERROR(AA22*'Inputs & Assumptions'!$Q$47,"--") -> 67500 | AL22: =IFERROR(AB22*'Inputs & Assumptions'!$Q$48,"--") -> 419655.935 | AM22: =IFERROR(AC22*'Inputs & Assumptions'!$Q$49,"--") -> 11500
A23: 1501 | B23: Barnegat Light Borough | C23: Ocean | D23: 3402903130 | E23: 20 | F23: =VLOOKUP(A23,'[1]Municipal Tax Summary'!$A$3:$AN$566,4,FALSE) -> 1078702600 | G23: =VLOOKUP(A23,'[1]Municipal Tax Summary'!$A$3:$AN$566,17,FALSE) -> 2894913.39 | H23: 0.2683699279 | I23: 590862.456 | J23: 531.7253423 | K23: =VLOOKUP(A23,'[1]Municipal Tax Summary'!$A$3:$AN$566,29,FALSE) -> 1.106072939 | L23: =VLOOKUP(A23,'[1]Municipal Tax Summary'!$A$3:$AN$566,9,FALSE) -> 6431353.16 | M23: =VLOOKUP(A23,'[1]Municipal Tax Summary'!$A$3:$AN$566,13,FALSE) -> 2604971 | N23: =VLOOKUP(A23,'[1]Municipal Tax Summary'!$A$3:$AN$566,18,FALSE) -> 11931237.55 | O23: 0.2426331198 | P23: 0.5390348766 | Q23: 0.2183320036 | R23: 783 | S23: 754.6136092 | T23: 2529154.56 | U23: 40750 | V23: 0 | W23: 93000 | X23: 242500 | Y23: 12600 | Z23: 0 | AA23: 408500 | AB23: 115224 | AC23: 0 | AD23: =IFERROR(T23*'Inputs & Assumptions'!$Q$40,"--") -> 252915.456 | AE23: =IFERROR(U23*'Inputs & Assumptions'!$Q$41,"--") -> 4075 | AF23: =IFERROR(V23*'Inputs & Assumptions'!$Q$42,"--") -> 0 | AG23: =IFERROR(W23*'Inputs & Assumptions'!$Q$43,"--") -> 46500 | AH23: =IFERROR(X23*'Inputs & Assumptions'!$Q$44,"--") -> 24250 | AI23: =IFERROR(Y23*'Inputs & Assumptions'!$Q$45,"--") -> 1260 | AJ23: =IFERROR(Z23*'Inputs & Assumptions'!$Q$46,"--") -> 0 | AK23: =IFERROR(AA23*'Inputs & Assumptions'!$Q$47,"--") -> 204250 | AL23: =IFERROR(AB23*'Inputs & Assumptions'!$Q$48,"--") -> 57612 | AM23: =IFERROR(AC23*'Inputs & Assumptions'!$Q$49,"--") -> 0
A24: 1533 | B24: Barnegat Township | C24: Ocean | D24: 3402903050 | E24: 21 | F24: =VLOOKUP(A24,'[1]Municipal Tax Summary'!$A$3:$AN$566,4,FALSE) -> 2724679100 | G24: =VLOOKUP(A24,'[1]Municipal Tax Summary'!$A$3:$AN$566,17,FALSE) -> 27052107.85 | H24: 0.9928548228 | I24: 9933178.73 | J24: 21912.95004 | K24: =VLOOKUP(A24,'[1]Municipal Tax Summary'!$A$3:$AN$566,29,FALSE) -> 3.082095776 | L24: =VLOOKUP(A24,'[1]Municipal Tax Summary'!$A$3:$AN$566,9,FALSE) -> 15310056.6 | M24: =VLOOKUP(A24,'[1]Municipal Tax Summary'!$A$3:$AN$566,13,FALSE) -> 41615055 | N24: =VLOOKUP(A24,'[1]Municipal Tax Summary'!$A$3:$AN$566,18,FALSE) -> 83977219.45 | O24: 0.3221362654 | P24: 0.182312021 | Q24: 0.4955517136 | R24: 27678 | S24: 358.883544 | T24: 9378250 | U24: 193500 | V24: 1210425 | W24: 9720847.46 | X24: 4681200 | Y24: 57850 | Z24: 0 | AA24: 965000 | AB24: 4770925 | AC24: 337000 | AD24: =IFERROR(T24*'Inputs & Assumptions'!$Q$40,"--") -> 937825 | AE24: =IFERROR(U24*'Inputs & Assumptions'!$Q$41,"--") -> 19350 | AF24: =IFERROR(V24*'Inputs & Assumptions'!$Q$42,"--") -> 605212.5 | AG24: =IFERROR(W24*'Inputs & Assumptions'!$Q$43,"--") -> 4860423.73 | AH24: =IFERROR(X24*'Inputs & Assumptions'!$Q$44,"--") -> 468120 | AI24: =IFERROR(Y24*'Inputs & Assumptions'!$Q$45,"--") -> 5785 | AJ24: =IFERROR(Z24*'Inputs & Assumptions'!$Q$46,"--") -> 0 | AK24: =IFERROR(AA24*'Inputs & Assumptions'!$Q$47,"--") -> 482500 | AL24: =IFERROR(AB24*'Inputs & Assumptions'!$Q$48,"--") -> 2385462.5 | AM24: =IFERROR(AC24*'Inputs & Assumptions'!$Q$49,"--") -> 168500
A25: 0403 | B25: Barrington Borough | C25: Camden | D25: 3400703250 | E25: 22 | F25: =VLOOKUP(A25,'[1]Municipal Tax Summary'!$A$3:$AN$566,4,FALSE) -> 496367060 | G25: =VLOOKUP(A25,'[1]Municipal Tax Summary'!$A$3:$AN$566,17,FALSE) -> 6961401.26 | H25: 1.402470434 | I25: 2462033.3 | J25: 1011.980137 | K25: =VLOOKUP(A25,'[1]Municipal Tax Summary'!$A$3:$AN$566,29,FALSE) -> 4.998796461 | L25: =VLOOKUP(A25,'[1]Municipal Tax Summary'!$A$3:$AN$566,9,FALSE) -> 4947714.77 | M25: =VLOOKUP(A25,'[1]Municipal Tax Summary'!$A$3:$AN$566,13,FALSE) -> 12903263 | N25: =VLOOKUP(A25,'[1]Municipal Tax Summary'!$A$3:$AN$566,18,FALSE) -> 24812379.03 | O25: 0.2805616201 | P25: 0.1994050939 | Q25: 0.520033286 | R25: 9301 | S25: 264.7063004 | T25: 887095.5 | U25: 25125 | V25: 0 | W25: 2530064.07 | X25: 1598586.4 | Y25: 25850 | Z25: 0 | AA25: 718102 | AB25: 1041569.15 | AC25: 127000 | AD25: =IFERROR(T25*'Inputs & Assumptions'!$Q$40,"--") -> 88709.55 | AE25: =IFERROR(U25*'Inputs & Assumptions'!$Q$41,"--") -> 2512.5 | AF25: =IFERROR(V25*'Inputs & Assumptions'!$Q$42,"--") -> 0 | AG25: =IFERROR(W25*'Inputs & Assumptions'!$Q$43,"--") -> 1265032.035 | AH25: =IFERROR(X25*'Inputs & Assumptions'!$Q$44,"--") -> 159858.64 | AI25: =IFERROR(Y25*'Inputs & Assumptions'!$Q$45,"--") -> 2585 | AJ25: =IFERROR(Z25*'Inputs & Assumptions'!$Q$46,"--") -> 0 | AK25: =IFERROR(AA25*'Inputs & Assumptions'!$Q$47,"--") -> 359051 | AL25: =IFERROR(AB25*'Inputs & Assumptions'!$Q$48,"--") -> 520784.575 | AM25: =IFERROR(AC25*'Inputs & Assumptions'!$Q$49,"--") -> 63500
A26: 0301 | B26: Bass River Township | C26: Burlington | D26: 3400503370 | E26: 23 | F26: =VLOOKUP(A26,'[1]Municipal Tax Summary'!$A$3:$AN$566,4,FALSE) -> 176372071 | G26: =VLOOKUP(A26,'[1]Municipal Tax Summary'!$A$3:$AN$566,17,FALSE) -> 692459 | H26: 0.392612615 | I26: 243268.1 | J26: 48079.38726 | K26: =VLOOKUP(A26,'[1]Municipal Tax Summary'!$A$3:$AN$566,29,FALSE) -> 2.236174576 | L26: =VLOOKUP(A26,'[1]Municipal Tax Summary'!$A$3:$AN$566,9,FALSE) -> 869672.41 | M26: =VLOOKUP(A26,'[1]Municipal Tax Summary'!$A$3:$AN$566,13,FALSE) -> 2381856 | N26: =VLOOKUP(A26,'[1]Municipal Tax Summary'!$A$3:$AN$566,18,FALSE) -> 3943987.41 | O26: 0.1755733292 | P26: 0.2205058788 | Q26: 0.6039207919 | R26: 2442 | S26: 99.61838657 | T26: 365200 | U26: 41300 | V26: 6900 | W26: 68200 | X26: 372416 | Y26: 6500 | Z26: 0 | AA26: 5300 | AB26: 67053 | AC26: 182000 | AD26: =IFERROR(T26*'Inputs & Assumptions'!$Q$40,"--") -> 36520 | AE26: =IFERROR(U26*'Inputs & Assumptions'!$Q$41,"--") -> 4130 | AF26: =IFERROR(V26*'Inputs & Assumptions'!$Q$42,"--") -> 3450 | AG26: =IFERROR(W26*'Inputs & Assumptions'!$Q$43,"--") -> 34100 | AH26: =IFERROR(X26*'Inputs & Assumptions'!$Q$44,"--") -> 37241.6 | AI26: =IFERROR(Y26*'Inputs & Assumptions'!$Q$45,"--") -> 650 | AJ26: =IFERROR(Z26*'Inputs & Assumptions'!$Q$46,"--") -> 0 | AK26: =IFERROR(AA26*'Inputs & Assumptions'!$Q$47,"--") -> 2650 | AL26: =IFERROR(AB26*'Inputs & Assumptions'!$Q$48,"--") -> 33526.5 | AM26: =IFERROR(AC26*'Inputs & Assumptions'!$Q$49,"--") -> 91000
A27: 1502 | B27: Bay Head Borough | C27: Ocean | D27: 3402903520 | E27: 24 | F27: =VLOOKUP(A27,'[1]Municipal Tax Summary'!$A$3:$AN$566,4,FALSE) -> 1683567600 | G27: =VLOOKUP(A27,'[1]Municipal Tax Summary'!$A$3:$AN$566,17,FALSE) -> 4664242.93 | H27: 0.2770451825 | I27: 1604288.21 | J27: 374.7195895 | K27: =VLOOKUP(A27,'[1]Municipal Tax Summary'!$A$3:$AN$566,29,FALSE) -> 1.104360144 | L27: =VLOOKUP(A27,'[1]Municipal Tax Summary'!$A$3:$AN$566,9,FALSE) -> 9695490.65 | M27: =VLOOKUP(A27,'[1]Municipal Tax Summary'!$A$3:$AN$566,13,FALSE) -> 4232916 | N27: =VLOOKUP(A27,'[1]Municipal Tax Summary'!$A$3:$AN$566,18,FALSE) -> 18592649.58 | O27: 0.2508648867 | P27: 0.5214690143 | Q27: 0.227666099 | R27: 1768 | S27: 907.4028337 | T27: 685351 | U27: 25200 | V27: 170100 | W27: 1738021.22 | X27: 365000 | Y27: 9305 | Z27: 0 | AA27: 352500 | AB27: 677484 | AC27: 53500 | AD27: =IFERROR(T27*'Inputs & Assumptions'!$Q$40,"--") -> 68535.1 | AE27: =IFERROR(U27*'Inputs & Assumptions'!$Q$41,"--") -> 2520 | AF27: =IFERROR(V27*'Inputs & Assumptions'!$Q$42,"--") -> 85050 | AG27: =IFERROR(W27*'Inputs & Assumptions'!$Q$43,"--") -> 869010.61 | AH27: =IFERROR(X27*'Inputs & Assumptions'!$Q$44,"--") -> 36500 | AI27: =IFERROR(Y27*'Inputs & Assumptions'!$Q$45,"--") -> 930.5 | AJ27: =IFERROR(Z27*'Inputs & Assumptions'!$Q$46,"--") -> 0 | AK27: =IFERROR(AA27*'Inputs & Assumptions'!$Q$47,"--") -> 176250 | AL27: =IFERROR(AB27*'Inputs & Assumptions'!$Q$48,"--") -> 338742 | AM27: =IFERROR(AC27*'Inputs & Assumptions'!$Q$49,"--") -> 26750
A28: 0901 | B28: Bayonne City | C28: Hudson | D28: 3401703580 | E28: 25 | F28: =VLOOKUP(A28,'[1]Municipal Tax Summary'!$A$3:$AN$566,4,FALSE) -> 7576335100 | G28: =VLOOKUP(A28,'[1]Municipal Tax Summary'!$A$3:$AN$566,17,FALSE) -> 98147941.56 | H28: 1.295454072 | I28: 41267093.55 | J28: 3725.750369 | K28: =VLOOKUP(A28,'[1]Municipal Tax Summary'!$A$3:$AN$566,29,FALSE) -> 2.8796097 | L28: =VLOOKUP(A28,'[1]Municipal Tax Summary'!$A$3:$AN$566,9,FALSE) -> 38432581.41 | M28: =VLOOKUP(A28,'[1]Municipal Tax Summary'!$A$3:$AN$566,13,FALSE) -> 81588357.51 | N28: =VLOOKUP(A28,'[1]Municipal Tax Summary'!$A$3:$AN$566,18,FALSE) -> 218168880.5 | O28: 0.4498714085 | P28: 0.1761597773 | Q28: 0.3739688141 | R28: 80123 | S28: 515.046785 | T28: 6786100 | U28: 1065000 | V28: 0 | W28: 51512626.96 | X28: 9747931.13 | Y28: 3224424.64 | Z28: 3613409.69 | AA28: 3900000 | AB28: 20929187.05 | AC28: 1305000 | AD28: =IFERROR(T28*'Inputs & Assumptions'!$Q$40,"--") -> 678610 | AE28: =IFERROR(U28*'Inputs & Assumptions'!$Q$41,"--") -> 106500 | AF28: =IFERROR(V28*'Inputs & Assumptions'!$Q$42,"--") -> 0 | AG28: =IFERROR(W28*'Inputs & Assumptions'!$Q$43,"--") -> 25756313.48 | AH28: =IFERROR(X28*'Inputs & Assumptions'!$Q$44,"--") -> 974793.113 | AI28: =IFERROR(Y28*'Inputs & Assumptions'!$Q$45,"--") -> 322442.464 | AJ28: =IFERROR(Z28*'Inputs & Assumptions'!$Q$46,"--") -> 361340.969 | AK28: =IFERROR(AA28*'Inputs & Assumptions'!$Q$47,"--") -> 1950000 | AL28: =IFERROR(AB28*'Inputs & Assumptions'!$Q$48,"--") -> 10464593.53 | AM28: =IFERROR(AC28*'Inputs & Assumptions'!$Q$49,"--") -> 652500
A29: 1503 | B29: Beach Haven Borough | C29: Ocean | D29: 3402903940 | E29: 26 | F29: =VLOOKUP(A29,'[1]Municipal Tax Summary'!$A$3:$AN$566,4,FALSE) -> 2208189100 | G29: =VLOOKUP(A29,'[1]Municipal Tax Summary'!$A$3:$AN$566,17,FALSE) -> 10695483.82 | H29: 0.4843554304 | I29: 3085211.365 | J29: 626.7986046 | K29: =VLOOKUP(A29,'[1]Municipal Tax Summary'!$A$3:$AN$566,29,FALSE) -> 1.425778028 | L29: =VLOOKUP(A29,'[1]Municipal Tax Summary'!$A$3:$AN$566,9,FALSE) -> 12028514.19 | M29: =VLOOKUP(A29,'[1]Municipal Tax Summary'!$A$3:$AN$566,13,FALSE) -> 8759877 | N29: =VLOOKUP(A29,'[1]Municipal Tax Summary'!$A$3:$AN$566,18,FALSE) -> 31483875.01 | O29: 0.3397130695 | P29: 0.382053168 | Q29: 0.2782337624 | R29: 1713 | S29: 1801.057423 | T29: 3830675 | U29: 92100 | V29: 205250 | W29: 2776137.58 | X29: 1712776.82 | Y29: 105000 | Z29: 1354843.93 | AA29: 240000 | AB29: 1412531 | AC29: 117425 | AD29: =IFERROR(T29*'Inputs & Assumptions'!$Q$40,"--") -> 383067.5 | AE29: =IFERROR(U29*'Inputs & Assumptions'!$Q$41,"--") -> 9210 | AF29: =IFERROR(V29*'Inputs & Assumptions'!$Q$42,"--") -> 102625 | AG29: =IFERROR(W29*'Inputs & Assumptions'!$Q$43,"--") -> 1388068.79 | AH29: =IFERROR(X29*'Inputs & Assumptions'!$Q$44,"--") -> 171277.682 | AI29: =IFERROR(Y29*'Inputs & Assumptions'!$Q$45,"--") -> 10500 | AJ29: =IFERROR(Z29*'Inputs & Assumptions'!$Q$46,"--") -> 135484.393 | AK29: =IFERROR(AA29*'Inputs & Assumptions'!$Q$47,"--") -> 120000 | AL29: =IFERROR(AB29*'Inputs & Assumptions'!$Q$48,"--") -> 706265.5 | AM29: =IFERROR(AC29*'Inputs & Assumptions'!$Q$49,"--") -> 58712.5
A30: 1504 | B30: Beachwood Borough | C30: Ocean | D30: 3402904180 | E30: 27 | F30: =VLOOKUP(A30,'[1]Municipal Tax Summary'!$A$3:$AN$566,4,FALSE) -> 831369900 | G30: =VLOOKUP(A30,'[1]Municipal Tax Summary'!$A$3:$AN$566,17,FALSE) -> 9250871.34 | H30: 1.112726277 | I30: 3106490.582 | J30: 1768.374589 | K30: =VLOOKUP(A30,'[1]Municipal Tax Summary'!$A$3:$AN$566,29,FALSE) -> 3.186902941 | L30: =VLOOKUP(A30,'[1]Municipal Tax Summary'!$A$3:$AN$566,9,FALSE) -> 4989416.45 | M30: =VLOOKUP(A30,'[1]Municipal Tax Summary'!$A$3:$AN$566,13,FALSE) -> 12254664 | N30: =VLOOKUP(A30,'[1]Municipal Tax Summary'!$A$3:$AN$566,18,FALSE) -> 26494951.79 | O30: 0.3491559982 | P30: 0.1883157399 | Q30: 0.4625282619 | R30: 11678 | S30: 266.0122095 | T30: 994873.13 | U30: 50549 | V30: 152150 | W30: 3331310.35 | X30: 1702544.49 | Y30: 20550 | Z30: 0 | AA30: 607896 | AB30: 1353356.86 | AC30: 214564.63 | AD30: =IFERROR(T30*'Inputs & Assumptions'!$Q$40,"--") -> 99487.313 | AE30: =IFERROR(U30*'Inputs & Assumptions'!$Q$41,"--") -> 5054.9 | AF30: =IFERROR(V30*'Inputs & Assumptions'!$Q$42,"--") -> 76075 | AG30: =IFERROR(W30*'Inputs & Assumptions'!$Q$43,"--") -> 1665655.175 | AH30: =IFERROR(X30*'Inputs & Assumptions'!$Q$44,"--") -> 170254.449 | AI30: =IFERROR(Y30*'Inputs & Assumptions'!$Q$45,"--") -> 2055 | AJ30: =IFERROR(Z30*'Inputs & Assumptions'!$Q$46,"--") -> 0 | AK30: =IFERROR(AA30*'Inputs & Assumptions'!$Q$47,"--") -> 303948 | AL30: =IFERROR(AB30*'Inputs & Assumptions'!$Q$48,"--") -> 676678.43 | AM30: =IFERROR(AC30*'Inputs & Assumptions'!$Q$49,"--") -> 107282.315
A31: 1801 | B31: Bedminster Township | C31: Somerset | D31: 3403504450 | E31: 28 | F31: =VLOOKUP(A31,'[1]Municipal Tax Summary'!$A$3:$AN$566,4,FALSE) -> 2965093600 | G31: =VLOOKUP(A31,'[1]Municipal Tax Summary'!$A$3:$AN$566,17,FALSE) -> 8449115.24 | H31: 0.2849527327 | I31: 2706053.178 | J31: 16718.59146 | K31: =VLOOKUP(A31,'[1]Municipal Tax Summary'!$A$3:$AN$566,29,FALSE) -> 1.203892276 | L31: =VLOOKUP(A31,'[1]Municipal Tax Summary'!$A$3:$AN$566,9,FALSE) -> 8920031.6 | M31: =VLOOKUP(A31,'[1]Municipal Tax Summary'!$A$3:$AN$566,13,FALSE) -> 18327386 | N31: =VLOOKUP(A31,'[1]Municipal Tax Summary'!$A$3:$AN$566,18,FALSE) -> 35696532.84 | O31: 0.2366928821 | P31: 0.2498850978 | Q31: 0.5134220201 | R31: 12600 | S31: 214.7661252 | T31: 1365097 | U31: 95981 | V31: 301590 | W31: 2976536 | X31: 1476405 | Y31: 134494.12 | Z31: 913244.66 | AA31: 0 | AB31: 1264651 | AC31: 72285 | AD31: =IFERROR(T31*'Inputs & Assumptions'!$Q$40,"--") -> 136509.7 | AE31: =IFERROR(U31*'Inputs & Assumptions'!$Q$41,"--") -> 9598.1 | AF31: =IFERROR(V31*'Inputs & Assumptions'!$Q$42,"--") -> 150795 | AG31: =IFERROR(W31*'Inputs & Assumptions'!$Q$43,"--") -> 1488268 | AH31: =IFERROR(X31*'Inputs & Assumptions'!$Q$44,"--") -> 147640.5 | AI31: =IFERROR(Y31*'Inputs & Assumptions'!$Q$45,"--") -> 13449.412 | AJ31: =IFERROR(Z31*'Inputs & Assumptions'!$Q$46,"--") -> 91324.466 | AK31: =IFERROR(AA31*'Inputs & Assumptions'!$Q$47,"--") -> 0 | AL31: =IFERROR(AB31*'Inputs & Assumptions'!$Q$48,"--") -> 632325.5 | AM31: =IFERROR(AC31*'Inputs & Assumptions'!$Q$49,"--") -> 36142.5
A32: 0701 | B32: Belleville Township | C32: Essex | D32: 3401304695 | E32: 29 | F32: =VLOOKUP(A32,'[1]Municipal Tax Summary'!$A$3:$AN$566,4,FALSE) -> 3114054400 | G32: =VLOOKUP(A32,'[1]Municipal Tax Summary'!$A$3:$AN$566,17,FALSE) -> 61141233.39 | H32: 1.963396445 | I32: 21151857.64 | J32: 2109.329219 | K32: =VLOOKUP(A32,'[1]Municipal Tax Summary'!$A$3:$AN$566,29,FALSE) -> 4.156414089 | L32: =VLOOKUP(A32,'[1]Municipal Tax Summary'!$A$3:$AN$566,9,FALSE) -> 16841591.42 | M32: =VLOOKUP(A32,'[1]Municipal Tax Summary'!$A$3:$AN$566,13,FALSE) -> 51450171 | N32: =VLOOKUP(A32,'[1]Municipal Tax Summary'!$A$3:$AN$566,18,FALSE) -> 129432995.8 | O32: 0.4723774877 | P32: 0.1301182231 | Q32: 0.3975042892 | R32: 43767 | S32: 483.2832416 | T32: 5938000 | U32: 152500 | V32: 1087000 | W32: 24132805.56 | X32: 4191038.99 | Y32: 745000 | Z32: 1589556.12 | AA32: 4150000 | AB32: 10013297 | AC32: 397393.69 | AD32: =IFERROR(T32*'Inputs & Assumptions'!$Q$40,"--") -> 593800 | AE32: =IFERROR(U32*'Inputs & Assumptions'!$Q$41,"--") -> 15250 | AF32: =IFERROR(V32*'Inputs & Assumptions'!$Q$42,"--") -> 543500 | AG32: =IFERROR(W32*'Inputs & Assumptions'!$Q$43,"--") -> 12066402.78 | AH32: =IFERROR(X32*'Inputs & Assumptions'!$Q$44,"--") -> 419103.899 | AI32: =IFERROR(Y32*'Inputs & Assumptions'!$Q$45,"--") -> 74500 | AJ32: =IFERROR(Z32*'Inputs & Assumptions'!$Q$46,"--") -> 158955.612 | AK32: =IFERROR(AA32*'Inputs & Assumptions'!$Q$47,"--") -> 2075000 | AL32: =IFERROR(AB32*'Inputs & Assumptions'!$Q$48,"--") -> 5006648.5 | AM32: =IFERROR(AC32*'Inputs & Assumptions'!$Q$49,"--") -> 198696.845
A33: 0404 | B33: Bellmawr Borough | C33: Camden | D33: 3400704750 | E33: 30 | F33: =VLOOKUP(A33,'[1]Municipal Tax Summary'!$A$3:$AN$566,4,FALSE) -> 830846500 | G33: =VLOOKUP(A33,'[1]Municipal Tax Summary'!$A$3:$AN$566,17,FALSE) -> 10256787.29 | H33: 1.234498465 | I33: 4312013.545 | J33: 1909.949605 | K33: =VLOOKUP(A33,'[1]Municipal Tax Summary'!$A$3:$AN$566,29,FALSE) -> 3.843320902 | L33: =VLOOKUP(A33,'[1]Municipal Tax Summary'!$A$3:$AN$566,9,FALSE) -> 6666370.91 | M33: =VLOOKUP(A33,'[1]Municipal Tax Summary'!$A$3:$AN$566,13,FALSE) -> 15008939 | N33: =VLOOKUP(A33,'[1]Municipal Tax Summary'!$A$3:$AN$566,18,FALSE) -> 31932097.2 | O33: 0.3212061903 | P33: 0.2087670869 | Q33: 0.4700267228 | R33: 16149 | S33: 267.0142761 | T33: 3616470.01 | U33: 28545 | V33: 208500 | W33: 4906220.28 | X33: 2718514.24 | Y33: 78300 | Z33: 0 | AA33: 0 | AB33: 1956580.96 | AC33: 264360 | AD33: =IFERROR(T33*'Inputs & Assumptions'!$Q$40,"--") -> 361647.001 | AE33: =IFERROR(U33*'Inputs & Assumptions'!$Q$41,"--") -> 2854.5 | AF33: =IFERROR(V33*'Inputs & Assumptions'!$Q$42,"--") -> 104250 | AG33: =IFERROR(W33*'Inputs & Assumptions'!$Q$43,"--") -> 2453110.14 | AH33: =IFERROR(X33*'Inputs & Assumptions'!$Q$44,"--") -> 271851.424 | AI33: =IFERROR(Y33*'Inputs & Assumptions'!$Q$45,"--") -> 7830 | AJ33: =IFERROR(Z33*'Inputs & Assumptions'!$Q$46,"--") -> 0 | AK33: =IFERROR(AA33*'Inputs & Assumptions'!$Q$47,"--") -> 0 | AL33: =IFERROR(AB33*'Inputs & Assumptions'!$Q$48,"--") -> 978290.48 | AM33: =IFERROR(AC33*'Inputs & Assumptions'!$Q$49,"--") -> 132180
A34: 1306 | B34: Belmar Borough | C34: Monmouth | D34: 3402504930 | E34: 31 | F34: =VLOOKUP(A34,'[1]Municipal Tax Summary'!$A$3:$AN$566,4,FALSE) -> 1802606200 | G34: =VLOOKUP(A34,'[1]Municipal Tax Summary'!$A$3:$AN$566,17,FALSE) -> 11175756.92 | H34: 0.6199777256 | I34: 5316063.31 | J34: 668.8984253 | K34: =VLOOKUP(A34,'[1]Municipal Tax Summary'!$A$3:$AN$566,29,FALSE) -> 1.569596895 | L34: =VLOOKUP(A34,'[1]Municipal Tax Summary'!$A$3:$AN$566,9,FALSE) -> 6311339.03 | M34: =VLOOKUP(A34,'[1]Municipal Tax Summary'!$A$3:$AN$566,13,FALSE) -> 10806555 | N34: =VLOOKUP(A34,'[1]Municipal Tax Summary'!$A$3:$AN$566,18,FALSE) -> 28293650.95 | O34: 0.394991687 | P34: 0.2230655578 | Q34: 0.3819427553 | R34: 8784 | S34: 605.1984643 | T34: 3037961 | U34: 59000 | V34: 135555 | W34: 5334345 | X34: 1678160 | Y34: 33500 | Z34: 973580 | AA34: 1460580 | AB34: 2321586.42 | AC34: 223620 | AD34: =IFERROR(T34*'Inputs & Assumptions'!$Q$40,"--") -> 303796.1 | AE34: =IFERROR(U34*'Inputs & Assumptions'!$Q$41,"--") -> 5900 | AF34: =IFERROR(V34*'Inputs & Assumptions'!$Q$42,"--") -> 67777.5 | AG34: =IFERROR(W34*'Inputs & Assumptions'!$Q$43,"--") -> 2667172.5 | AH34: =IFERROR(X34*'Inputs & Assumptions'!$Q$44,"--") -> 167816 | AI34: =IFERROR(Y34*'Inputs & Assumptions'!$Q$45,"--") -> 3350 | AJ34: =IFERROR(Z34*'Inputs & Assumptions'!$Q$46,"--") -> 97358 | AK34: =IFERROR(AA34*'Inputs & Assumptions'!$Q$47,"--") -> 730290 | AL34: =IFERROR(AB34*'Inputs & Assumptions'!$Q$48,"--") -> 1160793.21 | AM34: =IFERROR(AC34*'Inputs & Assumptions'!$Q$49,"--") -> 111810
A35: 2103 | B35: Belvidere Town | C35: Warren | D35: 3404104990 | E35: 32 | F35: =VLOOKUP(A35,'[1]Municipal Tax Summary'!$A$3:$AN$566,4,FALSE) -> 248796666 | G35: =VLOOKUP(A35,'[1]Municipal Tax Summary'!$A$3:$AN$566,17,FALSE) -> 2299882.1 | H35: 0.9244022989 | I35: 915771.8 | J35: 927.6435995 | K35: =VLOOKUP(A35,'[1]Municipal Tax Summary'!$A$3:$AN$566,29,FALSE) -> 3.301253474 | L35: =VLOOKUP(A35,'[1]Municipal Tax Summary'!$A$3:$AN$566,9,FALSE) -> 1561296.48 | M35: =VLOOKUP(A35,'[1]Municipal Tax Summary'!$A$3:$AN$566,13,FALSE) -> 4352230 | N35: =VLOOKUP(A35,'[1]Municipal Tax Summary'!$A$3:$AN$566,18,FALSE) -> 8213408.58 | O35: 0.2800155475 | P35: 0.1900911741 | Q35: 0.5298932785 | R35: 3261 | S35: 280.8254523 | T35: 1340810 | U35: 23103 | V35: 38850 | W35: 934751 | X35: 443000 | Y35: 12000 | Z35: 0 | AA35: 1500 | AB35: 413713 | AC35: 78947 | AD35: =IFERROR(T35*'Inputs & Assumptions'!$Q$40,"--") -> 134081 | AE35: =IFERROR(U35*'Inputs & Assumptions'!$Q$41,"--") -> 2310.3 | AF35: =IFERROR(V35*'Inputs & Assumptions'!$Q$42,"--") -> 19425 | AG35: =IFERROR(W35*'Inputs & Assumptions'!$Q$43,"--") -> 467375.5 | AH35: =IFERROR(X35*'Inputs & Assumptions'!$Q$44,"--") -> 44300 | AI35: =IFERROR(Y35*'Inputs & Assumptions'!$Q$45,"--") -> 1200 | AJ35: =IFERROR(Z35*'Inputs & Assumptions'!$Q$46,"--") -> 0 | AK35: =IFERROR(AA35*'Inputs & Assumptions'!$Q$47,"--") -> 750 | AL35: =IFERROR(AB35*'Inputs & Assumptions'!$Q$48,"--") -> 206856.5 | AM35: =IFERROR(AC35*'Inputs & Assumptions'!$Q$49,"--") -> 39473.5
A36: 0203 | B36: Bergenfield Borough | C36: Bergen | D36: 3400305170 | E36: 33 | F36: =VLOOKUP(A36,'[1]Municipal Tax Summary'!$A$3:$AN$566,4,FALSE) -> 2730091830 | G36: =VLOOKUP(A36,'[1]Municipal Tax Summary'!$A$3:$AN$566,17,FALSE) -> 35372562 | H36: 1.295654659 | I36: 9487484.6 | J36: 1858.64363 | K36: =VLOOKUP(A36,'[1]Municipal Tax Summary'!$A$3:$AN$566,29,FALSE) -> 3.737968109 | L36: =VLOOKUP(A36,'[1]Municipal Tax Summary'!$A$3:$AN$566,9,FALSE) -> 10786178.95 | M36: =VLOOKUP(A36,'[1]Municipal Tax Summary'!$A$3:$AN$566,13,FALSE) -> 55891221 | N36: =VLOOKUP(A36,'[1]Municipal Tax Summary'!$A$3:$AN$566,18,FALSE) -> 102049962 | O36: 0.346620041 | P36: 0.1056950806 | Q36: 0.5476848784 | R36: 31136 | S36: 304.7110933 | T36: 2447304 | U36: 53250 | V36: 540542 | W36: 10822407 | X36: 5745234 | Y36: 442693 | Z36: 1649000 | AA36: 1221526 | AB36: 4097173 | AC36: 225825 | AD36: =IFERROR(T36*'Inputs & Assumptions'!$Q$40,"--") -> 244730.4 | AE36: =IFERROR(U36*'Inputs & Assumptions'!$Q$41,"--") -> 5325 | AF36: =IFERROR(V36*'Inputs & Assumptions'!$Q$42,"--") -> 270271 | AG36: =IFERROR(W36*'Inputs & Assumptions'!$Q$43,"--") -> 5411203.5 | AH36: =IFERROR(X36*'Inputs & Assumptions'!$Q$44,"--") -> 574523.4 | AI36: =IFERROR(Y36*'Inputs & Assumptions'!$Q$45,"--") -> 44269.3 | AJ36: =IFERROR(Z36*'Inputs & Assumptions'!$Q$46,"--") -> 164900 | AK36: =IFERROR(AA36*'Inputs & Assumptions'!$Q$47,"--") -> 610763 | AL36: =IFERROR(AB36*'Inputs & Assumptions'!$Q$48,"--") -> 2048586.5 | AM36: =IFERROR(AC36*'Inputs & Assumptions'!$Q$49,"--") -> 112912.5
A37: 2001 | B37: Berkeley Heights Township | C37: Union | D37: 3403905320 | E37: 34 | F37: =VLOOKUP(A37,'[1]Municipal Tax Summary'!$A$3:$AN$566,4,FALSE) -> 1862695565 | G37: =VLOOKUP(A37,'[1]Municipal Tax Summary'!$A$3:$AN$566,17,FALSE) -> 16988186.69 | H37: 0.9120216427 | I37: 4919327.624 | J37: 3981.028409 | K37: =VLOOKUP(A37,'[1]Municipal Tax Summary'!$A$3:$AN$566,29,FALSE) -> 4.400390991 | L37: =VLOOKUP(A37,'[1]Municipal Tax Summary'!$A$3:$AN$566,9,FALSE) -> 16235010.14 | M37: =VLOOKUP(A37,'[1]Municipal Tax Summary'!$A$3:$AN$566,13,FALSE) -> 48742691 | N37: =VLOOKUP(A37,'[1]Municipal Tax Summary'!$A$3:$AN$566,18,FALSE) -> 81965887.83 | O37: 0.2072592287 | P37: 0.1980703262 | Q37: 0.5946704451 | R37: 18129 | S37: 271.3512948 | T37: 2413935 | U37: 232750 | V37: 645800 | W37: 5088290.15 | X37: 4781170.53 | Y37: 47711.17 | Z37: 1472413.79 | AA37: 0 | AB37: 2277769 | AC37: 37200 | AD37: =IFERROR(T37*'Inputs & Assumptions'!$Q$40,"--") -> 241393.5 | AE37: =IFERROR(U37*'Inputs & Assumptions'!$Q$41,"--") -> 23275 | AF37: =IFERROR(V37*'Inputs & Assumptions'!$Q$42,"--") -> 322900 | AG37: =IFERROR(W37*'Inputs & Assumptions'!$Q$43,"--") -> 2544145.075 | AH37: =IFERROR(X37*'Inputs & Assumptions'!$Q$44,"--") -> 478117.053 | AI37: =IFERROR(Y37*'Inputs & Assumptions'!$Q$45,"--") -> 4771.117 | AJ37: =IFERROR(Z37*'Inputs & Assumptions'!$Q$46,"--") -> 147241.379 | AK37: =IFERROR(AA37*'Inputs & Assumptions'!$Q$47,"--") -> 0 | AL37: =IFERROR(AB37*'Inputs & Assumptions'!$Q$48,"--") -> 1138884.5 | AM37: =IFERROR(AC37*'Inputs & Assumptions'!$Q$49,"--") -> 18600
A38: 1505 | B38: Berkeley Township | C38: Ocean | D38: 3402905305 | E38: 35 | F38: =VLOOKUP(A38,'[1]Municipal Tax Summary'!$A$3:$AN$566,4,FALSE) -> 5442518700 | G38: =VLOOKUP(A38,'[1]Municipal Tax Summary'!$A$3:$AN$566,17,FALSE) -> 43251448.52 | H38: 0.7946954508 | I38: 12438400.21 | J38: 27334.15398 | K38: =VLOOKUP(A38,'[1]Municipal Tax Summary'!$A$3:$AN$566,29,FALSE) -> 2.589766795 | L38: =VLOOKUP(A38,'[1]Municipal Tax Summary'!$A$3:$AN$566,9,FALSE) -> 31684420.6 | M38: =VLOOKUP(A38,'[1]Municipal Tax Summary'!$A$3:$AN$566,13,FALSE) -> 66012673 | N38: =VLOOKUP(A38,'[1]Municipal Tax Summary'!$A$3:$AN$566,18,FALSE) -> 140948542.1 | O38: 0.3068598502 | P38: 0.2247942414 | Q38: 0.4683459084 | R38: 48462 | S38: 256.6629567 | T38: 2573200 | U38: 2061300 | V38: 412400 | W38: 13210000 | X38: 6134638.45 | Y38: 138600 | Z38: 0 | AA38: 2350000 | AB38: 6328852.73 | AC38: 394000 | AD38: =IFERROR(T38*'Inputs & Assumptions'!$Q$40,"--") -> 257320 | AE38: =IFERROR(U38*'Inputs & Assumptions'!$Q$41,"--") -> 206130 | AF38: =IFERROR(V38*'Inputs & Assumptions'!$Q$42,"--") -> 206200 | AG38: =IFERROR(W38*'Inputs & Assumptions'!$Q$43,"--") -> 6605000 | AH38: =IFERROR(X38*'Inputs & Assumptions'!$Q$44,"--") -> 613463.845 | AI38: =IFERROR(Y38*'Inputs & Assumptions'!$Q$45,"--") -> 13860 | AJ38: =IFERROR(Z38*'Inputs & Assumptions'!$Q$46,"--") -> 0 | AK38: =IFERROR(AA38*'Inputs & Assumptions'!$Q$47,"--") -> 1175000 | AL38: =IFERROR(AB38*'Inputs & Assumptions'!$Q$48,"--") -> 3164426.365 | AM38: =IFERROR(AC38*'Inputs & Assumptions'!$Q$49,"--") -> 197000
A39: 0405 | B39: Berlin Borough | C39: Camden | D39: 3400705440 | E39: 36 | F39: =VLOOKUP(A39,'[1]Municipal Tax Summary'!$A$3:$AN$566,4,FALSE) -> 807363272 | G39: =VLOOKUP(A39,'[1]Municipal Tax Summary'!$A$3:$AN$566,17,FALSE) -> 7097385.26 | H39: 0.8790820076 | I39: 3098702.072 | J39: 2299.998371 | K39: =VLOOKUP(A39,'[1]Municipal Tax Summary'!$A$3:$AN$566,29,FALSE) -> 3.471385456 | L39: =VLOOKUP(A39,'[1]Municipal Tax Summary'!$A$3:$AN$566,9,FALSE) -> 6289794.94 | M39: =VLOOKUP(A39,'[1]Municipal Tax Summary'!$A$3:$AN$566,13,FALSE) -> 14639511 | N39: =VLOOKUP(A39,'[1]Municipal Tax Summary'!$A$3:$AN$566,18,FALSE) -> 28026691.2 | O39: 0.2532366454 | P39: 0.2244216021 | Q39: 0.5223417526 | R39: 10598 | S39: 292.3855512 | T39: 4687373.45 | U39: 43700 | V39: 0 | W39: 2875843.2 | X39: 1122900 | Y39: 22001 | Z39: 414462.27 | AA39: 460000 | AB39: 1431478.6 | AC39: 171995 | AD39: =IFERROR(T39*'Inputs & Assumptions'!$Q$40,"--") -> 468737.345 | AE39: =IFERROR(U39*'Inputs & Assumptions'!$Q$41,"--") -> 4370 | AF39: =IFERROR(V39*'Inputs & Assumptions'!$Q$42,"--") -> 0 | AG39: =IFERROR(W39*'Inputs & Assumptions'!$Q$43,"--") -> 1437921.6 | AH39: =IFERROR(X39*'Inputs & Assumptions'!$Q$44,"--") -> 112290 | AI39: =IFERROR(Y39*'Inputs & Assumptions'!$Q$45,"--") -> 2200.1 | AJ39: =IFERROR(Z39*'Inputs & Assumptions'!$Q$46,"--") -> 41446.227 | AK39: =IFERROR(AA39*'Inputs & Assumptions'!$Q$47,"--") -> 230000 | AL39: =IFERROR(AB39*'Inputs & Assumptions'!$Q$48,"--") -> 715739.3 | AM39: =IFERROR(AC39*'Inputs & Assumptions'!$Q$49,"--") -> 85997.5
A40: 0406 | B40: Berlin Township | C40: Camden | D40: 3400705470 | E40: 37 | F40: =VLOOKUP(A40,'[1]Municipal Tax Summary'!$A$3:$AN$566,4,FALSE) -> 647655664 | G40: =VLOOKUP(A40,'[1]Municipal Tax Summary'!$A$3:$AN$566,17,FALSE) -> 8602037 | H40: 1.328180618 | I40: 2548688.2 | J40: 2139.126162 | K40: =VLOOKUP(A40,'[1]Municipal Tax Summary'!$A$3:$AN$566,29,FALSE) -> 3.941962759 | L40: =VLOOKUP(A40,'[1]Municipal Tax Summary'!$A$3:$AN$566,9,FALSE) -> 6018385.08 | M40: =VLOOKUP(A40,'[1]Municipal Tax Summary'!$A$3:$AN$566,13,FALSE) -> 10909923 | N40: =VLOOKUP(A40,'[1]Municipal Tax Summary'!$A$3:$AN$566,18,FALSE) -> 25530345.08 | O40: 0.336933832 | P40: 0.2357345763 | Q40: 0.4273315917 | R40: 10045 | S40: 253.7270483 | T40: 896040 | U40: 28360 | V40: 168410 | W40: 2588875 | X40: 2474837 | Y40: 6620 | Z40: 32600 | AA40: 365000 | AB40: 1111050 | AC40: 176350 | AD40: =IFERROR(T40*'Inputs & Assumptions'!$Q$40,"--") -> 89604 | AE40: =IFERROR(U40*'Inputs & Assumptions'!$Q$41,"--") -> 2836 | AF40: =IFERROR(V40*'Inputs & Assumptions'!$Q$42,"--") -> 84205 | AG40: =IFERROR(W40*'Inputs & Assumptions'!$Q$43,"--") -> 1294437.5 | AH40: =IFERROR(X40*'Inputs & Assumptions'!$Q$44,"--") -> 247483.7 | AI40: =IFERROR(Y40*'Inputs & Assumptions'!$Q$45,"--") -> 662 | AJ40: =IFERROR(Z40*'Inputs & Assumptions'!$Q$46,"--") -> 3260 | AK40: =IFERROR(AA40*'Inputs & Assumptions'!$Q$47,"--") -> 182500 | AL40: =IFERROR(AB40*'Inputs & Assumptions'!$Q$48,"--") -> 555525 | AM40: =IFERROR(AC40*'Inputs & Assumptions'!$Q$49,"--") -> 88175
A41: 1802 | B41: Bernards Township | C41: Somerset | D41: 3403505560 | E41: 38 | F41: =VLOOKUP(A41,'[1]Municipal Tax Summary'!$A$3:$AN$566,4,FALSE) -> 9308238700 | G41: =VLOOKUP(A41,'[1]Municipal Tax Summary'!$A$3:$AN$566,17,FALSE) -> 26506267.33 | H41: 0.2847613623 | I41: 7727685.234 | J41: 15488.9432 | K41: =VLOOKUP(A41,'[1]Municipal Tax Summary'!$A$3:$AN$566,29,FALSE) -> 1.687137547 | L41: =VLOOKUP(A41,'[1]Municipal Tax Summary'!$A$3:$AN$566,9,FALSE) -> 28643142.72 | M41: =VLOOKUP(A41,'[1]Municipal Tax Summary'!$A$3:$AN$566,13,FALSE) -> 101893380 | N41: =VLOOKUP(A41,'[1]Municipal Tax Summary'!$A$3:$AN$566,18,FALSE) -> 157042790.1 | O41: 0.1687837265 | P41: 0.1823906893 | Q41: 0.6488255842 | R41: 40823 | S41: 189.2973381 | T41: 5028158 | U41: 653242 | V41: 1373992 | W41: 7320549.25 | X41: 5383090 | Y41: 712257.74 | Z41: 2998768 | AA41: 275444 | AB41: 3530282.07 | AC41: 0 | AD41: =IFERROR(T41*'Inputs & Assumptions'!$Q$40,"--") -> 502815.8 | AE41: =IFERROR(U41*'Inputs & Assumptions'!$Q$41,"--") -> 65324.2 | AF41: =IFERROR(V41*'Inputs & Assumptions'!$Q$42,"--") -> 686996 | AG41: =IFERROR(W41*'Inputs & Assumptions'!$Q$43,"--") -> 3660274.625 | AH41: =IFERROR(X41*'Inputs & Assumptions'!$Q$44,"--") -> 538309 | AI41: =IFERROR(Y41*'Inputs & Assumptions'!$Q$45,"--") -> 71225.774 | AJ41: =IFERROR(Z41*'Inputs & Assumptions'!$Q$46,"--") -> 299876.8 | AK41: =IFERROR(AA41*'Inputs & Assumptions'!$Q$47,"--") -> 137722 | AL41: =IFERROR(AB41*'Inputs & Assumptions'!$Q$48,"--") -> 1765141.035 | AM41: =IFERROR(AC41*'Inputs & Assumptions'!$Q$49,"--") -> 0
A42: 1803 | B42: Bernardsville Borough | C42: Somerset | D42: 3403505590 | E42: 39 | F42: =VLOOKUP(A42,'[1]Municipal Tax Summary'!$A$3:$AN$566,4,FALSE) -> 2817204800 | G42: =VLOOKUP(A42,'[1]Municipal Tax Summary'!$A$3:$AN$566,17,FALSE) -> 14662270.62 | H42: 0.520454552 | I42: 3804262.565 | J42: 8214.734569 | K42: =VLOOKUP(A42,'[1]Municipal Tax Summary'!$A$3:$AN$566,29,FALSE) -> 1.89742752 | L42: =VLOOKUP(A42,'[1]Municipal Tax Summary'!$A$3:$AN$566,9,FALSE) -> 8567132.56 | M42: =VLOOKUP(A42,'[1]Municipal Tax Summary'!$A$3:$AN$566,13,FALSE) -> 30225016 | N42: =VLOOKUP(A42,'[1]Municipal Tax Summary'!$A$3:$AN$566,18,FALSE) -> 53454419.18 | O42: 0.2742948262 | P42: 0.1602698653 | Q42: 0.5654353085 | R42: 10042 | S42: 378.8351489 | T42: 2692950 | U42: 299590 | V42: 207000 | W42: 4166302.13 | X42: 2122400 | Y42: 141600 | Z42: 978000 | AA42: 165200 | AB42: 1823115 | AC42: 0 | AD42: =IFERROR(T42*'Inputs & Assumptions'!$Q$40,"--") -> 269295 | AE42: =IFERROR(U42*'Inputs & Assumptions'!$Q$41,"--") -> 29959 | AF42: =IFERROR(V42*'Inputs & Assumptions'!$Q$42,"--") -> 103500 | AG42: =IFERROR(W42*'Inputs & Assumptions'!$Q$43,"--") -> 2083151.065 | AH42: =IFERROR(X42*'Inputs & Assumptions'!$Q$44,"--") -> 212240 | AI42: =IFERROR(Y42*'Inputs & Assumptions'!$Q$45,"--") -> 14160 | AJ42: =IFERROR(Z42*'Inputs & Assumptions'!$Q$46,"--") -> 97800 | AK42: =IFERROR(AA42*'Inputs & Assumptions'!$Q$47,"--") -> 82600 | AL42: =IFERROR(AB42*'Inputs & Assumptions'!$Q$48,"--") -> 911557.5 | AM42: =IFERROR(AC42*'Inputs & Assumptions'!$Q$49,"--") -> 0
A43: 1002 | B43: Bethlehem Township | C43: Hunterdon | D43: 3401905650 | E43: 40 | F43: =VLOOKUP(A43,'[1]Municipal Tax Summary'!$A$3:$AN$566,4,FALSE) -> 900337400 | G43: =VLOOKUP(A43,'[1]Municipal Tax Summary'!$A$3:$AN$566,17,FALSE) -> 2707068.35 | H43: 0.3006726534 | I43: 424314.08 | J43: 13236.82914 | K43: =VLOOKUP(A43,'[1]Municipal Tax Summary'!$A$3:$AN$566,29,FALSE) -> 2.020289957 | L43: =VLOOKUP(A43,'[1]Municipal Tax Summary'!$A$3:$AN$566,9,FALSE) -> 2844459.72 | M43: =VLOOKUP(A43,'[1]Municipal Tax Summary'!$A$3:$AN$566,13,FALSE) -> 12637898 | N43: =VLOOKUP(A43,'[1]Municipal Tax Summary'!$A$3:$AN$566,18,FALSE) -> 18189426.07 | O43: 0.1488264852 | P43: 0.15637985 | Q43: 0.6947936648 | R43: 4027 | S43: 105.3672908 | T43: 476535.79 | U43: 59700.81 | V43: 0 | W43: 293982.44 | X43: 784332 | Y43: 6500 | Z43: 0 | AA43: 0 | AB43: 173832 | AC43: 115400 | AD43: =IFERROR(T43*'Inputs & Assumptions'!$Q$40,"--") -> 47653.579 | AE43: =IFERROR(U43*'Inputs & Assumptions'!$Q$41,"--") -> 5970.081 | AF43: =IFERROR(V43*'Inputs & Assumptions'!$Q$42,"--") -> 0 | AG43: =IFERROR(W43*'Inputs & Assumptions'!$Q$43,"--") -> 146991.22 | AH43: =IFERROR(X43*'Inputs & Assumptions'!$Q$44,"--") -> 78433.2 | AI43: =IFERROR(Y43*'Inputs & Assumptions'!$Q$45,"--") -> 650 | AJ43: =IFERROR(Z43*'Inputs & Assumptions'!$Q$46,"--") -> 0 | AK43: =IFERROR(AA43*'Inputs & Assumptions'!$Q$47,"--") -> 0 | AL43: =IFERROR(AB43*'Inputs & Assumptions'!$Q$48,"--") -> 86916 | AM43: =IFERROR(AC43*'Inputs & Assumptions'!$Q$49,"--") -> 57700
A44: 0302 | B44: Beverly City | C44: Burlington | D44: 3400505740 | E44: 41 | F44: =VLOOKUP(A44,'[1]Municipal Tax Summary'!$A$3:$AN$566,4,FALSE) -> 123024156 | G44: =VLOOKUP(A44,'[1]Municipal Tax Summary'!$A$3:$AN$566,17,FALSE) -> 2511754.85 | H44: 2.041676149 | I44: 1030416.558 | J44: 346.402807 | K44: =VLOOKUP(A44,'[1]Municipal Tax Summary'!$A$3:$AN$566,29,FALSE) -> 4.956113326 | L44: =VLOOKUP(A44,'[1]Municipal Tax Summary'!$A$3:$AN$566,9,FALSE) -> 666258.74 | M44: =VLOOKUP(A44,'[1]Municipal Tax Summary'!$A$3:$AN$566,13,FALSE) -> 2919203 | N44: =VLOOKUP(A44,'[1]Municipal Tax Summary'!$A$3:$AN$566,18,FALSE) -> 6097216.59 | O44: 0.4119510621 | P44: 0.109272605 | Q44: 0.4787763329 | R44: 2653 | S44: 388.3967426 | T44: 827480.58 | U44: 12700 | V44: 127500 | W44: 1055400 | X44: 332150 | Y44: 8000 | Z44: 2500 | AA44: 118000 | AB44: 406367 | AC44: 117000 | AD44: =IFERROR(T44*'Inputs & Assumptions'!$Q$40,"--") -> 82748.058 | AE44: =IFERROR(U44*'Inputs & Assumptions'!$Q$41,"--") -> 1270 | AF44: =IFERROR(V44*'Inputs & Assumptions'!$Q$42,"--") -> 63750 | AG44: =IFERROR(W44*'Inputs & Assumptions'!$Q$43,"--") -> 527700 | AH44: =IFERROR(X44*'Inputs & Assumptions'!$Q$44,"--") -> 33215 | AI44: =IFERROR(Y44*'Inputs & Assumptions'!$Q$45,"--") -> 800 | AJ44: =IFERROR(Z44*'Inputs & Assumptions'!$Q$46,"--") -> 250 | AK44: =IFERROR(AA44*'Inputs & Assumptions'!$Q$47,"--") -> 59000 | AL44: =IFERROR(AB44*'Inputs & Assumptions'!$Q$48,"--") -> 203183.5 | AM44: =IFERROR(AC44*'Inputs & Assumptions'!$Q$49,"--") -> 58500
A45: 2104 | B45: Blairstown Township | C45: Warren | D45: 3404106160 | E45: 42 | F45: =VLOOKUP(A45,'[1]Municipal Tax Summary'!$A$3:$AN$566,4,FALSE) -> 702000868 | G45: =VLOOKUP(A45,'[1]Municipal Tax Summary'!$A$3:$AN$566,17,FALSE) -> 2093205.08 | H45: 0.2981769931 | I45: 1115685.48 | J45: 19127.53138 | K45: =VLOOKUP(A45,'[1]Municipal Tax Summary'!$A$3:$AN$566,29,FALSE) -> 3.133054912 | L45: =VLOOKUP(A45,'[1]Municipal Tax Summary'!$A$3:$AN$566,9,FALSE) -> 5746639.6 | M45: =VLOOKUP(A45,'[1]Municipal Tax Summary'!$A$3:$AN$566,13,FALSE) -> 14154228 | N45: =VLOOKUP(A45,'[1]Municipal Tax Summary'!$A$3:$AN$566,18,FALSE) -> 21994072.68 | O45: 0.09517132686 | P45: 0.2612812863 | Q45: 0.6435473869 | R45: 7075 | S45: 157.6940608 | T45: 867703 | U45: 52000 | V45: 0 | W45: 1230355.1 | X45: 545902 | Y45: 15001 | Z45: 0 | AA45: 0 | AB45: 639894.66 | AC45: 65000 | AD45: =IFERROR(T45*'Inputs & Assumptions'!$Q$40,"--") -> 86770.3 | AE45: =IFERROR(U45*'Inputs & Assumptions'!$Q$41,"--") -> 5200 | AF45: =IFERROR(V45*'Inputs & Assumptions'!$Q$42,"--") -> 0 | AG45: =IFERROR(W45*'Inputs & Assumptions'!$Q$43,"--") -> 615177.55 | AH45: =IFERROR(X45*'Inputs & Assumptions'!$Q$44,"--") -> 54590.2 | AI45: =IFERROR(Y45*'Inputs & Assumptions'!$Q$45,"--") -> 1500.1 | AJ45: =IFERROR(Z45*'Inputs & Assumptions'!$Q$46,"--") -> 0 | AK45: =IFERROR(AA45*'Inputs & Assumptions'!$Q$47,"--") -> 0 | AL45: =IFERROR(AB45*'Inputs & Assumptions'!$Q$48,"--") -> 319947.33 | AM45: =IFERROR(AC45*'Inputs & Assumptions'!$Q$49,"--") -> 32500
A46: 0702 | B46: Bloomfield Township | C46: Essex | D46: 3401306260 | E46: 43 | F46: =VLOOKUP(A46,'[1]Municipal Tax Summary'!$A$3:$AN$566,4,FALSE) -> 5314118200 | G46: =VLOOKUP(A46,'[1]Municipal Tax Summary'!$A$3:$AN$566,17,FALSE) -> 73550431.13 | H46: 1.384057117 | I46: 27029824.76 | J46: 3415.629289 | K46: =VLOOKUP(A46,'[1]Municipal Tax Summary'!$A$3:$AN$566,29,FALSE) -> 3.488320555 | L46: =VLOOKUP(A46,'[1]Municipal Tax Summary'!$A$3:$AN$566,9,FALSE) -> 27385661.38 | M46: =VLOOKUP(A46,'[1]Municipal Tax Summary'!$A$3:$AN$566,13,FALSE) -> 84437385 | N46: =VLOOKUP(A46,'[1]Municipal Tax Summary'!$A$3:$AN$566,18,FALSE) -> 185373477.5 | O46: 0.396768902 | P46: 0.1477323604 | Q46: 0.4554987377 | R46: 62301 | S46: 433.8586019 | T46: 15189798.55 | U46: 199835 | V46: 934775 | W46: 30406925 | X46: 3361600 | Y46: 2118735 | Z46: 2561016.01 | AA46: 5300000 | AB46: 12033667.6 | AC46: 698085 | AD46: =IFERROR(T46*'Inputs & Assumptions'!$Q$40,"--") -> 1518979.855 | AE46: =IFERROR(U46*'Inputs & Assumptions'!$Q$41,"--") -> 19983.5 | AF46: =IFERROR(V46*'Inputs & Assumptions'!$Q$42,"--") -> 467387.5 | AG46: =IFERROR(W46*'Inputs & Assumptions'!$Q$43,"--") -> 15203462.5 | AH46: =IFERROR(X46*'Inputs & Assumptions'!$Q$44,"--") -> 336160 | AI46: =IFERROR(Y46*'Inputs & Assumptions'!$Q$45,"--") -> 211873.5 | AJ46: =IFERROR(Z46*'Inputs & Assumptions'!$Q$46,"--") -> 256101.601 | AK46: =IFERROR(AA46*'Inputs & Assumptions'!$Q$47,"--") -> 2650000 | AL46: =IFERROR(AB46*'Inputs & Assumptions'!$Q$48,"--") -> 6016833.8 | AM46: =IFERROR(AC46*'Inputs & Assumptions'!$Q$49,"--") -> 349042.5
A47: 1601 | B47: Bloomingdale Borough | C47: Passaic | D47: 3403106340 | E47: 44 | F47: =VLOOKUP(A47,'[1]Municipal Tax Summary'!$A$3:$AN$566,4,FALSE) -> 729422900 | G47: =VLOOKUP(A47,'[1]Municipal Tax Summary'!$A$3:$AN$566,17,FALSE) -> 9401925.56 | H47: 1.288953988 | I47: 3711984.4 | J47: 5632.435713 | K47: =VLOOKUP(A47,'[1]Municipal Tax Summary'!$A$3:$AN$566,29,FALSE) -> 4.717923054 | L47: =VLOOKUP(A47,'[1]Municipal Tax Summary'!$A$3:$AN$566,9,FALSE) -> 5939376.6 | M47: =VLOOKUP(A47,'[1]Municipal Tax Summary'!$A$3:$AN$566,13,FALSE) -> 19072309 | N47: =VLOOKUP(A47,'[1]Municipal Tax Summary'!$A$3:$AN$566,18,FALSE) -> 34413611.16 | O47: 0.2732036901 | P47: 0.1725880081 | Q47: 0.5542083018 | R47: 8339 | S47: 445.1354359 | T47: 4687021 | U47: 0 | V47: 110000 | W47: 3258800 | X47: 708000 | Y47: 182000 | Z47: 410413 | AA47: 781000 | AB47: 1941182 | AC47: 135500 | AD47: =IFERROR(T47*'Inputs & Assumptions'!$Q$40,"--") -> 468702.1 | AE47: =IFERROR(U47*'Inputs & Assumptions'!$Q$41,"--") -> 0 | AF47: =IFERROR(V47*'Inputs & Assumptions'!$Q$42,"--") -> 55000 | AG47: =IFERROR(W47*'Inputs & Assumptions'!$Q$43,"--") -> 1629400 | AH47: =IFERROR(X47*'Inputs & Assumptions'!$Q$44,"--") -> 70800 | AI47: =IFERROR(Y47*'Inputs & Assumptions'!$Q$45,"--") -> 18200 | AJ47: =IFERROR(Z47*'Inputs & Assumptions'!$Q$46,"--") -> 41041.3 | AK47: =IFERROR(AA47*'Inputs & Assumptions'!$Q$47,"--") -> 390500 | AL47: =IFERROR(AB47*'Inputs & Assumptions'!$Q$48,"--") -> 970591 | AM47: =IFERROR(AC47*'Inputs & Assumptions'!$Q$49,"--") -> 67750
A48: 1003 | B48: Bloomsbury Borough | C48: Hunterdon | D48: 3401906370 | E48: 45 | F48: =VLOOKUP(A48,'[1]Municipal Tax Summary'!$A$3:$AN$566,4,FALSE) -> 88610395 | G48: =VLOOKUP(A48,'[1]Municipal Tax Summary'!$A$3:$AN$566,17,FALSE) -> 694593.62 | H48: 0.783873743 | I48: -- | J48: 596.7718536 | K48: =VLOOKUP(A48,'[1]Municipal Tax Summary'!$A$3:$AN$566,29,FALSE) -> 3.666145411 | L48: =VLOOKUP(A48,'[1]Municipal Tax Summary'!$A$3:$AN$566,9,FALSE) -> 499314.31 | M48: =VLOOKUP(A48,'[1]Municipal Tax Summary'!$A$3:$AN$566,13,FALSE) -> 2054678 | N48: =VLOOKUP(A48,'[1]Municipal Tax Summary'!$A$3:$AN$566,18,FALSE) -> 3248585.93 | O48: 0.2138141441 | P48: 0.1537020478 | Q48: 0.6324838081 | R48: 1026 | S48: -- | T48: No data | U48: No data | V48: No data | W48: No data | X48: No data | Y48: No data | Z48: No data | AA48: No data | AB48: No data | AC48: No data | AD48: =IFERROR(T48*'Inputs & Assumptions'!$Q$40,"--") -> -- | AE48: =IFERROR(U48*'Inputs & Assumptions'!$Q$41,"--") -> -- | AF48: =IFERROR(V48*'Inputs & Assumptions'!$Q$42,"--") -> -- | AG48: =IFERROR(W48*'Inputs & Assumptions'!$Q$43,"--") -> -- | AH48: =IFERROR(X48*'Inputs & Assumptions'!$Q$44,"--") -> -- | AI48: =IFERROR(Y48*'Inputs & Assumptions'!$Q$45,"--") -> -- | AJ48: =IFERROR(Z48*'Inputs & Assumptions'!$Q$46,"--") -> -- | AK48: =IFERROR(AA48*'Inputs & Assumptions'!$Q$47,"--") -> -- | AL48: =IFERROR(AB48*'Inputs & Assumptions'!$Q$48,"--") -> -- | AM48: =IFERROR(AC48*'Inputs & Assumptions'!$Q$49,"--") -> --
A49: 0204 | B49: Bogota Borough | C49: Bergen | D49: 3400306490 | E49: 46 | F49: =VLOOKUP(A49,'[1]Municipal Tax Summary'!$A$3:$AN$566,4,FALSE) -> 1226506100 | G49: =VLOOKUP(A49,'[1]Municipal Tax Summary'!$A$3:$AN$566,17,FALSE) -> 10266270 | H49: 0.8370337498 | I49: 2962032.5 | J49: 482.9638103 | K49: =VLOOKUP(A49,'[1]Municipal Tax Summary'!$A$3:$AN$566,29,FALSE) -> 2.397986474 | L49: =VLOOKUP(A49,'[1]Municipal Tax Summary'!$A$3:$AN$566,9,FALSE) -> 2987594.38 | M49: =VLOOKUP(A49,'[1]Municipal Tax Summary'!$A$3:$AN$566,13,FALSE) -> 16157586 | N49: =VLOOKUP(A49,'[1]Municipal Tax Summary'!$A$3:$AN$566,18,FALSE) -> 29411450.38 | O49: 0.3490569104 | P49: 0.1015792945 | Q49: 0.5493637951 | R49: 10124 | S49: 292.5753161 | T49: 1193775 | U49: 11225 | V49: 211950 | W49: 3487836 | X49: 1794369 | Y49: 96866 | Z49: 419715 | AA49: 385000 | AB49: 1136089 | AC49: 0 | AD49: =IFERROR(T49*'Inputs & Assumptions'!$Q$40,"--") -> 119377.5 | AE49: =IFERROR(U49*'Inputs & Assumptions'!$Q$41,"--") -> 1122.5 | AF49: =IFERROR(V49*'Inputs & Assumptions'!$Q$42,"--") -> 105975 | AG49: =IFERROR(W49*'Inputs & Assumptions'!$Q$43,"--") -> 1743918 | AH49: =IFERROR(X49*'Inputs & Assumptions'!$Q$44,"--") -> 179436.9 | AI49: =IFERROR(Y49*'Inputs & Assumptions'!$Q$45,"--") -> 9686.6 | AJ49: =IFERROR(Z49*'Inputs & Assumptions'!$Q$46,"--") -> 41971.5 | AK49: =IFERROR(AA49*'Inputs & Assumptions'!$Q$47,"--") -> 192500 | AL49: =IFERROR(AB49*'Inputs & Assumptions'!$Q$48,"--") -> 568044.5 | AM49: =IFERROR(AC49*'Inputs & Assumptions'!$Q$49,"--") -> 0
A50: 1401 | B50: Boonton Town | C50: Morris | D50: 3402706610 | E50: 47 | F50: =VLOOKUP(A50,'[1]Municipal Tax Summary'!$A$3:$AN$566,4,FALSE) -> 1109026500 | G50: =VLOOKUP(A50,'[1]Municipal Tax Summary'!$A$3:$AN$566,17,FALSE) -> 10593257.38 | H50: 0.955185235 | I50: 4390271.5 | J50: 1494.687947 | K50: =VLOOKUP(A50,'[1]Municipal Tax Summary'!$A$3:$AN$566,29,FALSE) -> 3.477227184 | L50: =VLOOKUP(A50,'[1]Municipal Tax Summary'!$A$3:$AN$566,9,FALSE) -> 3940020.56 | M50: =VLOOKUP(A50,'[1]Municipal Tax Summary'!$A$3:$AN$566,13,FALSE) -> 24030093 | N50: =VLOOKUP(A50,'[1]Municipal Tax Summary'!$A$3:$AN$566,18,FALSE) -> 38563370.94 | O50: 0.2746973909 | P50: 0.1021700247 | Q50: 0.6231325845 | R50: 11389 | S50: 385.4834928 | T50: 1030685 | U50: 175640 | V50: 276860 | W50: 4524655 | X50: 5747616 | Y50: 72800 | Z50: 595509 | AA50: 559500 | AB50: 1684987 | AC50: 210091 | AD50: =IFERROR(T50*'Inputs & Assumptions'!$Q$40,"--") -> 103068.5 | AE50: =IFERROR(U50*'Inputs & Assumptions'!$Q$41,"--") -> 17564 | AF50: =IFERROR(V50*'Inputs & Assumptions'!$Q$42,"--") -> 138430 | AG50: =IFERROR(W50*'Inputs & Assumptions'!$Q$43,"--") -> 2262327.5 | AH50: =IFERROR(X50*'Inputs & Assumptions'!$Q$44,"--") -> 574761.6 | AI50: =IFERROR(Y50*'Inputs & Assumptions'!$Q$45,"--") -> 7280 | AJ50: =IFERROR(Z50*'Inputs & Assumptions'!$Q$46,"--") -> 59550.9 | AK50: =IFERROR(AA50*'Inputs & Assumptions'!$Q$47,"--") -> 279750 | AL50: =IFERROR(AB50*'Inputs & Assumptions'!$Q$48,"--") -> 842493.5 | AM50: =IFERROR(AC50*'Inputs & Assumptions'!$Q$49,"--") -> 105045.5
A51: 1402 | B51: Boonton Township | C51: Morris | D51: 3402706640 | E51: 48 | F51: =VLOOKUP(A51,'[1]Municipal Tax Summary'!$A$3:$AN$566,4,FALSE) -> 873905500 | G51: =VLOOKUP(A51,'[1]Municipal Tax Summary'!$A$3:$AN$566,17,FALSE) -> 4448179 | H51: 0.5090000006 | I51: 1752643.399 | J51: 5203.885721 | K51: =VLOOKUP(A51,'[1]Municipal Tax Summary'!$A$3:$AN$566,29,FALSE) -> 2.537432096 | L51: =VLOOKUP(A51,'[1]Municipal Tax Summary'!$A$3:$AN$566,9,FALSE) -> 2687440.65 | M51: =VLOOKUP(A51,'[1]Municipal Tax Summary'!$A$3:$AN$566,13,FALSE) -> 15039139 | N51: =VLOOKUP(A51,'[1]Municipal Tax Summary'!$A$3:$AN$566,18,FALSE) -> 22174758.65 | O51: 0.2005965012 | P51: 0.1211936821 | Q51: 0.6782098167 | R51: 4964 | S51: 353.0707895 | T51: 682937 | U51: 108313 | V51: 1850 | W51: 2246215.95 | X51: 1214102.24 | Y51: 67162 | Z51: 0 | AA51: 0 | AB51: 808428 | AC51: 34290 | AD51: =IFERROR(T51*'Inputs & Assumptions'!$Q$40,"--") -> 68293.7 | AE51: =IFERROR(U51*'Inputs & Assumptions'!$Q$41,"--") -> 10831.3 | AF51: =IFERROR(V51*'Inputs & Assumptions'!$Q$42,"--") -> 925 | AG51: =IFERROR(W51*'Inputs & Assumptions'!$Q$43,"--") -> 1123107.975 | AH51: =IFERROR(X51*'Inputs & Assumptions'!$Q$44,"--") -> 121410.224 | AI51: =IFERROR(Y51*'Inputs & Assumptions'!$Q$45,"--") -> 6716.2 | AJ51: =IFERROR(Z51*'Inputs & Assumptions'!$Q$46,"--") -> 0 | AK51: =IFERROR(AA51*'Inputs & Assumptions'!$Q$47,"--") -> 0 | AL51: =IFERROR(AB51*'Inputs & Assumptions'!$Q$48,"--") -> 404214 | AM51: =IFERROR(AC51*'Inputs & Assumptions'!$Q$49,"--") -> 17145
A52: 0303 | B52: Bordentown City | C52: Burlington | D52: 3400506670 | E52: 49 | F52: =VLOOKUP(A52,'[1]Municipal Tax Summary'!$A$3:$AN$566,4,FALSE) -> 350619486 | G52: =VLOOKUP(A52,'[1]Municipal Tax Summary'!$A$3:$AN$566,17,FALSE) -> 4694440 | H52: 1.338898774 | I52: 1662660.52 | J52: 598.10128 | K52: =VLOOKUP(A52,'[1]Municipal Tax Summary'!$A$3:$AN$566,29,FALSE) -> 3.887733405 | L52: =VLOOKUP(A52,'[1]Municipal Tax Summary'!$A$3:$AN$566,9,FALSE) -> 1862321.88 | M52: =VLOOKUP(A52,'[1]Municipal Tax Summary'!$A$3:$AN$566,13,FALSE) -> 7074389 | N52: =VLOOKUP(A52,'[1]Municipal Tax Summary'!$A$3:$AN$566,18,FALSE) -> 13631150.88 | O52: 0.3443905831 | P52: 0.1366224977 | Q52: 0.5189869192 | R52: 5234 | S52: 317.6653649 | T52: 0 | U52: 45000 | V52: 0 | W52: 1930900 | X52: 1103147 | Y52: 2000 | Z52: 0 | AA52: 214245 | AB52: 950146.64 | AC52: 0 | AD52: =IFERROR(T52*'Inputs & Assumptions'!$Q$40,"--") -> 0 | AE52: =IFERROR(U52*'Inputs & Assumptions'!$Q$41,"--") -> 4500 | AF52: =IFERROR(V52*'Inputs & Assumptions'!$Q$42,"--") -> 0 | AG52: =IFERROR(W52*'Inputs & Assumptions'!$Q$43,"--") -> 965450 | AH52: =IFERROR(X52*'Inputs & Assumptions'!$Q$44,"--") -> 110314.7 | AI52: =IFERROR(Y52*'Inputs & Assumptions'!$Q$45,"--") -> 200 | AJ52: =IFERROR(Z52*'Inputs & Assumptions'!$Q$46,"--") -> 0 | AK52: =IFERROR(AA52*'Inputs & Assumptions'!$Q$47,"--") -> 107122.5 | AL52: =IFERROR(AB52*'Inputs & Assumptions'!$Q$48,"--") -> 475073.32 | AM52: =IFERROR(AC52*'Inputs & Assumptions'!$Q$49,"--") -> 0
A53: 0304 | B53: Bordentown Township | C53: Burlington | D53: 3400506700 | E53: 50 | F53: =VLOOKUP(A53,'[1]Municipal Tax Summary'!$A$3:$AN$566,4,FALSE) -> 1359811045 | G53: =VLOOKUP(A53,'[1]Municipal Tax Summary'!$A$3:$AN$566,17,FALSE) -> 9120504.67 | H53: 0.6707185313 | I53: 3697605.325 | J53: 5544.101506 | K53: =VLOOKUP(A53,'[1]Municipal Tax Summary'!$A$3:$AN$566,29,FALSE) -> 3.468089334 | L53: =VLOOKUP(A53,'[1]Municipal Tax Summary'!$A$3:$AN$566,9,FALSE) -> 7924699.14 | M53: =VLOOKUP(A53,'[1]Municipal Tax Summary'!$A$3:$AN$566,13,FALSE) -> 30114258 | N53: =VLOOKUP(A53,'[1]Municipal Tax Summary'!$A$3:$AN$566,18,FALSE) -> 47159461.81 | O53: 0.1933971322 | P53: 0.1680404915 | Q53: 0.6385623763 | R53: 15518 | S53: 238.2784718 | T53: 1320865 | U53: 135675 | V53: 355000 | W53: 3858165.25 | X53: 2082162 | Y53: 3900 | Z53: 0 | AA53: 400000 | AB53: 1786000 | AC53: 287525 | AD53: =IFERROR(T53*'Inputs & Assumptions'!$Q$40,"--") -> 132086.5 | AE53: =IFERROR(U53*'Inputs & Assumptions'!$Q$41,"--") -> 13567.5 | AF53: =IFERROR(V53*'Inputs & Assumptions'!$Q$42,"--") -> 177500 | AG53: =IFERROR(W53*'Inputs & Assumptions'!$Q$43,"--") -> 1929082.625 | AH53: =IFERROR(X53*'Inputs & Assumptions'!$Q$44,"--") -> 208216.2 | AI53: =IFERROR(Y53*'Inputs & Assumptions'!$Q$45,"--") -> 390 | AJ53: =IFERROR(Z53*'Inputs & Assumptions'!$Q$46,"--") -> 0 | AK53: =IFERROR(AA53*'Inputs & Assumptions'!$Q$47,"--") -> 200000 | AL53: =IFERROR(AB53*'Inputs & Assumptions'!$Q$48,"--") -> 893000 | AM53: =IFERROR(AC53*'Inputs & Assumptions'!$Q$49,"--") -> 143762.5
A54: 1804 | B54: Bound Brook Borough | C54: Somerset | D54: 3403506790 | E54: 51 | F54: =VLOOKUP(A54,'[1]Municipal Tax Summary'!$A$3:$AN$566,4,FALSE) -> 1331499200 | G54: =VLOOKUP(A54,'[1]Municipal Tax Summary'!$A$3:$AN$566,17,FALSE) -> 10032712.22 | H54: 0.7534899172 | I54: 4408144.775 | J54: 1063.229772 | K54: =VLOOKUP(A54,'[1]Municipal Tax Summary'!$A$3:$AN$566,29,FALSE) -> 2.206341721 | L54: =VLOOKUP(A54,'[1]Municipal Tax Summary'!$A$3:$AN$566,9,FALSE) -> 4600198.14 | M54: =VLOOKUP(A54,'[1]Municipal Tax Summary'!$A$3:$AN$566,13,FALSE) -> 14744512 | N54: =VLOOKUP(A54,'[1]Municipal Tax Summary'!$A$3:$AN$566,18,FALSE) -> 29377422.36 | O54: 0.3415109773 | P54: 0.156589577 | Q54: 0.5018994457 | R54: 14741 | S54: 299.0397378 | T54: 1688270 | U54: 102900 | V54: 448013 | W54: 5202221.95 | X54: 2223645 | Y54: 200000 | Z54: 130633 | AA54: 0 | AB54: 2005587 | AC54: 291378 | AD54: =IFERROR(T54*'Inputs & Assumptions'!$Q$40,"--") -> 168827 | AE54: =IFERROR(U54*'Inputs & Assumptions'!$Q$41,"--") -> 10290 | AF54: =IFERROR(V54*'Inputs & Assumptions'!$Q$42,"--") -> 224006.5 | AG54: =IFERROR(W54*'Inputs & Assumptions'!$Q$43,"--") -> 2601110.975 | AH54: =IFERROR(X54*'Inputs & Assumptions'!$Q$44,"--") -> 222364.5 | AI54: =IFERROR(Y54*'Inputs & Assumptions'!$Q$45,"--") -> 20000 | AJ54: =IFERROR(Z54*'Inputs & Assumptions'!$Q$46,"--") -> 13063.3 | AK54: =IFERROR(AA54*'Inputs & Assumptions'!$Q$47,"--") -> 0 | AL54: =IFERROR(AB54*'Inputs & Assumptions'!$Q$48,"--") -> 1002793.5 | AM54: =IFERROR(AC54*'Inputs & Assumptions'!$Q$49,"--") -> 145689
A55: 1307 | B55: Bradley Beach Borough | C55: Monmouth | D55: 3402506970 | E55: 52 | F55: =VLOOKUP(A55,'[1]Municipal Tax Summary'!$A$3:$AN$566,4,FALSE) -> 2435230300 | G55: =VLOOKUP(A55,'[1]Municipal Tax Summary'!$A$3:$AN$566,17,FALSE) -> 9340303.46 | H55: 0.383549082 | I55: 3376620.6 | J55: 390.6914864 | K55: =VLOOKUP(A55,'[1]Municipal Tax Summary'!$A$3:$AN$566,29,FALSE) -> 0.8847100999 | L55: =VLOOKUP(A55,'[1]Municipal Tax Summary'!$A$3:$AN$566,9,FALSE) -> 5012731.96 | M55: =VLOOKUP(A55,'[1]Municipal Tax Summary'!$A$3:$AN$566,13,FALSE) -> 7191693 | N55: =VLOOKUP(A55,'[1]Municipal Tax Summary'!$A$3:$AN$566,18,FALSE) -> 21544728.42 | O55: 0.4335308052 | P55: 0.2326662867 | Q55: 0.3338029081 | R55: 4938 | S55: 683.8032807 | T55: 4967008 | U55: 43000 | V55: 145000 | W55: 3015900 | X55: 1157500 | Y55: 38250 | Z55: 776938 | AA55: 459000 | AB55: 1556802 | AC55: 180000 | AD55: =IFERROR(T55*'Inputs & Assumptions'!$Q$40,"--") -> 496700.8 | AE55: =IFERROR(U55*'Inputs & Assumptions'!$Q$41,"--") -> 4300 | AF55: =IFERROR(V55*'Inputs & Assumptions'!$Q$42,"--") -> 72500 | AG55: =IFERROR(W55*'Inputs & Assumptions'!$Q$43,"--") -> 1507950 | AH55: =IFERROR(X55*'Inputs & Assumptions'!$Q$44,"--") -> 115750 | AI55: =IFERROR(Y55*'Inputs & Assumptions'!$Q$45,"--") -> 3825 | AJ55: =IFERROR(Z55*'Inputs & Assumptions'!$Q$46,"--") -> 77693.8 | AK55: =IFERROR(AA55*'Inputs & Assumptions'!$Q$47,"--") -> 229500 | AL55: =IFERROR(AB55*'Inputs & Assumptions'!$Q$48,"--") -> 778401 | AM55: =IFERROR(AC55*'Inputs & Assumptions'!$Q$49,"--") -> 90000
A56: 1805 | B56: Branchburg Township | C56: Somerset | D56: 3403507180 | E56: 53 | F56: =VLOOKUP(A56,'[1]Municipal Tax Summary'!$A$3:$AN$566,4,FALSE) -> 4925532700 | G56: =VLOOKUP(A56,'[1]Municipal Tax Summary'!$A$3:$AN$566,17,FALSE) -> 17469567.5 | H56: 0.3546736681 | I56: 5342847.773 | J56: 12845.17023 | K56: =VLOOKUP(A56,'[1]Municipal Tax Summary'!$A$3:$AN$566,29,FALSE) -> 1.708947252 | L56: =VLOOKUP(A56,'[1]Municipal Tax Summary'!$A$3:$AN$566,9,FALSE) -> 16957615.2 | M56: =VLOOKUP(A56,'[1]Municipal Tax Summary'!$A$3:$AN$566,13,FALSE) -> 49747573 | N56: =VLOOKUP(A56,'[1]Municipal Tax Summary'!$A$3:$AN$566,18,FALSE) -> 84174755.7 | O56: 0.2075392718 | P56: 0.2014572547 | Q56: 0.5910034735 | R56: 26064 | S56: 204.9895554 | T56: 8938842.73 | U56: 97400 | V56: 684700 | W56: 5005300 | X56: 2813000 | Y56: 290100 | Z56: 0 | AA56: 0 | AB56: 2567827 | AC56: 0 | AD56: =IFERROR(T56*'Inputs & Assumptions'!$Q$40,"--") -> 893884.273 | AE56: =IFERROR(U56*'Inputs & Assumptions'!$Q$41,"--") -> 9740 | AF56: =IFERROR(V56*'Inputs & Assumptions'!$Q$42,"--") -> 342350 | AG56: =IFERROR(W56*'Inputs & Assumptions'!$Q$43,"--") -> 2502650 | AH56: =IFERROR(X56*'Inputs & Assumptions'!$Q$44,"--") -> 281300 | AI56: =IFERROR(Y56*'Inputs & Assumptions'!$Q$45,"--") -> 29010 | AJ56: =IFERROR(Z56*'Inputs & Assumptions'!$Q$46,"--") -> 0 | AK56: =IFERROR(AA56*'Inputs & Assumptions'!$Q$47,"--") -> 0 | AL56: =IFERROR(AB56*'Inputs & Assumptions'!$Q$48,"--") -> 1283913.5 | AM56: =IFERROR(AC56*'Inputs & Assumptions'!$Q$49,"--") -> 0
A57: 1903 | B57: Branchville Borough | C57: Sussex | D57: 3403707300 | E57: 54 | F57: =VLOOKUP(A57,'[1]Municipal Tax Summary'!$A$3:$AN$566,4,FALSE) -> 129116400 | G57: =VLOOKUP(A57,'[1]Municipal Tax Summary'!$A$3:$AN$566,17,FALSE) -> 284793.61 | H57: 0.2205712133 | I57: 312208.7 | J57: 379.4175551 | K57: =VLOOKUP(A57,'[1]Municipal Tax Summary'!$A$3:$AN$566,29,FALSE) -> 2.5152852 | L57: =VLOOKUP(A57,'[1]Municipal Tax Summary'!$A$3:$AN$566,9,FALSE) -> 689234.09 | M57: =VLOOKUP(A57,'[1]Municipal Tax Summary'!$A$3:$AN$566,13,FALSE) -> 2273618 | N57: =VLOOKUP(A57,'[1]Municipal Tax Summary'!$A$3:$AN$566,18,FALSE) -> 3247645.7 | O57: 0.0876923274 | P57: 0.212225764 | Q57: 0.7000819086 | R57: 1711 | S57: 182.4714787 | T57: 1249130 | U57: 5900 | V57: 26750 | W57: 56802 | X57: 290750 | Y57: 677 | Z57: 0 | AA57: 160000 | AB57: 71574 | AC57: 0 | AD57: =IFERROR(T57*'Inputs & Assumptions'!$Q$40,"--") -> 124913 | AE57: =IFERROR(U57*'Inputs & Assumptions'!$Q$41,"--") -> 590 | AF57: =IFERROR(V57*'Inputs & Assumptions'!$Q$42,"--") -> 13375 | AG57: =IFERROR(W57*'Inputs & Assumptions'!$Q$43,"--") -> 28401 | AH57: =IFERROR(X57*'Inputs & Assumptions'!$Q$44,"--") -> 29075 | AI57: =IFERROR(Y57*'Inputs & Assumptions'!$Q$45,"--") -> 67.7 | AJ57: =IFERROR(Z57*'Inputs & Assumptions'!$Q$46,"--") -> 0 | AK57: =IFERROR(AA57*'Inputs & Assumptions'!$Q$47,"--") -> 80000 | AL57: =IFERROR(AB57*'Inputs & Assumptions'!$Q$48,"--") -> 35787 | AM57: =IFERROR(AC57*'Inputs & Assumptions'!$Q$49,"--") -> 0
A58: 1506 | B58: Brick Township | C58: Ocean | D58: 3402907420 | E58: 55 | F58: =VLOOKUP(A58,'[1]Municipal Tax Summary'!$A$3:$AN$566,4,FALSE) -> 10601508800 | G58: =VLOOKUP(A58,'[1]Municipal Tax Summary'!$A$3:$AN$566,17,FALSE) -> 87121815.63 | H58: 0.8217869482 | I58: 27861511.12 | J58: 16375.48429 | K58: =VLOOKUP(A58,'[1]Municipal Tax Summary'!$A$3:$AN$566,29,FALSE) -> 2.663373548 | L58: =VLOOKUP(A58,'[1]Municipal Tax Summary'!$A$3:$AN$566,9,FALSE) -> 60338401.47 | M58: =VLOOKUP(A58,'[1]Municipal Tax Summary'!$A$3:$AN$566,13,FALSE) -> 134897564 | N58: =VLOOKUP(A58,'[1]Municipal Tax Summary'!$A$3:$AN$566,18,FALSE) -> 282357781.1 | O58: 0.3085511414 | P58: 0.2136948422 | Q58: 0.4777540165 | R58: 88930 | S58: 313.2971002 | T58: 6886795 | U58: 745250 | V58: 2103100 | W58: 32622654.81 | X58: 9364417.2 | Y58: 662590 | Z58: 0 | AA58: 2296746 | AB58: 14119390 | AC58: 1049321 | AD58: =IFERROR(T58*'Inputs & Assumptions'!$Q$40,"--") -> 688679.5 | AE58: =IFERROR(U58*'Inputs & Assumptions'!$Q$41,"--") -> 74525 | AF58: =IFERROR(V58*'Inputs & Assumptions'!$Q$42,"--") -> 1051550 | AG58: =IFERROR(W58*'Inputs & Assumptions'!$Q$43,"--") -> 16311327.4 | AH58: =IFERROR(X58*'Inputs & Assumptions'!$Q$44,"--") -> 936441.72 | AI58: =IFERROR(Y58*'Inputs & Assumptions'!$Q$45,"--") -> 66259 | AJ58: =IFERROR(Z58*'Inputs & Assumptions'!$Q$46,"--") -> 0 | AK58: =IFERROR(AA58*'Inputs & Assumptions'!$Q$47,"--") -> 1148373 | AL58: =IFERROR(AB58*'Inputs & Assumptions'!$Q$48,"--") -> 7059695 | AM58: =IFERROR(AC58*'Inputs & Assumptions'!$Q$49,"--") -> 524660.5
A59: 0601 | B59: Bridgeton City | C59: Cumberland | D59: 3401107600 | E59: 56 | F59: =VLOOKUP(A59,'[1]Municipal Tax Summary'!$A$3:$AN$566,4,FALSE) -> 494043364 | G59: =VLOOKUP(A59,'[1]Municipal Tax Summary'!$A$3:$AN$566,17,FALSE) -> 17826420.06 | H59: 3.608270318 | I59: 9757238.565 | J59: 3986.159303 | K59: =VLOOKUP(A59,'[1]Municipal Tax Summary'!$A$3:$AN$566,29,FALSE) -> 5.786831904 | L59: =VLOOKUP(A59,'[1]Municipal Tax Summary'!$A$3:$AN$566,9,FALSE) -> 7082435.95 | M59: =VLOOKUP(A59,'[1]Municipal Tax Summary'!$A$3:$AN$566,13,FALSE) -> 3680603 | N59: =VLOOKUP(A59,'[1]Municipal Tax Summary'!$A$3:$AN$566,18,FALSE) -> 28589459.01 | O59: 0.6235312132 | P59: 0.2477289251 | Q59: 0.1287398617 | R59: 33191 | S59: 293.9724192 | T59: 3217803.29 | U59: 27700 | V59: 212340 | W59: 10911256.94 | X59: 5007999.997 | Y59: 353401.41 | Z59: 358752.5015 | AA59: 1551288.82 | AB59: 4470573.32 | AC59: 575886.61 | AD59: =IFERROR(T59*'Inputs & Assumptions'!$Q$40,"--") -> 321780.329 | AE59: =IFERROR(U59*'Inputs & Assumptions'!$Q$41,"--") -> 2770 | AF59: =IFERROR(V59*'Inputs & Assumptions'!$Q$42,"--") -> 106170 | AG59: =IFERROR(W59*'Inputs & Assumptions'!$Q$43,"--") -> 5455628.47 | AH59: =IFERROR(X59*'Inputs & Assumptions'!$Q$44,"--") -> 500799.9997 | AI59: =IFERROR(Y59*'Inputs & Assumptions'!$Q$45,"--") -> 35340.141 | AJ59: =IFERROR(Z59*'Inputs & Assumptions'!$Q$46,"--") -> 35875.25015 | AK59: =IFERROR(AA59*'Inputs & Assumptions'!$Q$47,"--") -> 775644.41 | AL59: =IFERROR(AB59*'Inputs & Assumptions'!$Q$48,"--") -> 2235286.66 | AM59: =IFERROR(AC59*'Inputs & Assumptions'!$Q$49,"--") -> 287943.305
A60: 1806 | B60: Bridgewater Township | C60: Somerset | D60: 3403507720 | E60: 57 | F60: =VLOOKUP(A60,'[1]Municipal Tax Summary'!$A$3:$AN$566,4,FALSE) -> 11445942200 | G60: =VLOOKUP(A60,'[1]Municipal Tax Summary'!$A$3:$AN$566,17,FALSE) -> 27919183.06 | H60: 0.2439221042 | I60: 11160241.04 | J60: 20408.0129 | K60: =VLOOKUP(A60,'[1]Municipal Tax Summary'!$A$3:$AN$566,29,FALSE) -> 1.901353862 | L60: =VLOOKUP(A60,'[1]Municipal Tax Summary'!$A$3:$AN$566,9,FALSE) -> 41641561.02 | M60: =VLOOKUP(A60,'[1]Municipal Tax Summary'!$A$3:$AN$566,13,FALSE) -> 148067120 | N60: =VLOOKUP(A60,'[1]Municipal Tax Summary'!$A$3:$AN$566,18,FALSE) -> 217627864.1 | O60: 0.1282886416 | P60: 0.1913429661 | Q60: 0.6803683923 | R60: 69472 | S60: 160.6437275 | T60: 13867271.45 | U60: 359051.25 | V60: 1082927.73 | W60: 11213942.74 | X60: 3124411.68 | Y60: 114687.37 | Z60: 325720.36 | AA60: 400000 | AB60: 5943977.68 | AC60: 121405.5 | AD60: =IFERROR(T60*'Inputs & Assumptions'!$Q$40,"--") -> 1386727.145 | AE60: =IFERROR(U60*'Inputs & Assumptions'!$Q$41,"--") -> 35905.125 | AF60: =IFERROR(V60*'Inputs & Assumptions'!$Q$42,"--") -> 541463.865 | AG60: =IFERROR(W60*'Inputs & Assumptions'!$Q$43,"--") -> 5606971.37 | AH60: =IFERROR(X60*'Inputs & Assumptions'!$Q$44,"--") -> 312441.168 | AI60: =IFERROR(Y60*'Inputs & Assumptions'!$Q$45,"--") -> 11468.737 | AJ60: =IFERROR(Z60*'Inputs & Assumptions'!$Q$46,"--") -> 32572.036 | AK60: =IFERROR(AA60*'Inputs & Assumptions'!$Q$47,"--") -> 200000 | AL60: =IFERROR(AB60*'Inputs & Assumptions'!$Q$48,"--") -> 2971988.84 | AM60: =IFERROR(AC60*'Inputs & Assumptions'!$Q$49,"--") -> 60702.75
A61: 1308 | B61: Brielle Borough | C61: Monmouth | D61: 3402507750 | E61: 58 | F61: =VLOOKUP(A61,'[1]Municipal Tax Summary'!$A$3:$AN$566,4,FALSE) -> 2681727700 | G61: =VLOOKUP(A61,'[1]Municipal Tax Summary'!$A$3:$AN$566,17,FALSE) -> 11476172 | H61: 0.4279394959 | I61: 3272811.631 | J61: 1123.528897 | K61: =VLOOKUP(A61,'[1]Municipal Tax Summary'!$A$3:$AN$566,29,FALSE) -> 1.202400753 | L61: =VLOOKUP(A61,'[1]Municipal Tax Summary'!$A$3:$AN$566,9,FALSE) -> 5561738.05 | M61: =VLOOKUP(A61,'[1]Municipal Tax Summary'!$A$3:$AN$566,13,FALSE) -> 15207204 | N61: =VLOOKUP(A61,'[1]Municipal Tax Summary'!$A$3:$AN$566,18,FALSE) -> 32245114.05 | O61: 0.3559042149 | P61: 0.1724831254 | Q61: 0.4716126597 | R61: 6265 | S61: 522.3961103 | T61: 2955000 | U61: 75500 | V61: 2850 | W61: 3353105.31 | X61: 842687.71 | Y61: 99750 | Z61: 185000 | AA61: 977515.41 | AB61: 1322565 | AC61: 58000 | AD61: =IFERROR(T61*'Inputs & Assumptions'!$Q$40,"--") -> 295500 | AE61: =IFERROR(U61*'Inputs & Assumptions'!$Q$41,"--") -> 7550 | AF61: =IFERROR(V61*'Inputs & Assumptions'!$Q$42,"--") -> 1425 | AG61: =IFERROR(W61*'Inputs & Assumptions'!$Q$43,"--") -> 1676552.655 | AH61: =IFERROR(X61*'Inputs & Assumptions'!$Q$44,"--") -> 84268.771 | AI61: =IFERROR(Y61*'Inputs & Assumptions'!$Q$45,"--") -> 9975 | AJ61: =IFERROR(Z61*'Inputs & Assumptions'!$Q$46,"--") -> 18500 | AK61: =IFERROR(AA61*'Inputs & Assumptions'!$Q$47,"--") -> 488757.705 | AL61: =IFERROR(AB61*'Inputs & Assumptions'!$Q$48,"--") -> 661282.5 | AM61: =IFERROR(AC61*'Inputs & Assumptions'!$Q$49,"--") -> 29000
A62: 0103 | B62: Brigantine City | C62: Atlantic | D62: 3400107810 | E62: 59 | F62: =VLOOKUP(A62,'[1]Municipal Tax Summary'!$A$3:$AN$566,4,FALSE) -> 3541710600 | G62: =VLOOKUP(A62,'[1]Municipal Tax Summary'!$A$3:$AN$566,17,FALSE) -> 25556936.45 | H62: 0.7215986662 | I62: 9541293.385 | J62: 4174.320584 | K62: =VLOOKUP(A62,'[1]Municipal Tax Summary'!$A$3:$AN$566,29,FALSE) -> 1.952069368 | L62: =VLOOKUP(A62,'[1]Municipal Tax Summary'!$A$3:$AN$566,9,FALSE) -> 26691597.26 | M62: =VLOOKUP(A62,'[1]Municipal Tax Summary'!$A$3:$AN$566,13,FALSE) -> 16888114 | N62: =VLOOKUP(A62,'[1]Municipal Tax Summary'!$A$3:$AN$566,18,FALSE) -> 69136647.71 | O62: 0.3696583114 | P62: 0.3860701689 | Q62: 0.2442715197 | R62: 9279 | S62: 1028.267419 | T62: 1954600 | U62: 52060 | V62: 472300 | W62: 11788630 | X62: 9446040 | Y62: 19000 | Z62: 10628.85 | AA62: 0 | AB62: 4303491 | AC62: 221700 | AD62: =IFERROR(T62*'Inputs & Assumptions'!$Q$40,"--") -> 195460 | AE62: =IFERROR(U62*'Inputs & Assumptions'!$Q$41,"--") -> 5206 | AF62: =IFERROR(V62*'Inputs & Assumptions'!$Q$42,"--") -> 236150 | AG62: =IFERROR(W62*'Inputs & Assumptions'!$Q$43,"--") -> 5894315 | AH62: =IFERROR(X62*'Inputs & Assumptions'!$Q$44,"--") -> 944604 | AI62: =IFERROR(Y62*'Inputs & Assumptions'!$Q$45,"--") -> 1900 | AJ62: =IFERROR(Z62*'Inputs & Assumptions'!$Q$46,"--") -> 1062.885 | AK62: =IFERROR(AA62*'Inputs & Assumptions'!$Q$47,"--") -> 0 | AL62: =IFERROR(AB62*'Inputs & Assumptions'!$Q$48,"--") -> 2151745.5 | AM62: =IFERROR(AC62*'Inputs & Assumptions'!$Q$49,"--") -> 110850
A63: 0407 | B63: Brooklawn Borough | C63: Camden | D63: 3400708170 | E63: 60 | F63: =VLOOKUP(A63,'[1]Municipal Tax Summary'!$A$3:$AN$566,4,FALSE) -> 120072000 | G63: =VLOOKUP(A63,'[1]Municipal Tax Summary'!$A$3:$AN$566,17,FALSE) -> 2463976.97 | H63: 2.052082892 | I63: 972075.8 | J63: 312.6153608 | K63: =VLOOKUP(A63,'[1]Municipal Tax Summary'!$A$3:$AN$566,29,FALSE) -> 4.433182432 | L63: =VLOOKUP(A63,'[1]Municipal Tax Summary'!$A$3:$AN$566,9,FALSE) -> 1116872.84 | M63: =VLOOKUP(A63,'[1]Municipal Tax Summary'!$A$3:$AN$566,13,FALSE) -> 1742161 | N63: =VLOOKUP(A63,'[1]Municipal Tax Summary'!$A$3:$AN$566,18,FALSE) -> 5323010.81 | O63: 0.4628915961 | P63: 0.209819758 | Q63: 0.3272886459 | R63: 2317 | S63: 419.5406992 | T63: 600000 | U63: 12550 | V63: 47800 | W63: 1103700 | X63: 522328 | Y63: 16400 | Z63: 0 | AA63: 92500 | AB63: 469896 | AC63: 0 | AD63: =IFERROR(T63*'Inputs & Assumptions'!$Q$40,"--") -> 60000 | AE63: =IFERROR(U63*'Inputs & Assumptions'!$Q$41,"--") -> 1255 | AF63: =IFERROR(V63*'Inputs & Assumptions'!$Q$42,"--") -> 23900 | AG63: =IFERROR(W63*'Inputs & Assumptions'!$Q$43,"--") -> 551850 | AH63: =IFERROR(X63*'Inputs & Assumptions'!$Q$44,"--") -> 52232.8 | AI63: =IFERROR(Y63*'Inputs & Assumptions'!$Q$45,"--") -> 1640 | AJ63: =IFERROR(Z63*'Inputs & Assumptions'!$Q$46,"--") -> 0 | AK63: =IFERROR(AA63*'Inputs & Assumptions'!$Q$47,"--") -> 46250 | AL63: =IFERROR(AB63*'Inputs & Assumptions'!$Q$48,"--") -> 234948 | AM63: =IFERROR(AC63*'Inputs & Assumptions'!$Q$49,"--") -> 0
A64: 0104 | B64: Buena Borough | C64: Atlantic | D64: 3400108680 | E64: 61 | F64: =VLOOKUP(A64,'[1]Municipal Tax Summary'!$A$3:$AN$566,4,FALSE) -> 295570600 | G64: =VLOOKUP(A64,'[1]Municipal Tax Summary'!$A$3:$AN$566,17,FALSE) -> 3605906.24 | H64: 1.219981365 | I64: 859484.594 | J64: 4846.573216 | K64: =VLOOKUP(A64,'[1]Municipal Tax Summary'!$A$3:$AN$566,29,FALSE) -> 3.40772 | L64: =VLOOKUP(A64,'[1]Municipal Tax Summary'!$A$3:$AN$566,9,FALSE) -> 1555801.21 | M64: =VLOOKUP(A64,'[1]Municipal Tax Summary'!$A$3:$AN$566,13,FALSE) -> 4910511 | N64: =VLOOKUP(A64,'[1]Municipal Tax Summary'!$A$3:$AN$566,18,FALSE) -> 10072218.45 | O64: 0.3580051662 | P64: 0.1544646016 | Q64: 0.4875302322 | R64: 5169 | S64: 166.2767642 | T64: 597959 | U64: 18700 | V64: 107433 | W64: 663224 | X64: 618302.94 | Y64: 21800 | Z64: 12064 | AA64: 421000 | AB64: 273547 | AC64: 0 | AD64: =IFERROR(T64*'Inputs & Assumptions'!$Q$40,"--") -> 59795.9 | AE64: =IFERROR(U64*'Inputs & Assumptions'!$Q$41,"--") -> 1870 | AF64: =IFERROR(V64*'Inputs & Assumptions'!$Q$42,"--") -> 53716.5 | AG64: =IFERROR(W64*'Inputs & Assumptions'!$Q$43,"--") -> 331612 | AH64: =IFERROR(X64*'Inputs & Assumptions'!$Q$44,"--") -> 61830.294 | AI64: =IFERROR(Y64*'Inputs & Assumptions'!$Q$45,"--") -> 2180 | AJ64: =IFERROR(Z64*'Inputs & Assumptions'!$Q$46,"--") -> 1206.4 | AK64: =IFERROR(AA64*'Inputs & Assumptions'!$Q$47,"--") -> 210500 | AL64: =IFERROR(AB64*'Inputs & Assumptions'!$Q$48,"--") -> 136773.5 | AM64: =IFERROR(AC64*'Inputs & Assumptions'!$Q$49,"--") -> 0
A65: 0105 | B65: Buena Vista Township | C65: Atlantic | D65: 3400108710 | E65: 62 | F65: =VLOOKUP(A65,'[1]Municipal Tax Summary'!$A$3:$AN$566,4,FALSE) -> 651311350 | G65: =VLOOKUP(A65,'[1]Municipal Tax Summary'!$A$3:$AN$566,17,FALSE) -> 3973383 | H65: 0.6100589219 | I65: 791321.2 | J65: 26290.99854 | K65: =VLOOKUP(A65,'[1]Municipal Tax Summary'!$A$3:$AN$566,29,FALSE) -> 3.017224169 | L65: =VLOOKUP(A65,'[1]Municipal Tax Summary'!$A$3:$AN$566,9,FALSE) -> 3761986.47 | M65: =VLOOKUP(A65,'[1]Municipal Tax Summary'!$A$3:$AN$566,13,FALSE) -> 11916154 | N65: =VLOOKUP(A65,'[1]Municipal Tax Summary'!$A$3:$AN$566,18,FALSE) -> 19651523.47 | O65: 0.2021921102 | P65: 0.1914348511 | Q65: 0.6063730386 | R65: 9419 | S65: 84.01329228 | T65: 1167567 | U65: 5500 | V65: 0 | W65: 481897 | X65: 1374250 | Y65: 32500 | Z65: 0 | AA65: 294600 | AB65: 290182 | AC65: 0 | AD65: =IFERROR(T65*'Inputs & Assumptions'!$Q$40,"--") -> 116756.7 | AE65: =IFERROR(U65*'Inputs & Assumptions'!$Q$41,"--") -> 550 | AF65: =IFERROR(V65*'Inputs & Assumptions'!$Q$42,"--") -> 0 | AG65: =IFERROR(W65*'Inputs & Assumptions'!$Q$43,"--") -> 240948.5 | AH65: =IFERROR(X65*'Inputs & Assumptions'!$Q$44,"--") -> 137425 | AI65: =IFERROR(Y65*'Inputs & Assumptions'!$Q$45,"--") -> 3250 | AJ65: =IFERROR(Z65*'Inputs & Assumptions'!$Q$46,"--") -> 0 | AK65: =IFERROR(AA65*'Inputs & Assumptions'!$Q$47,"--") -> 147300 | AL65: =IFERROR(AB65*'Inputs & Assumptions'!$Q$48,"--") -> 145091 | AM65: =IFERROR(AC65*'Inputs & Assumptions'!$Q$49,"--") -> 0
A66: 0305 | B66: Burlington City | C66: Burlington | D66: 3400508920 | E66: 63 | F66: =VLOOKUP(A66,'[1]Municipal Tax Summary'!$A$3:$AN$566,4,FALSE) -> 606044667 | G66: =VLOOKUP(A66,'[1]Municipal Tax Summary'!$A$3:$AN$566,17,FALSE) -> 9421000 | H66: 1.554505883 | I66: 5883264.528 | J66: 1942.539826 | K66: =VLOOKUP(A66,'[1]Municipal Tax Summary'!$A$3:$AN$566,29,FALSE) -> 4.440435771 | L66: =VLOOKUP(A66,'[1]Municipal Tax Summary'!$A$3:$AN$566,9,FALSE) -> 3131909.18 | M66: =VLOOKUP(A66,'[1]Municipal Tax Summary'!$A$3:$AN$566,13,FALSE) -> 14358115 | N66: =VLOOKUP(A66,'[1]Municipal Tax Summary'!$A$3:$AN$566,18,FALSE) -> 26911024.18 | O66: 0.3500795784 | P66: 0.1163801555 | Q66: 0.533540266 | R66: 14376 | S66: 409.2421068 | T66: 1736100 | U66: 323200 | V66: 240700 | W66: 6236726.77 | X66: 7367425.93 | Y66: 55000 | Z66: 473237.75 | AA66: 494000 | AB66: 2328609.55 | AC66: 475500 | AD66: =IFERROR(T66*'Inputs & Assumptions'!$Q$40,"--") -> 173610 | AE66: =IFERROR(U66*'Inputs & Assumptions'!$Q$41,"--") -> 32320 | AF66: =IFERROR(V66*'Inputs & Assumptions'!$Q$42,"--") -> 120350 | AG66: =IFERROR(W66*'Inputs & Assumptions'!$Q$43,"--") -> 3118363.385 | AH66: =IFERROR(X66*'Inputs & Assumptions'!$Q$44,"--") -> 736742.593 | AI66: =IFERROR(Y66*'Inputs & Assumptions'!$Q$45,"--") -> 5500 | AJ66: =IFERROR(Z66*'Inputs & Assumptions'!$Q$46,"--") -> 47323.775 | AK66: =IFERROR(AA66*'Inputs & Assumptions'!$Q$47,"--") -> 247000 | AL66: =IFERROR(AB66*'Inputs & Assumptions'!$Q$48,"--") -> 1164304.775 | AM66: =IFERROR(AC66*'Inputs & Assumptions'!$Q$49,"--") -> 237750
A67: 0306 | B67: Burlington Township | C67: Burlington | D67: 3400508950 | E67: 64 | F67: =VLOOKUP(A67,'[1]Municipal Tax Summary'!$A$3:$AN$566,4,FALSE) -> 2631076619 | G67: =VLOOKUP(A67,'[1]Municipal Tax Summary'!$A$3:$AN$566,17,FALSE) -> 13982650.1 | H67: 0.531442148 | I67: 7040681.1 | J67: 8624.69829 | K67: =VLOOKUP(A67,'[1]Municipal Tax Summary'!$A$3:$AN$566,29,FALSE) -> 2.943005432 | L67: =VLOOKUP(A67,'[1]Municipal Tax Summary'!$A$3:$AN$566,9,FALSE) -> 13327901.73 | M67: =VLOOKUP(A67,'[1]Municipal Tax Summary'!$A$3:$AN$566,13,FALSE) -> 50122176 | N67: =VLOOKUP(A67,'[1]Municipal Tax Summary'!$A$3:$AN$566,18,FALSE) -> 77432727.83 | O67: 0.1805780384 | P67: 0.1721223326 | Q67: 0.647299629 | R67: 32842 | S67: 214.3804001 | T67: 13348123 | U67: 135291 | V67: 570507 | W67: 6562415 | X67: 4639267 | Y67: 27000 | Z67: 9500 | AA67: 0 | AB67: 2903352 | AC67: 413252 | AD67: =IFERROR(T67*'Inputs & Assumptions'!$Q$40,"--") -> 1334812.3 | AE67: =IFERROR(U67*'Inputs & Assumptions'!$Q$41,"--") -> 13529.1 | AF67: =IFERROR(V67*'Inputs & Assumptions'!$Q$42,"--") -> 285253.5 | AG67: =IFERROR(W67*'Inputs & Assumptions'!$Q$43,"--") -> 3281207.5 | AH67: =IFERROR(X67*'Inputs & Assumptions'!$Q$44,"--") -> 463926.7 | AI67: =IFERROR(Y67*'Inputs & Assumptions'!$Q$45,"--") -> 2700 | AJ67: =IFERROR(Z67*'Inputs & Assumptions'!$Q$46,"--") -> 950 | AK67: =IFERROR(AA67*'Inputs & Assumptions'!$Q$47,"--") -> 0 | AL67: =IFERROR(AB67*'Inputs & Assumptions'!$Q$48,"--") -> 1451676 | AM67: =IFERROR(AC67*'Inputs & Assumptions'!$Q$49,"--") -> 206626
A68: 1403 | B68: Butler Borough | C68: Morris | D68: 3402709040 | E68: 65 | F68: =VLOOKUP(A68,'[1]Municipal Tax Summary'!$A$3:$AN$566,4,FALSE) -> 1346555210 | G68: =VLOOKUP(A68,'[1]Municipal Tax Summary'!$A$3:$AN$566,17,FALSE) -> 9479175.75 | H68: 0.7039574523 | I68: 3981525.604 | J68: 1301.564298 | K68: =VLOOKUP(A68,'[1]Municipal Tax Summary'!$A$3:$AN$566,29,FALSE) -> 2.510764636 | L68: =VLOOKUP(A68,'[1]Municipal Tax Summary'!$A$3:$AN$566,9,FALSE) -> 3388660.27 | M68: =VLOOKUP(A68,'[1]Municipal Tax Summary'!$A$3:$AN$566,13,FALSE) -> 20940996 | N68: =VLOOKUP(A68,'[1]Municipal Tax Summary'!$A$3:$AN$566,18,FALSE) -> 33808832.02 | O68: =G68/N68 -> 0.2803757238 | P68: =L68/N68 -> 0.1002300307 | Q68: =M68/N68 -> 0.6193942455 | R68: 10914 | S68: =IFERROR(I68/R68,"--") -> 364.8090163 | T68: 2367295 | U68: 78735 | V68: 0 | W68: 3463932 | X68: 7262360 | Y68: 272248.83 | Z68: 470887.21 | AA68: 0 | AB68: 2408814 | AC68: 0 | AD68: =IFERROR(T68*'Inputs & Assumptions'!$Q$40,"--") -> 236729.5 | AE68: =IFERROR(U68*'Inputs & Assumptions'!$Q$41,"--") -> 7873.5 | AF68: =IFERROR(V68*'Inputs & Assumptions'!$Q$42,"--") -> 0 | AG68: =IFERROR(W68*'Inputs & Assumptions'!$Q$43,"--") -> 1731966 | AH68: =IFERROR(X68*'Inputs & Assumptions'!$Q$44,"--") -> 726236 | AI68: =IFERROR(Y68*'Inputs & Assumptions'!$Q$45,"--") -> 27224.883 | AJ68: =IFERROR(Z68*'Inputs & Assumptions'!$Q$46,"--") -> 47088.721 | AK68: =IFERROR(AA68*'Inputs & Assumptions'!$Q$47,"--") -> 0 | AL68: =IFERROR(AB68*'Inputs & Assumptions'!$Q$48,"--") -> 1204407 | AM68: =IFERROR(AC68*'Inputs & Assumptions'!$Q$49,"--") -> 0
A69: 1904 | B69: Byram Township | C69: Sussex | D69: 3403709160 | E69: =E68+1 -> 66 | F69: =VLOOKUP(A69,'[1]Municipal Tax Summary'!$A$3:$AN$566,4,FALSE) -> 928611500 | G69: =VLOOKUP(A69,'[1]Municipal Tax Summary'!$A$3:$AN$566,17,FALSE) -> 9587851 | H69: 1.032493244 | I69: =IF(IFERROR(SUM(AD69:AM69),"--")=0,"--",IFERROR(SUM(AD69:AM69),"--")) -> 2775111 | J69: 13779.55635 | K69: =VLOOKUP(A69,'[1]Municipal Tax Summary'!$A$3:$AN$566,29,FALSE) -> 4.018229303 | L69: =VLOOKUP(A69,'[1]Municipal Tax Summary'!$A$3:$AN$566,9,FALSE) -> 6252590.4 | M69: =VLOOKUP(A69,'[1]Municipal Tax Summary'!$A$3:$AN$566,13,FALSE) -> 21473298 | N69: =VLOOKUP(A69,'[1]Municipal Tax Summary'!$A$3:$AN$566,18,FALSE) -> 37313739.4 | O69: 0.2569522957 | P69: 0.167568046 | Q69: 0.5754796583 | R69: 9637 | S69: 287.9642005 | T69: 1220984 | U69: 197370 | V69: 100 | W69: 2360145 | X69: 2508136 | Y69: 43545 | Z69: 0 | AA69: 1040200 | AB69: 1206370 | AC69: 149400 | AD69: =IFERROR(T69*'Inputs & Assumptions'!$Q$40,"--") -> 122098.4 | AE69: =IFERROR(U69*'Inputs & Assumptions'!$Q$41,"--") -> 19737 | AF69: =IFERROR(V69*'Inputs & Assumptions'!$Q$42,"--") -> 50 | AG69: =IFERROR(W69*'Inputs & Assumptions'!$Q$43,"--") -> 1180072.5 | AH69: =IFERROR(X69*'Inputs & Assumptions'!$Q$44,"--") -> 250813.6 | AI69: =IFERROR(Y69*'Inputs & Assumptions'!$Q$45,"--") -> 4354.5 | AJ69: =IFERROR(Z69*'Inputs & Assumptions'!$Q$46,"--") -> 0 | AK69: =IFERROR(AA69*'Inputs & Assumptions'!$Q$47,"--") -> 520100 | AL69: =IFERROR(AB69*'Inputs & Assumptions'!$Q$48,"--") -> 603185 | AM69: =IFERROR(AC69*'Inputs & Assumptions'!$Q$49,"--") -> 74700
A70: 0703 | B70: Caldwell Borough | C70: Essex | D70: 3401309250 | E70: 67 | F70: =VLOOKUP(A70,'[1]Municipal Tax Summary'!$A$3:$AN$566,4,FALSE) -> 1066256400 | G70: =VLOOKUP(A70,'[1]Municipal Tax Summary'!$A$3:$AN$566,17,FALSE) -> 11343045.07 | H70: =G70/(F70/100) -> 1.063819647 | I70: 3745715.537 | J70: 753.9869045 | K70: =VLOOKUP(A70,'[1]Municipal Tax Summary'!$A$3:$AN$566,29,FALSE) -> 3.256548809 | L70: =VLOOKUP(A70,'[1]Municipal Tax Summary'!$A$3:$AN$566,9,FALSE) -> 5444935.03 | M70: =VLOOKUP(A70,'[1]Municipal Tax Summary'!$A$3:$AN$566,13,FALSE) -> 17935180 | N70: =VLOOKUP(A70,'[1]Municipal Tax Summary'!$A$3:$AN$566,18,FALSE) -> 34723160.1 | O70: 0.3266708743 | P70: 0.1568098933 | Q70: 0.5165192324 | R70: 10705 | S70: 349.9033664 | T70: 1276468 | U70: 173830 | V70: 217608 | W70: 3810279.18 | X70: 7166497.61 | Y70: 276450.7079 | Z70: 550000 | AA70: 0 | AB70: 1391641.63 | AC70: 183253 | AD70: =IFERROR(T70*'Inputs & Assumptions'!$Q$40,"--") -> 127646.8 | AE70: =IFERROR(U70*'Inputs & Assumptions'!$Q$41,"--") -> 17383 | AF70: =IFERROR(V70*'Inputs & Assumptions'!$Q$42,"--") -> 108804 | AG70: =IFERROR(W70*'Inputs & Assumptions'!$Q$43,"--") -> 1905139.59 | AH70: =IFERROR(X70*'Inputs & Assumptions'!$Q$44,"--") -> 716649.761 | AI70: =IFERROR(Y70*'Inputs & Assumptions'!$Q$45,"--") -> 27645.07079 | AJ70: =IFERROR(Z70*'Inputs & Assumptions'!$Q$46,"--") -> 55000 | AK70: =IFERROR(AA70*'Inputs & Assumptions'!$Q$47,"--") -> 0 | AL70: =IFERROR(AB70*'Inputs & Assumptions'!$Q$48,"--") -> 695820.815 | AM70: =IFERROR(AC70*'Inputs & Assumptions'!$Q$49,"--") -> 91626.5
A71: 1004 | B71: Califon Borough | C71: Hunterdon | D71: 3401909280 | E71: 68 | F71: =VLOOKUP(A71,'[1]Municipal Tax Summary'!$A$3:$AN$566,4,FALSE) -> 149354682 | G71: =VLOOKUP(A71,'[1]Municipal Tax Summary'!$A$3:$AN$566,17,FALSE) -> 1235285 | H71: 0.8270815374 | I71: 119987.5 | J71: 613.6669358 | K71: =VLOOKUP(A71,'[1]Municipal Tax Summary'!$A$3:$AN$566,29,FALSE) -> 3.896970883 | L71: =VLOOKUP(A71,'[1]Municipal Tax Summary'!$A$3:$AN$566,9,FALSE) -> 736382.47 | M71: =VLOOKUP(A71,'[1]Municipal Tax Summary'!$A$3:$AN$566,13,FALSE) -> 3848641 | N71: =VLOOKUP(A71,'[1]Municipal Tax Summary'!$A$3:$AN$566,18,FALSE) -> 5820308.47 | O71: 0.2122370329 | P71: 0.1265194918 | Q71: 0.6612434753 | R71: 1188 | S71: 100.9995791 | T71: 289990 | U71: 26280 | V71: 0 | W71: 107067 | X71: 166500 | Y71: 9640 | Z71: 100 | AA71: 0 | AB71: 30406 | AC71: 4000 | AD71: =IFERROR(T71*'Inputs & Assumptions'!$Q$40,"--") -> 28999 | AE71: =IFERROR(U71*'Inputs & Assumptions'!$Q$41,"--") -> 2628 | AF71: =IFERROR(V71*'Inputs & Assumptions'!$Q$42,"--") -> 0 | AG71: =IFERROR(W71*'Inputs & Assumptions'!$Q$43,"--") -> 53533.5 | AH71: =IFERROR(X71*'Inputs & Assumptions'!$Q$44,"--") -> 16650 | AI71: =IFERROR(Y71*'Inputs & Assumptions'!$Q$45,"--") -> 964 | AJ71: =IFERROR(Z71*'Inputs & Assumptions'!$Q$46,"--") -> 10 | AK71: =IFERROR(AA71*'Inputs & Assumptions'!$Q$47,"--") -> 0 | AL71: =IFERROR(AB71*'Inputs & Assumptions'!$Q$48,"--") -> 15203 | AM71: =IFERROR(AC71*'Inputs & Assumptions'!$Q$49,"--") -> 2000
A72: 0408 | B72: Camden City | C72: Camden | D72: 3400710000 | E72: 69 | F72: =VLOOKUP(A72,'[1]Municipal Tax Summary'!$A$3:$AN$566,4,FALSE) -> 1724043350 | G72: =VLOOKUP(A72,'[1]Municipal Tax Summary'!$A$3:$AN$566,17,FALSE) -> 31470001.56 | H72: 1.825360224 | I72: 31547297 | J72: 5709.659573 | K72: =VLOOKUP(A72,'[1]Municipal Tax Summary'!$A$3:$AN$566,29,FALSE) -> 3.6868681 | L72: =VLOOKUP(A72,'[1]Municipal Tax Summary'!$A$3:$AN$566,9,FALSE) -> 16393749.74 | M72: =VLOOKUP(A72,'[1]Municipal Tax Summary'!$A$3:$AN$566,13,FALSE) -> 15699453 | N72: =VLOOKUP(A72,'[1]Municipal Tax Summary'!$A$3:$AN$566,18,FALSE) -> 63563204.3 | O72: 0.4950977835 | P72: 0.2579125757 | Q72: 0.2469896408 | R72: 98040 | S72: 321.7798552 | T72: 17854028 | U72: 2532100 | V72: 6704800 | W72: 25664600 | X72: 55180372 | Y72: 2924900 | Z72: 0 | AA72: 0 | AB72: 13082314 | AC72: 1944600 | AD72: =IFERROR(T72*'Inputs & Assumptions'!$Q$40,"--") -> 1785402.8 | AE72: =IFERROR(U72*'Inputs & Assumptions'!$Q$41,"--") -> 253210 | AF72: =IFERROR(V72*'Inputs & Assumptions'!$Q$42,"--") -> 3352400 | AG72: =IFERROR(W72*'Inputs & Assumptions'!$Q$43,"--") -> 12832300 | AH72: =IFERROR(X72*'Inputs & Assumptions'!$Q$44,"--") -> 5518037.2 | AI72: =IFERROR(Y72*'Inputs & Assumptions'!$Q$45,"--") -> 292490 | AJ72: =IFERROR(Z72*'Inputs & Assumptions'!$Q$46,"--") -> 0 | AK72: =IFERROR(AA72*'Inputs & Assumptions'!$Q$47,"--") -> 0 | AL72: =IFERROR(AB72*'Inputs & Assumptions'!$Q$48,"--") -> 6541157 | AM72: =IFERROR(AC72*'Inputs & Assumptions'!$Q$49,"--") -> 972300
A73: 0502 | B73: Cape May City | C73: Cape May | D73: 3400910270 | E73: 70 | F73: =VLOOKUP(A73,'[1]Municipal Tax Summary'!$A$3:$AN$566,4,FALSE) -> 3028160800 | G73: =VLOOKUP(A73,'[1]Municipal Tax Summary'!$A$3:$AN$566,17,FALSE) -> 10932100.21 | H73: 0.3610145211 | I73: 4712915.5 | J73: 1582.845968 | K73: =VLOOKUP(A73,'[1]Municipal Tax Summary'!$A$3:$AN$566,29,FALSE) -> 1.09272331 | L73: =VLOOKUP(A73,'[1]Municipal Tax Summary'!$A$3:$AN$566,9,FALSE) -> 11637480.71 | M73: =VLOOKUP(A73,'[1]Municipal Tax Summary'!$A$3:$AN$566,13,FALSE) -> 10519838 | N73: =VLOOKUP(A73,'[1]Municipal Tax Summary'!$A$3:$AN$566,18,FALSE) -> 33089418.92 | O73: 0.3303805436 | P73: 0.3516979473 | Q73: 0.3179215092 | R73: 6988 | S73: 674.4298082 | T73: 1903910 | U73: 143000 | V73: 548700 | W73: 5224449 | X73: 2998700 | Y73: 278050 | Z73: 0 | AA73: 0 | AB73: 2252700 | AC73: 335250 | AD73: =IFERROR(T73*'Inputs & Assumptions'!$Q$40,"--") -> 190391 | AE73: =IFERROR(U73*'Inputs & Assumptions'!$Q$41,"--") -> 14300 | AF73: =IFERROR(V73*'Inputs & Assumptions'!$Q$42,"--") -> 274350 | AG73: =IFERROR(W73*'Inputs & Assumptions'!$Q$43,"--") -> 2612224.5 | AH73: =IFERROR(X73*'Inputs & Assumptions'!$Q$44,"--") -> 299870 | AI73: =IFERROR(Y73*'Inputs & Assumptions'!$Q$45,"--") -> 27805 | AJ73: =IFERROR(Z73*'Inputs & Assumptions'!$Q$46,"--") -> 0 | AK73: =IFERROR(AA73*'Inputs & Assumptions'!$Q$47,"--") -> 0 | AL73: =IFERROR(AB73*'Inputs & Assumptions'!$Q$48,"--") -> 1126350 | AM73: =IFERROR(AC73*'Inputs & Assumptions'!$Q$49,"--") -> 167625
A74: 0503 | B74: Cape May Point Borough | C74: Cape May | D74: 3400910330 | E74: 71 | F74: =VLOOKUP(A74,'[1]Municipal Tax Summary'!$A$3:$AN$566,4,FALSE) -> 495189900 | G74: =VLOOKUP(A74,'[1]Municipal Tax Summary'!$A$3:$AN$566,17,FALSE) -> 1808088.08 | H74: 0.365130242 | I74: 280590 | J74: 188.7800323 | K74: =VLOOKUP(A74,'[1]Municipal Tax Summary'!$A$3:$AN$566,29,FALSE) -> 0.7656828764 | L74: =VLOOKUP(A74,'[1]Municipal Tax Summary'!$A$3:$AN$566,9,FALSE) -> 1880378.19 | M74: =VLOOKUP(A74,'[1]Municipal Tax Summary'!$A$3:$AN$566,13,FALSE) -> 103118 | N74: =VLOOKUP(A74,'[1]Municipal Tax Summary'!$A$3:$AN$566,18,FALSE) -> 3791584.27 | O74: 0.4768687576 | P74: 0.4959346954 | Q74: 0.02719654705 | R74: 171 | S74: 1640.877193 | T74: 574315 | U74: 27500 | V74: 36550 | W74: 40750 | X74: 1045475 | Y74: 0 | Z74: 0 | AA74: 0 | AB74: 137922 | AC74: 16500 | AD74: =IFERROR(T74*'Inputs & Assumptions'!$Q$40,"--") -> 57431.5 | AE74: =IFERROR(U74*'Inputs & Assumptions'!$Q$41,"--") -> 2750 | AF74: =IFERROR(V74*'Inputs & Assumptions'!$Q$42,"--") -> 18275 | AG74: =IFERROR(W74*'Inputs & Assumptions'!$Q$43,"--") -> 20375 | AH74: =IFERROR(X74*'Inputs & Assumptions'!$Q$44,"--") -> 104547.5 | AI74: =IFERROR(Y74*'Inputs & Assumptions'!$Q$45,"--") -> 0 | AJ74: =IFERROR(Z74*'Inputs & Assumptions'!$Q$46,"--") -> 0 | AK74: =IFERROR(AA74*'Inputs & Assumptions'!$Q$47,"--") -> 0 | AL74: =IFERROR(AB74*'Inputs & Assumptions'!$Q$48,"--") -> 68961 | AM74: =IFERROR(AC74*'Inputs & Assumptions'!$Q$49,"--") -> 8250
A75: 0205 | B75: Carlstadt Borough | C75: Bergen | D75: 3400310480 | E75: 72 | F75: =VLOOKUP(A75,'[1]Municipal Tax Summary'!$A$3:$AN$566,4,FALSE) -> 3404433051 | G75: =VLOOKUP(A75,'[1]Municipal Tax Summary'!$A$3:$AN$566,17,FALSE) -> 27456162.01 | H75: 0.8064826536 | I75: 5556867.504 | J75: 2525.809353 | K75: =VLOOKUP(A75,'[1]Municipal Tax Summary'!$A$3:$AN$566,29,FALSE) -> 1.704155649 | L75: =VLOOKUP(A75,'[1]Municipal Tax Summary'!$A$3:$AN$566,9,FALSE) -> 8023065.16 | M75: =VLOOKUP(A75,'[1]Municipal Tax Summary'!$A$3:$AN$566,13,FALSE) -> 22537611 | N75: =VLOOKUP(A75,'[1]Municipal Tax Summary'!$A$3:$AN$566,18,FALSE) -> 58016838.17 | O75: 0.4732447144 | P75: 0.1382885626 | Q75: 0.388466723 | R75: 15522 | S75: 357.9994526 | T75: 1923550 | U75: 286200 | V75: 172000 | W75: 6779384.54 | X75: 3483335.29 | Y75: 143795.41 | Z75: 1143321.64 | AA75: 0 | AB75: 2622310 | AC75: 144000 | AD75: =IFERROR(T75*'Inputs & Assumptions'!$Q$40,"--") -> 192355 | AE75: =IFERROR(U75*'Inputs & Assumptions'!$Q$41,"--") -> 28620 | AF75: =IFERROR(V75*'Inputs & Assumptions'!$Q$42,"--") -> 86000 | AG75: =IFERROR(W75*'Inputs & Assumptions'!$Q$43,"--") -> 3389692.27 | AH75: =IFERROR(X75*'Inputs & Assumptions'!$Q$44,"--") -> 348333.529 | AI75: =IFERROR(Y75*'Inputs & Assumptions'!$Q$45,"--") -> 14379.541 | AJ75: =IFERROR(Z75*'Inputs & Assumptions'!$Q$46,"--") -> 114332.164 | AK75: =IFERROR(AA75*'Inputs & Assumptions'!$Q$47,"--") -> 0 | AL75: =IFERROR(AB75*'Inputs & Assumptions'!$Q$48,"--") -> 1311155 | AM75: =IFERROR(AC75*'Inputs & Assumptions'!$Q$49,"--") -> 72000
A76: 1713 | B76: Carneys Point Township | C76: Salem | D76: 3403310610 | E76: 73 | F76: =VLOOKUP(A76,'[1]Municipal Tax Summary'!$A$3:$AN$566,4,FALSE) -> 1094233300 | G76: =VLOOKUP(A76,'[1]Municipal Tax Summary'!$A$3:$AN$566,17,FALSE) -> 5618360.01 | H76: 0.5134517484 | I76: 3301899.5 | J76: 10823.58439 | K76: =VLOOKUP(A76,'[1]Municipal Tax Summary'!$A$3:$AN$566,29,FALSE) -> 2.409311088 | L76: =VLOOKUP(A76,'[1]Municipal Tax Summary'!$A$3:$AN$566,9,FALSE) -> 11226103.22 | M76: =VLOOKUP(A76,'[1]Municipal Tax Summary'!$A$3:$AN$566,13,FALSE) -> 9519021 | N76: =VLOOKUP(A76,'[1]Municipal Tax Summary'!$A$3:$AN$566,18,FALSE) -> 26363484.23 | O76: 0.2131114371 | P76: 0.4258201656 | Q76: 0.3610683974 | R76: 11002 | S76: 300.1181149 | T76: 1283125 | U76: 86050 | V76: 466000 | W76: 3890716.3 | X76: 1006598.9 | Y76: 138800 | Z76: 0 | AA76: 477500 | AB76: 1136050 | AC76: 130617.92 | AD76: =IFERROR(T76*'Inputs & Assumptions'!$Q$40,"--") -> 128312.5 | AE76: =IFERROR(U76*'Inputs & Assumptions'!$Q$41,"--") -> 8605 | AF76: =IFERROR(V76*'Inputs & Assumptions'!$Q$42,"--") -> 233000 | AG76: =IFERROR(W76*'Inputs & Assumptions'!$Q$43,"--") -> 1945358.15 | AH76: =IFERROR(X76*'Inputs & Assumptions'!$Q$44,"--") -> 100659.89 | AI76: =IFERROR(Y76*'Inputs & Assumptions'!$Q$45,"--") -> 13880 | AJ76: =IFERROR(Z76*'Inputs & Assumptions'!$Q$46,"--") -> 0 | AK76: =IFERROR(AA76*'Inputs & Assumptions'!$Q$47,"--") -> 238750 | AL76: =IFERROR(AB76*'Inputs & Assumptions'!$Q$48,"--") -> 568025 | AM76: =IFERROR(AC76*'Inputs & Assumptions'!$Q$49,"--") -> 65308.96
A77: 1201 | B77: Carteret Borough | C77: Middlesex | D77: 3402310750 | E77: 74 | F77: =VLOOKUP(A77,'[1]Municipal Tax Summary'!$A$3:$AN$566,4,FALSE) -> 5726961883 | G77: =VLOOKUP(A77,'[1]Municipal Tax Summary'!$A$3:$AN$566,17,FALSE) -> 42348549.72 | H77: 0.7394592558 | I77: 12986131.78 | J77: 2810.207515 | K77: =VLOOKUP(A77,'[1]Municipal Tax Summary'!$A$3:$AN$566,29,FALSE) -> 1.567807738 | L77: =VLOOKUP(A77,'[1]Municipal Tax Summary'!$A$3:$AN$566,9,FALSE) -> 17716410.82 | M77: =VLOOKUP(A77,'[1]Municipal Tax Summary'!$A$3:$AN$566,13,FALSE) -> 29722791 | N77: =VLOOKUP(A77,'[1]Municipal Tax Summary'!$A$3:$AN$566,18,FALSE) -> 89787751.54 | O77: 0.4716517453 | P77: 0.1973143387 | Q77: 0.331033916 | R77: 34164 | S77: 380.1115729 | T77: 7504725.74 | U77: 1781100 | V77: 488000 | W77: 15520000 | X77: 11219378.62 | Y77: 167000 | Z77: 1469918.39 | AA77: 0 | AB77: 5091589 | AC77: 444250 | AD77: =IFERROR(T77*'Inputs & Assumptions'!$Q$40,"--") -> 750472.574 | AE77: =IFERROR(U77*'Inputs & Assumptions'!$Q$41,"--") -> 178110 | AF77: =IFERROR(V77*'Inputs & Assumptions'!$Q$42,"--") -> 244000 | AG77: =IFERROR(W77*'Inputs & Assumptions'!$Q$43,"--") -> 7760000 | AH77: =IFERROR(X77*'Inputs & Assumptions'!$Q$44,"--") -> 1121937.862 | AI77: =IFERROR(Y77*'Inputs & Assumptions'!$Q$45,"--") -> 16700 | AJ77: =IFERROR(Z77*'Inputs & Assumptions'!$Q$46,"--") -> 146991.839 | AK77: =IFERROR(AA77*'Inputs & Assumptions'!$Q$47,"--") -> 0 | AL77: =IFERROR(AB77*'Inputs & Assumptions'!$Q$48,"--") -> 2545794.5 | AM77: =IFERROR(AC77*'Inputs & Assumptions'!$Q$49,"--") -> 222125
A78: 0704 | B78: Cedar Grove Township | C78: Essex | D78: 3401311200 | E78: 75 | F78: =VLOOKUP(A78,'[1]Municipal Tax Summary'!$A$3:$AN$566,4,FALSE) -> 2276824900 | G78: =VLOOKUP(A78,'[1]Municipal Tax Summary'!$A$3:$AN$566,17,FALSE) -> 13261233.05 | H78: 0.5824441331 | I78: 6505675.156 | J78: 2711.571983 | K78: =VLOOKUP(A78,'[1]Municipal Tax Summary'!$A$3:$AN$566,29,FALSE) -> 2.602479611 | L78: =VLOOKUP(A78,'[1]Municipal Tax Summary'!$A$3:$AN$566,9,FALSE) -> 10766236.76 | M78: =VLOOKUP(A78,'[1]Municipal Tax Summary'!$A$3:$AN$566,13,FALSE) -> 35226434 | N78: =VLOOKUP(A78,'[1]Municipal Tax Summary'!$A$3:$AN$566,18,FALSE) -> 59253903.81 | O78: 0.2238035336 | P78: 0.1816966658 | Q78: 0.5944998006 | R78: 16887 | S78: 385.2475369 | T78: 1283200 | U78: 33500 | V78: 257150 | W78: 6236585.03 | X78: 5508260 | Y78: 234900 | Z78: 1006751.41 | AA78: 1939799 | AB78: 2724456 | AC78: 240038 | AD78: =IFERROR(T78*'Inputs & Assumptions'!$Q$40,"--") -> 128320 | AE78: =IFERROR(U78*'Inputs & Assumptions'!$Q$41,"--") -> 3350 | AF78: =IFERROR(V78*'Inputs & Assumptions'!$Q$42,"--") -> 128575 | AG78: =IFERROR(W78*'Inputs & Assumptions'!$Q$43,"--") -> 3118292.515 | AH78: =IFERROR(X78*'Inputs & Assumptions'!$Q$44,"--") -> 550826 | AI78: =IFERROR(Y78*'Inputs & Assumptions'!$Q$45,"--") -> 23490 | AJ78: =IFERROR(Z78*'Inputs & Assumptions'!$Q$46,"--") -> 100675.141 | AK78: =IFERROR(AA78*'Inputs & Assumptions'!$Q$47,"--") -> 969899.5 | AL78: =IFERROR(AB78*'Inputs & Assumptions'!$Q$48,"--") -> 1362228 | AM78: =IFERROR(AC78*'Inputs & Assumptions'!$Q$49,"--") -> 120019
A79: 1404 | B79: Chatham Borough | C79: Morris | D79: 3402712100 | E79: 76 | F79: =VLOOKUP(A79,'[1]Municipal Tax Summary'!$A$3:$AN$566,4,FALSE) -> 3091945700 | G79: =VLOOKUP(A79,'[1]Municipal Tax Summary'!$A$3:$AN$566,17,FALSE) -> 10960292.88 | H79: 0.354478828 | I79: 4609798.262 | J79: 1502.287422 | K79: =VLOOKUP(A79,'[1]Municipal Tax Summary'!$A$3:$AN$566,29,FALSE) -> 1.700785165 | L79: =VLOOKUP(A79,'[1]Municipal Tax Summary'!$A$3:$AN$566,9,FALSE) -> 8211742.91 | M79: =VLOOKUP(A79,'[1]Municipal Tax Summary'!$A$3:$AN$566,13,FALSE) -> 33415318 | N79: =VLOOKUP(A79,'[1]Municipal Tax Summary'!$A$3:$AN$566,18,FALSE) -> 52587353.79 | O79: 0.208420696 | P79: 0.1561543283 | Q79: 0.6354249756 | R79: 12641 | S79: 364.6703791 | T79: 1663263 | U79: 71600 | V79: 0 | W79: 4638789 | X79: 3053540 | Y79: 155572 | Z79: 1247127.62 | AA79: 1319156 | AB79: 1844831 | AC79: 178600 | AD79: =IFERROR(T79*'Inputs & Assumptions'!$Q$40,"--") -> 166326.3 | AE79: =IFERROR(U79*'Inputs & Assumptions'!$Q$41,"--") -> 7160 | AF79: =IFERROR(V79*'Inputs & Assumptions'!$Q$42,"--") -> 0 | AG79: =IFERROR(W79*'Inputs & Assumptions'!$Q$43,"--") -> 2319394.5 | AH79: =IFERROR(X79*'Inputs & Assumptions'!$Q$44,"--") -> 305354 | AI79: =IFERROR(Y79*'Inputs & Assumptions'!$Q$45,"--") -> 15557.2 | AJ79: =IFERROR(Z79*'Inputs & Assumptions'!$Q$46,"--") -> 124712.762 | AK79: =IFERROR(AA79*'Inputs & Assumptions'!$Q$47,"--") -> 659578 | AL79: =IFERROR(AB79*'Inputs & Assumptions'!$Q$48,"--") -> 922415.5 | AM79: =IFERROR(AC79*'Inputs & Assumptions'!$Q$49,"--") -> 89300
A80: 1405 | B80: Chatham Township | C80: Morris | D80: 3402712130 | E80: 77 | F80: =VLOOKUP(A80,'[1]Municipal Tax Summary'!$A$3:$AN$566,4,FALSE) -> 3492318600 | G80: =VLOOKUP(A80,'[1]Municipal Tax Summary'!$A$3:$AN$566,17,FALSE) -> 14060125.52 | H80: 0.4026014557 | I80: 4391035.288 | J80: 5810.120224 | K80: =VLOOKUP(A80,'[1]Municipal Tax Summary'!$A$3:$AN$566,29,FALSE) -> 2.103098007 | L80: =VLOOKUP(A80,'[1]Municipal Tax Summary'!$A$3:$AN$566,9,FALSE) -> 11530691.37 | M80: =VLOOKUP(A80,'[1]Municipal Tax Summary'!$A$3:$AN$566,13,FALSE) -> 47856066 | N80: =VLOOKUP(A80,'[1]Municipal Tax Summary'!$A$3:$AN$566,18,FALSE) -> 73446882.89 | O80: 0.1914325696 | P80: 0.1569936111 | Q80: 0.6515738193 | R80: 12653 | S80: 347.0351133 | T80: 4600350 | U80: 247400 | V80: 461375 | W80: 4346990.68 | X80: 3970820 | Y80: 169232.82 | Z80: 1496149.76 | AA80: 0 | AB80: 1790914.38 | AC80: 86000 | AD80: =IFERROR(T80*'Inputs & Assumptions'!$Q$40,"--") -> 460035 | AE80: =IFERROR(U80*'Inputs & Assumptions'!$Q$41,"--") -> 24740 | AF80: =IFERROR(V80*'Inputs & Assumptions'!$Q$42,"--") -> 230687.5 | AG80: =IFERROR(W80*'Inputs & Assumptions'!$Q$43,"--") -> 2173495.34 | AH80: =IFERROR(X80*'Inputs & Assumptions'!$Q$44,"--") -> 397082 | AI80: =IFERROR(Y80*'Inputs & Assumptions'!$Q$45,"--") -> 16923.282 | AJ80: =IFERROR(Z80*'Inputs & Assumptions'!$Q$46,"--") -> 149614.976 | AK80: =IFERROR(AA80*'Inputs & Assumptions'!$Q$47,"--") -> 0 | AL80: =IFERROR(AB80*'Inputs & Assumptions'!$Q$48,"--") -> 895457.19 | AM80: =IFERROR(AC80*'Inputs & Assumptions'!$Q$49,"--") -> 43000
A81: 0409 | B81: Cherry Hill Township | C81: Camden | D81: 3400712280 | E81: 78 | F81: =VLOOKUP(A81,'[1]Municipal Tax Summary'!$A$3:$AN$566,4,FALSE) -> 7936682400 | G81: =VLOOKUP(A81,'[1]Municipal Tax Summary'!$A$3:$AN$566,17,FALSE) -> 55384042.64 | H81: 0.6978235974 | I81: 19880208.87 | J81: 15406.09003 | K81: =VLOOKUP(A81,'[1]Municipal Tax Summary'!$A$3:$AN$566,29,FALSE) -> 4.347332503 | L81: =VLOOKUP(A81,'[1]Municipal Tax Summary'!$A$3:$AN$566,9,FALSE) -> 75084735.96 | M81: =VLOOKUP(A81,'[1]Municipal Tax Summary'!$A$3:$AN$566,13,FALSE) -> 214565195 | N81: =VLOOKUP(A81,'[1]Municipal Tax Summary'!$A$3:$AN$566,18,FALSE) -> 345033973.6 | O81: 0.1605176501 | P81: 0.2176154863 | Q81: 0.6218668636 | R81: 111619 | S81: 178.1077493 | T81: 5180769 | U81: 890415 | V81: 1652635 | W81: 20887180.93 | X81: 13370606 | Y81: 0 | Z81: 4138399 | AA81: 3027500 | AB81: 8997000 | AC81: 480064 | AD81: =IFERROR(T81*'Inputs & Assumptions'!$Q$40,"--") -> 518076.9 | AE81: =IFERROR(U81*'Inputs & Assumptions'!$Q$41,"--") -> 89041.5 | AF81: =IFERROR(V81*'Inputs & Assumptions'!$Q$42,"--") -> 826317.5 | AG81: =IFERROR(W81*'Inputs & Assumptions'!$Q$43,"--") -> 10443590.46 | AH81: =IFERROR(X81*'Inputs & Assumptions'!$Q$44,"--") -> 1337060.6 | AI81: =IFERROR(Y81*'Inputs & Assumptions'!$Q$45,"--") -> 0 | AJ81: =IFERROR(Z81*'Inputs & Assumptions'!$Q$46,"--") -> 413839.9 | AK81: =IFERROR(AA81*'Inputs & Assumptions'!$Q$47,"--") -> 1513750 | AL81: =IFERROR(AB81*'Inputs & Assumptions'!$Q$48,"--") -> 4498500 | AM81: =IFERROR(AC81*'Inputs & Assumptions'!$Q$49,"--") -> 240032
A82: 0410 | B82: Chesilhurst Borough | C82: Camden | D82: 3400712550 | E82: 79 | F82: =VLOOKUP(A82,'[1]Municipal Tax Summary'!$A$3:$AN$566,4,FALSE) -> 88583800 | G82: =VLOOKUP(A82,'[1]Municipal Tax Summary'!$A$3:$AN$566,17,FALSE) -> 1978210.03 | H82: 2.233151016 | I82: 1042805.8 | J82: 1097.845516 | K82: =VLOOKUP(A82,'[1]Municipal Tax Summary'!$A$3:$AN$566,29,FALSE) -> 4.723129737 | L82: =VLOOKUP(A82,'[1]Municipal Tax Summary'!$A$3:$AN$566,9,FALSE) -> 738831.77 | M82: =VLOOKUP(A82,'[1]Municipal Tax Summary'!$A$3:$AN$566,13,FALSE) -> 1466886 | N82: =VLOOKUP(A82,'[1]Municipal Tax Summary'!$A$3:$AN$566,18,FALSE) -> 4183927.8 | O82: 0.4728117034 | P82: 0.1765880783 | Q82: 0.3506002183 | R82: 1566 | S82: 665.9040868 | T82: 623413 | U82: 33126 | V82: 0 | W82: 1153219 | X82: 278899 | Y82: 44300 | Z82: 0 | AA82: 233512 | AB82: 421837 | AC82: 81096 | AD82: =IFERROR(T82*'Inputs & Assumptions'!$Q$40,"--") -> 62341.3 | AE82: =IFERROR(U82*'Inputs & Assumptions'!$Q$41,"--") -> 3312.6 | AF82: =IFERROR(V82*'Inputs & Assumptions'!$Q$42,"--") -> 0 | AG82: =IFERROR(W82*'Inputs & Assumptions'!$Q$43,"--") -> 576609.5 | AH82: =IFERROR(X82*'Inputs & Assumptions'!$Q$44,"--") -> 27889.9 | AI82: =IFERROR(Y82*'Inputs & Assumptions'!$Q$45,"--") -> 4430 | AJ82: =IFERROR(Z82*'Inputs & Assumptions'!$Q$46,"--") -> 0 | AK82: =IFERROR(AA82*'Inputs & Assumptions'!$Q$47,"--") -> 116756 | AL82: =IFERROR(AB82*'Inputs & Assumptions'!$Q$48,"--") -> 210918.5 | AM82: =IFERROR(AC82*'Inputs & Assumptions'!$Q$49,"--") -> 40548
A83: 1406 | B83: Chester Borough | C83: Morris | D83: 3402712580 | E83: 80 | F83: =VLOOKUP(A83,'[1]Municipal Tax Summary'!$A$3:$AN$566,4,FALSE) -> 527616232 | G83: =VLOOKUP(A83,'[1]Municipal Tax Summary'!$A$3:$AN$566,17,FALSE) -> 4142488.85 | H83: 0.785132943 | I83: 1331380.504 | J83: 1019.052538 | K83: =VLOOKUP(A83,'[1]Municipal Tax Summary'!$A$3:$AN$566,29,FALSE) -> 2.327075553 | L83: =VLOOKUP(A83,'[1]Municipal Tax Summary'!$A$3:$AN$566,9,FALSE) -> 1318770.5 | M83: =VLOOKUP(A83,'[1]Municipal Tax Summary'!$A$3:$AN$566,13,FALSE) -> 6816769 | N83: =VLOOKUP(A83,'[1]Municipal Tax Summary'!$A$3:$AN$566,18,FALSE) -> 12278028.35 | O83: 0.3373903962 | P83: 0.1074089799 | Q83: 0.5552006239 | R83: 4244 | S83: 313.7088841 | T83: 728441 | U83: 80300 | V83: 87050 | W83: 1658699 | X83: 1425229 | Y83: 127211.62 | Z83: 183414.47 | AA83: 219362.79 | AB83: 188230 | AC83: 500 | AD83: =IFERROR(T83*'Inputs & Assumptions'!$Q$40,"--") -> 72844.1 | AE83: =IFERROR(U83*'Inputs & Assumptions'!$Q$41,"--") -> 8030 | AF83: =IFERROR(V83*'Inputs & Assumptions'!$Q$42,"--") -> 43525 | AG83: =IFERROR(W83*'Inputs & Assumptions'!$Q$43,"--") -> 829349.5 | AH83: =IFERROR(X83*'Inputs & Assumptions'!$Q$44,"--") -> 142522.9 | AI83: =IFERROR(Y83*'Inputs & Assumptions'!$Q$45,"--") -> 12721.162 | AJ83: =IFERROR(Z83*'Inputs & Assumptions'!$Q$46,"--") -> 18341.447 | AK83: =IFERROR(AA83*'Inputs & Assumptions'!$Q$47,"--") -> 109681.395 | AL83: =IFERROR(AB83*'Inputs & Assumptions'!$Q$48,"--") -> 94115 | AM83: =IFERROR(AC83*'Inputs & Assumptions'!$Q$49,"--") -> 250
A84: 1407 | B84: Chester Township | C84: Morris | D84: 3402712610 | E84: 81 | F84: =VLOOKUP(A84,'[1]Municipal Tax Summary'!$A$3:$AN$566,4,FALSE) -> 1829343376 | G84: =VLOOKUP(A84,'[1]Municipal Tax Summary'!$A$3:$AN$566,17,FALSE) -> 10514793.7 | H84: 0.5747851299 | I84: 2989974.202 | J84: 18644.22236 | K84: =VLOOKUP(A84,'[1]Municipal Tax Summary'!$A$3:$AN$566,29,FALSE) -> 2.586867007 | L84: =VLOOKUP(A84,'[1]Municipal Tax Summary'!$A$3:$AN$566,9,FALSE) -> 5500551.53 | M84: =VLOOKUP(A84,'[1]Municipal Tax Summary'!$A$3:$AN$566,13,FALSE) -> 31307335 | N84: =VLOOKUP(A84,'[1]Municipal Tax Summary'!$A$3:$AN$566,18,FALSE) -> 47322680.23 | O84: 0.222193537 | P84: 0.1162349956 | Q84: 0.6615714674 | R84: 9850 | S84: 303.5506804 | T84: 1124393 | U84: 232550 | V84: 273100 | W84: 2456669 | X84: 1918100 | Y84: 99524 | Z84: 765325.02 | AA84: 992000 | AB84: 1350676 | AC84: 79525 | AD84: =IFERROR(T84*'Inputs & Assumptions'!$Q$40,"--") -> 112439.3 | AE84: =IFERROR(U84*'Inputs & Assumptions'!$Q$41,"--") -> 23255 | AF84: =IFERROR(V84*'Inputs & Assumptions'!$Q$42,"--") -> 136550 | AG84: =IFERROR(W84*'Inputs & Assumptions'!$Q$43,"--") -> 1228334.5 | AH84: =IFERROR(X84*'Inputs & Assumptions'!$Q$44,"--") -> 191810 | AI84: =IFERROR(Y84*'Inputs & Assumptions'!$Q$45,"--") -> 9952.4 | AJ84: =IFERROR(Z84*'Inputs & Assumptions'!$Q$46,"--") -> 76532.502 | AK84: =IFERROR(AA84*'Inputs & Assumptions'!$Q$47,"--") -> 496000 | AL84: =IFERROR(AB84*'Inputs & Assumptions'!$Q$48,"--") -> 675338 | AM84: =IFERROR(AC84*'Inputs & Assumptions'!$Q$49,"--") -> 39762.5
A85: 0307 | B85: Chesterfield Township | C85: Burlington | D85: 3400512670 | E85: 82 | F85: =VLOOKUP(A85,'[1]Municipal Tax Summary'!$A$3:$AN$566,4,FALSE) -> 844600097 | G85: =VLOOKUP(A85,'[1]Municipal Tax Summary'!$A$3:$AN$566,17,FALSE) -> 3790483.42 | H85: 0.4487903131 | I85: 1591408 | J85: 13639.28358 | K85: =VLOOKUP(A85,'[1]Municipal Tax Summary'!$A$3:$AN$566,29,FALSE) -> 3.40963905 | L85: =VLOOKUP(A85,'[1]Municipal Tax Summary'!$A$3:$AN$566,9,FALSE) -> 4340730.3 | M85: =VLOOKUP(A85,'[1]Municipal Tax Summary'!$A$3:$AN$566,13,FALSE) -> 20666601 | N85: =VLOOKUP(A85,'[1]Municipal Tax Summary'!$A$3:$AN$566,18,FALSE) -> 28797814.72 | O85: 0.131623995 | P85: 0.1507312392 | Q85: 0.7176447658 | R85: 10047 | S85: 158.3963372 | T85: 1353200 | U85: 33700 | V85: 176700 | W85: 1669535.58 | X85: 795700 | Y85: 27895 | Z85: 25000 | AA85: 0 | AB85: 769481.42 | AC85: 120000 | AD85: =IFERROR(T85*'Inputs & Assumptions'!$Q$40,"--") -> 135320 | AE85: =IFERROR(U85*'Inputs & Assumptions'!$Q$41,"--") -> 3370 | AF85: =IFERROR(V85*'Inputs & Assumptions'!$Q$42,"--") -> 88350 | AG85: =IFERROR(W85*'Inputs & Assumptions'!$Q$43,"--") -> 834767.79 | AH85: =IFERROR(X85*'Inputs & Assumptions'!$Q$44,"--") -> 79570 | AI85: =IFERROR(Y85*'Inputs & Assumptions'!$Q$45,"--") -> 2789.5 | AJ85: =IFERROR(Z85*'Inputs & Assumptions'!$Q$46,"--") -> 2500 | AK85: =IFERROR(AA85*'Inputs & Assumptions'!$Q$47,"--") -> 0 | AL85: =IFERROR(AB85*'Inputs & Assumptions'!$Q$48,"--") -> 384740.71 | AM85: =IFERROR(AC85*'Inputs & Assumptions'!$Q$49,"--") -> 60000
A86: 0308 | B86: Cinnaminson Township | C86: Burlington | D86: 3400512940 | E86: 83 | F86: =VLOOKUP(A86,'[1]Municipal Tax Summary'!$A$3:$AN$566,4,FALSE) -> 1655899609 | G86: =VLOOKUP(A86,'[1]Municipal Tax Summary'!$A$3:$AN$566,17,FALSE) -> 10420401.01 | H86: 0.6292894179 | I86: 4789145.199 | J86: 4751.272617 | K86: =VLOOKUP(A86,'[1]Municipal Tax Summary'!$A$3:$AN$566,29,FALSE) -> 3.668951101 | L86: =VLOOKUP(A86,'[1]Municipal Tax Summary'!$A$3:$AN$566,9,FALSE) -> 9860552.92 | M86: =VLOOKUP(A86,'[1]Municipal Tax Summary'!$A$3:$AN$566,13,FALSE) -> 40473193 | N86: =VLOOKUP(A86,'[1]Municipal Tax Summary'!$A$3:$AN$566,18,FALSE) -> 60754146.93 | O86: 0.1715175266 | P86: 0.1623025492 | Q86: 0.6661799243 | R86: 22568 | S86: 212.2095533 | T86: 1827015.99 | U86: 108050 | V86: 311250 | W86: 4429839 | X86: 1890154 | Y86: 26657 | Z86: 0 | AA86: 1964947 | AB86: 1881829 | AC86: 220050 | AD86: =IFERROR(T86*'Inputs & Assumptions'!$Q$40,"--") -> 182701.599 | AE86: =IFERROR(U86*'Inputs & Assumptions'!$Q$41,"--") -> 10805 | AF86: =IFERROR(V86*'Inputs & Assumptions'!$Q$42,"--") -> 155625 | AG86: =IFERROR(W86*'Inputs & Assumptions'!$Q$43,"--") -> 2214919.5 | AH86: =IFERROR(X86*'Inputs & Assumptions'!$Q$44,"--") -> 189015.4 | AI86: =IFERROR(Y86*'Inputs & Assumptions'!$Q$45,"--") -> 2665.7 | AJ86: =IFERROR(Z86*'Inputs & Assumptions'!$Q$46,"--") -> 0 | AK86: =IFERROR(AA86*'Inputs & Assumptions'!$Q$47,"--") -> 982473.5 | AL86: =IFERROR(AB86*'Inputs & Assumptions'!$Q$48,"--") -> 940914.5 | AM86: =IFERROR(AC86*'Inputs & Assumptions'!$Q$49,"--") -> 110025
A87: 0717 | B87: City of Orange Township | C87: Essex | D87: 3401313045 | E87: 84 | F87: =VLOOKUP(A87,'[1]Municipal Tax Summary'!$A$3:$AN$566,4,FALSE) -> 2240009300 | G87: =VLOOKUP(A87,'[1]Municipal Tax Summary'!$A$3:$AN$566,17,FALSE) -> 68362597 | H87: 3.051888981 | I87: 25587052.5 | J87: 1416.110939 | K87: =VLOOKUP(A87,'[1]Municipal Tax Summary'!$A$3:$AN$566,29,FALSE) -> 4.029084339 | L87: =VLOOKUP(A87,'[1]Municipal Tax Summary'!$A$3:$AN$566,9,FALSE) -> 8481454.9 | M87: =VLOOKUP(A87,'[1]Municipal Tax Summary'!$A$3:$AN$566,13,FALSE) -> 13407812 | N87: =VLOOKUP(A87,'[1]Municipal Tax Summary'!$A$3:$AN$566,18,FALSE) -> 90251863.9 | O87: 0.7574646555 | P87: 0.09397539877 | Q87: 0.1485599457 | R87: 38802 | S87: 659.4261249 | T87: 6942688 | U87: 32650 | V87: 824372 | W87: 30763690 | X87: 23204307 | Y87: 1930992 | Z87: 985343 | AA87: 0 | AB87: 11704975 | AC87: 1261872 | AD87: =IFERROR(T87*'Inputs & Assumptions'!$Q$40,"--") -> 694268.8 | AE87: =IFERROR(U87*'Inputs & Assumptions'!$Q$41,"--") -> 3265 | AF87: =IFERROR(V87*'Inputs & Assumptions'!$Q$42,"--") -> 412186 | AG87: =IFERROR(W87*'Inputs & Assumptions'!$Q$43,"--") -> 15381845 | AH87: =IFERROR(X87*'Inputs & Assumptions'!$Q$44,"--") -> 2320430.7 | AI87: =IFERROR(Y87*'Inputs & Assumptions'!$Q$45,"--") -> 193099.2 | AJ87: =IFERROR(Z87*'Inputs & Assumptions'!$Q$46,"--") -> 98534.3 | AK87: =IFERROR(AA87*'Inputs & Assumptions'!$Q$47,"--") -> 0 | AL87: =IFERROR(AB87*'Inputs & Assumptions'!$Q$48,"--") -> 5852487.5 | AM87: =IFERROR(AC87*'Inputs & Assumptions'!$Q$49,"--") -> 630936
A88: 2002 | B88: Clark Township | C88: Union | D88: 3403913150 | E88: 85 | F88: =VLOOKUP(A88,'[1]Municipal Tax Summary'!$A$3:$AN$566,4,FALSE) -> 3291444480 | G88: =VLOOKUP(A88,'[1]Municipal Tax Summary'!$A$3:$AN$566,17,FALSE) -> 22169619.47 | H88: 0.6735528916 | I88: 6958831.185 | J88: 2734.86215 | K88: =VLOOKUP(A88,'[1]Municipal Tax Summary'!$A$3:$AN$566,29,FALSE) -> 2.268979048 | L88: =VLOOKUP(A88,'[1]Municipal Tax Summary'!$A$3:$AN$566,9,FALSE) -> 14102879.17 | M88: =VLOOKUP(A88,'[1]Municipal Tax Summary'!$A$3:$AN$566,13,FALSE) -> 38409687 | N88: =VLOOKUP(A88,'[1]Municipal Tax Summary'!$A$3:$AN$566,18,FALSE) -> 74682185.64 | O88: 0.2968528476 | P88: 0.1888385972 | Q88: 0.5143085553 | R88: 22618 | S88: 307.6678391 | T88: 3944242 | U88: 41310 | V88: 738104 | W88: 7985874.77 | X88: 2389348 | Y88: 296499 | Z88: 1301124 | AA88: 0 | AB88: 3280225 | AC88: 318954 | AD88: =IFERROR(T88*'Inputs & Assumptions'!$Q$40,"--") -> 394424.2 | AE88: =IFERROR(U88*'Inputs & Assumptions'!$Q$41,"--") -> 4131 | AF88: =IFERROR(V88*'Inputs & Assumptions'!$Q$42,"--") -> 369052 | AG88: =IFERROR(W88*'Inputs & Assumptions'!$Q$43,"--") -> 3992937.385 | AH88: =IFERROR(X88*'Inputs & Assumptions'!$Q$44,"--") -> 238934.8 | AI88: =IFERROR(Y88*'Inputs & Assumptions'!$Q$45,"--") -> 29649.9 | AJ88: =IFERROR(Z88*'Inputs & Assumptions'!$Q$46,"--") -> 130112.4 | AK88: =IFERROR(AA88*'Inputs & Assumptions'!$Q$47,"--") -> 0 | AL88: =IFERROR(AB88*'Inputs & Assumptions'!$Q$48,"--") -> 1640112.5 | AM88: =IFERROR(AC88*'Inputs & Assumptions'!$Q$49,"--") -> 159477
A89: 0801 | B89: Clayton Borough | C89: Gloucester | D89: 3401513360 | E89: 86 | F89: =VLOOKUP(A89,'[1]Municipal Tax Summary'!$A$3:$AN$566,4,FALSE) -> 799445500 | G89: =VLOOKUP(A89,'[1]Municipal Tax Summary'!$A$3:$AN$566,17,FALSE) -> 5614737.59 | H89: 0.7023290005 | I89: 2290506.621 | J89: 4527.823961 | K89: =VLOOKUP(A89,'[1]Municipal Tax Summary'!$A$3:$AN$566,29,FALSE) -> 2.568389374 | L89: =VLOOKUP(A89,'[1]Municipal Tax Summary'!$A$3:$AN$566,9,FALSE) -> 3843428.68 | M89: =VLOOKUP(A89,'[1]Municipal Tax Summary'!$A$3:$AN$566,13,FALSE) -> 11074707 | N89: =VLOOKUP(A89,'[1]Municipal Tax Summary'!$A$3:$AN$566,18,FALSE) -> 20532873.27 | O89: 0.2734511394 | P89: 0.1871841622 | Q89: 0.5393646985 | R89: 10299 | S89: 222.4008759 | T89: 942882.19 | U89: 38600 | V89: 119250 | W89: 2426375 | X89: 2361619.02 | Y89: 7250 | Z89: 0 | AA89: 326500 | AB89: 1038818 | AC89: 0 | AD89: =IFERROR(T89*'Inputs & Assumptions'!$Q$40,"--") -> 94288.219 | AE89: =IFERROR(U89*'Inputs & Assumptions'!$Q$41,"--") -> 3860 | AF89: =IFERROR(V89*'Inputs & Assumptions'!$Q$42,"--") -> 59625 | AG89: =IFERROR(W89*'Inputs & Assumptions'!$Q$43,"--") -> 1213187.5 | AH89: =IFERROR(X89*'Inputs & Assumptions'!$Q$44,"--") -> 236161.902 | AI89: =IFERROR(Y89*'Inputs & Assumptions'!$Q$45,"--") -> 725 | AJ89: =IFERROR(Z89*'Inputs & Assumptions'!$Q$46,"--") -> 0 | AK89: =IFERROR(AA89*'Inputs & Assumptions'!$Q$47,"--") -> 163250 | AL89: =IFERROR(AB89*'Inputs & Assumptions'!$Q$48,"--") -> 519409 | AM89: =IFERROR(AC89*'Inputs & Assumptions'!$Q$49,"--") -> 0
A90: 0411 | B90: Clementon Borough | C90: Camden | D90: 3400713420 | E90: 87 | F90: =VLOOKUP(A90,'[1]Municipal Tax Summary'!$A$3:$AN$566,4,FALSE) -> 257594267 | G90: =VLOOKUP(A90,'[1]Municipal Tax Summary'!$A$3:$AN$566,17,FALSE) -> 5031015.44 | H90: 1.953077411 | I90: 1855779.855 | J90: 1211.381743 | K90: =VLOOKUP(A90,'[1]Municipal Tax Summary'!$A$3:$AN$566,29,FALSE) -> 4.775873028 | L90: =VLOOKUP(A90,'[1]Municipal Tax Summary'!$A$3:$AN$566,9,FALSE) -> 2335101.68 | M90: =VLOOKUP(A90,'[1]Municipal Tax Summary'!$A$3:$AN$566,13,FALSE) -> 4936258 | N90: =VLOOKUP(A90,'[1]Municipal Tax Summary'!$A$3:$AN$566,18,FALSE) -> 12302375.12 | O90: 0.4089466783 | P90: 0.1898090131 | Q90: 0.4012443087 | R90: 6558 | S90: 282.9795448 | T90: 610731 | U90: 19300 | V90: 140300 | W90: 1865306.08 | X90: 1695950.2 | Y90: 75502 | Z90: 0 | AA90: 204571.99 | AB90: 866285 | AC90: 154800 | AD90: =IFERROR(T90*'Inputs & Assumptions'!$Q$40,"--") -> 61073.1 | AE90: =IFERROR(U90*'Inputs & Assumptions'!$Q$41,"--") -> 1930 | AF90: =IFERROR(V90*'Inputs & Assumptions'!$Q$42,"--") -> 70150 | AG90: =IFERROR(W90*'Inputs & Assumptions'!$Q$43,"--") -> 932653.04 | AH90: =IFERROR(X90*'Inputs & Assumptions'!$Q$44,"--") -> 169595.02 | AI90: =IFERROR(Y90*'Inputs & Assumptions'!$Q$45,"--") -> 7550.2 | AJ90: =IFERROR(Z90*'Inputs & Assumptions'!$Q$46,"--") -> 0 | AK90: =IFERROR(AA90*'Inputs & Assumptions'!$Q$47,"--") -> 102285.995 | AL90: =IFERROR(AB90*'Inputs & Assumptions'!$Q$48,"--") -> 433142.5 | AM90: =IFERROR(AC90*'Inputs & Assumptions'!$Q$49,"--") -> 77400
A91: 0206 | B91: Cliffside Park Borough | C91: Bergen | D91: 3400313570 | E91: 88 | F91: =VLOOKUP(A91,'[1]Municipal Tax Summary'!$A$3:$AN$566,4,FALSE) -> 3082122859 | G91: =VLOOKUP(A91,'[1]Municipal Tax Summary'!$A$3:$AN$566,17,FALSE) -> 36544981 | H91: 1.18570812 | I91: 9294384.3 | J91: 611.6945414 | K91: =VLOOKUP(A91,'[1]Municipal Tax Summary'!$A$3:$AN$566,29,FALSE) -> 2.835763318 | L91: =VLOOKUP(A91,'[1]Municipal Tax Summary'!$A$3:$AN$566,9,FALSE) -> 10601119.46 | M91: =VLOOKUP(A91,'[1]Municipal Tax Summary'!$A$3:$AN$566,13,FALSE) -> 40255609 | N91: =VLOOKUP(A91,'[1]Municipal Tax Summary'!$A$3:$AN$566,18,FALSE) -> 87401709.46 | O91: 0.4181266159 | P91: 0.1212919006 | Q91: 0.4605814835 | R91: 27422 | S91: 338.9389651 | T91: 3520000 | U91: 22000 | V91: 560000 | W91: 10483522 | X91: 8047107 | Y91: 265400 | Z91: 1486726 | AA91: 1000000 | AB91: 3579000 | AC91: 298000 | AD91: =IFERROR(T91*'Inputs & Assumptions'!$Q$40,"--") -> 352000 | AE91: =IFERROR(U91*'Inputs & Assumptions'!$Q$41,"--") -> 2200 | AF91: =IFERROR(V91*'Inputs & Assumptions'!$Q$42,"--") -> 280000 | AG91: =IFERROR(W91*'Inputs & Assumptions'!$Q$43,"--") -> 5241761 | AH91: =IFERROR(X91*'Inputs & Assumptions'!$Q$44,"--") -> 804710.7 | AI91: =IFERROR(Y91*'Inputs & Assumptions'!$Q$45,"--") -> 26540 | AJ91: =IFERROR(Z91*'Inputs & Assumptions'!$Q$46,"--") -> 148672.6 | AK91: =IFERROR(AA91*'Inputs & Assumptions'!$Q$47,"--") -> 500000 | AL91: =IFERROR(AB91*'Inputs & Assumptions'!$Q$48,"--") -> 1789500 | AM91: =IFERROR(AC91*'Inputs & Assumptions'!$Q$49,"--") -> 149000
A92: 1602 | B92: Clifton City | C92: Passaic | D92: 3403113690 | E92: 89 | F92: =VLOOKUP(A92,'[1]Municipal Tax Summary'!$A$3:$AN$566,4,FALSE) -> 5389204439 | G92: =VLOOKUP(A92,'[1]Municipal Tax Summary'!$A$3:$AN$566,17,FALSE) -> 99028787 | H92: 1.837539995 | I92: 38736511.83 | J92: 7216.053885 | K92: =VLOOKUP(A92,'[1]Municipal Tax Summary'!$A$3:$AN$566,29,FALSE) -> 6.128222836 | L92: =VLOOKUP(A92,'[1]Municipal Tax Summary'!$A$3:$AN$566,9,FALSE) -> 72431450.09 | M92: =VLOOKUP(A92,'[1]Municipal Tax Summary'!$A$3:$AN$566,13,FALSE) -> 158802220 | N92: =VLOOKUP(A92,'[1]Municipal Tax Summary'!$A$3:$AN$566,18,FALSE) -> 330262457.1 | O92: 0.2998487563 | P92: 0.2193148162 | Q92: 0.4808364275 | R92: 114085 | S92: 339.540797 | T92: 5878052 | U92: 871500 | V92: 1231150 | W92: 42860625.5 | X92: 8043968.91 | Y92: 3914746.87 | Z92: 4964328 | AA92: 9650000 | AB92: 17748879 | AC92: 1247850 | AD92: =IFERROR(T92*'Inputs & Assumptions'!$Q$40,"--") -> 587805.2 | AE92: =IFERROR(U92*'Inputs & Assumptions'!$Q$41,"--") -> 87150 | AF92: =IFERROR(V92*'Inputs & Assumptions'!$Q$42,"--") -> 615575 | AG92: =IFERROR(W92*'Inputs & Assumptions'!$Q$43,"--") -> 21430312.75 | AH92: =IFERROR(X92*'Inputs & Assumptions'!$Q$44,"--") -> 804396.891 | AI92: =IFERROR(Y92*'Inputs & Assumptions'!$Q$45,"--") -> 391474.687 | AJ92: =IFERROR(Z92*'Inputs & Assumptions'!$Q$46,"--") -> 496432.8 | AK92: =IFERROR(AA92*'Inputs & Assumptions'!$Q$47,"--") -> 4825000 | AL92: =IFERROR(AB92*'Inputs & Assumptions'!$Q$48,"--") -> 8874439.5 | AM92: =IFERROR(AC92*'Inputs & Assumptions'!$Q$49,"--") -> 623925
A93: 1005 | B93: Clinton Town | C93: Hunterdon | D93: 3401913720 | E93: 90 | F93: =VLOOKUP(A93,'[1]Municipal Tax Summary'!$A$3:$AN$566,4,FALSE) -> 502517500 | G93: =VLOOKUP(A93,'[1]Municipal Tax Summary'!$A$3:$AN$566,17,FALSE) -> 4051737.38 | H93: 0.8062878168 | I93: 2193505.863 | J93: 861.7529766 | K93: =VLOOKUP(A93,'[1]Municipal Tax Summary'!$A$3:$AN$566,29,FALSE) -> 2.947859595 | L93: =VLOOKUP(A93,'[1]Municipal Tax Summary'!$A$3:$AN$566,9,FALSE) -> 1934499.96 | M93: =VLOOKUP(A93,'[1]Municipal Tax Summary'!$A$3:$AN$566,13,FALSE) -> 8827273 | N93: =VLOOKUP(A93,'[1]Municipal Tax Summary'!$A$3:$AN$566,18,FALSE) -> 14813510.34 | O93: 0.2735163568 | P93: 0.130590246 | Q93: 0.5958933971 | R93: 3949 | S93: 555.4585624 | T93: 514990 | U93: 61050 | V93: 120375 | W93: 1908335 | X93: 6322628.63 | Y93: 4565 | Z93: 0 | AA93: 15000 | AB93: 962655 | AC93: 0 | AD93: =IFERROR(T93*'Inputs & Assumptions'!$Q$40,"--") -> 51499 | AE93: =IFERROR(U93*'Inputs & Assumptions'!$Q$41,"--") -> 6105 | AF93: =IFERROR(V93*'Inputs & Assumptions'!$Q$42,"--") -> 60187.5 | AG93: =IFERROR(W93*'Inputs & Assumptions'!$Q$43,"--") -> 954167.5 | AH93: =IFERROR(X93*'Inputs & Assumptions'!$Q$44,"--") -> 632262.863 | AI93: =IFERROR(Y93*'Inputs & Assumptions'!$Q$45,"--") -> 456.5 | AJ93: =IFERROR(Z93*'Inputs & Assumptions'!$Q$46,"--") -> 0 | AK93: =IFERROR(AA93*'Inputs & Assumptions'!$Q$47,"--") -> 7500 | AL93: =IFERROR(AB93*'Inputs & Assumptions'!$Q$48,"--") -> 481327.5 | AM93: =IFERROR(AC93*'Inputs & Assumptions'!$Q$49,"--") -> 0
A94: 1006 | B94: Clinton Township | C94: Hunterdon | D94: 3401913750 | E94: 91 | F94: =VLOOKUP(A94,'[1]Municipal Tax Summary'!$A$3:$AN$566,4,FALSE) -> 2149296000 | G94: =VLOOKUP(A94,'[1]Municipal Tax Summary'!$A$3:$AN$566,17,FALSE) -> 12211455.58 | H94: 0.5681607177 | I94: 3637264.718 | J94: 19115.92238 | K94: =VLOOKUP(A94,'[1]Municipal Tax Summary'!$A$3:$AN$566,29,FALSE) -> 3.103555576 | L94: =VLOOKUP(A94,'[1]Municipal Tax Summary'!$A$3:$AN$566,9,FALSE) -> 9803557.27 | M94: =VLOOKUP(A94,'[1]Municipal Tax Summary'!$A$3:$AN$566,13,FALSE) -> 44689583 | N94: =VLOOKUP(A94,'[1]Municipal Tax Summary'!$A$3:$AN$566,18,FALSE) -> 66704595.85 | O94: 0.1830676796 | P94: 0.1469697424 | Q94: 0.669962578 | R94: 16963 | S94: 214.4234344 | T94: 1344524.16 | U94: 279100 | V94: 330000 | W94: 4111706.37 | X94: 1478758.62 | Y94: 48200 | Z94: 0 | AA94: 0 | AB94: 1754500 | AC94: 448206.51 | AD94: =IFERROR(T94*'Inputs & Assumptions'!$Q$40,"--") -> 134452.416 | AE94: =IFERROR(U94*'Inputs & Assumptions'!$Q$41,"--") -> 27910 | AF94: =IFERROR(V94*'Inputs & Assumptions'!$Q$42,"--") -> 165000 | AG94: =IFERROR(W94*'Inputs & Assumptions'!$Q$43,"--") -> 2055853.185 | AH94: =IFERROR(X94*'Inputs & Assumptions'!$Q$44,"--") -> 147875.862 | AI94: =IFERROR(Y94*'Inputs & Assumptions'!$Q$45,"--") -> 4820 | AJ94: =IFERROR(Z94*'Inputs & Assumptions'!$Q$46,"--") -> 0 | AK94: =IFERROR(AA94*'Inputs & Assumptions'!$Q$47,"--") -> 0 | AL94: =IFERROR(AB94*'Inputs & Assumptions'!$Q$48,"--") -> 877250 | AM94: =IFERROR(AC94*'Inputs & Assumptions'!$Q$49,"--") -> 224103.255
A95: 0207 | B95: Closter Borough | C95: Bergen | D95: 3400313810 | E95: 92 | F95: =VLOOKUP(A95,'[1]Municipal Tax Summary'!$A$3:$AN$566,4,FALSE) -> 2965771700 | G95: =VLOOKUP(A95,'[1]Municipal Tax Summary'!$A$3:$AN$566,17,FALSE) -> 16213933 | H95: 0.5467019933 | I95: 4075623.3 | J95: 2022.550045 | K95: =VLOOKUP(A95,'[1]Municipal Tax Summary'!$A$3:$AN$566,29,FALSE) -> 2.071049139 | L95: =VLOOKUP(A95,'[1]Municipal Tax Summary'!$A$3:$AN$566,9,FALSE) -> 7101260.26 | M95: =VLOOKUP(A95,'[1]Municipal Tax Summary'!$A$3:$AN$566,13,FALSE) -> 38107396 | N95: =VLOOKUP(A95,'[1]Municipal Tax Summary'!$A$3:$AN$566,18,FALSE) -> 61422589.26 | O95: 0.2639734533 | P95: 0.1156131701 | Q95: 0.6204133766 | R95: 11005 | S95: 370.3428714 | T95: 1682936 | U95: 124410 | V95: 461205 | W95: 4109132 | X95: 3104518 | Y95: 144304 | Z95: 1034630 | AA95: 322750 | AB95: 2040000 | AC95: 0 | AD95: =IFERROR(T95*'Inputs & Assumptions'!$Q$40,"--") -> 168293.6 | AE95: =IFERROR(U95*'Inputs & Assumptions'!$Q$41,"--") -> 12441 | AF95: =IFERROR(V95*'Inputs & Assumptions'!$Q$42,"--") -> 230602.5 | AG95: =IFERROR(W95*'Inputs & Assumptions'!$Q$43,"--") -> 2054566 | AH95: =IFERROR(X95*'Inputs & Assumptions'!$Q$44,"--") -> 310451.8 | AI95: =IFERROR(Y95*'Inputs & Assumptions'!$Q$45,"--") -> 14430.4 | AJ95: =IFERROR(Z95*'Inputs & Assumptions'!$Q$46,"--") -> 103463 | AK95: =IFERROR(AA95*'Inputs & Assumptions'!$Q$47,"--") -> 161375 | AL95: =IFERROR(AB95*'Inputs & Assumptions'!$Q$48,"--") -> 1020000 | AM95: =IFERROR(AC95*'Inputs & Assumptions'!$Q$49,"--") -> 0
A96: 0412 | B96: Collingswood Borough | C96: Camden | D96: 3400714260 | E96: 93 | F96: =VLOOKUP(A96,'[1]Municipal Tax Summary'!$A$3:$AN$566,4,FALSE) -> 2069375200 | G96: =VLOOKUP(A96,'[1]Municipal Tax Summary'!$A$3:$AN$566,17,FALSE) -> 12886190 | H96: 0.6227092119 | I96: 5841510.745 | J96: 1171.212556 | K96: =VLOOKUP(A96,'[1]Municipal Tax Summary'!$A$3:$AN$566,29,FALSE) -> 2.230404204 | L96: =VLOOKUP(A96,'[1]Municipal Tax Summary'!$A$3:$AN$566,9,FALSE) -> 10708805.45 | M96: =VLOOKUP(A96,'[1]Municipal Tax Summary'!$A$3:$AN$566,13,FALSE) -> 22560436 | N96: =VLOOKUP(A96,'[1]Municipal Tax Summary'!$A$3:$AN$566,18,FALSE) -> 46155431.45 | O96: 0.2791911937 | P96: 0.2320161488 | Q96: 0.4887926576 | R96: 17953 | S96: 325.3779728 | T96: 995700 | U96: 78500 | V96: 176500 | W96: 6940605.13 | X96: 5983851 | Y96: 72100 | Z96: 564553 | AA96: 592500 | AB96: 2225475.56 | AC96: 209000 | AD96: =IFERROR(T96*'Inputs & Assumptions'!$Q$40,"--") -> 99570 | AE96: =IFERROR(U96*'Inputs & Assumptions'!$Q$41,"--") -> 7850 | AF96: =IFERROR(V96*'Inputs & Assumptions'!$Q$42,"--") -> 88250 | AG96: =IFERROR(W96*'Inputs & Assumptions'!$Q$43,"--") -> 3470302.565 | AH96: =IFERROR(X96*'Inputs & Assumptions'!$Q$44,"--") -> 598385.1 | AI96: =IFERROR(Y96*'Inputs & Assumptions'!$Q$45,"--") -> 7210 | AJ96: =IFERROR(Z96*'Inputs & Assumptions'!$Q$46,"--") -> 56455.3 | AK96: =IFERROR(AA96*'Inputs & Assumptions'!$Q$47,"--") -> 296250 | AL96: =IFERROR(AB96*'Inputs & Assumptions'!$Q$48,"--") -> 1112737.78 | AM96: =IFERROR(AC96*'Inputs & Assumptions'!$Q$49,"--") -> 104500
A97: 1309 | B97: Colts Neck Township | C97: Monmouth | D97: 3402514560 | E97: 94 | F97: =VLOOKUP(A97,'[1]Municipal Tax Summary'!$A$3:$AN$566,4,FALSE) -> 4515977417 | G97: =VLOOKUP(A97,'[1]Municipal Tax Summary'!$A$3:$AN$566,17,FALSE) -> 13116699.1 | H97: 0.2904509454 | I97: 3265519.827 | J97: 19657.74913 | K97: =VLOOKUP(A97,'[1]Municipal Tax Summary'!$A$3:$AN$566,29,FALSE) -> 1.393134664 | L97: =VLOOKUP(A97,'[1]Municipal Tax Summary'!$A$3:$AN$566,9,FALSE) -> 9348951.73 | M97: =VLOOKUP(A97,'[1]Municipal Tax Summary'!$A$3:$AN$566,13,FALSE) -> 40447996 | N97: =VLOOKUP(A97,'[1]Municipal Tax Summary'!$A$3:$AN$566,18,FALSE) -> 62913646.83 | O97: 0.2084873435 | P97: 0.1485997427 | Q97: 0.6429129138 | R97: 13063 | S97: 249.9823798 | T97: 1308907.78 | U97: 185250 | V97: 82347.81 | W97: 3814333.42 | X97: 2563815.34 | Y97: 211414 | Z97: 87835 | AA97: 45000 | AB97: 1639861 | AC97: 78053 | AD97: =IFERROR(T97*'Inputs & Assumptions'!$Q$40,"--") -> 130890.778 | AE97: =IFERROR(U97*'Inputs & Assumptions'!$Q$41,"--") -> 18525 | AF97: =IFERROR(V97*'Inputs & Assumptions'!$Q$42,"--") -> 41173.905 | AG97: =IFERROR(W97*'Inputs & Assumptions'!$Q$43,"--") -> 1907166.71 | AH97: =IFERROR(X97*'Inputs & Assumptions'!$Q$44,"--") -> 256381.534 | AI97: =IFERROR(Y97*'Inputs & Assumptions'!$Q$45,"--") -> 21141.4 | AJ97: =IFERROR(Z97*'Inputs & Assumptions'!$Q$46,"--") -> 8783.5 | AK97: =IFERROR(AA97*'Inputs & Assumptions'!$Q$47,"--") -> 22500 | AL97: =IFERROR(AB97*'Inputs & Assumptions'!$Q$48,"--") -> 819930.5 | AM97: =IFERROR(AC97*'Inputs & Assumptions'!$Q$49,"--") -> 39026.5
A98: 0602 | B98: Commercial Township | C98: Cumberland | D98: 3401114710 | E98: 95 | F98: =VLOOKUP(A98,'[1]Municipal Tax Summary'!$A$3:$AN$566,4,FALSE) -> 276481200 | G98: =VLOOKUP(A98,'[1]Municipal Tax Summary'!$A$3:$AN$566,17,FALSE) -> 1946693.46 | H98: 0.7040961411 | I98: 508623.028 | J98: 20424.64556 | K98: =VLOOKUP(A98,'[1]Municipal Tax Summary'!$A$3:$AN$566,29,FALSE) -> 2.755341068 | L98: =VLOOKUP(A98,'[1]Municipal Tax Summary'!$A$3:$AN$566,9,FALSE) -> 3168037.59 | M98: =VLOOKUP(A98,'[1]Municipal Tax Summary'!$A$3:$AN$566,13,FALSE) -> 2503269 | N98: =VLOOKUP(A98,'[1]Municipal Tax Summary'!$A$3:$AN$566,18,FALSE) -> 7618000.05 | O98: 0.2555386515 | P98: 0.415862112 | Q98: 0.3285992365 | R98: 4968 | S98: 102.3798366 | T98: 737055 | U98: 8400 | V98: 190000 | W98: 8200 | X98: 1375789.78 | Y98: 82000 | Z98: 28215.5 | AA98: 199500 | AB98: 173254 | AC98: 0 | AD98: =IFERROR(T98*'Inputs & Assumptions'!$Q$40,"--") -> 73705.5 | AE98: =IFERROR(U98*'Inputs & Assumptions'!$Q$41,"--") -> 840 | AF98: =IFERROR(V98*'Inputs & Assumptions'!$Q$42,"--") -> 95000 | AG98: =IFERROR(W98*'Inputs & Assumptions'!$Q$43,"--") -> 4100 | AH98: =IFERROR(X98*'Inputs & Assumptions'!$Q$44,"--") -> 137578.978 | AI98: =IFERROR(Y98*'Inputs & Assumptions'!$Q$45,"--") -> 8200 | AJ98: =IFERROR(Z98*'Inputs & Assumptions'!$Q$46,"--") -> 2821.55 | AK98: =IFERROR(AA98*'Inputs & Assumptions'!$Q$47,"--") -> 99750 | AL98: =IFERROR(AB98*'Inputs & Assumptions'!$Q$48,"--") -> 86627 | AM98: =IFERROR(AC98*'Inputs & Assumptions'!$Q$49,"--") -> 0
A99: 0106 | B99: Corbin City | C99: Atlantic | D99: 3400115160 | E99: 96 | F99: =VLOOKUP(A99,'[1]Municipal Tax Summary'!$A$3:$AN$566,4,FALSE) -> 51693300 | G99: =VLOOKUP(A99,'[1]Municipal Tax Summary'!$A$3:$AN$566,17,FALSE) -> 200312 | H99: 0.3875008947 | I99: 48529.6 | J99: 4926.259974 | K99: =VLOOKUP(A99,'[1]Municipal Tax Summary'!$A$3:$AN$566,29,FALSE) -> 2.24689157 | L99: =VLOOKUP(A99,'[1]Municipal Tax Summary'!$A$3:$AN$566,9,FALSE) -> 359017.4 | M99: =VLOOKUP(A99,'[1]Municipal Tax Summary'!$A$3:$AN$566,13,FALSE) -> 602163 | N99: =VLOOKUP(A99,'[1]Municipal Tax Summary'!$A$3:$AN$566,18,FALSE) -> 1161492.4 | O99: 0.1724608788 | P99: 0.3091000854 | Q99: 0.5184390358 | R99: 667 | S99: 72.75802099 | T99: 198094 | U99: 43300 | V99: 0 | W99: 12801 | X99: 82601 | Y99: 7801 | Z99: 0 | AA99: 0 | AB99: 11899 | AC99: 6000 | AD99: =IFERROR(T99*'Inputs & Assumptions'!$Q$40,"--") -> 19809.4 | AE99: =IFERROR(U99*'Inputs & Assumptions'!$Q$41,"--") -> 4330 | AF99: =IFERROR(V99*'Inputs & Assumptions'!$Q$42,"--") -> 0 | AG99: =IFERROR(W99*'Inputs & Assumptions'!$Q$43,"--") -> 6400.5 | AH99: =IFERROR(X99*'Inputs & Assumptions'!$Q$44,"--") -> 8260.1 | AI99: =IFERROR(Y99*'Inputs & Assumptions'!$Q$45,"--") -> 780.1 | AJ99: =IFERROR(Z99*'Inputs & Assumptions'!$Q$46,"--") -> 0 | AK99: =IFERROR(AA99*'Inputs & Assumptions'!$Q$47,"--") -> 0 | AL99: =IFERROR(AB99*'Inputs & Assumptions'!$Q$48,"--") -> 5949.5 | AM99: =IFERROR(AC99*'Inputs & Assumptions'!$Q$49,"--") -> 3000
A100: 1202 | B100: Cranbury Township | C100: Middlesex | D100: 3402315550 | E100: 97 | F100: =VLOOKUP(A100,'[1]Municipal Tax Summary'!$A$3:$AN$566,4,FALSE) -> 2015778800 | G100: =VLOOKUP(A100,'[1]Municipal Tax Summary'!$A$3:$AN$566,17,FALSE) -> 8069842.56 | H100: 0.400333735 | I100: 2693296.88 | J100: 8501.251164 | K100: =VLOOKUP(A100,'[1]Municipal Tax Summary'!$A$3:$AN$566,29,FALSE) -> 1.835311474 | L100: =VLOOKUP(A100,'[1]Municipal Tax Summary'!$A$3:$AN$566,9,FALSE) -> 8823442.05 | M100: =VLOOKUP(A100,'[1]Municipal Tax Summary'!$A$3:$AN$566,13,FALSE) -> 20102535 | N100: =VLOOKUP(A100,'[1]Municipal Tax Summary'!$A$3:$AN$566,18,FALSE) -> 36995819.61 | O100: 0.2181284979 | P100: 0.2384983531 | Q100: 0.543373149 | R100: 14205 | S100: 189.6020331 | T100: 1212736 | U100: 371860 | V100: 144114 | W100: 3244879.24 | X100: 860224.75 | Y100: 49630 | Z100: 827283 | AA100: 0 | AB100: 1333253.77 | AC100: 0 | AD100: =IFERROR(T100*'Inputs & Assumptions'!$Q$40,"--") -> 121273.6 | AE100: =IFERROR(U100*'Inputs & Assumptions'!$Q$41,"--") -> 37186 | AF100: =IFERROR(V100*'Inputs & Assumptions'!$Q$42,"--") -> 72057 | AG100: =IFERROR(W100*'Inputs & Assumptions'!$Q$43,"--") -> 1622439.62 | AH100: =IFERROR(X100*'Inputs & Assumptions'!$Q$44,"--") -> 86022.475 | AI100: =IFERROR(Y100*'Inputs & Assumptions'!$Q$45,"--") -> 4963 | AJ100: =IFERROR(Z100*'Inputs & Assumptions'!$Q$46,"--") -> 82728.3 | AK100: =IFERROR(AA100*'Inputs & Assumptions'!$Q$47,"--") -> 0 | AL100: =IFERROR(AB100*'Inputs & Assumptions'!$Q$48,"--") -> 666626.885 | AM100: =IFERROR(AC100*'Inputs & Assumptions'!$Q$49,"--") -> 0
A101: 2003 | B101: Cranford Township | C101: Union | D101: 3403915640 | E101: 98 | F101: =VLOOKUP(A101,'[1]Municipal Tax Summary'!$A$3:$AN$566,4,FALSE) -> 1697526344 | G101: =VLOOKUP(A101,'[1]Municipal Tax Summary'!$A$3:$AN$566,17,FALSE) -> 30934741.49 | H101: 1.822342351 | I101: 10890497.49 | J101: 3094.438634 | K101: =VLOOKUP(A101,'[1]Municipal Tax Summary'!$A$3:$AN$566,29,FALSE) -> 7.247720541 | L101: =VLOOKUP(A101,'[1]Municipal Tax Summary'!$A$3:$AN$566,9,FALSE) -> 21054389.03 | M101: =VLOOKUP(A101,'[1]Municipal Tax Summary'!$A$3:$AN$566,13,FALSE) -> 71042835 | N101: =VLOOKUP(A101,'[1]Municipal Tax Summary'!$A$3:$AN$566,18,FALSE) -> 123031965.5 | O101: 0.2514366194 | P101: 0.171129421 | Q101: 0.5774339595 | R101: 32672 | S101: 333.3281553 | T101: 2744420 | U101: 304300 | V101: 741500 | W101: 13921556.98 | X101: 4081300 | Y101: 374400 | Z101: 1932965 | AA101: 0 | AB101: 4922036 | AC101: 308425 | AD101: =IFERROR(T101*'Inputs & Assumptions'!$Q$40,"--") -> 274442 | AE101: =IFERROR(U101*'Inputs & Assumptions'!$Q$41,"--") -> 30430 | AF101: =IFERROR(V101*'Inputs & Assumptions'!$Q$42,"--") -> 370750 | AG101: =IFERROR(W101*'Inputs & Assumptions'!$Q$43,"--") -> 6960778.49 | AH101: =IFERROR(X101*'Inputs & Assumptions'!$Q$44,"--") -> 408130 | AI101: =IFERROR(Y101*'Inputs & Assumptions'!$Q$45,"--") -> 37440 | AJ101: =IFERROR(Z101*'Inputs & Assumptions'!$Q$46,"--") -> 193296.5 | AK101: =IFERROR(AA101*'Inputs & Assumptions'!$Q$47,"--") -> 0 | AL101: =IFERROR(AB101*'Inputs & Assumptions'!$Q$48,"--") -> 2461018 | AM101: =IFERROR(AC101*'Inputs & Assumptions'!$Q$49,"--") -> 154212.5
A102: 0208 | B102: Cresskill Borough | C102: Bergen | D102: 3400315820 | E102: 99 | F102: =VLOOKUP(A102,'[1]Municipal Tax Summary'!$A$3:$AN$566,4,FALSE) -> 2722567400 | G102: =VLOOKUP(A102,'[1]Municipal Tax Summary'!$A$3:$AN$566,17,FALSE) -> 20414345 | H102: 0.7498196372 | I102: 5874166.2 | J102: 1321.407593 | K102: =VLOOKUP(A102,'[1]Municipal Tax Summary'!$A$3:$AN$566,29,FALSE) -> 2.268383086 | L102: =VLOOKUP(A102,'[1]Municipal Tax Summary'!$A$3:$AN$566,9,FALSE) -> 7145362.41 | M102: =VLOOKUP(A102,'[1]Municipal Tax Summary'!$A$3:$AN$566,13,FALSE) -> 34198551 | N102: =VLOOKUP(A102,'[1]Municipal Tax Summary'!$A$3:$AN$566,18,FALSE) -> 61758258.41 | O102: 0.3305524723 | P102: 0.1156988975 | Q102: 0.5537486302 | R102: 10753 | S102: 546.2816144 | T102: 1992200 | U102: 59200 | V102: 272400 | W102: 7247200 | X102: 3546650 | Y102: 165775 | Z102: 1130707 | AA102: 392000 | AB102: 2328676 | AC102: 129150 | AD102: =IFERROR(T102*'Inputs & Assumptions'!$Q$40,"--") -> 199220 | AE102: =IFERROR(U102*'Inputs & Assumptions'!$Q$41,"--") -> 5920 | AF102: =IFERROR(V102*'Inputs & Assumptions'!$Q$42,"--") -> 136200 | AG102: =IFERROR(W102*'Inputs & Assumptions'!$Q$43,"--") -> 3623600 | AH102: =IFERROR(X102*'Inputs & Assumptions'!$Q$44,"--") -> 354665 | AI102: =IFERROR(Y102*'Inputs & Assumptions'!$Q$45,"--") -> 16577.5 | AJ102: =IFERROR(Z102*'Inputs & Assumptions'!$Q$46,"--") -> 113070.7 | AK102: =IFERROR(AA102*'Inputs & Assumptions'!$Q$47,"--") -> 196000 | AL102: =IFERROR(AB102*'Inputs & Assumptions'!$Q$48,"--") -> 1164338 | AM102: =IFERROR(AC102*'Inputs & Assumptions'!$Q$49,"--") -> 64575
A103: 1310 | B103: Deal Borough | C103: Monmouth | D103: 3402516660 | E103: 100 | F103: =VLOOKUP(A103,'[1]Municipal Tax Summary'!$A$3:$AN$566,4,FALSE) -> 5642778900 | G103: =VLOOKUP(A103,'[1]Municipal Tax Summary'!$A$3:$AN$566,17,FALSE) -> 9080244 | H103: 0.1609179477 | I103: 57588.75 | J103: 757.9116777 | K103: =VLOOKUP(A103,'[1]Municipal Tax Summary'!$A$3:$AN$566,29,FALSE) -> 0.4106355803 | L103: =VLOOKUP(A103,'[1]Municipal Tax Summary'!$A$3:$AN$566,9,FALSE) -> 11788883.88 | M103: =VLOOKUP(A103,'[1]Municipal Tax Summary'!$A$3:$AN$566,13,FALSE) -> 2302130 | N103: =VLOOKUP(A103,'[1]Municipal Tax Summary'!$A$3:$AN$566,18,FALSE) -> 23171257.88 | O103: 0.3918753158 | P103: 0.5087718561 | Q103: 0.09935282806 | R103: 1090 | S103: 52.8337156 | T103: 272550 | U103: 27870 | V103: 3600 | W103: 3500 | X103: 50600 | Y103: 6375 | Z103: 0 | AA103: 0 | AB103: 36598.5 | AC103: 0 | AD103: =IFERROR(T103*'Inputs & Assumptions'!$Q$40,"--") -> 27255 | AE103: =IFERROR(U103*'Inputs & Assumptions'!$Q$41,"--") -> 2787 | AF103: =IFERROR(V103*'Inputs & Assumptions'!$Q$42,"--") -> 1800 | AG103: =IFERROR(W103*'Inputs & Assumptions'!$Q$43,"--") -> 1750 | AH103: =IFERROR(X103*'Inputs & Assumptions'!$Q$44,"--") -> 5060 | AI103: =IFERROR(Y103*'Inputs & Assumptions'!$Q$45,"--") -> 637.5 | AJ103: =IFERROR(Z103*'Inputs & Assumptions'!$Q$46,"--") -> 0 | AK103: =IFERROR(AA103*'Inputs & Assumptions'!$Q$47,"--") -> 0 | AL103: =IFERROR(AB103*'Inputs & Assumptions'!$Q$48,"--") -> 18299.25 | AM103: =IFERROR(AC103*'Inputs & Assumptions'!$Q$49,"--") -> 0
A104: 0603 | B104: Deerfield Township | C104: Cumberland | D104: 3401116900 | E104: 101 | F104: =VLOOKUP(A104,'[1]Municipal Tax Summary'!$A$3:$AN$566,4,FALSE) -> 197464058 | G104: =VLOOKUP(A104,'[1]Municipal Tax Summary'!$A$3:$AN$566,17,FALSE) -> 330051.69 | H104: 0.1671451976 | I104: 281424.119 | J104: 10778.67251 | K104: =VLOOKUP(A104,'[1]Municipal Tax Summary'!$A$3:$AN$566,29,FALSE) -> 3.889770993 | L104: =VLOOKUP(A104,'[1]Municipal Tax Summary'!$A$3:$AN$566,9,FALSE) -> 2659873.96 | M104: =VLOOKUP(A104,'[1]Municipal Tax Summary'!$A$3:$AN$566,13,FALSE) -> 4690974 | N104: =VLOOKUP(A104,'[1]Municipal Tax Summary'!$A$3:$AN$566,18,FALSE) -> 7680899.65 | O104: 0.04297044683 | P104: 0.3462971893 | Q104: 0.6107323639 | R104: 4254 | S104: 66.15517607 | T104: 645509.75 | U104: 23351 | V104: 17252 | W104: 181760 | X104: 517002.44 | Y104: 60058 | Z104: 1500 | AA104: 655 | AB104: 113697 | AC104: 0 | AD104: =IFERROR(T104*'Inputs & Assumptions'!$Q$40,"--") -> 64550.975 | AE104: =IFERROR(U104*'Inputs & Assumptions'!$Q$41,"--") -> 2335.1 | AF104: =IFERROR(V104*'Inputs & Assumptions'!$Q$42,"--") -> 8626 | AG104: =IFERROR(W104*'Inputs & Assumptions'!$Q$43,"--") -> 90880 | AH104: =IFERROR(X104*'Inputs & Assumptions'!$Q$44,"--") -> 51700.244 | AI104: =IFERROR(Y104*'Inputs & Assumptions'!$Q$45,"--") -> 6005.8 | AJ104: =IFERROR(Z104*'Inputs & Assumptions'!$Q$46,"--") -> 150 | AK104: =IFERROR(AA104*'Inputs & Assumptions'!$Q$47,"--") -> 327.5 | AL104: =IFERROR(AB104*'Inputs & Assumptions'!$Q$48,"--") -> 56848.5 | AM104: =IFERROR(AC104*'Inputs & Assumptions'!$Q$49,"--") -> 0
A105: 0309 | B105: Delanco Township | C105: Burlington | D105: 3400517080 | E105: 102 | F105: =VLOOKUP(A105,'[1]Municipal Tax Summary'!$A$3:$AN$566,4,FALSE) -> 449294064 | G105: =VLOOKUP(A105,'[1]Municipal Tax Summary'!$A$3:$AN$566,17,FALSE) -> 5490193.54 | H105: 1.221959954 | I105: 1869393.383 | J105: 1508.868083 | K105: =VLOOKUP(A105,'[1]Municipal Tax Summary'!$A$3:$AN$566,29,FALSE) -> 3.582748888 | L105: =VLOOKUP(A105,'[1]Municipal Tax Summary'!$A$3:$AN$566,9,FALSE) -> 2431021.54 | M105: =VLOOKUP(A105,'[1]Municipal Tax Summary'!$A$3:$AN$566,13,FALSE) -> 8175863 | N105: =VLOOKUP(A105,'[1]Municipal Tax Summary'!$A$3:$AN$566,18,FALSE) -> 16097078.08 | O105: 0.3410677089 | P105: 0.1510225351 | Q105: 0.507909756 | R105: 6243 | S105: 299.4383122 | T105: 960490 | U105: 63500 | V105: 140600 | W105: 2065203.98 | X105: 1368473.93 | Y105: 10300 | Z105: 112000 | AA105: 242915 | AB105: 694415 | AC105: 92700 | AD105: =IFERROR(T105*'Inputs & Assumptions'!$Q$40,"--") -> 96049 | AE105: =IFERROR(U105*'Inputs & Assumptions'!$Q$41,"--") -> 6350 | AF105: =IFERROR(V105*'Inputs & Assumptions'!$Q$42,"--") -> 70300 | AG105: =IFERROR(W105*'Inputs & Assumptions'!$Q$43,"--") -> 1032601.99 | AH105: =IFERROR(X105*'Inputs & Assumptions'!$Q$44,"--") -> 136847.393 | AI105: =IFERROR(Y105*'Inputs & Assumptions'!$Q$45,"--") -> 1030 | AJ105: =IFERROR(Z105*'Inputs & Assumptions'!$Q$46,"--") -> 11200 | AK105: =IFERROR(AA105*'Inputs & Assumptions'!$Q$47,"--") -> 121457.5 | AL105: =IFERROR(AB105*'Inputs & Assumptions'!$Q$48,"--") -> 347207.5 | AM105: =IFERROR(AC105*'Inputs & Assumptions'!$Q$49,"--") -> 46350
A106: 1007 | B106: Delaware Township | C106: Hunterdon | D106: 3401917170 | E106: 103 | F106: =VLOOKUP(A106,'[1]Municipal Tax Summary'!$A$3:$AN$566,4,FALSE) -> 815816600 | G106: =VLOOKUP(A106,'[1]Municipal Tax Summary'!$A$3:$AN$566,17,FALSE) -> 4524618.44 | H106: 0.5546122057 | I106: 1189238.44 | J106: 23459.57333 | K106: =VLOOKUP(A106,'[1]Municipal Tax Summary'!$A$3:$AN$566,29,FALSE) -> 2.882209743 | L106: =VLOOKUP(A106,'[1]Municipal Tax Summary'!$A$3:$AN$566,9,FALSE) -> 4439674.09 | M106: =VLOOKUP(A106,'[1]Municipal Tax Summary'!$A$3:$AN$566,13,FALSE) -> 14549253 | N106: =VLOOKUP(A106,'[1]Municipal Tax Summary'!$A$3:$AN$566,18,FALSE) -> 23513545.53 | O106: 0.1924260395 | P106: 0.1888134686 | Q106: 0.618760492 | R106: 5070 | S106: 234.5637949 | T106: 587445 | U106: 67034 | V106: 115440 | W106: 1267220 | X106: 1045975 | Y106: 17325 | Z106: 0 | AA106: 0 | AB106: 562073.08 | AC106: 90188 | AD106: =IFERROR(T106*'Inputs & Assumptions'!$Q$40,"--") -> 58744.5 | AE106: =IFERROR(U106*'Inputs & Assumptions'!$Q$41,"--") -> 6703.4 | AF106: =IFERROR(V106*'Inputs & Assumptions'!$Q$42,"--") -> 57720 | AG106: =IFERROR(W106*'Inputs & Assumptions'!$Q$43,"--") -> 633610 | AH106: =IFERROR(X106*'Inputs & Assumptions'!$Q$44,"--") -> 104597.5 | AI106: =IFERROR(Y106*'Inputs & Assumptions'!$Q$45,"--") -> 1732.5 | AJ106: =IFERROR(Z106*'Inputs & Assumptions'!$Q$46,"--") -> 0 | AK106: =IFERROR(AA106*'Inputs & Assumptions'!$Q$47,"--") -> 0 | AL106: =IFERROR(AB106*'Inputs & Assumptions'!$Q$48,"--") -> 281036.54 | AM106: =IFERROR(AC106*'Inputs & Assumptions'!$Q$49,"--") -> 45094
A107: 0310 | B107: Delran Township | C107: Burlington | D107: 3400517440 | E107: 104 | F107: =VLOOKUP(A107,'[1]Municipal Tax Summary'!$A$3:$AN$566,4,FALSE) -> 1497191461 | G107: =VLOOKUP(A107,'[1]Municipal Tax Summary'!$A$3:$AN$566,17,FALSE) -> 12230810.74 | H107: 0.8169169447 | I107: 4855795.526 | J107: 4243.199204 | K107: =VLOOKUP(A107,'[1]Municipal Tax Summary'!$A$3:$AN$566,29,FALSE) -> 3.844833227 | L107: =VLOOKUP(A107,'[1]Municipal Tax Summary'!$A$3:$AN$566,9,FALSE) -> 8542418.03 | M107: =VLOOKUP(A107,'[1]Municipal Tax Summary'!$A$3:$AN$566,13,FALSE) -> 36791286 | N107: =VLOOKUP(A107,'[1]Municipal Tax Summary'!$A$3:$AN$566,18,FALSE) -> 57564514.77 | O107: 0.21247136 | P107: 0.1483972907 | Q107: 0.6391313494 | R107: 23163 | S107: 209.6358644 | T107: 4997087 | U107: 131744 | V107: 372634 | W107: 4720962 | X107: 3406769.26 | Y107: 88100 | Z107: 0 | AA107: 685000 | AB107: 2006690 | AC107: 201565 | AD107: =IFERROR(T107*'Inputs & Assumptions'!$Q$40,"--") -> 499708.7 | AE107: =IFERROR(U107*'Inputs & Assumptions'!$Q$41,"--") -> 13174.4 | AF107: =IFERROR(V107*'Inputs & Assumptions'!$Q$42,"--") -> 186317 | AG107: =IFERROR(W107*'Inputs & Assumptions'!$Q$43,"--") -> 2360481 | AH107: =IFERROR(X107*'Inputs & Assumptions'!$Q$44,"--") -> 340676.926 | AI107: =IFERROR(Y107*'Inputs & Assumptions'!$Q$45,"--") -> 8810 | AJ107: =IFERROR(Z107*'Inputs & Assumptions'!$Q$46,"--") -> 0 | AK107: =IFERROR(AA107*'Inputs & Assumptions'!$Q$47,"--") -> 342500 | AL107: =IFERROR(AB107*'Inputs & Assumptions'!$Q$48,"--") -> 1003345 | AM107: =IFERROR(AC107*'Inputs & Assumptions'!$Q$49,"--") -> 100782.5
A108: 0209 | B108: Demarest Borough | C108: Bergen | D108: 3400317530 | E108: 105 | F108: =VLOOKUP(A108,'[1]Municipal Tax Summary'!$A$3:$AN$566,4,FALSE) -> 2486976900 | G108: =VLOOKUP(A108,'[1]Municipal Tax Summary'!$A$3:$AN$566,17,FALSE) -> 10880572 | H108: 0.4375019326 | I108: 2902835.2 | J108: 1326.364772 | K108: =VLOOKUP(A108,'[1]Municipal Tax Summary'!$A$3:$AN$566,29,FALSE) -> 1.804707539 | L108: =VLOOKUP(A108,'[1]Municipal Tax Summary'!$A$3:$AN$566,9,FALSE) -> 5439098.61 | M108: =VLOOKUP(A108,'[1]Municipal Tax Summary'!$A$3:$AN$566,13,FALSE) -> 28562989 | N108: =VLOOKUP(A108,'[1]Municipal Tax Summary'!$A$3:$AN$566,18,FALSE) -> 44882659.61 | O108: 0.2424226214 | P108: 0.1211848553 | Q108: 0.6363925233 | R108: 5692 | S108: 509.9851019 | T108: 1267100 | U108: 11500 | V108: 225400 | W108: 3434000 | X108: 2203600 | Y108: 58600 | Z108: 719837 | AA108: 0 | AB108: 1226643 | AC108: 67500 | AD108: =IFERROR(T108*'Inputs & Assumptions'!$Q$40,"--") -> 126710 | AE108: =IFERROR(U108*'Inputs & Assumptions'!$Q$41,"--") -> 1150 | AF108: =IFERROR(V108*'Inputs & Assumptions'!$Q$42,"--") -> 112700 | AG108: =IFERROR(W108*'Inputs & Assumptions'!$Q$43,"--") -> 1717000 | AH108: =IFERROR(X108*'Inputs & Assumptions'!$Q$44,"--") -> 220360 | AI108: =IFERROR(Y108*'Inputs & Assumptions'!$Q$45,"--") -> 5860 | AJ108: =IFERROR(Z108*'Inputs & Assumptions'!$Q$46,"--") -> 71983.7 | AK108: =IFERROR(AA108*'Inputs & Assumptions'!$Q$47,"--") -> 0 | AL108: =IFERROR(AB108*'Inputs & Assumptions'!$Q$48,"--") -> 613321.5 | AM108: =IFERROR(AC108*'Inputs & Assumptions'!$Q$49,"--") -> 33750
A109: 0504 | B109: Dennis Township | C109: Cape May | D109: 3400917560 | E109: 106 | F109: =VLOOKUP(A109,'[1]Municipal Tax Summary'!$A$3:$AN$566,4,FALSE) -> 914894012 | G109: =VLOOKUP(A109,'[1]Municipal Tax Summary'!$A$3:$AN$566,17,FALSE) -> 2376159.91 | H109: 0.259719692 | I109: 729930.375 | J109: 38669.25693 | K109: =VLOOKUP(A109,'[1]Municipal Tax Summary'!$A$3:$AN$566,29,FALSE) -> 2.144690973 | L109: =VLOOKUP(A109,'[1]Municipal Tax Summary'!$A$3:$AN$566,9,FALSE) -> 2901874.38 | M109: =VLOOKUP(A109,'[1]Municipal Tax Summary'!$A$3:$AN$566,13,FALSE) -> 14343615 | N109: =VLOOKUP(A109,'[1]Municipal Tax Summary'!$A$3:$AN$566,18,FALSE) -> 19621649.29 | O109: 0.121098888 | P109: 0.147891461 | Q109: 0.731009651 | R109: 8022 | S109: 90.99107143 | T109: 915200 | U109: 54000 | V109: 0 | W109: 501950 | X109: 1125000 | Y109: 133898.75 | Z109: 0 | AA109: 265000 | AB109: 247291 | AC109: 0 | AD109: =IFERROR(T109*'Inputs & Assumptions'!$Q$40,"--") -> 91520 | AE109: =IFERROR(U109*'Inputs & Assumptions'!$Q$41,"--") -> 5400 | AF109: =IFERROR(V109*'Inputs & Assumptions'!$Q$42,"--") -> 0 | AG109: =IFERROR(W109*'Inputs & Assumptions'!$Q$43,"--") -> 250975 | AH109: =IFERROR(X109*'Inputs & Assumptions'!$Q$44,"--") -> 112500 | AI109: =IFERROR(Y109*'Inputs & Assumptions'!$Q$45,"--") -> 13389.875 | AJ109: =IFERROR(Z109*'Inputs & Assumptions'!$Q$46,"--") -> 0 | AK109: =IFERROR(AA109*'Inputs & Assumptions'!$Q$47,"--") -> 132500 | AL109: =IFERROR(AB109*'Inputs & Assumptions'!$Q$48,"--") -> 123645.5 | AM109: =IFERROR(AC109*'Inputs & Assumptions'!$Q$49,"--") -> 0
A110: 1408 | B110: Denville Township | C110: Morris | D110: 3402717650 | E110: 107 | F110: =VLOOKUP(A110,'[1]Municipal Tax Summary'!$A$3:$AN$566,4,FALSE) -> 3178366300 | G110: =VLOOKUP(A110,'[1]Municipal Tax Summary'!$A$3:$AN$566,17,FALSE) -> 17097850.23 | H110: 0.537944611 | I110: 6366335.228 | J110: 7674.606659 | K110: =VLOOKUP(A110,'[1]Municipal Tax Summary'!$A$3:$AN$566,29,FALSE) -> 2.788076317 | L110: =VLOOKUP(A110,'[1]Municipal Tax Summary'!$A$3:$AN$566,9,FALSE) -> 10942825.85 | M110: =VLOOKUP(A110,'[1]Municipal Tax Summary'!$A$3:$AN$566,13,FALSE) -> 60574602 | N110: =VLOOKUP(A110,'[1]Municipal Tax Summary'!$A$3:$AN$566,18,FALSE) -> 88615278.08 | O110: 0.1929447224 | P110: 0.1234868985 | Q110: 0.6835683791 | R110: 24148 | S110: 263.6381989 | T110: 2392843.4 | U110: 228848 | V110: 486837 | W110: 5956825.32 | X110: 6563276 | Y110: 426423.33 | Z110: 1478774.95 | AA110: 767000 | AB110: 3026527 | AC110: 277448 | AD110: =IFERROR(T110*'Inputs & Assumptions'!$Q$40,"--") -> 239284.34 | AE110: =IFERROR(U110*'Inputs & Assumptions'!$Q$41,"--") -> 22884.8 | AF110: =IFERROR(V110*'Inputs & Assumptions'!$Q$42,"--") -> 243418.5 | AG110: =IFERROR(W110*'Inputs & Assumptions'!$Q$43,"--") -> 2978412.66 | AH110: =IFERROR(X110*'Inputs & Assumptions'!$Q$44,"--") -> 656327.6 | AI110: =IFERROR(Y110*'Inputs & Assumptions'!$Q$45,"--") -> 42642.333 | AJ110: =IFERROR(Z110*'Inputs & Assumptions'!$Q$46,"--") -> 147877.495 | AK110: =IFERROR(AA110*'Inputs & Assumptions'!$Q$47,"--") -> 383500 | AL110: =IFERROR(AB110*'Inputs & Assumptions'!$Q$48,"--") -> 1513263.5 | AM110: =IFERROR(AC110*'Inputs & Assumptions'!$Q$49,"--") -> 138724
A111: 0802 | B111: Deptford Township | C111: Gloucester | D111: 3401517710 | E111: 108 | F111: =VLOOKUP(A111,'[1]Municipal Tax Summary'!$A$3:$AN$566,4,FALSE) -> 2808176000 | G111: =VLOOKUP(A111,'[1]Municipal Tax Summary'!$A$3:$AN$566,17,FALSE) -> 26770803.94 | H111: 0.9533164567 | I111: 8296108.717 | J111: 11092.03883 | K111: =VLOOKUP(A111,'[1]Municipal Tax Summary'!$A$3:$AN$566,29,FALSE) -> 3.439968824 | L111: =VLOOKUP(A111,'[1]Municipal Tax Summary'!$A$3:$AN$566,9,FALSE) -> 18963443.99 | M111: =VLOOKUP(A111,'[1]Municipal Tax Summary'!$A$3:$AN$566,13,FALSE) -> 50866131 | N111: =VLOOKUP(A111,'[1]Municipal Tax Summary'!$A$3:$AN$566,18,FALSE) -> 96600378.93 | O111: 0.2771293885 | P111: 0.1963081739 | Q111: 0.5265624376 | R111: 41864 | S111: 198.1680852 | T111: 3011100 | U111: 339000 | V111: 655500 | W111: 8190495.51 | X111: 4975000 | Y111: 294000 | Z111: 1387009.62 | AA111: 1400000 | AB111: 3759000 | AC111: 586000 | AD111: =IFERROR(T111*'Inputs & Assumptions'!$Q$40,"--") -> 301110 | AE111: =IFERROR(U111*'Inputs & Assumptions'!$Q$41,"--") -> 33900 | AF111: =IFERROR(V111*'Inputs & Assumptions'!$Q$42,"--") -> 327750 | AG111: =IFERROR(W111*'Inputs & Assumptions'!$Q$43,"--") -> 4095247.755 | AH111: =IFERROR(X111*'Inputs & Assumptions'!$Q$44,"--") -> 497500 | AI111: =IFERROR(Y111*'Inputs & Assumptions'!$Q$45,"--") -> 29400 | AJ111: =IFERROR(Z111*'Inputs & Assumptions'!$Q$46,"--") -> 138700.962 | AK111: =IFERROR(AA111*'Inputs & Assumptions'!$Q$47,"--") -> 700000 | AL111: =IFERROR(AB111*'Inputs & Assumptions'!$Q$48,"--") -> 1879500 | AM111: =IFERROR(AC111*'Inputs & Assumptions'!$Q$49,"--") -> 293000
A112: 1409 | B112: Dover Town | C112: Morris | D112: 3402718070 | E112: 109 | F112: =VLOOKUP(A112,'[1]Municipal Tax Summary'!$A$3:$AN$566,4,FALSE) -> 1312031800 | G112: =VLOOKUP(A112,'[1]Municipal Tax Summary'!$A$3:$AN$566,17,FALSE) -> 21558501.83 | H112: 1.643138667 | I112: 8040864.057 | J112: 1712.433907 | K112: =VLOOKUP(A112,'[1]Municipal Tax Summary'!$A$3:$AN$566,29,FALSE) -> 3.489128256 | L112: =VLOOKUP(A112,'[1]Municipal Tax Summary'!$A$3:$AN$566,9,FALSE) -> 4536834.43 | M112: =VLOOKUP(A112,'[1]Municipal Tax Summary'!$A$3:$AN$566,13,FALSE) -> 19683136 | N112: =VLOOKUP(A112,'[1]Municipal Tax Summary'!$A$3:$AN$566,18,FALSE) -> 45778472.26 | O112: 0.4709310024 | P112: 0.099104103 | Q112: 0.4299648946 | R112: 23376 | S112: 343.9794686 | T112: 6249391 | U112: 8000 | V112: 850658 | W112: 8716503.11 | X112: 4322967.34 | Y112: 497914 | Z112: 634412.68 | AA112: 0 | AB112: 3777870 | AC112: 394160 | AD112: =IFERROR(T112*'Inputs & Assumptions'!$Q$40,"--") -> 624939.1 | AE112: =IFERROR(U112*'Inputs & Assumptions'!$Q$41,"--") -> 800 | AF112: =IFERROR(V112*'Inputs & Assumptions'!$Q$42,"--") -> 425329 | AG112: =IFERROR(W112*'Inputs & Assumptions'!$Q$43,"--") -> 4358251.555 | AH112: =IFERROR(X112*'Inputs & Assumptions'!$Q$44,"--") -> 432296.734 | AI112: =IFERROR(Y112*'Inputs & Assumptions'!$Q$45,"--") -> 49791.4 | AJ112: =IFERROR(Z112*'Inputs & Assumptions'!$Q$46,"--") -> 63441.268 | AK112: =IFERROR(AA112*'Inputs & Assumptions'!$Q$47,"--") -> 0 | AL112: =IFERROR(AB112*'Inputs & Assumptions'!$Q$48,"--") -> 1888935 | AM112: =IFERROR(AC112*'Inputs & Assumptions'!$Q$49,"--") -> 197080
A113: 0604 | B113: Downe Township | C113: Cumberland | D113: 3401118220 | E113: 110 | F113: =VLOOKUP(A113,'[1]Municipal Tax Summary'!$A$3:$AN$566,4,FALSE) -> 157497600 | G113: =VLOOKUP(A113,'[1]Municipal Tax Summary'!$A$3:$AN$566,17,FALSE) -> 641050.41 | H113: 0.4070223356 | I113: 229515 | J113: 30977.91704 | K113: =VLOOKUP(A113,'[1]Municipal Tax Summary'!$A$3:$AN$566,29,FALSE) -> 2.930770075 | L113: =VLOOKUP(A113,'[1]Municipal Tax Summary'!$A$3:$AN$566,9,FALSE) -> 1685080.12 | M113: =VLOOKUP(A113,'[1]Municipal Tax Summary'!$A$3:$AN$566,13,FALSE) -> 2289762 | N113: =VLOOKUP(A113,'[1]Municipal Tax Summary'!$A$3:$AN$566,18,FALSE) -> 4615892.53 | O113: 0.1388789721 | P113: 0.3650605184 | Q113: 0.4960605095 | R113: 1901 | S113: 120.7338243 | T113: 400307 | U113: 31245 | V113: 0 | W113: 36293 | X113: 270483 | Y113: 21800 | Z113: 0 | AA113: 152772 | AB113: 116698 | AC113: 8500 | AD113: =IFERROR(T113*'Inputs & Assumptions'!$Q$40,"--") -> 40030.7 | AE113: =IFERROR(U113*'Inputs & Assumptions'!$Q$41,"--") -> 3124.5 | AF113: =IFERROR(V113*'Inputs & Assumptions'!$Q$42,"--") -> 0 | AG113: =IFERROR(W113*'Inputs & Assumptions'!$Q$43,"--") -> 18146.5 | AH113: =IFERROR(X113*'Inputs & Assumptions'!$Q$44,"--") -> 27048.3 | AI113: =IFERROR(Y113*'Inputs & Assumptions'!$Q$45,"--") -> 2180 | AJ113: =IFERROR(Z113*'Inputs & Assumptions'!$Q$46,"--") -> 0 | AK113: =IFERROR(AA113*'Inputs & Assumptions'!$Q$47,"--") -> 76386 | AL113: =IFERROR(AB113*'Inputs & Assumptions'!$Q$48,"--") -> 58349 | AM113: =IFERROR(AC113*'Inputs & Assumptions'!$Q$49,"--") -> 4250
A114: 0210 | B114: Dumont Borough | C114: Bergen | D114: 3400318400 | E114: 111 | F114: =VLOOKUP(A114,'[1]Municipal Tax Summary'!$A$3:$AN$566,4,FALSE) -> 3069126600 | G114: =VLOOKUP(A114,'[1]Municipal Tax Summary'!$A$3:$AN$566,17,FALSE) -> 24648641 | H114: 0.8031158115 | I114: 6568170.8 | J114: 1247.617014 | K114: =VLOOKUP(A114,'[1]Municipal Tax Summary'!$A$3:$AN$566,29,FALSE) -> 2.339612655 | L114: =VLOOKUP(A114,'[1]Municipal Tax Summary'!$A$3:$AN$566,9,FALSE) -> 7142010.33 | M114: =VLOOKUP(A114,'[1]Municipal Tax Summary'!$A$3:$AN$566,13,FALSE) -> 40015023 | N114: =VLOOKUP(A114,'[1]Municipal Tax Summary'!$A$3:$AN$566,18,FALSE) -> 71805674.33 | O114: 0.3432687072 | P114: 0.09946303543 | Q114: 0.5572682573 | R114: 20038 | S114: 327.7857471 | T114: 1516447 | U114: 34400 | V114: 219806 | W114: 6617546 | X114: 2672157 | Y114: 264762 | Z114: 1003232 | AA114: 2669000 | AB114: 2375621 | AC114: 156169 | AD114: =IFERROR(T114*'Inputs & Assumptions'!$Q$40,"--") -> 151644.7 | AE114: =IFERROR(U114*'Inputs & Assumptions'!$Q$41,"--") -> 3440 | AF114: =IFERROR(V114*'Inputs & Assumptions'!$Q$42,"--") -> 109903 | AG114: =IFERROR(W114*'Inputs & Assumptions'!$Q$43,"--") -> 3308773 | AH114: =IFERROR(X114*'Inputs & Assumptions'!$Q$44,"--") -> 267215.7 | AI114: =IFERROR(Y114*'Inputs & Assumptions'!$Q$45,"--") -> 26476.2 | AJ114: =IFERROR(Z114*'Inputs & Assumptions'!$Q$46,"--") -> 100323.2 | AK114: =IFERROR(AA114*'Inputs & Assumptions'!$Q$47,"--") -> 1334500 | AL114: =IFERROR(AB114*'Inputs & Assumptions'!$Q$48,"--") -> 1187810.5 | AM114: =IFERROR(AC114*'Inputs & Assumptions'!$Q$49,"--") -> 78084.5
A115: 1203 | B115: Dunellen Borough | C115: Middlesex | D115: 3402318490 | E115: 112 | F115: =VLOOKUP(A115,'[1]Municipal Tax Summary'!$A$3:$AN$566,4,FALSE) -> 983654000 | G115: =VLOOKUP(A115,'[1]Municipal Tax Summary'!$A$3:$AN$566,17,FALSE) -> 6726490 | H115: 0.6838268334 | I115: 2476112.8 | J115: 679.818749 | K115: =VLOOKUP(A115,'[1]Municipal Tax Summary'!$A$3:$AN$566,29,FALSE) -> 2.447763352 | L115: =VLOOKUP(A115,'[1]Municipal Tax Summary'!$A$3:$AN$566,9,FALSE) -> 3471065.12 | M115: =VLOOKUP(A115,'[1]Municipal Tax Summary'!$A$3:$AN$566,13,FALSE) -> 13879967 | N115: =VLOOKUP(A115,'[1]Municipal Tax Summary'!$A$3:$AN$566,18,FALSE) -> 24077522.12 | O115: 0.2793680332 | P115: 0.1441620572 | Q115: 0.5764699096 | R115: 8787 | S115: 281.7927393 | T115: 1133423 | U115: 49560 | V115: 242327 | W115: 2836633 | X115: 794810 | Y115: 81600 | Z115: 336445 | AA115: 26000 | AB115: 1166391 | AC115: 201707 | AD115: =IFERROR(T115*'Inputs & Assumptions'!$Q$40,"--") -> 113342.3 | AE115: =IFERROR(U115*'Inputs & Assumptions'!$Q$41,"--") -> 4956 | AF115: =IFERROR(V115*'Inputs & Assumptions'!$Q$42,"--") -> 121163.5 | AG115: =IFERROR(W115*'Inputs & Assumptions'!$Q$43,"--") -> 1418316.5 | AH115: =IFERROR(X115*'Inputs & Assumptions'!$Q$44,"--") -> 79481 | AI115: =IFERROR(Y115*'Inputs & Assumptions'!$Q$45,"--") -> 8160 | AJ115: =IFERROR(Z115*'Inputs & Assumptions'!$Q$46,"--") -> 33644.5 | AK115: =IFERROR(AA115*'Inputs & Assumptions'!$Q$47,"--") -> 13000 | AL115: =IFERROR(AB115*'Inputs & Assumptions'!$Q$48,"--") -> 583195.5 | AM115: =IFERROR(AC115*'Inputs & Assumptions'!$Q$49,"--") -> 100853.5
A116: 1508 | B116: Eagleswood Township | C116: Ocean | D116: 3402918670 | E116: 113 | F116: =VLOOKUP(A116,'[1]Municipal Tax Summary'!$A$3:$AN$566,4,FALSE) -> 242435800 | G116: =VLOOKUP(A116,'[1]Municipal Tax Summary'!$A$3:$AN$566,17,FALSE) -> 1154979.25 | H116: 0.476406228 | I116: 187433.14 | J116: 10306.098 | K116: =VLOOKUP(A116,'[1]Municipal Tax Summary'!$A$3:$AN$566,29,FALSE) -> 2.986969033 | L116: =VLOOKUP(A116,'[1]Municipal Tax Summary'!$A$3:$AN$566,9,FALSE) -> 1205362.02 | M116: =VLOOKUP(A116,'[1]Municipal Tax Summary'!$A$3:$AN$566,13,FALSE) -> 4881141 | N116: =VLOOKUP(A116,'[1]Municipal Tax Summary'!$A$3:$AN$566,18,FALSE) -> 7241482.27 | O116: 0.1594948668 | P116: 0.1664523885 | Q116: 0.6740527447 | R116: 2304 | S116: 81.35118924 | T116: 442502 | U116: 4501 | V116: 16100 | W116: 74002 | X116: 520108.4 | Y116: 4200 | Z116: 0 | AA116: 3200 | AB116: 87302 | AC116: 0 | AD116: =IFERROR(T116*'Inputs & Assumptions'!$Q$40,"--") -> 44250.2 | AE116: =IFERROR(U116*'Inputs & Assumptions'!$Q$41,"--") -> 450.1 | AF116: =IFERROR(V116*'Inputs & Assumptions'!$Q$42,"--") -> 8050 | AG116: =IFERROR(W116*'Inputs & Assumptions'!$Q$43,"--") -> 37001 | AH116: =IFERROR(X116*'Inputs & Assumptions'!$Q$44,"--") -> 52010.84 | AI116: =IFERROR(Y116*'Inputs & Assumptions'!$Q$45,"--") -> 420 | AJ116: =IFERROR(Z116*'Inputs & Assumptions'!$Q$46,"--") -> 0 | AK116: =IFERROR(AA116*'Inputs & Assumptions'!$Q$47,"--") -> 1600 | AL116: =IFERROR(AB116*'Inputs & Assumptions'!$Q$48,"--") -> 43651 | AM116: =IFERROR(AC116*'Inputs & Assumptions'!$Q$49,"--") -> 0
A117: 1008 | B117: East Amwell Township | C117: Hunterdon | D117: 3401918820 | E117: 114 | F117: =VLOOKUP(A117,'[1]Municipal Tax Summary'!$A$3:$AN$566,4,FALSE) -> 675179200 | G117: =VLOOKUP(A117,'[1]Municipal Tax Summary'!$A$3:$AN$566,17,FALSE) -> 1767110.64 | H117: 0.2617246858 | I117: 201139.656 | J117: 18211.15702 | K117: =VLOOKUP(A117,'[1]Municipal Tax Summary'!$A$3:$AN$566,29,FALSE) -> 2.620435631 | L117: =VLOOKUP(A117,'[1]Municipal Tax Summary'!$A$3:$AN$566,9,FALSE) -> 3648097.69 | M117: =VLOOKUP(A117,'[1]Municipal Tax Summary'!$A$3:$AN$566,13,FALSE) -> 12277428 | N117: =VLOOKUP(A117,'[1]Municipal Tax Summary'!$A$3:$AN$566,18,FALSE) -> 17692636.33 | O117: 0.09987831135 | P117: 0.2061929959 | Q117: 0.6939286928 | R117: 4535 | S117: 44.35273561 | T117: 545951.51 | U117: 81515 | V117: 0 | W117: 0 | X117: 557403 | Y117: 0 | Z117: 0 | AA117: 100 | AB117: 165205.41 | AC117: 0 | AD117: =IFERROR(T117*'Inputs & Assumptions'!$Q$40,"--") -> 54595.151 | AE117: =IFERROR(U117*'Inputs & Assumptions'!$Q$41,"--") -> 8151.5 | AF117: =IFERROR(V117*'Inputs & Assumptions'!$Q$42,"--") -> 0 | AG117: =IFERROR(W117*'Inputs & Assumptions'!$Q$43,"--") -> 0 | AH117: =IFERROR(X117*'Inputs & Assumptions'!$Q$44,"--") -> 55740.3 | AI117: =IFERROR(Y117*'Inputs & Assumptions'!$Q$45,"--") -> 0 | AJ117: =IFERROR(Z117*'Inputs & Assumptions'!$Q$46,"--") -> 0 | AK117: =IFERROR(AA117*'Inputs & Assumptions'!$Q$47,"--") -> 50 | AL117: =IFERROR(AB117*'Inputs & Assumptions'!$Q$48,"--") -> 82602.705 | AM117: =IFERROR(AC117*'Inputs & Assumptions'!$Q$49,"--") -> 0
A118: 1204 | B118: East Brunswick Township | C118: Middlesex | D118: 3402319000 | E118: 115 | F118: =VLOOKUP(A118,'[1]Municipal Tax Summary'!$A$3:$AN$566,4,FALSE) -> 1934304750 | G118: =VLOOKUP(A118,'[1]Municipal Tax Summary'!$A$3:$AN$566,17,FALSE) -> 47377233.13 | H118: 2.449315866 | I118: 18596786.88 | J118: 13941.92058 | K118: =VLOOKUP(A118,'[1]Municipal Tax Summary'!$A$3:$AN$566,29,FALSE) -> 12.17650465 | L118: =VLOOKUP(A118,'[1]Municipal Tax Summary'!$A$3:$AN$566,9,FALSE) -> 35684686.68 | M118: =VLOOKUP(A118,'[1]Municipal Tax Summary'!$A$3:$AN$566,13,FALSE) -> 152468788 | N118: =VLOOKUP(A118,'[1]Municipal Tax Summary'!$A$3:$AN$566,18,FALSE) -> 235530707.8 | O118: 0.2011509818 | P118: 0.1515075763 | Q118: 0.6473414419 | R118: 65447 | S118: 284.1503336 | T118: 5582600 | U118: 650775 | V118: 25000 | W118: 16332899.48 | X118: 22371100 | Y118: 803925.62 | Z118: 4250000 | AA118: 4755000 | AB118: 8728994.16 | AC118: 620000 | AD118: =IFERROR(T118*'Inputs & Assumptions'!$Q$40,"--") -> 558260 | AE118: =IFERROR(U118*'Inputs & Assumptions'!$Q$41,"--") -> 65077.5 | AF118: =IFERROR(V118*'Inputs & Assumptions'!$Q$42,"--") -> 12500 | AG118: =IFERROR(W118*'Inputs & Assumptions'!$Q$43,"--") -> 8166449.74 | AH118: =IFERROR(X118*'Inputs & Assumptions'!$Q$44,"--") -> 2237110 | AI118: =IFERROR(Y118*'Inputs & Assumptions'!$Q$45,"--") -> 80392.562 | AJ118: =IFERROR(Z118*'Inputs & Assumptions'!$Q$46,"--") -> 425000 | AK118: =IFERROR(AA118*'Inputs & Assumptions'!$Q$47,"--") -> 2377500 | AL118: =IFERROR(AB118*'Inputs & Assumptions'!$Q$48,"--") -> 4364497.08 | AM118: =IFERROR(AC118*'Inputs & Assumptions'!$Q$49,"--") -> 310000
A119: 0803 | B119: East Greenwich Township | C119: Gloucester | D119: 3401519180 | E119: 116 | F119: =VLOOKUP(A119,'[1]Municipal Tax Summary'!$A$3:$AN$566,4,FALSE) -> 1295740000 | G119: =VLOOKUP(A119,'[1]Municipal Tax Summary'!$A$3:$AN$566,17,FALSE) -> 4926952.01 | H119: 0.3802423333 | I119: 2691864.6 | J119: 9243.792894 | K119: =VLOOKUP(A119,'[1]Municipal Tax Summary'!$A$3:$AN$566,29,FALSE) -> 3.18673755 | L119: =VLOOKUP(A119,'[1]Municipal Tax Summary'!$A$3:$AN$566,9,FALSE) -> 9349199.12 | M119: =VLOOKUP(A119,'[1]Municipal Tax Summary'!$A$3:$AN$566,13,FALSE) -> 27015682 | N119: =VLOOKUP(A119,'[1]Municipal Tax Summary'!$A$3:$AN$566,18,FALSE) -> 41291833.13 | O119: 0.1193202538 | P119: 0.226417633 | Q119: 0.6542621132 | R119: 13432 | S119: 200.4068344 | T119: 4741391 | U119: 5000 | V119: 168450 | W119: 2484523 | X119: 961900 | Y119: 6700 | Z119: 0 | AA119: 0 | AB119: 1275133 | AC119: 312625 | AD119: =IFERROR(T119*'Inputs & Assumptions'!$Q$40,"--") -> 474139.1 | AE119: =IFERROR(U119*'Inputs & Assumptions'!$Q$41,"--") -> 500 | AF119: =IFERROR(V119*'Inputs & Assumptions'!$Q$42,"--") -> 84225 | AG119: =IFERROR(W119*'Inputs & Assumptions'!$Q$43,"--") -> 1242261.5 | AH119: =IFERROR(X119*'Inputs & Assumptions'!$Q$44,"--") -> 96190 | AI119: =IFERROR(Y119*'Inputs & Assumptions'!$Q$45,"--") -> 670 | AJ119: =IFERROR(Z119*'Inputs & Assumptions'!$Q$46,"--") -> 0 | AK119: =IFERROR(AA119*'Inputs & Assumptions'!$Q$47,"--") -> 0 | AL119: =IFERROR(AB119*'Inputs & Assumptions'!$Q$48,"--") -> 637566.5 | AM119: =IFERROR(AC119*'Inputs & Assumptions'!$Q$49,"--") -> 156312.5
A120: 1410 | B120: East Hanover Township | C120: Morris | D120: 3402719210 | E120: 117 | F120: =VLOOKUP(A120,'[1]Municipal Tax Summary'!$A$3:$AN$566,4,FALSE) -> 2590982139 | G120: =VLOOKUP(A120,'[1]Municipal Tax Summary'!$A$3:$AN$566,17,FALSE) -> 22350353 | H120: 0.8626208828 | I120: 6697677.953 | J120: 5039.882194 | K120: =VLOOKUP(A120,'[1]Municipal Tax Summary'!$A$3:$AN$566,29,FALSE) -> 2.651295923 | L120: =VLOOKUP(A120,'[1]Municipal Tax Summary'!$A$3:$AN$566,9,FALSE) -> 10309164.81 | M120: =VLOOKUP(A120,'[1]Municipal Tax Summary'!$A$3:$AN$566,13,FALSE) -> 36035086 | N120: =VLOOKUP(A120,'[1]Municipal Tax Summary'!$A$3:$AN$566,18,FALSE) -> 68694603.81 | O120: 0.3253582052 | P120: 0.1500724109 | Q120: 0.5245693839 | R120: 21573 | S120: 310.4657652 | T120: 2213836 | U120: 90250 | V120: 557600 | W120: 7128193.14 | X120: 7905299.83 | Y120: 437638 | Z120: 1420220 | AA120: 0 | AB120: 3097113 | AC120: 199001 | AD120: =IFERROR(T120*'Inputs & Assumptions'!$Q$40,"--") -> 221383.6 | AE120: =IFERROR(U120*'Inputs & Assumptions'!$Q$41,"--") -> 9025 | AF120: =IFERROR(V120*'Inputs & Assumptions'!$Q$42,"--") -> 278800 | AG120: =IFERROR(W120*'Inputs & Assumptions'!$Q$43,"--") -> 3564096.57 | AH120: =IFERROR(X120*'Inputs & Assumptions'!$Q$44,"--") -> 790529.983 | AI120: =IFERROR(Y120*'Inputs & Assumptions'!$Q$45,"--") -> 43763.8 | AJ120: =IFERROR(Z120*'Inputs & Assumptions'!$Q$46,"--") -> 142022 | AK120: =IFERROR(AA120*'Inputs & Assumptions'!$Q$47,"--") -> 0 | AL120: =IFERROR(AB120*'Inputs & Assumptions'!$Q$48,"--") -> 1548556.5 | AM120: =IFERROR(AC120*'Inputs & Assumptions'!$Q$49,"--") -> 99500.5
A121: 0902 | B121: East Newark Borough | C121: Hudson | D121: 3401719360 | E121: 118 | F121: =VLOOKUP(A121,'[1]Municipal Tax Summary'!$A$3:$AN$566,4,FALSE) -> 162699200 | G121: =VLOOKUP(A121,'[1]Municipal Tax Summary'!$A$3:$AN$566,17,FALSE) -> 2373671.73 | H121: 1.458932638 | I121: 1153835.525 | J121: 65.61510052 | K121: =VLOOKUP(A121,'[1]Municipal Tax Summary'!$A$3:$AN$566,29,FALSE) -> 3.075664349 | L121: =VLOOKUP(A121,'[1]Municipal Tax Summary'!$A$3:$AN$566,9,FALSE) -> 1082704.56 | M121: =VLOOKUP(A121,'[1]Municipal Tax Summary'!$A$3:$AN$566,13,FALSE) -> 1547705 | N121: =VLOOKUP(A121,'[1]Municipal Tax Summary'!$A$3:$AN$566,18,FALSE) -> 5004081.29 | O121: 0.4743471563 | P121: 0.2163643029 | Q121: 0.3092885408 | R121: 3077 | S121: 374.9871709 | T121: 808800 | U121: 6501 | V121: 58500 | W121: 999390.85 | X121: 1556500 | Y121: 9500 | Z121: 0 | AA121: 343400 | AB121: 352120 | AC121: 78000 | AD121: =IFERROR(T121*'Inputs & Assumptions'!$Q$40,"--") -> 80880 | AE121: =IFERROR(U121*'Inputs & Assumptions'!$Q$41,"--") -> 650.1 | AF121: =IFERROR(V121*'Inputs & Assumptions'!$Q$42,"--") -> 29250 | AG121: =IFERROR(W121*'Inputs & Assumptions'!$Q$43,"--") -> 499695.425 | AH121: =IFERROR(X121*'Inputs & Assumptions'!$Q$44,"--") -> 155650 | AI121: =IFERROR(Y121*'Inputs & Assumptions'!$Q$45,"--") -> 950 | AJ121: =IFERROR(Z121*'Inputs & Assumptions'!$Q$46,"--") -> 0 | AK121: =IFERROR(AA121*'Inputs & Assumptions'!$Q$47,"--") -> 171700 | AL121: =IFERROR(AB121*'Inputs & Assumptions'!$Q$48,"--") -> 176060 | AM121: =IFERROR(AC121*'Inputs & Assumptions'!$Q$49,"--") -> 39000
A122: 0705 | B122: East Orange City | C122: Essex | D122: 3401319390 | E122: 119 | F122: =VLOOKUP(A122,'[1]Municipal Tax Summary'!$A$3:$AN$566,4,FALSE) -> 4840836420 | G122: =VLOOKUP(A122,'[1]Municipal Tax Summary'!$A$3:$AN$566,17,FALSE) -> 96690757.38 | H122: 1.997397743 | I122: 48797511.97 | J122: 2513.656221 | K122: =VLOOKUP(A122,'[1]Municipal Tax Summary'!$A$3:$AN$566,29,FALSE) -> 3.240851536 | L122: =VLOOKUP(A122,'[1]Municipal Tax Summary'!$A$3:$AN$566,9,FALSE) -> 19171500.07 | M122: =VLOOKUP(A122,'[1]Municipal Tax Summary'!$A$3:$AN$566,13,FALSE) -> 41022064 | N122: =VLOOKUP(A122,'[1]Municipal Tax Summary'!$A$3:$AN$566,18,FALSE) -> 156884321.4 | O122: 0.6163188041 | P122: 0.1222015042 | Q122: 0.2614796917 | R122: 81466 | S122: 598.9923646 | T122: 39525949.71 | U122: 59500 | V122: 2030000 | W122: 55153348 | X122: 20182980 | Y122: 4946090 | Z122: 4160330 | AA122: 0 | AB122: 23883196 | AC122: 2753510 | AD122: =IFERROR(T122*'Inputs & Assumptions'!$Q$40,"--") -> 3952594.971 | AE122: =IFERROR(U122*'Inputs & Assumptions'!$Q$41,"--") -> 5950 | AF122: =IFERROR(V122*'Inputs & Assumptions'!$Q$42,"--") -> 1015000 | AG122: =IFERROR(W122*'Inputs & Assumptions'!$Q$43,"--") -> 27576674 | AH122: =IFERROR(X122*'Inputs & Assumptions'!$Q$44,"--") -> 2018298 | AI122: =IFERROR(Y122*'Inputs & Assumptions'!$Q$45,"--") -> 494609 | AJ122: =IFERROR(Z122*'Inputs & Assumptions'!$Q$46,"--") -> 416033 | AK122: =IFERROR(AA122*'Inputs & Assumptions'!$Q$47,"--") -> 0 | AL122: =IFERROR(AB122*'Inputs & Assumptions'!$Q$48,"--") -> 11941598 | AM122: =IFERROR(AC122*'Inputs & Assumptions'!$Q$49,"--") -> 1376755
A123: 0212 | B123: East Rutherford Borough | C123: Bergen | D123: 3400319510 | E123: 120 | F123: =VLOOKUP(A123,'[1]Municipal Tax Summary'!$A$3:$AN$566,4,FALSE) -> 2991120747 | G123: =VLOOKUP(A123,'[1]Municipal Tax Summary'!$A$3:$AN$566,17,FALSE) -> 13343759.12 | H123: 0.4461123521 | I123: 7855444.238 | J123: 2375.36474 | K123: =VLOOKUP(A123,'[1]Municipal Tax Summary'!$A$3:$AN$566,29,FALSE) -> 1.608441726 | L123: =VLOOKUP(A123,'[1]Municipal Tax Summary'!$A$3:$AN$566,9,FALSE) -> 7068122.04 | M123: =VLOOKUP(A123,'[1]Municipal Tax Summary'!$A$3:$AN$566,13,FALSE) -> 27698553 | N123: =VLOOKUP(A123,'[1]Municipal Tax Summary'!$A$3:$AN$566,18,FALSE) -> 48110434.16 | O123: 0.2773568635 | P123: 0.1469145345 | Q123: 0.575728602 | R123: 19169 | S123: 409.799376 | T123: 2229950 | U123: 74400 | V123: 289700 | W123: 9185500 | X123: 6155111.451 | Y123: 89000 | Z123: 1005666.28 | AA123: 500000 | AB123: 3479862.93 | AC123: 345000 | AD123: =IFERROR(T123*'Inputs & Assumptions'!$Q$40,"--") -> 222995 | AE123: =IFERROR(U123*'Inputs & Assumptions'!$Q$41,"--") -> 7440 | AF123: =IFERROR(V123*'Inputs & Assumptions'!$Q$42,"--") -> 144850 | AG123: =IFERROR(W123*'Inputs & Assumptions'!$Q$43,"--") -> 4592750 | AH123: =IFERROR(X123*'Inputs & Assumptions'!$Q$44,"--") -> 615511.1451 | AI123: =IFERROR(Y123*'Inputs & Assumptions'!$Q$45,"--") -> 8900 | AJ123: =IFERROR(Z123*'Inputs & Assumptions'!$Q$46,"--") -> 100566.628 | AK123: =IFERROR(AA123*'Inputs & Assumptions'!$Q$47,"--") -> 250000 | AL123: =IFERROR(AB123*'Inputs & Assumptions'!$Q$48,"--") -> 1739931.465 | AM123: =IFERROR(AC123*'Inputs & Assumptions'!$Q$49,"--") -> 172500
A124: 1101 | B124: East Windsor Township | C124: Mercer | D124: 3402119780 | E124: 121 | F124: =VLOOKUP(A124,'[1]Municipal Tax Summary'!$A$3:$AN$566,4,FALSE) -> 2920243800 | G124: =VLOOKUP(A124,'[1]Municipal Tax Summary'!$A$3:$AN$566,17,FALSE) -> 13582731.07 | H124: 0.4651231883 | I124: 6304955.8 | J124: 9963.114387 | K124: =VLOOKUP(A124,'[1]Municipal Tax Summary'!$A$3:$AN$566,29,FALSE) -> 3.626001921 | L124: =VLOOKUP(A124,'[1]Municipal Tax Summary'!$A$3:$AN$566,9,FALSE) -> 26870862.21 | M124: =VLOOKUP(A124,'[1]Municipal Tax Summary'!$A$3:$AN$566,13,FALSE) -> 65434503 | N124: =VLOOKUP(A124,'[1]Municipal Tax Summary'!$A$3:$AN$566,18,FALSE) -> 105888096.3 | O124: 0.1282743911 | P124: 0.2537666003 | Q124: 0.6179590086 | R124: 35019 | S124: 180.0438562 | T124: 1564569 | U124: 82345 | V124: 588276 | W124: 8004506 | X124: 1205894 | Y124: 519015 | Z124: 0 | AA124: 0 | AB124: 2903729 | AC124: 439036 | AD124: =IFERROR(T124*'Inputs & Assumptions'!$Q$40,"--") -> 156456.9 | AE124: =IFERROR(U124*'Inputs & Assumptions'!$Q$41,"--") -> 8234.5 | AF124: =IFERROR(V124*'Inputs & Assumptions'!$Q$42,"--") -> 294138 | AG124: =IFERROR(W124*'Inputs & Assumptions'!$Q$43,"--") -> 4002253 | AH124: =IFERROR(X124*'Inputs & Assumptions'!$Q$44,"--") -> 120589.4 | AI124: =IFERROR(Y124*'Inputs & Assumptions'!$Q$45,"--") -> 51901.5 | AJ124: =IFERROR(Z124*'Inputs & Assumptions'!$Q$46,"--") -> 0 | AK124: =IFERROR(AA124*'Inputs & Assumptions'!$Q$47,"--") -> 0 | AL124: =IFERROR(AB124*'Inputs & Assumptions'!$Q$48,"--") -> 1451864.5 | AM124: =IFERROR(AC124*'Inputs & Assumptions'!$Q$49,"--") -> 219518
A125: 0311 | B125: Eastampton Township | C125: Burlington | D125: 3400518790 | E125: 122 | F125: =VLOOKUP(A125,'[1]Municipal Tax Summary'!$A$3:$AN$566,4,FALSE) -> 605686462 | G125: =VLOOKUP(A125,'[1]Municipal Tax Summary'!$A$3:$AN$566,17,FALSE) -> 6578277.53 | H125: 1.086086274 | I125: 2343217.28 | J125: 3667.283777 | K125: =VLOOKUP(A125,'[1]Municipal Tax Summary'!$A$3:$AN$566,29,FALSE) -> 3.458151648 | L125: =VLOOKUP(A125,'[1]Municipal Tax Summary'!$A$3:$AN$566,9,FALSE) -> 3357150.84 | M125: =VLOOKUP(A125,'[1]Municipal Tax Summary'!$A$3:$AN$566,13,FALSE) -> 11010128 | N125: =VLOOKUP(A125,'[1]Municipal Tax Summary'!$A$3:$AN$566,18,FALSE) -> 20945556.37 | O125: 0.3140655428 | P125: 0.1602798599 | Q125: 0.5256545974 | R125: 7024 | S125: 333.601549 | T125: 911000 | U125: 171100 | V125: 276000 | W125: 2718747.56 | X125: 697800 | Y125: 10000 | Z125: 0 | AA125: 255800 | AB125: 1077907 | AC125: 0 | AD125: =IFERROR(T125*'Inputs & Assumptions'!$Q$40,"--") -> 91100 | AE125: =IFERROR(U125*'Inputs & Assumptions'!$Q$41,"--") -> 17110 | AF125: =IFERROR(V125*'Inputs & Assumptions'!$Q$42,"--") -> 138000 | AG125: =IFERROR(W125*'Inputs & Assumptions'!$Q$43,"--") -> 1359373.78 | AH125: =IFERROR(X125*'Inputs & Assumptions'!$Q$44,"--") -> 69780 | AI125: =IFERROR(Y125*'Inputs & Assumptions'!$Q$45,"--") -> 1000 | AJ125: =IFERROR(Z125*'Inputs & Assumptions'!$Q$46,"--") -> 0 | AK125: =IFERROR(AA125*'Inputs & Assumptions'!$Q$47,"--") -> 127900 | AL125: =IFERROR(AB125*'Inputs & Assumptions'!$Q$48,"--") -> 538953.5 | AM125: =IFERROR(AC125*'Inputs & Assumptions'!$Q$49,"--") -> 0
A126: 1311 | B126: Eatontown Borough | C126: Monmouth | D126: 3402519840 | E126: 123 | F126: =VLOOKUP(A126,'[1]Municipal Tax Summary'!$A$3:$AN$566,4,FALSE) -> 3476837851 | G126: =VLOOKUP(A126,'[1]Municipal Tax Summary'!$A$3:$AN$566,17,FALSE) -> 17376115.75 | H126: 0.4997677917 | I126: 7881331.301 | J126: 3738.026312 | K126: =VLOOKUP(A126,'[1]Municipal Tax Summary'!$A$3:$AN$566,29,FALSE) -> 1.757282562 | L126: =VLOOKUP(A126,'[1]Municipal Tax Summary'!$A$3:$AN$566,9,FALSE) -> 8683299.52 | M126: =VLOOKUP(A126,'[1]Municipal Tax Summary'!$A$3:$AN$566,13,FALSE) -> 35038450 | N126: =VLOOKUP(A126,'[1]Municipal Tax Summary'!$A$3:$AN$566,18,FALSE) -> 61097865.27 | O126: 0.2843980829 | P126: 0.1421211606 | Q126: 0.5734807566 | R126: 23729 | S126: 332.1392094 | T126: 2149468 | U126: 482857.19 | V126: 688271.97 | W126: 9397768.48 | X126: 5531313.57 | Y126: 41125 | Z126: 104622 | AA126: 600000 | AB126: 3259745 | AC126: 155000 | AD126: =IFERROR(T126*'Inputs & Assumptions'!$Q$40,"--") -> 214946.8 | AE126: =IFERROR(U126*'Inputs & Assumptions'!$Q$41,"--") -> 48285.719 | AF126: =IFERROR(V126*'Inputs & Assumptions'!$Q$42,"--") -> 344135.985 | AG126: =IFERROR(W126*'Inputs & Assumptions'!$Q$43,"--") -> 4698884.24 | AH126: =IFERROR(X126*'Inputs & Assumptions'!$Q$44,"--") -> 553131.357 | AI126: =IFERROR(Y126*'Inputs & Assumptions'!$Q$45,"--") -> 4112.5 | AJ126: =IFERROR(Z126*'Inputs & Assumptions'!$Q$46,"--") -> 10462.2 | AK126: =IFERROR(AA126*'Inputs & Assumptions'!$Q$47,"--") -> 300000 | AL126: =IFERROR(AB126*'Inputs & Assumptions'!$Q$48,"--") -> 1629872.5 | AM126: =IFERROR(AC126*'Inputs & Assumptions'!$Q$49,"--") -> 77500
A127: 0213 | B127: Edgewater Borough | C127: Bergen | D127: 3400320020 | E127: 124 | F127: =VLOOKUP(A127,'[1]Municipal Tax Summary'!$A$3:$AN$566,4,FALSE) -> 4387850963 | G127: =VLOOKUP(A127,'[1]Municipal Tax Summary'!$A$3:$AN$566,17,FALSE) -> 29979887 | H127: 0.6832476138 | I127: 7611427.7 | J127: 621.4789221 | K127: =VLOOKUP(A127,'[1]Municipal Tax Summary'!$A$3:$AN$566,29,FALSE) -> 1.644591857 | L127: =VLOOKUP(A127,'[1]Municipal Tax Summary'!$A$3:$AN$566,9,FALSE) -> 10834865.64 | M127: =VLOOKUP(A127,'[1]Municipal Tax Summary'!$A$3:$AN$566,13,FALSE) -> 31347487 | N127: =VLOOKUP(A127,'[1]Municipal Tax Summary'!$A$3:$AN$566,18,FALSE) -> 72162239.64 | O127: 0.4154511715 | P127: 0.150145917 | Q127: 0.4344029115 | R127: 18981 | S127: 401.0024604 | T127: 2610950 | U127: 122100 | V127: 571800 | W127: 8543900 | X127: 2778850 | Y127: 350900 | Z127: 1585237 | AA127: 1186000 | AB127: 3218348 | AC127: 213200 | AD127: =IFERROR(T127*'Inputs & Assumptions'!$Q$40,"--") -> 261095 | AE127: =IFERROR(U127*'Inputs & Assumptions'!$Q$41,"--") -> 12210 | AF127: =IFERROR(V127*'Inputs & Assumptions'!$Q$42,"--") -> 285900 | AG127: =IFERROR(W127*'Inputs & Assumptions'!$Q$43,"--") -> 4271950 | AH127: =IFERROR(X127*'Inputs & Assumptions'!$Q$44,"--") -> 277885 | AI127: =IFERROR(Y127*'Inputs & Assumptions'!$Q$45,"--") -> 35090 | AJ127: =IFERROR(Z127*'Inputs & Assumptions'!$Q$46,"--") -> 158523.7 | AK127: =IFERROR(AA127*'Inputs & Assumptions'!$Q$47,"--") -> 593000 | AL127: =IFERROR(AB127*'Inputs & Assumptions'!$Q$48,"--") -> 1609174 | AM127: =IFERROR(AC127*'Inputs & Assumptions'!$Q$49,"--") -> 106600
A128: 0312 | B128: Edgewater Park Township | C128: Burlington | D128: 3400520050 | E128: 125 | F128: =VLOOKUP(A128,'[1]Municipal Tax Summary'!$A$3:$AN$566,4,FALSE) -> 692403672 | G128: =VLOOKUP(A128,'[1]Municipal Tax Summary'!$A$3:$AN$566,17,FALSE) -> 7283466.29 | H128: 1.051910408 | I128: 2695893.22 | J128: 1868.425787 | K128: =VLOOKUP(A128,'[1]Municipal Tax Summary'!$A$3:$AN$566,29,FALSE) -> 3.344479326 | L128: =VLOOKUP(A128,'[1]Municipal Tax Summary'!$A$3:$AN$566,9,FALSE) -> 3322207.37 | M128: =VLOOKUP(A128,'[1]Municipal Tax Summary'!$A$3:$AN$566,13,FALSE) -> 12551624 | N128: =VLOOKUP(A128,'[1]Municipal Tax Summary'!$A$3:$AN$566,18,FALSE) -> 23157297.66 | O128: 0.3145214263 | P128: 0.1434626535 | Q128: 0.5420159202 | R128: 10673 | S128: 252.5900141 | T128: 1019100 | U128: 31500 | V128: 368900 | W128: 2865702.44 | X128: 2057250 | Y128: 29200 | Z128: 4000 | AA128: 281000 | AB128: 1057179 | AC128: 190795 | AD128: =IFERROR(T128*'Inputs & Assumptions'!$Q$40,"--") -> 101910 | AE128: =IFERROR(U128*'Inputs & Assumptions'!$Q$41,"--") -> 3150 | AF128: =IFERROR(V128*'Inputs & Assumptions'!$Q$42,"--") -> 184450 | AG128: =IFERROR(W128*'Inputs & Assumptions'!$Q$43,"--") -> 1432851.22 | AH128: =IFERROR(X128*'Inputs & Assumptions'!$Q$44,"--") -> 205725 | AI128: =IFERROR(Y128*'Inputs & Assumptions'!$Q$45,"--") -> 2920 | AJ128: =IFERROR(Z128*'Inputs & Assumptions'!$Q$46,"--") -> 400 | AK128: =IFERROR(AA128*'Inputs & Assumptions'!$Q$47,"--") -> 140500 | AL128: =IFERROR(AB128*'Inputs & Assumptions'!$Q$48,"--") -> 528589.5 | AM128: =IFERROR(AC128*'Inputs & Assumptions'!$Q$49,"--") -> 95397.5
A129: 1205 | B129: Edison Township | C129: Middlesex | D129: 3402320230 | E129: 126 | F129: =VLOOKUP(A129,'[1]Municipal Tax Summary'!$A$3:$AN$566,4,FALSE) -> 7486616500 | G129: =VLOOKUP(A129,'[1]Municipal Tax Summary'!$A$3:$AN$566,17,FALSE) -> 119453284.2 | H129: 1.595557675 | I129: 50118700.01 | J129: 19243.40522 | K129: =VLOOKUP(A129,'[1]Municipal Tax Summary'!$A$3:$AN$566,29,FALSE) -> 5.724330802 | L129: =VLOOKUP(A129,'[1]Municipal Tax Summary'!$A$3:$AN$566,9,FALSE) -> 74092242.16 | M129: =VLOOKUP(A129,'[1]Municipal Tax Summary'!$A$3:$AN$566,13,FALSE) -> 235013168 | N129: =VLOOKUP(A129,'[1]Municipal Tax Summary'!$A$3:$AN$566,18,FALSE) -> 428558694.3 | O129: 0.2787326117 | P129: 0.1728870354 | Q129: 0.5483803528 | R129: 160363 | S129: 312.5328163 | T129: 50459880.48 | U129: 756782.2 | V129: 2371462.61 | W129: 63029428.88 | X129: 10914643.01 | Y129: 2524405.69 | Z129: 7042541.05 | AA129: 0 | AB129: 19536032.43 | AC129: 960825.62 | AD129: =IFERROR(T129*'Inputs & Assumptions'!$Q$40,"--") -> 5045988.048 | AE129: =IFERROR(U129*'Inputs & Assumptions'!$Q$41,"--") -> 75678.22 | AF129: =IFERROR(V129*'Inputs & Assumptions'!$Q$42,"--") -> 1185731.305 | AG129: =IFERROR(W129*'Inputs & Assumptions'!$Q$43,"--") -> 31514714.44 | AH129: =IFERROR(X129*'Inputs & Assumptions'!$Q$44,"--") -> 1091464.301 | AI129: =IFERROR(Y129*'Inputs & Assumptions'!$Q$45,"--") -> 252440.569 | AJ129: =IFERROR(Z129*'Inputs & Assumptions'!$Q$46,"--") -> 704254.105 | AK129: =IFERROR(AA129*'Inputs & Assumptions'!$Q$47,"--") -> 0 | AL129: =IFERROR(AB129*'Inputs & Assumptions'!$Q$48,"--") -> 9768016.215 | AM129: =IFERROR(AC129*'Inputs & Assumptions'!$Q$49,"--") -> 480412.81
A130: 0107 | B130: Egg Harbor City | C130: Atlantic | D130: 3400120350 | E130: 127 | F130: =VLOOKUP(A130,'[1]Municipal Tax Summary'!$A$3:$AN$566,4,FALSE) -> 207068800 | G130: =VLOOKUP(A130,'[1]Municipal Tax Summary'!$A$3:$AN$566,17,FALSE) -> 4762814.35 | H130: 2.300112016 | I130: 1859528.5 | J130: 6944.599098 | K130: =VLOOKUP(A130,'[1]Municipal Tax Summary'!$A$3:$AN$566,29,FALSE) -> 5.567526354 | L130: =VLOOKUP(A130,'[1]Municipal Tax Summary'!$A$3:$AN$566,9,FALSE) -> 1543291.66 | M130: =VLOOKUP(A130,'[1]Municipal Tax Summary'!$A$3:$AN$566,13,FALSE) -> 5222504 | N130: =VLOOKUP(A130,'[1]Municipal Tax Summary'!$A$3:$AN$566,18,FALSE) -> 11528610.01 | O130: 0.4131299737 | P130: 0.1338662387 | Q130: 0.4530037876 | R130: 5373 | S130: 346.0875675 | T130: 907500 | U130: 106500 | V130: 71350 | W130: 2016150 | X130: 477690 | Y130: 10200 | Z130: 0 | AA130: 557500 | AB130: 773679 | AC130: 0 | AD130: =IFERROR(T130*'Inputs & Assumptions'!$Q$40,"--") -> 90750 | AE130: =IFERROR(U130*'Inputs & Assumptions'!$Q$41,"--") -> 10650 | AF130: =IFERROR(V130*'Inputs & Assumptions'!$Q$42,"--") -> 35675 | AG130: =IFERROR(W130*'Inputs & Assumptions'!$Q$43,"--") -> 1008075 | AH130: =IFERROR(X130*'Inputs & Assumptions'!$Q$44,"--") -> 47769 | AI130: =IFERROR(Y130*'Inputs & Assumptions'!$Q$45,"--") -> 1020 | AJ130: =IFERROR(Z130*'Inputs & Assumptions'!$Q$46,"--") -> 0 | AK130: =IFERROR(AA130*'Inputs & Assumptions'!$Q$47,"--") -> 278750 | AL130: =IFERROR(AB130*'Inputs & Assumptions'!$Q$48,"--") -> 386839.5 | AM130: =IFERROR(AC130*'Inputs & Assumptions'!$Q$49,"--") -> 0
A131: 0108 | B131: Egg Harbor Township | C131: Atlantic | D131: 3400120290 | E131: 128 | F131: =VLOOKUP(A131,'[1]Municipal Tax Summary'!$A$3:$AN$566,4,FALSE) -> 4191469390 | G131: =VLOOKUP(A131,'[1]Municipal Tax Summary'!$A$3:$AN$566,17,FALSE) -> 28880757 | H131: 0.689036572 | I131: 12380505.1 | J131: 42910.03104 | K131: =VLOOKUP(A131,'[1]Municipal Tax Summary'!$A$3:$AN$566,29,FALSE) -> 3.400647372 | L131: =VLOOKUP(A131,'[1]Municipal Tax Summary'!$A$3:$AN$566,9,FALSE) -> 26003303.67 | M131: =VLOOKUP(A131,'[1]Municipal Tax Summary'!$A$3:$AN$566,13,FALSE) -> 87653033 | N131: =VLOOKUP(A131,'[1]Municipal Tax Summary'!$A$3:$AN$566,18,FALSE) -> 142537093.7 | O131: 0.2026192359 | P131: 0.1824318358 | Q131: 0.6149489283 | R131: 60367 | S131: 205.087301 | T131: 3241645 | U131: 318943 | V131: 739902 | W131: 14075348 | X131: 5477238 | Y131: 30000 | Z131: 0 | AA131: 2043533 | AB131: 6088662 | AC131: 0 | AD131: =IFERROR(T131*'Inputs & Assumptions'!$Q$40,"--") -> 324164.5 | AE131: =IFERROR(U131*'Inputs & Assumptions'!$Q$41,"--") -> 31894.3 | AF131: =IFERROR(V131*'Inputs & Assumptions'!$Q$42,"--") -> 369951 | AG131: =IFERROR(W131*'Inputs & Assumptions'!$Q$43,"--") -> 7037674 | AH131: =IFERROR(X131*'Inputs & Assumptions'!$Q$44,"--") -> 547723.8 | AI131: =IFERROR(Y131*'Inputs & Assumptions'!$Q$45,"--") -> 3000 | AJ131: =IFERROR(Z131*'Inputs & Assumptions'!$Q$46,"--") -> 0 | AK131: =IFERROR(AA131*'Inputs & Assumptions'!$Q$47,"--") -> 1021766.5 | AL131: =IFERROR(AB131*'Inputs & Assumptions'!$Q$48,"--") -> 3044331 | AM131: =IFERROR(AC131*'Inputs & Assumptions'!$Q$49,"--") -> 0
A132: 2004 | B132: Elizabeth City | C132: Union | D132: 3403921000 | E132: 129 | F132: =VLOOKUP(A132,'[1]Municipal Tax Summary'!$A$3:$AN$566,4,FALSE) -> 15962358848 | G132: =VLOOKUP(A132,'[1]Municipal Tax Summary'!$A$3:$AN$566,17,FALSE) -> 207467276.9 | H132: 1.299728185 | I132: 92144471.54 | J132: 7884.010098 | K132: =VLOOKUP(A132,'[1]Municipal Tax Summary'!$A$3:$AN$566,29,FALSE) -> 2.016803972 | L132: =VLOOKUP(A132,'[1]Municipal Tax Summary'!$A$3:$AN$566,9,FALSE) -> 54649086.39 | M132: =VLOOKUP(A132,'[1]Municipal Tax Summary'!$A$3:$AN$566,13,FALSE) -> 59813124 | N132: =VLOOKUP(A132,'[1]Municipal Tax Summary'!$A$3:$AN$566,18,FALSE) -> 321929487.3 | O132: =G132/N132 -> 0.6444494372 | P132: =L132/N132 -> 0.1697548331 | Q132: =M132/N132 -> 0.1857957297 | R132: 170944 | S132: =IFERROR(I132/R132,"--") -> 539.0330842 | T132: 33426355.17 | U132: 0 | V132: 0 | W132: 108378611 | X132: 40119888 | Y132: 9670284 | Z132: 5000000 | AA132: 12850000 | AB132: 40907564.65 | AC132: 4509462 | AD132: =IFERROR(T132*'Inputs & Assumptions'!$Q$40,"--") -> 3342635.517 | AE132: =IFERROR(U132*'Inputs & Assumptions'!$Q$41,"--") -> 0 | AF132: =IFERROR(V132*'Inputs & Assumptions'!$Q$42,"--") -> 0 | AG132: =IFERROR(W132*'Inputs & Assumptions'!$Q$43,"--") -> 54189305.5 | AH132: =IFERROR(X132*'Inputs & Assumptions'!$Q$44,"--") -> 4011988.8 | AI132: =IFERROR(Y132*'Inputs & Assumptions'!$Q$45,"--") -> 967028.4 | AJ132: =IFERROR(Z132*'Inputs & Assumptions'!$Q$46,"--") -> 500000 | AK132: =IFERROR(AA132*'Inputs & Assumptions'!$Q$47,"--") -> 6425000 | AL132: =IFERROR(AB132*'Inputs & Assumptions'!$Q$48,"--") -> 20453782.32 | AM132: =IFERROR(AC132*'Inputs & Assumptions'!$Q$49,"--") -> 2254731
A133: 0804 | B133: Elk Township | C133: Gloucester | D133: 3401521060 | E133: =E132+1 -> 130 | F133: =VLOOKUP(A133,'[1]Municipal Tax Summary'!$A$3:$AN$566,4,FALSE) -> 391086900 | G133: =VLOOKUP(A133,'[1]Municipal Tax Summary'!$A$3:$AN$566,17,FALSE) -> 3717939.98 | H133: 0.9506685036 | I133: =IF(IFERROR(SUM(AD133:AM133),"--")=0,"--",IFERROR(SUM(AD133:AM133),"--")) -> 1690410.599 | J133: 12260.4586 | K133: =VLOOKUP(A133,'[1]Municipal Tax Summary'!$A$3:$AN$566,29,FALSE) -> 3.687669735 | L133: =VLOOKUP(A133,'[1]Municipal Tax Summary'!$A$3:$AN$566,9,FALSE) -> 2956357.27 | M133: =VLOOKUP(A133,'[1]Municipal Tax Summary'!$A$3:$AN$566,13,FALSE) -> 7747696 | N133: =VLOOKUP(A133,'[1]Municipal Tax Summary'!$A$3:$AN$566,18,FALSE) -> 14421993.25 | O133: 0.2577965414 | P133: 0.2049895059 | Q133: 0.5372139527 | R133: 4867 | S133: 347.3208545 | T133: 549399.45 | U133: 84350 | V133: 91850 | W133: 2079604.71 | X133: 655660.84 | Y133: 4550 | Z133: 0 | AA133: 233000 | AB133: 600579.43 | AC133: 116995 | AD133: =IFERROR(T133*'Inputs & Assumptions'!$Q$40,"--") -> 54939.945 | AE133: =IFERROR(U133*'Inputs & Assumptions'!$Q$41,"--") -> 8435 | AF133: =IFERROR(V133*'Inputs & Assumptions'!$Q$42,"--") -> 45925 | AG133: =IFERROR(W133*'Inputs & Assumptions'!$Q$43,"--") -> 1039802.355 | AH133: =IFERROR(X133*'Inputs & Assumptions'!$Q$44,"--") -> 65566.084 | AI133: =IFERROR(Y133*'Inputs & Assumptions'!$Q$45,"--") -> 455 | AJ133: =IFERROR(Z133*'Inputs & Assumptions'!$Q$46,"--") -> 0 | AK133: =IFERROR(AA133*'Inputs & Assumptions'!$Q$47,"--") -> 116500 | AL133: =IFERROR(AB133*'Inputs & Assumptions'!$Q$48,"--") -> 300289.715 | AM133: =IFERROR(AC133*'Inputs & Assumptions'!$Q$49,"--") -> 58497.5
A134: 1702 | B134: Elmer Borough | C134: Salem | D134: 3403321240 | E134: 131 | F134: =VLOOKUP(A134,'[1]Municipal Tax Summary'!$A$3:$AN$566,4,FALSE) -> 104749000 | G134: =VLOOKUP(A134,'[1]Municipal Tax Summary'!$A$3:$AN$566,17,FALSE) -> 785620 | H134: =G134/(F134/100) -> 0.7500023867 | I134: 296688.265 | J134: 571.9624835 | K134: =VLOOKUP(A134,'[1]Municipal Tax Summary'!$A$3:$AN$566,29,FALSE) -> 4.10127037 | L134: =VLOOKUP(A134,'[1]Municipal Tax Summary'!$A$3:$AN$566,9,FALSE) -> 1516188.7 | M134: =VLOOKUP(A134,'[1]Municipal Tax Summary'!$A$3:$AN$566,13,FALSE) -> 1994231 | N134: =VLOOKUP(A134,'[1]Municipal Tax Summary'!$A$3:$AN$566,18,FALSE) -> 4296039.7 | O134: 0.1828707495 | P134: 0.3529270691 | Q134: 0.4642021814 | R134: 2444 | S134: 121.3945438 | T134: 455288 | U134: 9404 | V134: 14178 | W134: 294799.73 | X134: 181815 | Y134: 25111 | Z134: 13076 | AA134: 65700 | AB134: 81760 | AC134: 0 | AD134: =IFERROR(T134*'Inputs & Assumptions'!$Q$40,"--") -> 45528.8 | AE134: =IFERROR(U134*'Inputs & Assumptions'!$Q$41,"--") -> 940.4 | AF134: =IFERROR(V134*'Inputs & Assumptions'!$Q$42,"--") -> 7089 | AG134: =IFERROR(W134*'Inputs & Assumptions'!$Q$43,"--") -> 147399.865 | AH134: =IFERROR(X134*'Inputs & Assumptions'!$Q$44,"--") -> 18181.5 | AI134: =IFERROR(Y134*'Inputs & Assumptions'!$Q$45,"--") -> 2511.1 | AJ134: =IFERROR(Z134*'Inputs & Assumptions'!$Q$46,"--") -> 1307.6 | AK134: =IFERROR(AA134*'Inputs & Assumptions'!$Q$47,"--") -> 32850 | AL134: =IFERROR(AB134*'Inputs & Assumptions'!$Q$48,"--") -> 40880 | AM134: =IFERROR(AC134*'Inputs & Assumptions'!$Q$49,"--") -> 0
A135: 0211 | B135: Elmwood Park Borough | C135: Bergen | D135: 3400321300 | E135: 132 | F135: =VLOOKUP(A135,'[1]Municipal Tax Summary'!$A$3:$AN$566,4,FALSE) -> 2201577668 | G135: =VLOOKUP(A135,'[1]Municipal Tax Summary'!$A$3:$AN$566,17,FALSE) -> 24698580 | H135: 1.121858218 | I135: 9327692.1 | J135: 1691.463564 | K135: =VLOOKUP(A135,'[1]Municipal Tax Summary'!$A$3:$AN$566,29,FALSE) -> 3.201176729 | L135: =VLOOKUP(A135,'[1]Municipal Tax Summary'!$A$3:$AN$566,9,FALSE) -> 7627607.98 | M135: =VLOOKUP(A135,'[1]Municipal Tax Summary'!$A$3:$AN$566,13,FALSE) -> 38150204 | N135: =VLOOKUP(A135,'[1]Municipal Tax Summary'!$A$3:$AN$566,18,FALSE) -> 70476391.98 | O135: 0.3504518223 | P135: 0.1082292632 | Q135: 0.5413189144 | R135: 27487 | S135: 339.3492233 | T135: 1582983 | U135: 121000 | V135: 485000 | W135: 10583530 | X135: 1940000 | Y135: 36000 | Z135: 1077173 | AA135: 2585000 | AB135: 3711423 | AC135: 339000 | AD135: =IFERROR(T135*'Inputs & Assumptions'!$Q$40,"--") -> 158298.3 | AE135: =IFERROR(U135*'Inputs & Assumptions'!$Q$41,"--") -> 12100 | AF135: =IFERROR(V135*'Inputs & Assumptions'!$Q$42,"--") -> 242500 | AG135: =IFERROR(W135*'Inputs & Assumptions'!$Q$43,"--") -> 5291765 | AH135: =IFERROR(X135*'Inputs & Assumptions'!$Q$44,"--") -> 194000 | AI135: =IFERROR(Y135*'Inputs & Assumptions'!$Q$45,"--") -> 3600 | AJ135: =IFERROR(Z135*'Inputs & Assumptions'!$Q$46,"--") -> 107717.3 | AK135: =IFERROR(AA135*'Inputs & Assumptions'!$Q$47,"--") -> 1292500 | AL135: =IFERROR(AB135*'Inputs & Assumptions'!$Q$48,"--") -> 1855711.5 | AM135: =IFERROR(AC135*'Inputs & Assumptions'!$Q$49,"--") -> 169500
A136: 1703 | B136: Elsinboro Township | C136: Salem | D136: 3403321330 | E136: 133 | F136: =VLOOKUP(A136,'[1]Municipal Tax Summary'!$A$3:$AN$566,4,FALSE) -> 116105200 | G136: =VLOOKUP(A136,'[1]Municipal Tax Summary'!$A$3:$AN$566,17,FALSE) -> 508492.07 | H136: 0.4379580501 | I136: 154267.6 | J136: 7635.992258 | K136: =VLOOKUP(A136,'[1]Municipal Tax Summary'!$A$3:$AN$566,29,FALSE) -> 3.171913006 | L136: =VLOOKUP(A136,'[1]Municipal Tax Summary'!$A$3:$AN$566,9,FALSE) -> 1509900.87 | M136: =VLOOKUP(A136,'[1]Municipal Tax Summary'!$A$3:$AN$566,13,FALSE) -> 1664363 | N136: =VLOOKUP(A136,'[1]Municipal Tax Summary'!$A$3:$AN$566,18,FALSE) -> 3682755.94 | O136: 0.1380737899 | P136: 0.4099921077 | Q136: 0.4519341024 | R136: 942 | S136: 163.7660297 | T136: 171833 | U136: 9328 | V136: 21121 | W136: 168570 | X136: 157304 | Y136: 9696 | Z136: 0 | AA136: 35500 | AB136: 13712 | AC136: 0 | AD136: =IFERROR(T136*'Inputs & Assumptions'!$Q$40,"--") -> 17183.3 | AE136: =IFERROR(U136*'Inputs & Assumptions'!$Q$41,"--") -> 932.8 | AF136: =IFERROR(V136*'Inputs & Assumptions'!$Q$42,"--") -> 10560.5 | AG136: =IFERROR(W136*'Inputs & Assumptions'!$Q$43,"--") -> 84285 | AH136: =IFERROR(X136*'Inputs & Assumptions'!$Q$44,"--") -> 15730.4 | AI136: =IFERROR(Y136*'Inputs & Assumptions'!$Q$45,"--") -> 969.6 | AJ136: =IFERROR(Z136*'Inputs & Assumptions'!$Q$46,"--") -> 0 | AK136: =IFERROR(AA136*'Inputs & Assumptions'!$Q$47,"--") -> 17750 | AL136: =IFERROR(AB136*'Inputs & Assumptions'!$Q$48,"--") -> 6856 | AM136: =IFERROR(AC136*'Inputs & Assumptions'!$Q$49,"--") -> 0
